Workbook

Sheet Figure 1c
A1: Figure 1c
A2: Time | B2: T∞ Read 2:600 | C2: A1 | D2: A2 | E2: A3 | F2: A4 | G2: A5 | H2: A6 | I2: A7 | J2: A8 | K2: A9 | L2: A10 | M2: A11 | N2: A12 | O2: B1 | P2: B2 | Q2: B3 | R2: B4 | S2: B5 | T2: B6 | U2: B7 | V2: B8 | W2: B9 | X2: B10 | Y2: B11 | Z2: B12 | AA2: C1 | AB2: C2 | AC2: C3 | AD2: C4 | AE2: C5 | AF2: C6 | AG2: C7 | AH2: C8 | AI2: C9 | AJ2: C10 | AK2: C11 | AL2: C12 | AM2: D1 | AN2: D2 | AO2: D3 | AP2: D4 | AQ2: D5 | AR2: D6 | AS2: D7 | AT2: D8 | AU2: D9 | AV2: D10 | AW2: D11 | AX2: D12 | AY2: E1 | AZ2: E2 | BA2: E3 | BB2: E4 | BC2: E5 | BD2: E6 | BE2: E7 | BF2: E8 | BG2: E9 | BH2: E10 | BI2: E11 | BJ2: E12 | BK2: F1 | BL2: F2 | BM2: F3 | BN2: F4 | BO2: F5 | BP2: F6 | BQ2: F7 | BR2: F8 | BS2: F9 | BT2: F10 | BU2: F11 | BV2: F12 | BW2: G1 | BX2: G2 | BY2: G3 | BZ2: G4 | CA2: G5 | CB2: G6 | CC2: G7 | CD2: G8 | CE2: G9 | CF2: G10 | CG2: G11 | CH2: G12 | CI2: H1 | CJ2: H2 | CK2: H3 | CL2: H4 | CM2: H5 | CN2: H6 | CO2: H7 | CP2: H8 | CQ2: H9 | CR2: H10 | CS2: H11 | CT2: H12
A3: 00:29:16 | B3: 37 | C3: 0.226 | D3: 0.087 | E3: 0.231 | F3: 0.086 | G3: 0.208 | H3: 0.093 | I3: 0.227 | J3: 0.086 | K3: 0.218 | L3: 0.087 | M3: 0.137 | N3: 0.084 | O3: 0.227 | P3: 0.089 | Q3: 0.233 | R3: 0.089 | S3: 0.208 | T3: 0.094 | U3: 0.226 | V3: 0.085 | W3: 0.225 | X3: 0.09 | Y3: 0.136 | Z3: 0.091 | AA3: 0.225 | AB3: 0.088 | AC3: 0.231 | AD3: 0.086 | AE3: 0.209 | AF3: 0.09 | AG3: 0.227 | AH3: 0.087 | AI3: 0.223 | AJ3: 0.085 | AK3: 0.138 | AL3: 0.091 | AM3: 0.224 | AN3: 0.084 | AO3: 0.226 | AP3: 0.09 | AQ3: 0.216 | AR3: 0.085 | AS3: 0.229 | AT3: 0.088 | AU3: 0.237 | AV3: 0.088 | AW3: 0.137 | AX3: 0.086 | AY3: 0.084 | AZ3: 0.084 | BA3: 0.087 | BB3: 0.088 | BC3: 0.084 | BD3: 0.085 | BE3: 0.089 | BF3: 0.083 | BG3: 0.084 | BH3: 0.087 | BI3: 0.096 | BJ3: 0.088 | BK3: 0.085 | BL3: 0.087 | BM3: 0.084 | BN3: 0.089 | BO3: 0.087 | BP3: 0.084 | BQ3: 0.087 | BR3: 0.085 | BS3: 0.088 | BT3: 0.085 | BU3: 0.091 | BV3: 0.086 | BW3: 0.085 | BX3: 0.087 | BY3: 0.089 | BZ3: 0.087 | CA3: 0.085 | CB3: 0.086 | CC3: 0.082 | CD3: 0.091 | CE3: 0.087 | CF3: 0.09 | CG3: 0.084 | CH3: 0.088 | CI3: 0.084 | CJ3: 0.094 | CK3: 0.091 | CL3: 0.088 | CM3: 0.089 | CN3: 0.087 | CO3: 0.088 | CP3: 0.087 | CQ3: 0.084 | CR3: 0.089 | CS3: 0.087 | CT3: 0.091
A4: 00:59:16 | B4: 37 | C4: 0.244 | D4: 0.087 | E4: 0.252 | F4: 0.086 | G4: 0.215 | H4: 0.093 | I4: 0.245 | J4: 0.086 | K4: 0.235 | L4: 0.086 | M4: 0.137 | N4: 0.084 | O4: 0.243 | P4: 0.089 | Q4: 0.245 | R4: 0.089 | S4: 0.214 | T4: 0.095 | U4: 0.239 | V4: 0.085 | W4: 0.241 | X4: 0.09 | Y4: 0.136 | Z4: 0.091 | AA4: 0.241 | AB4: 0.088 | AC4: 0.246 | AD4: 0.086 | AE4: 0.214 | AF4: 0.089 | AG4: 0.24 | AH4: 0.087 | AI4: 0.239 | AJ4: 0.085 | AK4: 0.138 | AL4: 0.091 | AM4: 0.237 | AN4: 0.084 | AO4: 0.245 | AP4: 0.09 | AQ4: 0.222 | AR4: 0.085 | AS4: 0.245 | AT4: 0.089 | AU4: 0.254 | AV4: 0.088 | AW4: 0.137 | AX4: 0.086 | AY4: 0.084 | AZ4: 0.084 | BA4: 0.087 | BB4: 0.088 | BC4: 0.084 | BD4: 0.085 | BE4: 0.087 | BF4: 0.083 | BG4: 0.084 | BH4: 0.086 | BI4: 0.096 | BJ4: 0.088 | BK4: 0.085 | BL4: 0.087 | BM4: 0.084 | BN4: 0.089 | BO4: 0.087 | BP4: 0.084 | BQ4: 0.087 | BR4: 0.084 | BS4: 0.088 | BT4: 0.085 | BU4: 0.091 | BV4: 0.086 | BW4: 0.085 | BX4: 0.087 | BY4: 0.089 | BZ4: 0.087 | CA4: 0.085 | CB4: 0.086 | CC4: 0.083 | CD4: 0.091 | CE4: 0.087 | CF4: 0.089 | CG4: 0.084 | CH4: 0.088 | CI4: 0.084 | CJ4: 0.094 | CK4: 0.091 | CL4: 0.087 | CM4: 0.088 | CN4: 0.087 | CO4: 0.088 | CP4: 0.087 | CQ4: 0.084 | CR4: 0.089 | CS4: 0.087 | CT4: 0.091
A5: 01:29:16 | B5: 37 | C5: 0.269 | D5: 0.087 | E5: 0.28 | F5: 0.086 | G5: 0.232 | H5: 0.092 | I5: 0.266 | J5: 0.085 | K5: 0.266 | L5: 0.086 | M5: 0.137 | N5: 0.084 | O5: 0.268 | P5: 0.089 | Q5: 0.276 | R5: 0.089 | S5: 0.225 | T5: 0.094 | U5: 0.261 | V5: 0.085 | W5: 0.266 | X5: 0.09 | Y5: 0.136 | Z5: 0.09 | AA5: 0.268 | AB5: 0.088 | AC5: 0.273 | AD5: 0.086 | AE5: 0.226 | AF5: 0.089 | AG5: 0.265 | AH5: 0.087 | AI5: 0.264 | AJ5: 0.085 | AK5: 0.138 | AL5: 0.091 | AM5: 0.267 | AN5: 0.084 | AO5: 0.27 | AP5: 0.09 | AQ5: 0.236 | AR5: 0.085 | AS5: 0.27 | AT5: 0.088 | AU5: 0.28 | AV5: 0.088 | AW5: 0.137 | AX5: 0.086 | AY5: 0.084 | AZ5: 0.083 | BA5: 0.087 | BB5: 0.088 | BC5: 0.084 | BD5: 0.085 | BE5: 0.087 | BF5: 0.083 | BG5: 0.084 | BH5: 0.086 | BI5: 0.096 | BJ5: 0.088 | BK5: 0.084 | BL5: 0.087 | BM5: 0.084 | BN5: 0.089 | BO5: 0.087 | BP5: 0.084 | BQ5: 0.087 | BR5: 0.085 | BS5: 0.088 | BT5: 0.084 | BU5: 0.091 | BV5: 0.086 | BW5: 0.085 | BX5: 0.086 | BY5: 0.089 | BZ5: 0.086 | CA5: 0.085 | CB5: 0.086 | CC5: 0.082 | CD5: 0.091 | CE5: 0.087 | CF5: 0.09 | CG5: 0.084 | CH5: 0.088 | CI5: 0.084 | CJ5: 0.094 | CK5: 0.09 | CL5: 0.087 | CM5: 0.088 | CN5: 0.087 | CO5: 0.088 | CP5: 0.087 | CQ5: 0.084 | CR5: 0.089 | CS5: 0.087 | CT5: 0.091
A6: 01:59:16 | B6: 37 | C6: 0.31 | D6: 0.087 | E6: 0.321 | F6: 0.086 | G6: 0.259 | H6: 0.091 | I6: 0.3 | J6: 0.086 | K6: 0.314 | L6: 0.087 | M6: 0.137 | N6: 0.084 | O6: 0.31 | P6: 0.089 | Q6: 0.316 | R6: 0.089 | S6: 0.247 | T6: 0.095 | U6: 0.288 | V6: 0.085 | W6: 0.311 | X6: 0.09 | Y6: 0.136 | Z6: 0.091 | AA6: 0.309 | AB6: 0.088 | AC6: 0.313 | AD6: 0.086 | AE6: 0.248 | AF6: 0.089 | AG6: 0.3 | AH6: 0.087 | AI6: 0.306 | AJ6: 0.085 | AK6: 0.138 | AL6: 0.091 | AM6: 0.312 | AN6: 0.084 | AO6: 0.313 | AP6: 0.09 | AQ6: 0.262 | AR6: 0.085 | AS6: 0.304 | AT6: 0.089 | AU6: 0.319 | AV6: 0.088 | AW6: 0.137 | AX6: 0.086 | AY6: 0.084 | AZ6: 0.084 | BA6: 0.087 | BB6: 0.088 | BC6: 0.084 | BD6: 0.086 | BE6: 0.087 | BF6: 0.084 | BG6: 0.085 | BH6: 0.087 | BI6: 0.096 | BJ6: 0.088 | BK6: 0.085 | BL6: 0.087 | BM6: 0.084 | BN6: 0.089 | BO6: 0.087 | BP6: 0.084 | BQ6: 0.087 | BR6: 0.085 | BS6: 0.088 | BT6: 0.084 | BU6: 0.091 | BV6: 0.087 | BW6: 0.085 | BX6: 0.087 | BY6: 0.089 | BZ6: 0.087 | CA6: 0.085 | CB6: 0.086 | CC6: 0.083 | CD6: 0.091 | CE6: 0.087 | CF6: 0.09 | CG6: 0.084 | CH6: 0.088 | CI6: 0.084 | CJ6: 0.094 | CK6: 0.091 | CL6: 0.087 | CM6: 0.088 | CN6: 0.087 | CO6: 0.088 | CP6: 0.087 | CQ6: 0.084 | CR6: 0.089 | CS6: 0.088 | CT6: 0.091
A7: 02:29:16 | B7: 37 | C7: 0.352 | D7: 0.087 | E7: 0.365 | F7: 0.086 | G7: 0.286 | H7: 0.09 | I7: 0.336 | J7: 0.085 | K7: 0.368 | L7: 0.086 | M7: 0.137 | N7: 0.084 | O7: 0.355 | P7: 0.089 | Q7: 0.358 | R7: 0.089 | S7: 0.273 | T7: 0.095 | U7: 0.316 | V7: 0.085 | W7: 0.355 | X7: 0.09 | Y7: 0.136 | Z7: 0.091 | AA7: 0.352 | AB7: 0.088 | AC7: 0.353 | AD7: 0.086 | AE7: 0.272 | AF7: 0.089 | AG7: 0.337 | AH7: 0.087 | AI7: 0.348 | AJ7: 0.085 | AK7: 0.138 | AL7: 0.091 | AM7: 0.359 | AN7: 0.084 | AO7: 0.358 | AP7: 0.09 | AQ7: 0.287 | AR7: 0.085 | AS7: 0.34 | AT7: 0.089 | AU7: 0.364 | AV7: 0.088 | AW7: 0.137 | AX7: 0.086 | AY7: 0.084 | AZ7: 0.084 | BA7: 0.087 | BB7: 0.088 | BC7: 0.084 | BD7: 0.085 | BE7: 0.087 | BF7: 0.083 | BG7: 0.084 | BH7: 0.087 | BI7: 0.096 | BJ7: 0.088 | BK7: 0.085 | BL7: 0.087 | BM7: 0.084 | BN7: 0.089 | BO7: 0.087 | BP7: 0.084 | BQ7: 0.087 | BR7: 0.084 | BS7: 0.087 | BT7: 0.084 | BU7: 0.09 | BV7: 0.086 | BW7: 0.085 | BX7: 0.087 | BY7: 0.089 | BZ7: 0.087 | CA7: 0.085 | CB7: 0.086 | CC7: 0.082 | CD7: 0.091 | CE7: 0.087 | CF7: 0.09 | CG7: 0.084 | CH7: 0.088 | CI7: 0.084 | CJ7: 0.094 | CK7: 0.091 | CL7: 0.087 | CM7: 0.088 | CN7: 0.088 | CO7: 0.088 | CP7: 0.087 | CQ7: 0.084 | CR7: 0.089 | CS7: 0.087 | CT7: 0.091
A8: 02:59:16 | B8: 37 | C8: 0.41 | D8: 0.087 | E8: 0.384 | F8: 0.086 | G8: 0.27 | H8: 0.09 | I8: 0.312 | J8: 0.085 | K8: 0.363 | L8: 0.086 | M8: 0.137 | N8: 0.084 | O8: 0.419 | P8: 0.089 | Q8: 0.374 | R8: 0.089 | S8: 0.258 | T8: 0.095 | U8: 0.295 | V8: 0.085 | W8: 0.367 | X8: 0.09 | Y8: 0.136 | Z8: 0.091 | AA8: 0.416 | AB8: 0.088 | AC8: 0.371 | AD8: 0.086 | AE8: 0.252 | AF8: 0.089 | AG8: 0.337 | AH8: 0.087 | AI8: 0.359 | AJ8: 0.085 | AK8: 0.138 | AL8: 0.091 | AM8: 0.422 | AN8: 0.084 | AO8: 0.37 | AP8: 0.09 | AQ8: 0.258 | AR8: 0.085 | AS8: 0.307 | AT8: 0.089 | AU8: 0.359 | AV8: 0.088 | AW8: 0.137 | AX8: 0.086 | AY8: 0.084 | AZ8: 0.084 | BA8: 0.086 | BB8: 0.088 | BC8: 0.084 | BD8: 0.085 | BE8: 0.087 | BF8: 0.083 | BG8: 0.084 | BH8: 0.086 | BI8: 0.096 | BJ8: 0.088 | BK8: 0.085 | BL8: 0.087 | BM8: 0.084 | BN8: 0.089 | BO8: 0.087 | BP8: 0.084 | BQ8: 0.087 | BR8: 0.085 | BS8: 0.087 | BT8: 0.084 | BU8: 0.09 | BV8: 0.086 | BW8: 0.085 | BX8: 0.087 | BY8: 0.089 | BZ8: 0.087 | CA8: 0.085 | CB8: 0.086 | CC8: 0.082 | CD8: 0.091 | CE8: 0.087 | CF8: 0.09 | CG8: 0.084 | CH8: 0.088 | CI8: 0.084 | CJ8: 0.094 | CK8: 0.091 | CL8: 0.087 | CM8: 0.088 | CN8: 0.087 | CO8: 0.088 | CP8: 0.087 | CQ8: 0.084 | CR8: 0.089 | CS8: 0.087 | CT8: 0.091
A9: 03:29:16 | B9: 37 | C9: 0.474 | D9: 0.087 | E9: 0.262 | F9: 0.086 | G9: 0.2 | H9: 0.09 | I9: 0.223 | J9: 0.086 | K9: 0.236 | L9: 0.086 | M9: 0.137 | N9: 0.084 | O9: 0.484 | P9: 0.089 | Q9: 0.257 | R9: 0.089 | S9: 0.19 | T9: 0.095 | U9: 0.218 | V9: 0.085 | W9: 0.244 | X9: 0.09 | Y9: 0.136 | Z9: 0.09 | AA9: 0.485 | AB9: 0.088 | AC9: 0.256 | AD9: 0.086 | AE9: 0.186 | AF9: 0.089 | AG9: 0.237 | AH9: 0.087 | AI9: 0.237 | AJ9: 0.085 | AK9: 0.137 | AL9: 0.091 | AM9: 0.489 | AN9: 0.084 | AO9: 0.255 | AP9: 0.09 | AQ9: 0.194 | AR9: 0.085 | AS9: 0.231 | AT9: 0.089 | AU9: 0.232 | AV9: 0.088 | AW9: 0.137 | AX9: 0.086 | AY9: 0.084 | AZ9: 0.084 | BA9: 0.086 | BB9: 0.088 | BC9: 0.084 | BD9: 0.085 | BE9: 0.087 | BF9: 0.083 | BG9: 0.084 | BH9: 0.086 | BI9: 0.096 | BJ9: 0.088 | BK9: 0.085 | BL9: 0.087 | BM9: 0.084 | BN9: 0.089 | BO9: 0.087 | BP9: 0.084 | BQ9: 0.087 | BR9: 0.084 | BS9: 0.088 | BT9: 0.084 | BU9: 0.09 | BV9: 0.086 | BW9: 0.085 | BX9: 0.086 | BY9: 0.089 | BZ9: 0.086 | CA9: 0.085 | CB9: 0.086 | CC9: 0.083 | CD9: 0.091 | CE9: 0.087 | CF9: 0.09 | CG9: 0.084 | CH9: 0.088 | CI9: 0.084 | CJ9: 0.094 | CK9: 0.091 | CL9: 0.087 | CM9: 0.088 | CN9: 0.088 | CO9: 0.087 | CP9: 0.087 | CQ9: 0.084 | CR9: 0.089 | CS9: 0.087 | CT9: 0.091
A10: 03:59:16 | B10: 37 | C10: 0.531 | D10: 0.087 | E10: 0.23 | F10: 0.086 | G10: 0.189 | H10: 0.09 | I10: 0.21 | J10: 0.085 | K10: 0.211 | L10: 0.086 | M10: 0.137 | N10: 0.084 | O10: 0.546 | P10: 0.089 | Q10: 0.229 | R10: 0.089 | S10: 0.181 | T10: 0.095 | U10: 0.208 | V10: 0.085 | W10: 0.211 | X10: 0.09 | Y10: 0.135 | Z10: 0.091 | AA10: 0.55 | AB10: 0.088 | AC10: 0.227 | AD10: 0.086 | AE10: 0.179 | AF10: 0.089 | AG10: 0.221 | AH10: 0.087 | AI10: 0.206 | AJ10: 0.085 | AK10: 0.137 | AL10: 0.091 | AM10: 0.556 | AN10: 0.084 | AO10: 0.225 | AP10: 0.09 | AQ10: 0.186 | AR10: 0.085 | AS10: 0.219 | AT10: 0.088 | AU10: 0.211 | AV10: 0.088 | AW10: 0.137 | AX10: 0.086 | AY10: 0.084 | AZ10: 0.084 | BA10: 0.087 | BB10: 0.088 | BC10: 0.084 | BD10: 0.085 | BE10: 0.087 | BF10: 0.083 | BG10: 0.084 | BH10: 0.086 | BI10: 0.095 | BJ10: 0.088 | BK10: 0.085 | BL10: 0.087 | BM10: 0.084 | BN10: 0.089 | BO10: 0.087 | BP10: 0.084 | BQ10: 0.087 | BR10: 0.084 | BS10: 0.088 | BT10: 0.084 | BU10: 0.09 | BV10: 0.086 | BW10: 0.085 | BX10: 0.087 | BY10: 0.089 | BZ10: 0.086 | CA10: 0.085 | CB10: 0.086 | CC10: 0.082 | CD10: 0.091 | CE10: 0.087 | CF10: 0.09 | CG10: 0.084 | CH10: 0.088 | CI10: 0.084 | CJ10: 0.094 | CK10: 0.091 | CL10: 0.087 | CM10: 0.088 | CN10: 0.087 | CO10: 0.088 | CP10: 0.087 | CQ10: 0.084 | CR10: 0.089 | CS10: 0.087 | CT10: 0.091
A11: 04:29:16 | B11: 37 | C11: 0.585 | D11: 0.087 | E11: 0.221 | F11: 0.086 | G11: 0.185 | H11: 0.09 | I11: 0.208 | J11: 0.086 | K11: 0.203 | L11: 0.087 | M11: 0.137 | N11: 0.084 | O11: 0.6 | P11: 0.089 | Q11: 0.221 | R11: 0.089 | S11: 0.177 | T11: 0.095 | U11: 0.206 | V11: 0.085 | W11: 0.203 | X11: 0.09 | Y11: 0.136 | Z11: 0.09 | AA11: 0.601 | AB11: 0.088 | AC11: 0.219 | AD11: 0.086 | AE11: 0.176 | AF11: 0.089 | AG11: 0.215 | AH11: 0.087 | AI11: 0.198 | AJ11: 0.085 | AK11: 0.137 | AL11: 0.091 | AM11: 0.611 | AN11: 0.084 | AO11: 0.216 | AP11: 0.09 | AQ11: 0.181 | AR11: 0.085 | AS11: 0.212 | AT11: 0.088 | AU11: 0.204 | AV11: 0.088 | AW11: 0.136 | AX11: 0.086 | AY11: 0.084 | AZ11: 0.084 | BA11: 0.087 | BB11: 0.088 | BC11: 0.084 | BD11: 0.085 | BE11: 0.087 | BF11: 0.083 | BG11: 0.084 | BH11: 0.087 | BI11: 0.096 | BJ11: 0.088 | BK11: 0.085 | BL11: 0.087 | BM11: 0.084 | BN11: 0.089 | BO11: 0.087 | BP11: 0.084 | BQ11: 0.087 | BR11: 0.084 | BS11: 0.088 | BT11: 0.085 | BU11: 0.09 | BV11: 0.086 | BW11: 0.085 | BX11: 0.087 | BY11: 0.089 | BZ11: 0.087 | CA11: 0.085 | CB11: 0.086 | CC11: 0.083 | CD11: 0.092 | CE11: 0.087 | CF11: 0.09 | CG11: 0.084 | CH11: 0.088 | CI11: 0.084 | CJ11: 0.094 | CK11: 0.091 | CL11: 0.087 | CM11: 0.088 | CN11: 0.088 | CO11: 0.088 | CP11: 0.087 | CQ11: 0.084 | CR11: 0.089 | CS11: 0.087 | CT11: 0.091
A12: 04:59:16 | B12: 37 | C12: 0.65 | D12: 0.087 | E12: 0.216 | F12: 0.086 | G12: 0.18 | H12: 0.09 | I12: 0.207 | J12: 0.086 | K12: 0.2 | L12: 0.086 | M12: 0.137 | N12: 0.084 | O12: 0.644 | P12: 0.089 | Q12: 0.216 | R12: 0.089 | S12: 0.173 | T12: 0.095 | U12: 0.205 | V12: 0.085 | W12: 0.197 | X12: 0.09 | Y12: 0.135 | Z12: 0.091 | AA12: 0.642 | AB12: 0.088 | AC12: 0.215 | AD12: 0.086 | AE12: 0.173 | AF12: 0.089 | AG12: 0.213 | AH12: 0.087 | AI12: 0.193 | AJ12: 0.085 | AK12: 0.137 | AL12: 0.091 | AM12: 0.665 | AN12: 0.084 | AO12: 0.213 | AP12: 0.09 | AQ12: 0.178 | AR12: 0.085 | AS12: 0.208 | AT12: 0.089 | AU12: 0.201 | AV12: 0.088 | AW12: 0.136 | AX12: 0.086 | AY12: 0.084 | AZ12: 0.084 | BA12: 0.087 | BB12: 0.088 | BC12: 0.084 | BD12: 0.085 | BE12: 0.087 | BF12: 0.083 | BG12: 0.084 | BH12: 0.087 | BI12: 0.095 | BJ12: 0.088 | BK12: 0.085 | BL12: 0.087 | BM12: 0.084 | BN12: 0.089 | BO12: 0.087 | BP12: 0.084 | BQ12: 0.087 | BR12: 0.085 | BS12: 0.088 | BT12: 0.085 | BU12: 0.09 | BV12: 0.086 | BW12: 0.085 | BX12: 0.087 | BY12: 0.089 | BZ12: 0.087 | CA12: 0.085 | CB12: 0.086 | CC12: 0.083 | CD12: 0.091 | CE12: 0.087 | CF12: 0.09 | CG12: 0.084 | CH12: 0.088 | CI12: 0.084 | CJ12: 0.094 | CK12: 0.091 | CL12: 0.087 | CM12: 0.088 | CN12: 0.088 | CO12: 0.087 | CP12: 0.087 | CQ12: 0.084 | CR12: 0.089 | CS12: 0.087 | CT12: 0.091
A13: 05:29:16 | B13: 37 | C13: 0.708 | D13: 0.087 | E13: 0.215 | F13: 0.086 | G13: 0.178 | H13: 0.09 | I13: 0.206 | J13: 0.086 | K13: 0.195 | L13: 0.086 | M13: 0.137 | N13: 0.084 | O13: 0.683 | P13: 0.089 | Q13: 0.214 | R13: 0.089 | S13: 0.17 | T13: 0.095 | U13: 0.207 | V13: 0.085 | W13: 0.193 | X13: 0.091 | Y13: 0.135 | Z13: 0.091 | AA13: 0.678 | AB13: 0.088 | AC13: 0.211 | AD13: 0.086 | AE13: 0.171 | AF13: 0.089 | AG13: 0.212 | AH13: 0.087 | AI13: 0.189 | AJ13: 0.085 | AK13: 0.137 | AL13: 0.091 | AM13: 0.704 | AN13: 0.084 | AO13: 0.208 | AP13: 0.09 | AQ13: 0.176 | AR13: 0.085 | AS13: 0.207 | AT13: 0.089 | AU13: 0.195 | AV13: 0.088 | AW13: 0.136 | AX13: 0.086 | AY13: 0.084 | AZ13: 0.084 | BA13: 0.086 | BB13: 0.088 | BC13: 0.084 | BD13: 0.085 | BE13: 0.087 | BF13: 0.083 | BG13: 0.084 | BH13: 0.086 | BI13: 0.095 | BJ13: 0.088 | BK13: 0.085 | BL13: 0.087 | BM13: 0.084 | BN13: 0.089 | BO13: 0.087 | BP13: 0.084 | BQ13: 0.087 | BR13: 0.085 | BS13: 0.088 | BT13: 0.084 | BU13: 0.09 | BV13: 0.086 | BW13: 0.085 | BX13: 0.087 | BY13: 0.089 | BZ13: 0.087 | CA13: 0.085 | CB13: 0.086 | CC13: 0.083 | CD13: 0.091 | CE13: 0.087 | CF13: 0.089 | CG13: 0.084 | CH13: 0.088 | CI13: 0.084 | CJ13: 0.094 | CK13: 0.091 | CL13: 0.087 | CM13: 0.088 | CN13: 0.088 | CO13: 0.088 | CP13: 0.087 | CQ13: 0.084 | CR13: 0.089 | CS13: 0.087 | CT13: 0.091
A14: 05:59:16 | B14: 37 | C14: 0.752 | D14: 0.087 | E14: 0.214 | F14: 0.086 | G14: 0.175 | H14: 0.09 | I14: 0.209 | J14: 0.086 | K14: 0.188 | L14: 0.086 | M14: 0.137 | N14: 0.084 | O14: 0.735 | P14: 0.089 | Q14: 0.212 | R14: 0.089 | S14: 0.169 | T14: 0.095 | U14: 0.209 | V14: 0.085 | W14: 0.192 | X14: 0.09 | Y14: 0.135 | Z14: 0.091 | AA14: 0.731 | AB14: 0.088 | AC14: 0.21 | AD14: 0.086 | AE14: 0.17 | AF14: 0.089 | AG14: 0.214 | AH14: 0.087 | AI14: 0.189 | AJ14: 0.085 | AK14: 0.137 | AL14: 0.091 | AM14: 0.753 | AN14: 0.084 | AO14: 0.206 | AP14: 0.09 | AQ14: 0.174 | AR14: 0.085 | AS14: 0.206 | AT14: 0.088 | AU14: 0.192 | AV14: 0.088 | AW14: 0.136 | AX14: 0.086 | AY14: 0.084 | AZ14: 0.083 | BA14: 0.086 | BB14: 0.088 | BC14: 0.084 | BD14: 0.085 | BE14: 0.087 | BF14: 0.083 | BG14: 0.084 | BH14: 0.086 | BI14: 0.095 | BJ14: 0.088 | BK14: 0.085 | BL14: 0.087 | BM14: 0.084 | BN14: 0.089 | BO14: 0.087 | BP14: 0.084 | BQ14: 0.087 | BR14: 0.085 | BS14: 0.088 | BT14: 0.084 | BU14: 0.09 | BV14: 0.086 | BW14: 0.085 | BX14: 0.087 | BY14: 0.089 | BZ14: 0.087 | CA14: 0.085 | CB14: 0.086 | CC14: 0.082 | CD14: 0.091 | CE14: 0.087 | CF14: 0.089 | CG14: 0.084 | CH14: 0.088 | CI14: 0.084 | CJ14: 0.093 | CK14: 0.09 | CL14: 0.087 | CM14: 0.088 | CN14: 0.087 | CO14: 0.088 | CP14: 0.087 | CQ14: 0.084 | CR14: 0.089 | CS14: 0.087 | CT14: 0.091
A15: 06:29:16 | B15: 37 | C15: 0.795 | D15: 0.087 | E15: 0.215 | F15: 0.086 | G15: 0.175 | H15: 0.09 | I15: 0.216 | J15: 0.086 | K15: 0.192 | L15: 0.087 | M15: 0.137 | N15: 0.084 | O15: 0.78 | P15: 0.089 | Q15: 0.214 | R15: 0.089 | S15: 0.17 | T15: 0.095 | U15: 0.215 | V15: 0.085 | W15: 0.194 | X15: 0.09 | Y15: 0.135 | Z15: 0.091 | AA15: 0.791 | AB15: 0.088 | AC15: 0.212 | AD15: 0.086 | AE15: 0.171 | AF15: 0.089 | AG15: 0.221 | AH15: 0.088 | AI15: 0.189 | AJ15: 0.085 | AK15: 0.137 | AL15: 0.091 | AM15: 0.799 | AN15: 0.084 | AO15: 0.21 | AP15: 0.09 | AQ15: 0.174 | AR15: 0.085 | AS15: 0.209 | AT15: 0.089 | AU15: 0.192 | AV15: 0.088 | AW15: 0.136 | AX15: 0.086 | AY15: 0.084 | AZ15: 0.084 | BA15: 0.087 | BB15: 0.088 | BC15: 0.084 | BD15: 0.086 | BE15: 0.087 | BF15: 0.083 | BG15: 0.084 | BH15: 0.086 | BI15: 0.095 | BJ15: 0.088 | BK15: 0.085 | BL15: 0.088 | BM15: 0.084 | BN15: 0.089 | BO15: 0.087 | BP15: 0.084 | BQ15: 0.087 | BR15: 0.085 | BS15: 0.088 | BT15: 0.085 | BU15: 0.09 | BV15: 0.087 | BW15: 0.085 | BX15: 0.087 | BY15: 0.089 | BZ15: 0.087 | CA15: 0.085 | CB15: 0.086 | CC15: 0.083 | CD15: 0.092 | CE15: 0.087 | CF15: 0.09 | CG15: 0.084 | CH15: 0.088 | CI15: 0.084 | CJ15: 0.094 | CK15: 0.091 | CL15: 0.087 | CM15: 0.088 | CN15: 0.087 | CO15: 0.088 | CP15: 0.087 | CQ15: 0.084 | CR15: 0.089 | CS15: 0.088 | CT15: 0.091
A16: 06:59:16 | B16: 37 | C16: 0.845 | D16: 0.087 | E16: 0.217 | F16: 0.086 | G16: 0.175 | H16: 0.09 | I16: 0.223 | J16: 0.085 | K16: 0.195 | L16: 0.086 | M16: 0.137 | N16: 0.084 | O16: 0.843 | P16: 0.089 | Q16: 0.216 | R16: 0.089 | S16: 0.17 | T16: 0.095 | U16: 0.221 | V16: 0.085 | W16: 0.197 | X16: 0.091 | Y16: 0.135 | Z16: 0.09 | AA16: 0.859 | AB16: 0.088 | AC16: 0.213 | AD16: 0.086 | AE16: 0.17 | AF16: 0.089 | AG16: 0.226 | AH16: 0.087 | AI16: 0.192 | AJ16: 0.085 | AK16: 0.137 | AL16: 0.091 | AM16: 0.856 | AN16: 0.084 | AO16: 0.212 | AP16: 0.09 | AQ16: 0.174 | AR16: 0.085 | AS16: 0.212 | AT16: 0.088 | AU16: 0.192 | AV16: 0.088 | AW16: 0.136 | AX16: 0.086 | AY16: 0.084 | AZ16: 0.084 | BA16: 0.087 | BB16: 0.088 | BC16: 0.084 | BD16: 0.085 | BE16: 0.087 | BF16: 0.083 | BG16: 0.084 | BH16: 0.086 | BI16: 0.095 | BJ16: 0.088 | BK16: 0.085 | BL16: 0.087 | BM16: 0.084 | BN16: 0.089 | BO16: 0.087 | BP16: 0.084 | BQ16: 0.087 | BR16: 0.084 | BS16: 0.088 | BT16: 0.085 | BU16: 0.09 | BV16: 0.087 | BW16: 0.085 | BX16: 0.087 | BY16: 0.089 | BZ16: 0.087 | CA16: 0.085 | CB16: 0.086 | CC16: 0.083 | CD16: 0.091 | CE16: 0.087 | CF16: 0.09 | CG16: 0.084 | CH16: 0.088 | CI16: 0.084 | CJ16: 0.094 | CK16: 0.09 | CL16: 0.087 | CM16: 0.088 | CN16: 0.087 | CO16: 0.087 | CP16: 0.087 | CQ16: 0.084 | CR16: 0.089 | CS16: 0.087 | CT16: 0.091
A17: 07:29:16 | B17: 37 | C17: 0.909 | D17: 0.087 | E17: 0.219 | F17: 0.086 | G17: 0.173 | H17: 0.09 | I17: 0.227 | J17: 0.086 | K17: 0.196 | L17: 0.087 | M17: 0.136 | N17: 0.084 | O17: 0.913 | P17: 0.089 | Q17: 0.218 | R17: 0.089 | S17: 0.169 | T17: 0.095 | U17: 0.225 | V17: 0.085 | W17: 0.199 | X17: 0.091 | Y17: 0.135 | Z17: 0.091 | AA17: 0.926 | AB17: 0.088 | AC17: 0.215 | AD17: 0.086 | AE17: 0.169 | AF17: 0.089 | AG17: 0.23 | AH17: 0.087 | AI17: 0.194 | AJ17: 0.085 | AK17: 0.137 | AL17: 0.091 | AM17: 0.92 | AN17: 0.084 | AO17: 0.215 | AP17: 0.09 | AQ17: 0.172 | AR17: 0.085 | AS17: 0.214 | AT17: 0.088 | AU17: 0.194 | AV17: 0.088 | AW17: 0.136 | AX17: 0.086 | AY17: 0.083 | AZ17: 0.084 | BA17: 0.086 | BB17: 0.087 | BC17: 0.084 | BD17: 0.085 | BE17: 0.087 | BF17: 0.083 | BG17: 0.084 | BH17: 0.086 | BI17: 0.095 | BJ17: 0.088 | BK17: 0.085 | BL17: 0.087 | BM17: 0.084 | BN17: 0.089 | BO17: 0.087 | BP17: 0.084 | BQ17: 0.087 | BR17: 0.085 | BS17: 0.088 | BT17: 0.084 | BU17: 0.09 | BV17: 0.086 | BW17: 0.085 | BX17: 0.087 | BY17: 0.089 | BZ17: 0.087 | CA17: 0.085 | CB17: 0.086 | CC17: 0.082 | CD17: 0.091 | CE17: 0.087 | CF17: 0.09 | CG17: 0.084 | CH17: 0.088 | CI17: 0.084 | CJ17: 0.094 | CK17: 0.09 | CL17: 0.087 | CM17: 0.088 | CN17: 0.087 | CO17: 0.087 | CP17: 0.087 | CQ17: 0.083 | CR17: 0.089 | CS17: 0.087 | CT17: 0.091
A18: 07:59:16 | B18: 37 | C18: 0.958 | D18: 0.087 | E18: 0.224 | F18: 0.086 | G18: 0.172 | H18: 0.09 | I18: 0.232 | J18: 0.086 | K18: 0.197 | L18: 0.086 | M18: 0.136 | N18: 0.084 | O18: 0.964 | P18: 0.089 | Q18: 0.223 | R18: 0.089 | S18: 0.167 | T18: 0.095 | U18: 0.231 | V18: 0.085 | W18: 0.201 | X18: 0.091 | Y18: 0.135 | Z18: 0.091 | AA18: 0.973 | AB18: 0.088 | AC18: 0.219 | AD18: 0.086 | AE18: 0.167 | AF18: 0.089 | AG18: 0.235 | AH18: 0.087 | AI18: 0.195 | AJ18: 0.085 | AK18: 0.137 | AL18: 0.09 | AM18: 0.968 | AN18: 0.084 | AO18: 0.219 | AP18: 0.09 | AQ18: 0.171 | AR18: 0.085 | AS18: 0.217 | AT18: 0.088 | AU18: 0.196 | AV18: 0.088 | AW18: 0.136 | AX18: 0.086 | AY18: 0.084 | AZ18: 0.084 | BA18: 0.086 | BB18: 0.088 | BC18: 0.084 | BD18: 0.085 | BE18: 0.087 | BF18: 0.083 | BG18: 0.084 | BH18: 0.086 | BI18: 0.095 | BJ18: 0.088 | BK18: 0.085 | BL18: 0.087 | BM18: 0.084 | BN18: 0.089 | BO18: 0.087 | BP18: 0.084 | BQ18: 0.087 | BR18: 0.085 | BS18: 0.087 | BT18: 0.085 | BU18: 0.09 | BV18: 0.086 | BW18: 0.085 | BX18: 0.087 | BY18: 0.089 | BZ18: 0.086 | CA18: 0.085 | CB18: 0.086 | CC18: 0.082 | CD18: 0.091 | CE18: 0.087 | CF18: 0.089 | CG18: 0.084 | CH18: 0.088 | CI18: 0.084 | CJ18: 0.094 | CK18: 0.09 | CL18: 0.087 | CM18: 0.088 | CN18: 0.087 | CO18: 0.087 | CP18: 0.087 | CQ18: 0.084 | CR18: 0.089 | CS18: 0.087 | CT18: 0.091
A19: 08:29:16 | B19: 37 | C19: 0.992 | D19: 0.087 | E19: 0.231 | F19: 0.086 | G19: 0.172 | H19: 0.09 | I19: 0.242 | J19: 0.086 | K19: 0.204 | L19: 0.086 | M19: 0.136 | N19: 0.084 | O19: 0.997 | P19: 0.089 | Q19: 0.229 | R19: 0.089 | S19: 0.167 | T19: 0.095 | U19: 0.237 | V19: 0.085 | W19: 0.206 | X19: 0.09 | Y19: 0.135 | Z19: 0.091 | AA19: 1.008 | AB19: 0.088 | AC19: 0.225 | AD19: 0.086 | AE19: 0.167 | AF19: 0.089 | AG19: 0.241 | AH19: 0.088 | AI19: 0.2 | AJ19: 0.085 | AK19: 0.137 | AL19: 0.091 | AM19: 0.999 | AN19: 0.084 | AO19: 0.226 | AP19: 0.09 | AQ19: 0.171 | AR19: 0.085 | AS19: 0.222 | AT19: 0.088 | AU19: 0.2 | AV19: 0.088 | AW19: 0.136 | AX19: 0.086 | AY19: 0.084 | AZ19: 0.084 | BA19: 0.087 | BB19: 0.088 | BC19: 0.084 | BD19: 0.085 | BE19: 0.087 | BF19: 0.084 | BG19: 0.084 | BH19: 0.087 | BI19: 0.095 | BJ19: 0.088 | BK19: 0.085 | BL19: 0.087 | BM19: 0.084 | BN19: 0.089 | BO19: 0.087 | BP19: 0.084 | BQ19: 0.087 | BR19: 0.086 | BS19: 0.088 | BT19: 0.084 | BU19: 0.09 | BV19: 0.086 | BW19: 0.085 | BX19: 0.087 | BY19: 0.089 | BZ19: 0.087 | CA19: 0.085 | CB19: 0.086 | CC19: 0.082 | CD19: 0.091 | CE19: 0.087 | CF19: 0.089 | CG19: 0.084 | CH19: 0.088 | CI19: 0.084 | CJ19: 0.094 | CK19: 0.091 | CL19: 0.087 | CM19: 0.088 | CN19: 0.087 | CO19: 0.088 | CP19: 0.087 | CQ19: 0.084 | CR19: 0.089 | CS19: 0.088 | CT19: 0.091
A20: 08:59:16 | B20: 37.1 | C20: 1.005 | D20: 0.087 | E20: 0.238 | F20: 0.086 | G20: 0.171 | H20: 0.089 | I20: 0.249 | J20: 0.086 | K20: 0.208 | L20: 0.087 | M20: 0.136 | N20: 0.084 | O20: 1.02 | P20: 0.089 | Q20: 0.235 | R20: 0.089 | S20: 0.166 | T20: 0.095 | U20: 0.245 | V20: 0.085 | W20: 0.211 | X20: 0.091 | Y20: 0.135 | Z20: 0.091 | AA20: 1.02 | AB20: 0.088 | AC20: 0.231 | AD20: 0.086 | AE20: 0.167 | AF20: 0.089 | AG20: 0.248 | AH20: 0.087 | AI20: 0.205 | AJ20: 0.085 | AK20: 0.137 | AL20: 0.091 | AM20: 1.019 | AN20: 0.084 | AO20: 0.232 | AP20: 0.09 | AQ20: 0.171 | AR20: 0.085 | AS20: 0.228 | AT20: 0.089 | AU20: 0.203 | AV20: 0.088 | AW20: 0.136 | AX20: 0.086 | AY20: 0.084 | AZ20: 0.084 | BA20: 0.087 | BB20: 0.088 | BC20: 0.084 | BD20: 0.085 | BE20: 0.087 | BF20: 0.084 | BG20: 0.084 | BH20: 0.087 | BI20: 0.095 | BJ20: 0.088 | BK20: 0.085 | BL20: 0.087 | BM20: 0.084 | BN20: 0.089 | BO20: 0.087 | BP20: 0.084 | BQ20: 0.087 | BR20: 0.085 | BS20: 0.088 | BT20: 0.085 | BU20: 0.09 | BV20: 0.086 | BW20: 0.085 | BX20: 0.087 | BY20: 0.089 | BZ20: 0.087 | CA20: 0.085 | CB20: 0.086 | CC20: 0.082 | CD20: 0.091 | CE20: 0.087 | CF20: 0.09 | CG20: 0.084 | CH20: 0.088 | CI20: 0.084 | CJ20: 0.094 | CK20: 0.091 | CL20: 0.087 | CM20: 0.088 | CN20: 0.087 | CO20: 0.087 | CP20: 0.087 | CQ20: 0.084 | CR20: 0.089 | CS20: 0.087 | CT20: 0.091
A21: 09:29:16 | B21: 37 | C21: 1.018 | D21: 0.087 | E21: 0.245 | F21: 0.086 | G21: 0.171 | H21: 0.09 | I21: 0.254 | J21: 0.086 | K21: 0.212 | L21: 0.087 | M21: 0.136 | N21: 0.084 | O21: 1.029 | P21: 0.089 | Q21: 0.241 | R21: 0.089 | S21: 0.165 | T21: 0.095 | U21: 0.249 | V21: 0.085 | W21: 0.215 | X21: 0.091 | Y21: 0.135 | Z21: 0.09 | AA21: 1.032 | AB21: 0.088 | AC21: 0.237 | AD21: 0.086 | AE21: 0.166 | AF21: 0.089 | AG21: 0.254 | AH21: 0.087 | AI21: 0.209 | AJ21: 0.085 | AK21: 0.137 | AL21: 0.091 | AM21: 1.028 | AN21: 0.084 | AO21: 0.237 | AP21: 0.09 | AQ21: 0.17 | AR21: 0.085 | AS21: 0.233 | AT21: 0.089 | AU21: 0.209 | AV21: 0.088 | AW21: 0.136 | AX21: 0.086 | AY21: 0.084 | AZ21: 0.084 | BA21: 0.087 | BB21: 0.088 | BC21: 0.084 | BD21: 0.085 | BE21: 0.087 | BF21: 0.084 | BG21: 0.084 | BH21: 0.087 | BI21: 0.095 | BJ21: 0.088 | BK21: 0.085 | BL21: 0.087 | BM21: 0.084 | BN21: 0.089 | BO21: 0.087 | BP21: 0.084 | BQ21: 0.087 | BR21: 0.085 | BS21: 0.088 | BT21: 0.085 | BU21: 0.09 | BV21: 0.087 | BW21: 0.085 | BX21: 0.087 | BY21: 0.089 | BZ21: 0.087 | CA21: 0.085 | CB21: 0.086 | CC21: 0.082 | CD21: 0.092 | CE21: 0.087 | CF21: 0.089 | CG21: 0.084 | CH21: 0.088 | CI21: 0.084 | CJ21: 0.094 | CK21: 0.091 | CL21: 0.087 | CM21: 0.088 | CN21: 0.087 | CO21: 0.088 | CP21: 0.087 | CQ21: 0.084 | CR21: 0.089 | CS21: 0.087 | CT21: 0.091
A22: 09:59:16 | B22: 37 | C22: 1.023 | D22: 0.087 | E22: 0.252 | F22: 0.086 | G22: 0.17 | H22: 0.089 | I22: 0.261 | J22: 0.085 | K22: 0.219 | L22: 0.086 | M22: 0.136 | N22: 0.084 | O22: 1.041 | P22: 0.089 | Q22: 0.247 | R22: 0.089 | S22: 0.165 | T22: 0.095 | U22: 0.256 | V22: 0.085 | W22: 0.221 | X22: 0.09 | Y22: 0.135 | Z22: 0.09 | AA22: 1.053 | AB22: 0.088 | AC22: 0.243 | AD22: 0.086 | AE22: 0.166 | AF22: 0.089 | AG22: 0.259 | AH22: 0.087 | AI22: 0.214 | AJ22: 0.085 | AK22: 0.136 | AL22: 0.091 | AM22: 1.045 | AN22: 0.084 | AO22: 0.245 | AP22: 0.09 | AQ22: 0.17 | AR22: 0.085 | AS22: 0.24 | AT22: 0.088 | AU22: 0.214 | AV22: 0.088 | AW22: 0.136 | AX22: 0.086 | AY22: 0.084 | AZ22: 0.084 | BA22: 0.086 | BB22: 0.088 | BC22: 0.084 | BD22: 0.085 | BE22: 0.087 | BF22: 0.083 | BG22: 0.084 | BH22: 0.087 | BI22: 0.095 | BJ22: 0.088 | BK22: 0.085 | BL22: 0.087 | BM22: 0.084 | BN22: 0.089 | BO22: 0.086 | BP22: 0.084 | BQ22: 0.087 | BR22: 0.085 | BS22: 0.087 | BT22: 0.084 | BU22: 0.089 | BV22: 0.086 | BW22: 0.085 | BX22: 0.087 | BY22: 0.089 | BZ22: 0.087 | CA22: 0.085 | CB22: 0.086 | CC22: 0.082 | CD22: 0.091 | CE22: 0.087 | CF22: 0.089 | CG22: 0.084 | CH22: 0.088 | CI22: 0.084 | CJ22: 0.093 | CK22: 0.09 | CL22: 0.087 | CM22: 0.088 | CN22: 0.087 | CO22: 0.087 | CP22: 0.087 | CQ22: 0.083 | CR22: 0.089 | CS22: 0.087 | CT22: 0.091
A23: 10:29:16 | B23: 37 | C23: 1.033 | D23: 0.087 | E23: 0.259 | F23: 0.086 | G23: 0.171 | H23: 0.089 | I23: 0.269 | J23: 0.086 | K23: 0.225 | L23: 0.086 | M23: 0.136 | N23: 0.084 | O23: 1.047 | P23: 0.088 | Q23: 0.255 | R23: 0.089 | S23: 0.166 | T23: 0.095 | U23: 0.263 | V23: 0.085 | W23: 0.226 | X23: 0.09 | Y23: 0.135 | Z23: 0.09 | AA23: 1.064 | AB23: 0.088 | AC23: 0.251 | AD23: 0.086 | AE23: 0.167 | AF23: 0.089 | AG23: 0.266 | AH23: 0.087 | AI23: 0.22 | AJ23: 0.085 | AK23: 0.136 | AL23: 0.09 | AM23: 1.056 | AN23: 0.084 | AO23: 0.252 | AP23: 0.09 | AQ23: 0.171 | AR23: 0.085 | AS23: 0.249 | AT23: 0.088 | AU23: 0.219 | AV23: 0.088 | AW23: 0.136 | AX23: 0.086 | AY23: 0.084 | AZ23: 0.083 | BA23: 0.086 | BB23: 0.087 | BC23: 0.084 | BD23: 0.085 | BE23: 0.087 | BF23: 0.083 | BG23: 0.084 | BH23: 0.086 | BI23: 0.095 | BJ23: 0.088 | BK23: 0.085 | BL23: 0.087 | BM23: 0.084 | BN23: 0.089 | BO23: 0.086 | BP23: 0.084 | BQ23: 0.086 | BR23: 0.084 | BS23: 0.087 | BT23: 0.084 | BU23: 0.089 | BV23: 0.086 | BW23: 0.085 | BX23: 0.087 | BY23: 0.089 | BZ23: 0.086 | CA23: 0.085 | CB23: 0.086 | CC23: 0.082 | CD23: 0.091 | CE23: 0.087 | CF23: 0.089 | CG23: 0.084 | CH23: 0.088 | CI23: 0.084 | CJ23: 0.093 | CK23: 0.09 | CL23: 0.087 | CM23: 0.088 | CN23: 0.087 | CO23: 0.087 | CP23: 0.087 | CQ23: 0.084 | CR23: 0.089 | CS23: 0.087 | CT23: 0.091
A24: 10:59:16 | B24: 37 | C24: 1.038 | D24: 0.087 | E24: 0.267 | F24: 0.086 | G24: 0.172 | H24: 0.089 | I24: 0.277 | J24: 0.085 | K24: 0.231 | L24: 0.086 | M24: 0.136 | N24: 0.084 | O24: 1.049 | P24: 0.089 | Q24: 0.261 | R24: 0.089 | S24: 0.167 | T24: 0.095 | U24: 0.271 | V24: 0.084 | W24: 0.231 | X24: 0.09 | Y24: 0.134 | Z24: 0.09 | AA24: 1.058 | AB24: 0.088 | AC24: 0.258 | AD24: 0.085 | AE24: 0.168 | AF24: 0.089 | AG24: 0.274 | AH24: 0.087 | AI24: 0.225 | AJ24: 0.085 | AK24: 0.136 | AL24: 0.09 | AM24: 1.056 | AN24: 0.084 | AO24: 0.26 | AP24: 0.09 | AQ24: 0.173 | AR24: 0.085 | AS24: 0.259 | AT24: 0.088 | AU24: 0.225 | AV24: 0.088 | AW24: 0.135 | AX24: 0.086 | AY24: 0.084 | AZ24: 0.083 | BA24: 0.086 | BB24: 0.087 | BC24: 0.084 | BD24: 0.085 | BE24: 0.087 | BF24: 0.083 | BG24: 0.084 | BH24: 0.086 | BI24: 0.095 | BJ24: 0.088 | BK24: 0.085 | BL24: 0.087 | BM24: 0.084 | BN24: 0.089 | BO24: 0.086 | BP24: 0.084 | BQ24: 0.086 | BR24: 0.084 | BS24: 0.087 | BT24: 0.084 | BU24: 0.089 | BV24: 0.086 | BW24: 0.085 | BX24: 0.086 | BY24: 0.089 | BZ24: 0.087 | CA24: 0.085 | CB24: 0.086 | CC24: 0.082 | CD24: 0.091 | CE24: 0.086 | CF24: 0.089 | CG24: 0.084 | CH24: 0.088 | CI24: 0.084 | CJ24: 0.093 | CK24: 0.09 | CL24: 0.087 | CM24: 0.088 | CN24: 0.087 | CO24: 0.087 | CP24: 0.087 | CQ24: 0.083 | CR24: 0.088 | CS24: 0.087 | CT24: 0.091
A25: 11:29:16 | B25: 37 | C25: 1.041 | D25: 0.087 | E25: 0.274 | F25: 0.086 | G25: 0.175 | H25: 0.089 | I25: 0.284 | J25: 0.085 | K25: 0.236 | L25: 0.086 | M25: 0.136 | N25: 0.084 | O25: 1.05 | P25: 0.089 | Q25: 0.269 | R25: 0.089 | S25: 0.168 | T25: 0.095 | U25: 0.279 | V25: 0.085 | W25: 0.236 | X25: 0.09 | Y25: 0.135 | Z25: 0.091 | AA25: 1.066 | AB25: 0.088 | AC25: 0.265 | AD25: 0.086 | AE25: 0.171 | AF25: 0.088 | AG25: 0.281 | AH25: 0.087 | AI25: 0.23 | AJ25: 0.085 | AK25: 0.136 | AL25: 0.091 | AM25: 1.06 | AN25: 0.084 | AO25: 0.267 | AP25: 0.09 | AQ25: 0.177 | AR25: 0.085 | AS25: 0.268 | AT25: 0.088 | AU25: 0.231 | AV25: 0.088 | AW25: 0.135 | AX25: 0.086 | AY25: 0.084 | AZ25: 0.084 | BA25: 0.086 | BB25: 0.088 | BC25: 0.084 | BD25: 0.085 | BE25: 0.087 | BF25: 0.083 | BG25: 0.084 | BH25: 0.086 | BI25: 0.095 | BJ25: 0.088 | BK25: 0.085 | BL25: 0.087 | BM25: 0.084 | BN25: 0.089 | BO25: 0.086 | BP25: 0.084 | BQ25: 0.087 | BR25: 0.084 | BS25: 0.087 | BT25: 0.084 | BU25: 0.09 | BV25: 0.086 | BW25: 0.085 | BX25: 0.086 | BY25: 0.089 | BZ25: 0.087 | CA25: 0.085 | CB25: 0.086 | CC25: 0.082 | CD25: 0.091 | CE25: 0.087 | CF25: 0.089 | CG25: 0.084 | CH25: 0.088 | CI25: 0.084 | CJ25: 0.093 | CK25: 0.09 | CL25: 0.087 | CM25: 0.088 | CN25: 0.087 | CO25: 0.087 | CP25: 0.087 | CQ25: 0.084 | CR25: 0.089 | CS25: 0.087 | CT25: 0.091
A26: 11:59:16 | B26: 37 | C26: 1.043 | D26: 0.087 | E26: 0.283 | F26: 0.086 | G26: 0.178 | H26: 0.089 | I26: 0.292 | J26: 0.085 | K26: 0.241 | L26: 0.086 | M26: 0.136 | N26: 0.084 | O26: 1.056 | P26: 0.088 | Q26: 0.276 | R26: 0.089 | S26: 0.171 | T26: 0.095 | U26: 0.287 | V26: 0.085 | W26: 0.241 | X26: 0.09 | Y26: 0.134 | Z26: 0.09 | AA26: 1.07 | AB26: 0.088 | AC26: 0.273 | AD26: 0.086 | AE26: 0.175 | AF26: 0.089 | AG26: 0.288 | AH26: 0.087 | AI26: 0.234 | AJ26: 0.085 | AK26: 0.136 | AL26: 0.09 | AM26: 1.061 | AN26: 0.084 | AO26: 0.274 | AP26: 0.09 | AQ26: 0.181 | AR26: 0.085 | AS26: 0.277 | AT26: 0.088 | AU26: 0.235 | AV26: 0.088 | AW26: 0.135 | AX26: 0.086 | AY26: 0.083 | AZ26: 0.083 | BA26: 0.086 | BB26: 0.087 | BC26: 0.083 | BD26: 0.085 | BE26: 0.087 | BF26: 0.083 | BG26: 0.084 | BH26: 0.086 | BI26: 0.095 | BJ26: 0.088 | BK26: 0.085 | BL26: 0.087 | BM26: 0.084 | BN26: 0.089 | BO26: 0.086 | BP26: 0.084 | BQ26: 0.086 | BR26: 0.084 | BS26: 0.088 | BT26: 0.084 | BU26: 0.089 | BV26: 0.086 | BW26: 0.085 | BX26: 0.087 | BY26: 0.089 | BZ26: 0.087 | CA26: 0.085 | CB26: 0.086 | CC26: 0.082 | CD26: 0.091 | CE26: 0.087 | CF26: 0.089 | CG26: 0.084 | CH26: 0.087 | CI26: 0.084 | CJ26: 0.093 | CK26: 0.09 | CL26: 0.087 | CM26: 0.088 | CN26: 0.087 | CO26: 0.087 | CP26: 0.087 | CQ26: 0.083 | CR26: 0.089 | CS26: 0.087 | CT26: 0.091
A27: 12:29:16 | B27: 37 | C27: 1.041 | D27: 0.087 | E27: 0.291 | F27: 0.086 | G27: 0.185 | H27: 0.089 | I27: 0.3 | J27: 0.085 | K27: 0.252 | L27: 0.086 | M27: 0.136 | N27: 0.084 | O27: 1.059 | P27: 0.089 | Q27: 0.286 | R27: 0.089 | S27: 0.175 | T27: 0.095 | U27: 0.296 | V27: 0.085 | W27: 0.249 | X27: 0.091 | Y27: 0.135 | Z27: 0.091 | AA27: 1.069 | AB27: 0.088 | AC27: 0.282 | AD27: 0.086 | AE27: 0.181 | AF27: 0.089 | AG27: 0.296 | AH27: 0.087 | AI27: 0.242 | AJ27: 0.085 | AK27: 0.136 | AL27: 0.09 | AM27: 1.063 | AN27: 0.084 | AO27: 0.283 | AP27: 0.09 | AQ27: 0.189 | AR27: 0.085 | AS27: 0.287 | AT27: 0.088 | AU27: 0.243 | AV27: 0.088 | AW27: 0.135 | AX27: 0.086 | AY27: 0.084 | AZ27: 0.084 | BA27: 0.086 | BB27: 0.088 | BC27: 0.084 | BD27: 0.085 | BE27: 0.087 | BF27: 0.083 | BG27: 0.084 | BH27: 0.086 | BI27: 0.095 | BJ27: 0.088 | BK27: 0.085 | BL27: 0.087 | BM27: 0.084 | BN27: 0.089 | BO27: 0.086 | BP27: 0.084 | BQ27: 0.087 | BR27: 0.084 | BS27: 0.087 | BT27: 0.084 | BU27: 0.09 | BV27: 0.086 | BW27: 0.085 | BX27: 0.087 | BY27: 0.089 | BZ27: 0.086 | CA27: 0.085 | CB27: 0.086 | CC27: 0.082 | CD27: 0.091 | CE27: 0.087 | CF27: 0.09 | CG27: 0.084 | CH27: 0.088 | CI27: 0.084 | CJ27: 0.093 | CK27: 0.09 | CL27: 0.087 | CM27: 0.088 | CN27: 0.087 | CO27: 0.087 | CP27: 0.087 | CQ27: 0.084 | CR27: 0.089 | CS27: 0.087 | CT27: 0.091
A28: 12:59:16 | B28: 37 | C28: 1.042 | D28: 0.087 | E28: 0.302 | F28: 0.086 | G28: 0.193 | H28: 0.089 | I28: 0.307 | J28: 0.085 | K28: 0.261 | L28: 0.087 | M28: 0.136 | N28: 0.084 | O28: 1.061 | P28: 0.089 | Q28: 0.295 | R28: 0.089 | S28: 0.181 | T28: 0.095 | U28: 0.305 | V28: 0.085 | W28: 0.257 | X28: 0.09 | Y28: 0.135 | Z28: 0.091 | AA28: 1.082 | AB28: 0.088 | AC28: 0.291 | AD28: 0.086 | AE28: 0.189 | AF28: 0.089 | AG28: 0.304 | AH28: 0.087 | AI28: 0.25 | AJ28: 0.085 | AK28: 0.136 | AL28: 0.091 | AM28: 1.064 | AN28: 0.084 | AO28: 0.293 | AP28: 0.09 | AQ28: 0.199 | AR28: 0.085 | AS28: 0.3 | AT28: 0.089 | AU28: 0.251 | AV28: 0.088 | AW28: 0.135 | AX28: 0.086 | AY28: 0.084 | AZ28: 0.084 | BA28: 0.087 | BB28: 0.088 | BC28: 0.084 | BD28: 0.085 | BE28: 0.087 | BF28: 0.083 | BG28: 0.084 | BH28: 0.086 | BI28: 0.095 | BJ28: 0.088 | BK28: 0.085 | BL28: 0.087 | BM28: 0.084 | BN28: 0.089 | BO28: 0.086 | BP28: 0.084 | BQ28: 0.087 | BR28: 0.084 | BS28: 0.087 | BT28: 0.084 | BU28: 0.09 | BV28: 0.086 | BW28: 0.085 | BX28: 0.087 | BY28: 0.089 | BZ28: 0.087 | CA28: 0.085 | CB28: 0.086 | CC28: 0.083 | CD28: 0.091 | CE28: 0.087 | CF28: 0.089 | CG28: 0.084 | CH28: 0.088 | CI28: 0.084 | CJ28: 0.094 | CK28: 0.09 | CL28: 0.087 | CM28: 0.088 | CN28: 0.087 | CO28: 0.087 | CP28: 0.087 | CQ28: 0.084 | CR28: 0.089 | CS28: 0.088 | CT28: 0.091
A29: 13:29:16 | B29: 37.1 | C29: 1.043 | D29: 0.087 | E29: 0.311 | F29: 0.086 | G29: 0.203 | H29: 0.089 | I29: 0.314 | J29: 0.086 | K29: 0.267 | L29: 0.087 | M29: 0.136 | N29: 0.084 | O29: 1.061 | P29: 0.089 | Q29: 0.305 | R29: 0.089 | S29: 0.189 | T29: 0.095 | U29: 0.31 | V29: 0.085 | W29: 0.263 | X29: 0.091 | Y29: 0.134 | Z29: 0.091 | AA29: 1.073 | AB29: 0.088 | AC29: 0.3 | AD29: 0.086 | AE29: 0.199 | AF29: 0.088 | AG29: 0.311 | AH29: 0.087 | AI29: 0.258 | AJ29: 0.085 | AK29: 0.136 | AL29: 0.09 | AM29: 1.066 | AN29: 0.084 | AO29: 0.303 | AP29: 0.09 | AQ29: 0.21 | AR29: 0.085 | AS29: 0.31 | AT29: 0.088 | AU29: 0.256 | AV29: 0.088 | AW29: 0.135 | AX29: 0.086 | AY29: 0.084 | AZ29: 0.084 | BA29: 0.087 | BB29: 0.088 | BC29: 0.084 | BD29: 0.085 | BE29: 0.087 | BF29: 0.083 | BG29: 0.084 | BH29: 0.086 | BI29: 0.095 | BJ29: 0.088 | BK29: 0.085 | BL29: 0.087 | BM29: 0.084 | BN29: 0.089 | BO29: 0.087 | BP29: 0.084 | BQ29: 0.087 | BR29: 0.084 | BS29: 0.087 | BT29: 0.084 | BU29: 0.09 | BV29: 0.086 | BW29: 0.085 | BX29: 0.087 | BY29: 0.089 | BZ29: 0.087 | CA29: 0.085 | CB29: 0.086 | CC29: 0.082 | CD29: 0.091 | CE29: 0.087 | CF29: 0.089 | CG29: 0.084 | CH29: 0.088 | CI29: 0.084 | CJ29: 0.093 | CK29: 0.09 | CL29: 0.087 | CM29: 0.088 | CN29: 0.087 | CO29: 0.087 | CP29: 0.087 | CQ29: 0.083 | CR29: 0.089 | CS29: 0.087 | CT29: 0.091
A30: 13:59:16 | B30: 37 | C30: 1.044 | D30: 0.087 | E30: 0.321 | F30: 0.086 | G30: 0.216 | H30: 0.089 | I30: 0.322 | J30: 0.085 | K30: 0.279 | L30: 0.086 | M30: 0.135 | N30: 0.084 | O30: 1.062 | P30: 0.088 | Q30: 0.314 | R30: 0.089 | S30: 0.199 | T30: 0.094 | U30: 0.32 | V30: 0.085 | W30: 0.273 | X30: 0.09 | Y30: 0.134 | Z30: 0.09 | AA30: 1.077 | AB30: 0.088 | AC30: 0.311 | AD30: 0.086 | AE30: 0.212 | AF30: 0.089 | AG30: 0.322 | AH30: 0.087 | AI30: 0.266 | AJ30: 0.085 | AK30: 0.135 | AL30: 0.09 | AM30: 1.066 | AN30: 0.083 | AO30: 0.312 | AP30: 0.09 | AQ30: 0.225 | AR30: 0.085 | AS30: 0.322 | AT30: 0.088 | AU30: 0.267 | AV30: 0.088 | AW30: 0.135 | AX30: 0.086 | AY30: 0.084 | AZ30: 0.083 | BA30: 0.086 | BB30: 0.087 | BC30: 0.084 | BD30: 0.085 | BE30: 0.087 | BF30: 0.083 | BG30: 0.084 | BH30: 0.086 | BI30: 0.095 | BJ30: 0.088 | BK30: 0.085 | BL30: 0.087 | BM30: 0.084 | BN30: 0.089 | BO30: 0.086 | BP30: 0.084 | BQ30: 0.087 | BR30: 0.084 | BS30: 0.087 | BT30: 0.084 | BU30: 0.09 | BV30: 0.086 | BW30: 0.085 | BX30: 0.086 | BY30: 0.089 | BZ30: 0.087 | CA30: 0.085 | CB30: 0.086 | CC30: 0.082 | CD30: 0.091 | CE30: 0.086 | CF30: 0.089 | CG30: 0.084 | CH30: 0.088 | CI30: 0.084 | CJ30: 0.093 | CK30: 0.09 | CL30: 0.087 | CM30: 0.088 | CN30: 0.087 | CO30: 0.087 | CP30: 0.087 | CQ30: 0.083 | CR30: 0.089 | CS30: 0.087 | CT30: 0.091
A31: 14:29:16 | B31: 37 | C31: 1.043 | D31: 0.087 | E31: 0.331 | F31: 0.086 | G31: 0.231 | H31: 0.089 | I31: 0.329 | J31: 0.085 | K31: 0.287 | L31: 0.086 | M31: 0.135 | N31: 0.084 | O31: 1.065 | P31: 0.089 | Q31: 0.324 | R31: 0.089 | S31: 0.209 | T31: 0.095 | U31: 0.325 | V31: 0.085 | W31: 0.281 | X31: 0.09 | Y31: 0.134 | Z31: 0.09 | AA31: 1.078 | AB31: 0.088 | AC31: 0.323 | AD31: 0.086 | AE31: 0.227 | AF31: 0.089 | AG31: 0.327 | AH31: 0.087 | AI31: 0.275 | AJ31: 0.085 | AK31: 0.136 | AL31: 0.09 | AM31: 1.064 | AN31: 0.084 | AO31: 0.322 | AP31: 0.09 | AQ31: 0.241 | AR31: 0.085 | AS31: 0.336 | AT31: 0.088 | AU31: 0.277 | AV31: 0.088 | AW31: 0.135 | AX31: 0.086 | AY31: 0.084 | AZ31: 0.084 | BA31: 0.086 | BB31: 0.087 | BC31: 0.084 | BD31: 0.085 | BE31: 0.087 | BF31: 0.083 | BG31: 0.084 | BH31: 0.086 | BI31: 0.095 | BJ31: 0.088 | BK31: 0.085 | BL31: 0.087 | BM31: 0.084 | BN31: 0.089 | BO31: 0.087 | BP31: 0.084 | BQ31: 0.087 | BR31: 0.084 | BS31: 0.087 | BT31: 0.084 | BU31: 0.09 | BV31: 0.086 | BW31: 0.085 | BX31: 0.087 | BY31: 0.089 | BZ31: 0.087 | CA31: 0.085 | CB31: 0.086 | CC31: 0.082 | CD31: 0.091 | CE31: 0.087 | CF31: 0.089 | CG31: 0.084 | CH31: 0.088 | CI31: 0.084 | CJ31: 0.093 | CK31: 0.09 | CL31: 0.087 | CM31: 0.088 | CN31: 0.087 | CO31: 0.087 | CP31: 0.087 | CQ31: 0.083 | CR31: 0.089 | CS31: 0.087 | CT31: 0.091
A32: 14:59:16 | B32: 37 | C32: 1.043 | D32: 0.087 | E32: 0.34 | F32: 0.086 | G32: 0.25 | H32: 0.089 | I32: 0.333 | J32: 0.085 | K32: 0.297 | L32: 0.086 | M32: 0.135 | N32: 0.084 | O32: 1.065 | P32: 0.089 | Q32: 0.335 | R32: 0.089 | S32: 0.223 | T32: 0.095 | U32: 0.332 | V32: 0.085 | W32: 0.289 | X32: 0.091 | Y32: 0.134 | Z32: 0.09 | AA32: 1.075 | AB32: 0.088 | AC32: 0.333 | AD32: 0.086 | AE32: 0.245 | AF32: 0.089 | AG32: 0.333 | AH32: 0.087 | AI32: 0.283 | AJ32: 0.085 | AK32: 0.135 | AL32: 0.09 | AM32: 1.064 | AN32: 0.084 | AO32: 0.332 | AP32: 0.09 | AQ32: 0.264 | AR32: 0.085 | AS32: 0.343 | AT32: 0.088 | AU32: 0.285 | AV32: 0.088 | AW32: 0.135 | AX32: 0.086 | AY32: 0.084 | AZ32: 0.083 | BA32: 0.086 | BB32: 0.088 | BC32: 0.083 | BD32: 0.085 | BE32: 0.087 | BF32: 0.083 | BG32: 0.084 | BH32: 0.086 | BI32: 0.095 | BJ32: 0.088 | BK32: 0.085 | BL32: 0.087 | BM32: 0.084 | BN32: 0.089 | BO32: 0.086 | BP32: 0.084 | BQ32: 0.087 | BR32: 0.084 | BS32: 0.088 | BT32: 0.084 | BU32: 0.089 | BV32: 0.086 | BW32: 0.085 | BX32: 0.087 | BY32: 0.089 | BZ32: 0.087 | CA32: 0.085 | CB32: 0.086 | CC32: 0.082 | CD32: 0.091 | CE32: 0.087 | CF32: 0.089 | CG32: 0.084 | CH32: 0.088 | CI32: 0.084 | CJ32: 0.093 | CK32: 0.09 | CL32: 0.087 | CM32: 0.088 | CN32: 0.087 | CO32: 0.087 | CP32: 0.087 | CQ32: 0.084 | CR32: 0.089 | CS32: 0.087 | CT32: 0.091
A33: 15:29:16 | B33: 37 | C33: 1.04 | D33: 0.087 | E33: 0.351 | F33: 0.086 | G33: 0.273 | H33: 0.089 | I33: 0.337 | J33: 0.086 | K33: 0.307 | L33: 0.087 | M33: 0.135 | N33: 0.084 | O33: 1.065 | P33: 0.089 | Q33: 0.344 | R33: 0.089 | S33: 0.24 | T33: 0.095 | U33: 0.335 | V33: 0.085 | W33: 0.299 | X33: 0.09 | Y33: 0.134 | Z33: 0.09 | AA33: 1.077 | AB33: 0.088 | AC33: 0.345 | AD33: 0.086 | AE33: 0.267 | AF33: 0.089 | AG33: 0.337 | AH33: 0.088 | AI33: 0.294 | AJ33: 0.085 | AK33: 0.135 | AL33: 0.091 | AM33: 1.065 | AN33: 0.084 | AO33: 0.341 | AP33: 0.09 | AQ33: 0.29 | AR33: 0.085 | AS33: 0.354 | AT33: 0.088 | AU33: 0.295 | AV33: 0.088 | AW33: 0.135 | AX33: 0.086 | AY33: 0.084 | AZ33: 0.084 | BA33: 0.087 | BB33: 0.088 | BC33: 0.084 | BD33: 0.086 | BE33: 0.087 | BF33: 0.083 | BG33: 0.084 | BH33: 0.087 | BI33: 0.095 | BJ33: 0.088 | BK33: 0.085 | BL33: 0.087 | BM33: 0.084 | BN33: 0.089 | BO33: 0.087 | BP33: 0.084 | BQ33: 0.087 | BR33: 0.084 | BS33: 0.088 | BT33: 0.085 | BU33: 0.09 | BV33: 0.086 | BW33: 0.085 | BX33: 0.087 | BY33: 0.089 | BZ33: 0.087 | CA33: 0.085 | CB33: 0.086 | CC33: 0.083 | CD33: 0.091 | CE33: 0.087 | CF33: 0.089 | CG33: 0.084 | CH33: 0.087 | CI33: 0.084 | CJ33: 0.093 | CK33: 0.09 | CL33: 0.087 | CM33: 0.088 | CN33: 0.087 | CO33: 0.087 | CP33: 0.087 | CQ33: 0.084 | CR33: 0.089 | CS33: 0.087 | CT33: 0.091
A34: 15:59:16 | B34: 37 | C34: 1.038 | D34: 0.087 | E34: 0.359 | F34: 0.086 | G34: 0.301 | H34: 0.089 | I34: 0.345 | J34: 0.085 | K34: 0.319 | L34: 0.086 | M34: 0.135 | N34: 0.084 | O34: 1.06 | P34: 0.088 | Q34: 0.353 | R34: 0.089 | S34: 0.262 | T34: 0.095 | U34: 0.342 | V34: 0.084 | W34: 0.31 | X34: 0.09 | Y34: 0.134 | Z34: 0.09 | AA34: 1.074 | AB34: 0.088 | AC34: 0.352 | AD34: 0.086 | AE34: 0.292 | AF34: 0.088 | AG34: 0.344 | AH34: 0.087 | AI34: 0.303 | AJ34: 0.085 | AK34: 0.135 | AL34: 0.09 | AM34: 1.064 | AN34: 0.084 | AO34: 0.348 | AP34: 0.09 | AQ34: 0.317 | AR34: 0.085 | AS34: 0.363 | AT34: 0.088 | AU34: 0.305 | AV34: 0.088 | AW34: 0.135 | AX34: 0.086 | AY34: 0.084 | AZ34: 0.083 | BA34: 0.086 | BB34: 0.088 | BC34: 0.084 | BD34: 0.085 | BE34: 0.087 | BF34: 0.083 | BG34: 0.084 | BH34: 0.086 | BI34: 0.095 | BJ34: 0.088 | BK34: 0.085 | BL34: 0.087 | BM34: 0.084 | BN34: 0.089 | BO34: 0.086 | BP34: 0.084 | BQ34: 0.087 | BR34: 0.084 | BS34: 0.087 | BT34: 0.084 | BU34: 0.089 | BV34: 0.086 | BW34: 0.085 | BX34: 0.086 | BY34: 0.089 | BZ34: 0.086 | CA34: 0.085 | CB34: 0.086 | CC34: 0.082 | CD34: 0.091 | CE34: 0.087 | CF34: 0.089 | CG34: 0.084 | CH34: 0.088 | CI34: 0.084 | CJ34: 0.093 | CK34: 0.09 | CL34: 0.087 | CM34: 0.088 | CN34: 0.087 | CO34: 0.087 | CP34: 0.087 | CQ34: 0.083 | CR34: 0.089 | CS34: 0.087 | CT34: 0.091
A35: 16:29:16 | B35: 37 | C35: 1.034 | D35: 0.087 | E35: 0.363 | F35: 0.086 | G35: 0.324 | H35: 0.089 | I35: 0.349 | J35: 0.086 | K35: 0.328 | L35: 0.086 | M35: 0.135 | N35: 0.084 | O35: 1.061 | P35: 0.089 | Q35: 0.359 | R35: 0.089 | S35: 0.285 | T35: 0.095 | U35: 0.345 | V35: 0.085 | W35: 0.318 | X35: 0.09 | Y35: 0.134 | Z35: 0.091 | AA35: 1.076 | AB35: 0.088 | AC35: 0.359 | AD35: 0.086 | AE35: 0.321 | AF35: 0.089 | AG35: 0.348 | AH35: 0.088 | AI35: 0.316 | AJ35: 0.085 | AK35: 0.135 | AL35: 0.09 | AM35: 1.062 | AN35: 0.084 | AO35: 0.354 | AP35: 0.09 | AQ35: 0.346 | AR35: 0.085 | AS35: 0.378 | AT35: 0.088 | AU35: 0.313 | AV35: 0.088 | AW35: 0.135 | AX35: 0.086 | AY35: 0.084 | AZ35: 0.084 | BA35: 0.086 | BB35: 0.088 | BC35: 0.084 | BD35: 0.085 | BE35: 0.087 | BF35: 0.083 | BG35: 0.084 | BH35: 0.086 | BI35: 0.095 | BJ35: 0.088 | BK35: 0.085 | BL35: 0.087 | BM35: 0.084 | BN35: 0.089 | BO35: 0.086 | BP35: 0.084 | BQ35: 0.087 | BR35: 0.084 | BS35: 0.088 | BT35: 0.084 | BU35: 0.09 | BV35: 0.086 | BW35: 0.085 | BX35: 0.087 | BY35: 0.089 | BZ35: 0.086 | CA35: 0.085 | CB35: 0.086 | CC35: 0.083 | CD35: 0.091 | CE35: 0.087 | CF35: 0.089 | CG35: 0.084 | CH35: 0.088 | CI35: 0.084 | CJ35: 0.093 | CK35: 0.09 | CL35: 0.087 | CM35: 0.088 | CN35: 0.087 | CO35: 0.087 | CP35: 0.087 | CQ35: 0.084 | CR35: 0.089 | CS35: 0.087 | CT35: 0.091
A36: 16:59:16 | B36: 37 | C36: 1.03 | D36: 0.087 | E36: 0.371 | F36: 0.086 | G36: 0.351 | H36: 0.089 | I36: 0.359 | J36: 0.085 | K36: 0.337 | L36: 0.086 | M36: 0.135 | N36: 0.084 | O36: 1.06 | P36: 0.089 | Q36: 0.369 | R36: 0.089 | S36: 0.312 | T36: 0.095 | U36: 0.348 | V36: 0.085 | W36: 0.327 | X36: 0.09 | Y36: 0.134 | Z36: 0.091 | AA36: 1.086 | AB36: 0.088 | AC36: 0.367 | AD36: 0.086 | AE36: 0.347 | AF36: 0.088 | AG36: 0.351 | AH36: 0.087 | AI36: 0.329 | AJ36: 0.085 | AK36: 0.135 | AL36: 0.09 | AM36: 1.061 | AN36: 0.084 | AO36: 0.361 | AP36: 0.09 | AQ36: 0.376 | AR36: 0.085 | AS36: 0.387 | AT36: 0.088 | AU36: 0.325 | AV36: 0.088 | AW36: 0.135 | AX36: 0.086 | AY36: 0.084 | AZ36: 0.084 | BA36: 0.086 | BB36: 0.087 | BC36: 0.084 | BD36: 0.085 | BE36: 0.087 | BF36: 0.083 | BG36: 0.084 | BH36: 0.087 | BI36: 0.095 | BJ36: 0.088 | BK36: 0.085 | BL36: 0.087 | BM36: 0.084 | BN36: 0.089 | BO36: 0.086 | BP36: 0.084 | BQ36: 0.086 | BR36: 0.084 | BS36: 0.087 | BT36: 0.084 | BU36: 0.089 | BV36: 0.086 | BW36: 0.085 | BX36: 0.087 | BY36: 0.089 | BZ36: 0.086 | CA36: 0.085 | CB36: 0.086 | CC36: 0.082 | CD36: 0.091 | CE36: 0.087 | CF36: 0.089 | CG36: 0.084 | CH36: 0.088 | CI36: 0.084 | CJ36: 0.093 | CK36: 0.09 | CL36: 0.087 | CM36: 0.088 | CN36: 0.087 | CO36: 0.087 | CP36: 0.087 | CQ36: 0.083 | CR36: 0.089 | CS36: 0.087 | CT36: 0.091
A37: 17:29:16 | B37: 37 | C37: 1.03 | D37: 0.087 | E37: 0.377 | F37: 0.086 | G37: 0.382 | H37: 0.089 | I37: 0.36 | J37: 0.085 | K37: 0.35 | L37: 0.086 | M37: 0.135 | N37: 0.084 | O37: 1.057 | P37: 0.088 | Q37: 0.374 | R37: 0.089 | S37: 0.341 | T37: 0.094 | U37: 0.351 | V37: 0.085 | W37: 0.34 | X37: 0.09 | Y37: 0.134 | Z37: 0.09 | AA37: 1.072 | AB37: 0.088 | AC37: 0.376 | AD37: 0.086 | AE37: 0.379 | AF37: 0.089 | AG37: 0.358 | AH37: 0.087 | AI37: 0.344 | AJ37: 0.085 | AK37: 0.135 | AL37: 0.09 | AM37: 1.059 | AN37: 0.084 | AO37: 0.37 | AP37: 0.09 | AQ37: 0.415 | AR37: 0.085 | AS37: 0.402 | AT37: 0.088 | AU37: 0.338 | AV37: 0.088 | AW37: 0.134 | AX37: 0.086 | AY37: 0.084 | AZ37: 0.083 | BA37: 0.086 | BB37: 0.087 | BC37: 0.083 | BD37: 0.085 | BE37: 0.087 | BF37: 0.083 | BG37: 0.084 | BH37: 0.086 | BI37: 0.095 | BJ37: 0.088 | BK37: 0.085 | BL37: 0.087 | BM37: 0.084 | BN37: 0.089 | BO37: 0.086 | BP37: 0.084 | BQ37: 0.086 | BR37: 0.084 | BS37: 0.087 | BT37: 0.084 | BU37: 0.089 | BV37: 0.086 | BW37: 0.085 | BX37: 0.086 | BY37: 0.089 | BZ37: 0.086 | CA37: 0.085 | CB37: 0.086 | CC37: 0.082 | CD37: 0.091 | CE37: 0.086 | CF37: 0.089 | CG37: 0.084 | CH37: 0.088 | CI37: 0.084 | CJ37: 0.093 | CK37: 0.09 | CL37: 0.087 | CM37: 0.088 | CN37: 0.087 | CO37: 0.087 | CP37: 0.086 | CQ37: 0.083 | CR37: 0.089 | CS37: 0.087 | CT37: 0.091
A38: 17:59:16 | B38: 37 | C38: 1.025 | D38: 0.087 | E38: 0.377 | F38: 0.086 | G38: 0.416 | H38: 0.089 | I38: 0.363 | J38: 0.086 | K38: 0.354 | L38: 0.086 | M38: 0.135 | N38: 0.084 | O38: 1.058 | P38: 0.089 | Q38: 0.38 | R38: 0.089 | S38: 0.37 | T38: 0.095 | U38: 0.354 | V38: 0.085 | W38: 0.349 | X38: 0.09 | Y38: 0.134 | Z38: 0.09 | AA38: 1.075 | AB38: 0.088 | AC38: 0.381 | AD38: 0.086 | AE38: 0.407 | AF38: 0.088 | AG38: 0.361 | AH38: 0.087 | AI38: 0.352 | AJ38: 0.085 | AK38: 0.135 | AL38: 0.09 | AM38: 1.06 | AN38: 0.084 | AO38: 0.371 | AP38: 0.09 | AQ38: 0.45 | AR38: 0.085 | AS38: 0.405 | AT38: 0.089 | AU38: 0.345 | AV38: 0.088 | AW38: 0.135 | AX38: 0.086 | AY38: 0.084 | AZ38: 0.084 | BA38: 0.087 | BB38: 0.088 | BC38: 0.084 | BD38: 0.085 | BE38: 0.087 | BF38: 0.083 | BG38: 0.084 | BH38: 0.087 | BI38: 0.095 | BJ38: 0.088 | BK38: 0.085 | BL38: 0.087 | BM38: 0.084 | BN38: 0.089 | BO38: 0.087 | BP38: 0.084 | BQ38: 0.087 | BR38: 0.084 | BS38: 0.088 | BT38: 0.084 | BU38: 0.089 | BV38: 0.086 | BW38: 0.085 | BX38: 0.087 | BY38: 0.089 | BZ38: 0.087 | CA38: 0.085 | CB38: 0.086 | CC38: 0.082 | CD38: 0.091 | CE38: 0.087 | CF38: 0.089 | CG38: 0.084 | CH38: 0.088 | CI38: 0.084 | CJ38: 0.093 | CK38: 0.09 | CL38: 0.087 | CM38: 0.088 | CN38: 0.087 | CO38: 0.087 | CP38: 0.087 | CQ38: 0.083 | CR38: 0.089 | CS38: 0.087 | CT38: 0.091
A39: 18:29:16 | B39: 37.1 | C39: 1.028 | D39: 0.087 | E39: 0.382 | F39: 0.086 | G39: 0.455 | H39: 0.089 | I39: 0.367 | J39: 0.085 | K39: 0.361 | L39: 0.086 | M39: 0.134 | N39: 0.084 | O39: 1.054 | P39: 0.088 | Q39: 0.383 | R39: 0.089 | S39: 0.405 | T39: 0.094 | U39: 0.359 | V39: 0.085 | W39: 0.358 | X39: 0.09 | Y39: 0.134 | Z39: 0.09 | AA39: 1.079 | AB39: 0.088 | AC39: 0.385 | AD39: 0.086 | AE39: 0.442 | AF39: 0.088 | AG39: 0.364 | AH39: 0.087 | AI39: 0.358 | AJ39: 0.085 | AK39: 0.135 | AL39: 0.09 | AM39: 1.059 | AN39: 0.084 | AO39: 0.375 | AP39: 0.09 | AQ39: 0.488 | AR39: 0.085 | AS39: 0.412 | AT39: 0.088 | AU39: 0.357 | AV39: 0.088 | AW39: 0.134 | AX39: 0.086 | AY39: 0.083 | AZ39: 0.083 | BA39: 0.086 | BB39: 0.087 | BC39: 0.084 | BD39: 0.085 | BE39: 0.087 | BF39: 0.083 | BG39: 0.084 | BH39: 0.086 | BI39: 0.095 | BJ39: 0.088 | BK39: 0.085 | BL39: 0.087 | BM39: 0.084 | BN39: 0.089 | BO39: 0.086 | BP39: 0.084 | BQ39: 0.087 | BR39: 0.084 | BS39: 0.087 | BT39: 0.084 | BU39: 0.089 | BV39: 0.086 | BW39: 0.085 | BX39: 0.086 | BY39: 0.089 | BZ39: 0.086 | CA39: 0.085 | CB39: 0.086 | CC39: 0.082 | CD39: 0.091 | CE39: 0.087 | CF39: 0.089 | CG39: 0.084 | CH39: 0.087 | CI39: 0.084 | CJ39: 0.093 | CK39: 0.09 | CL39: 0.087 | CM39: 0.088 | CN39: 0.087 | CO39: 0.087 | CP39: 0.087 | CQ39: 0.083 | CR39: 0.089 | CS39: 0.087 | CT39: 0.091
A40: 18:59:16 | B40: 37 | C40: 1.023 | D40: 0.087 | E40: 0.386 | F40: 0.086 | G40: 0.49 | H40: 0.089 | I40: 0.367 | J40: 0.085 | K40: 0.374 | L40: 0.086 | M40: 0.135 | N40: 0.084 | O40: 1.057 | P40: 0.089 | Q40: 0.389 | R40: 0.089 | S40: 0.44 | T40: 0.095 | U40: 0.362 | V40: 0.085 | W40: 0.369 | X40: 0.09 | Y40: 0.134 | Z40: 0.09 | AA40: 1.068 | AB40: 0.088 | AC40: 0.387 | AD40: 0.086 | AE40: 0.476 | AF40: 0.089 | AG40: 0.37 | AH40: 0.088 | AI40: 0.366 | AJ40: 0.085 | AK40: 0.135 | AL40: 0.091 | AM40: 1.057 | AN40: 0.084 | AO40: 0.377 | AP40: 0.09 | AQ40: 0.524 | AR40: 0.085 | AS40: 0.415 | AT40: 0.089 | AU40: 0.359 | AV40: 0.088 | AW40: 0.135 | AX40: 0.086 | AY40: 0.084 | AZ40: 0.084 | BA40: 0.087 | BB40: 0.088 | BC40: 0.084 | BD40: 0.086 | BE40: 0.087 | BF40: 0.083 | BG40: 0.084 | BH40: 0.087 | BI40: 0.095 | BJ40: 0.088 | BK40: 0.085 | BL40: 0.087 | BM40: 0.084 | BN40: 0.089 | BO40: 0.086 | BP40: 0.084 | BQ40: 0.087 | BR40: 0.084 | BS40: 0.088 | BT40: 0.084 | BU40: 0.089 | BV40: 0.086 | BW40: 0.085 | BX40: 0.087 | BY40: 0.089 | BZ40: 0.087 | CA40: 0.085 | CB40: 0.086 | CC40: 0.083 | CD40: 0.091 | CE40: 0.087 | CF40: 0.09 | CG40: 0.084 | CH40: 0.088 | CI40: 0.084 | CJ40: 0.093 | CK40: 0.09 | CL40: 0.087 | CM40: 0.088 | CN40: 0.088 | CO40: 0.087 | CP40: 0.087 | CQ40: 0.084 | CR40: 0.089 | CS40: 0.087 | CT40: 0.091
A41: 19:29:16 | B41: 37 | C41: 1.016 | D41: 0.087 | E41: 0.39 | F41: 0.086 | G41: 0.533 | H41: 0.089 | I41: 0.374 | J41: 0.086 | K41: 0.383 | L41: 0.086 | M41: 0.134 | N41: 0.084 | O41: 1.054 | P41: 0.089 | Q41: 0.39 | R41: 0.089 | S41: 0.484 | T41: 0.094 | U41: 0.365 | V41: 0.085 | W41: 0.382 | X41: 0.09 | Y41: 0.134 | Z41: 0.09 | AA41: 1.063 | AB41: 0.088 | AC41: 0.394 | AD41: 0.086 | AE41: 0.525 | AF41: 0.088 | AG41: 0.374 | AH41: 0.087 | AI41: 0.379 | AJ41: 0.085 | AK41: 0.135 | AL41: 0.09 | AM41: 1.055 | AN41: 0.084 | AO41: 0.384 | AP41: 0.09 | AQ41: 0.577 | AR41: 0.085 | AS41: 0.421 | AT41: 0.088 | AU41: 0.375 | AV41: 0.088 | AW41: 0.134 | AX41: 0.086 | AY41: 0.084 | AZ41: 0.083 | BA41: 0.087 | BB41: 0.087 | BC41: 0.084 | BD41: 0.085 | BE41: 0.087 | BF41: 0.083 | BG41: 0.084 | BH41: 0.086 | BI41: 0.095 | BJ41: 0.088 | BK41: 0.085 | BL41: 0.087 | BM41: 0.084 | BN41: 0.089 | BO41: 0.086 | BP41: 0.084 | BQ41: 0.086 | BR41: 0.084 | BS41: 0.087 | BT41: 0.084 | BU41: 0.089 | BV41: 0.086 | BW41: 0.085 | BX41: 0.086 | BY41: 0.089 | BZ41: 0.087 | CA41: 0.085 | CB41: 0.086 | CC41: 0.082 | CD41: 0.091 | CE41: 0.087 | CF41: 0.089 | CG41: 0.084 | CH41: 0.088 | CI41: 0.084 | CJ41: 0.093 | CK41: 0.09 | CL41: 0.087 | CM41: 0.088 | CN41: 0.087 | CO41: 0.087 | CP41: 0.087 | CQ41: 0.083 | CR41: 0.089 | CS41: 0.087 | CT41: 0.091
A42: 19:59:16 | B42: 37 | C42: 1.022 | D42: 0.087 | E42: 0.393 | F42: 0.086 | G42: 0.565 | H42: 0.089 | I42: 0.374 | J42: 0.086 | K42: 0.383 | L42: 0.087 | M42: 0.135 | N42: 0.084 | O42: 1.053 | P42: 0.089 | Q42: 0.393 | R42: 0.089 | S42: 0.526 | T42: 0.094 | U42: 0.369 | V42: 0.085 | W42: 0.385 | X42: 0.09 | Y42: 0.134 | Z42: 0.09 | AA42: 1.063 | AB42: 0.088 | AC42: 0.397 | AD42: 0.086 | AE42: 0.563 | AF42: 0.089 | AG42: 0.372 | AH42: 0.088 | AI42: 0.384 | AJ42: 0.085 | AK42: 0.135 | AL42: 0.091 | AM42: 1.053 | AN42: 0.084 | AO42: 0.385 | AP42: 0.09 | AQ42: 0.613 | AR42: 0.085 | AS42: 0.431 | AT42: 0.089 | AU42: 0.379 | AV42: 0.088 | AW42: 0.134 | AX42: 0.086 | AY42: 0.084 | AZ42: 0.084 | BA42: 0.087 | BB42: 0.088 | BC42: 0.084 | BD42: 0.085 | BE42: 0.087 | BF42: 0.084 | BG42: 0.084 | BH42: 0.087 | BI42: 0.095 | BJ42: 0.088 | BK42: 0.085 | BL42: 0.087 | BM42: 0.084 | BN42: 0.089 | BO42: 0.087 | BP42: 0.084 | BQ42: 0.087 | BR42: 0.084 | BS42: 0.088 | BT42: 0.084 | BU42: 0.089 | BV42: 0.087 | BW42: 0.085 | BX42: 0.087 | BY42: 0.089 | BZ42: 0.086 | CA42: 0.085 | CB42: 0.086 | CC42: 0.083 | CD42: 0.091 | CE42: 0.087 | CF42: 0.089 | CG42: 0.084 | CH42: 0.088 | CI42: 0.084 | CJ42: 0.093 | CK42: 0.09 | CL42: 0.087 | CM42: 0.088 | CN42: 0.087 | CO42: 0.087 | CP42: 0.087 | CQ42: 0.084 | CR42: 0.089 | CS42: 0.088 | CT42: 0.091
A43: 20:29:16 | B43: 37 | C43: 1.019 | D43: 0.087 | E43: 0.399 | F43: 0.086 | G43: 0.593 | H43: 0.089 | I43: 0.38 | J43: 0.085 | K43: 0.393 | L43: 0.086 | M43: 0.134 | N43: 0.084 | O43: 1.051 | P43: 0.088 | Q43: 0.402 | R43: 0.089 | S43: 0.564 | T43: 0.094 | U43: 0.376 | V43: 0.085 | W43: 0.387 | X43: 0.09 | Y43: 0.133 | Z43: 0.09 | AA43: 1.062 | AB43: 0.088 | AC43: 0.402 | AD43: 0.086 | AE43: 0.597 | AF43: 0.088 | AG43: 0.377 | AH43: 0.087 | AI43: 0.391 | AJ43: 0.085 | AK43: 0.135 | AL43: 0.09 | AM43: 1.05 | AN43: 0.084 | AO43: 0.392 | AP43: 0.09 | AQ43: 0.639 | AR43: 0.085 | AS43: 0.444 | AT43: 0.088 | AU43: 0.381 | AV43: 0.088 | AW43: 0.134 | AX43: 0.086 | AY43: 0.084 | AZ43: 0.084 | BA43: 0.086 | BB43: 0.087 | BC43: 0.084 | BD43: 0.085 | BE43: 0.087 | BF43: 0.083 | BG43: 0.084 | BH43: 0.086 | BI43: 0.095 | BJ43: 0.088 | BK43: 0.085 | BL43: 0.087 | BM43: 0.084 | BN43: 0.089 | BO43: 0.086 | BP43: 0.084 | BQ43: 0.087 | BR43: 0.084 | BS43: 0.087 | BT43: 0.084 | BU43: 0.089 | BV43: 0.086 | BW43: 0.085 | BX43: 0.086 | BY43: 0.089 | BZ43: 0.086 | CA43: 0.085 | CB43: 0.086 | CC43: 0.082 | CD43: 0.091 | CE43: 0.087 | CF43: 0.089 | CG43: 0.084 | CH43: 0.088 | CI43: 0.084 | CJ43: 0.093 | CK43: 0.09 | CL43: 0.087 | CM43: 0.088 | CN43: 0.087 | CO43: 0.087 | CP43: 0.087 | CQ43: 0.084 | CR43: 0.089 | CS43: 0.087 | CT43: 0.091
A44: 20:59:16 | B44: 37 | C44: 1.012 | D44: 0.087 | E44: 0.407 | F44: 0.086 | G44: 0.625 | H44: 0.089 | I44: 0.39 | J44: 0.085 | K44: 0.402 | L44: 0.086 | M44: 0.134 | N44: 0.084 | O44: 1.049 | P44: 0.089 | Q44: 0.41 | R44: 0.089 | S44: 0.598 | T44: 0.094 | U44: 0.387 | V44: 0.085 | W44: 0.396 | X44: 0.09 | Y44: 0.133 | Z44: 0.09 | AA44: 1.068 | AB44: 0.088 | AC44: 0.41 | AD44: 0.086 | AE44: 0.638 | AF44: 0.088 | AG44: 0.388 | AH44: 0.087 | AI44: 0.403 | AJ44: 0.085 | AK44: 0.134 | AL44: 0.09 | AM44: 1.048 | AN44: 0.084 | AO44: 0.4 | AP44: 0.09 | AQ44: 0.682 | AR44: 0.085 | AS44: 0.451 | AT44: 0.088 | AU44: 0.393 | AV44: 0.088 | AW44: 0.134 | AX44: 0.086 | AY44: 0.084 | AZ44: 0.083 | BA44: 0.086 | BB44: 0.087 | BC44: 0.084 | BD44: 0.085 | BE44: 0.087 | BF44: 0.083 | BG44: 0.084 | BH44: 0.086 | BI44: 0.095 | BJ44: 0.088 | BK44: 0.085 | BL44: 0.087 | BM44: 0.084 | BN44: 0.089 | BO44: 0.086 | BP44: 0.084 | BQ44: 0.087 | BR44: 0.084 | BS44: 0.087 | BT44: 0.084 | BU44: 0.089 | BV44: 0.086 | BW44: 0.085 | BX44: 0.087 | BY44: 0.089 | BZ44: 0.086 | CA44: 0.085 | CB44: 0.086 | CC44: 0.082 | CD44: 0.091 | CE44: 0.087 | CF44: 0.089 | CG44: 0.084 | CH44: 0.088 | CI44: 0.084 | CJ44: 0.093 | CK44: 0.09 | CL44: 0.087 | CM44: 0.088 | CN44: 0.087 | CO44: 0.087 | CP44: 0.087 | CQ44: 0.083 | CR44: 0.089 | CS44: 0.087 | CT44: 0.091
A45: 21:29:16 | B45: 37.1 | C45: 1.011 | D45: 0.087 | E45: 0.415 | F45: 0.086 | G45: 0.653 | H45: 0.089 | I45: 0.394 | J45: 0.085 | K45: 0.408 | L45: 0.086 | M45: 0.134 | N45: 0.084 | O45: 1.048 | P45: 0.089 | Q45: 0.419 | R45: 0.089 | S45: 0.629 | T45: 0.094 | U45: 0.393 | V45: 0.085 | W45: 0.404 | X45: 0.09 | Y45: 0.133 | Z45: 0.09 | AA45: 1.074 | AB45: 0.088 | AC45: 0.419 | AD45: 0.086 | AE45: 0.673 | AF45: 0.088 | AG45: 0.392 | AH45: 0.087 | AI45: 0.409 | AJ45: 0.085 | AK45: 0.135 | AL45: 0.09 | AM45: 1.047 | AN45: 0.084 | AO45: 0.408 | AP45: 0.09 | AQ45: 0.72 | AR45: 0.085 | AS45: 0.462 | AT45: 0.088 | AU45: 0.4 | AV45: 0.088 | AW45: 0.134 | AX45: 0.086 | AY45: 0.084 | AZ45: 0.084 | BA45: 0.086 | BB45: 0.087 | BC45: 0.084 | BD45: 0.085 | BE45: 0.087 | BF45: 0.083 | BG45: 0.084 | BH45: 0.086 | BI45: 0.095 | BJ45: 0.088 | BK45: 0.085 | BL45: 0.087 | BM45: 0.084 | BN45: 0.089 | BO45: 0.086 | BP45: 0.084 | BQ45: 0.086 | BR45: 0.084 | BS45: 0.087 | BT45: 0.084 | BU45: 0.089 | BV45: 0.086 | BW45: 0.085 | BX45: 0.087 | BY45: 0.089 | BZ45: 0.086 | CA45: 0.085 | CB45: 0.086 | CC45: 0.082 | CD45: 0.091 | CE45: 0.087 | CF45: 0.089 | CG45: 0.084 | CH45: 0.087 | CI45: 0.084 | CJ45: 0.093 | CK45: 0.09 | CL45: 0.087 | CM45: 0.088 | CN45: 0.087 | CO45: 0.087 | CP45: 0.087 | CQ45: 0.083 | CR45: 0.089 | CS45: 0.087 | CT45: 0.091
A46: 21:59:16 | B46: 37 | C46: 1.018 | D46: 0.087 | E46: 0.426 | F46: 0.086 | G46: 0.686 | H46: 0.089 | I46: 0.401 | J46: 0.086 | K46: 0.418 | L46: 0.086 | M46: 0.134 | N46: 0.084 | O46: 1.047 | P46: 0.089 | Q46: 0.427 | R46: 0.089 | S46: 0.656 | T46: 0.094 | U46: 0.399 | V46: 0.085 | W46: 0.41 | X46: 0.09 | Y46: 0.133 | Z46: 0.09 | AA46: 1.058 | AB46: 0.088 | AC46: 0.427 | AD46: 0.086 | AE46: 0.713 | AF46: 0.088 | AG46: 0.398 | AH46: 0.087 | AI46: 0.421 | AJ46: 0.085 | AK46: 0.134 | AL46: 0.09 | AM46: 1.045 | AN46: 0.084 | AO46: 0.418 | AP46: 0.09 | AQ46: 0.758 | AR46: 0.085 | AS46: 0.468 | AT46: 0.088 | AU46: 0.409 | AV46: 0.088 | AW46: 0.134 | AX46: 0.086 | AY46: 0.084 | AZ46: 0.083 | BA46: 0.086 | BB46: 0.087 | BC46: 0.084 | BD46: 0.085 | BE46: 0.087 | BF46: 0.083 | BG46: 0.084 | BH46: 0.086 | BI46: 0.095 | BJ46: 0.088 | BK46: 0.085 | BL46: 0.087 | BM46: 0.084 | BN46: 0.089 | BO46: 0.086 | BP46: 0.084 | BQ46: 0.087 | BR46: 0.084 | BS46: 0.087 | BT46: 0.084 | BU46: 0.089 | BV46: 0.086 | BW46: 0.085 | BX46: 0.087 | BY46: 0.089 | BZ46: 0.086 | CA46: 0.085 | CB46: 0.086 | CC46: 0.082 | CD46: 0.091 | CE46: 0.087 | CF46: 0.089 | CG46: 0.084 | CH46: 0.088 | CI46: 0.084 | CJ46: 0.093 | CK46: 0.09 | CL46: 0.087 | CM46: 0.088 | CN46: 0.087 | CO46: 0.087 | CP46: 0.087 | CQ46: 0.084 | CR46: 0.089 | CS46: 0.087 | CT46: 0.091
A47: 22:29:16 | B47: 37.1 | C47: 1.012 | D47: 0.087 | E47: 0.434 | F47: 0.086 | G47: 0.722 | H47: 0.089 | I47: 0.41 | J47: 0.085 | K47: 0.43 | L47: 0.086 | M47: 0.134 | N47: 0.084 | O47: 1.046 | P47: 0.089 | Q47: 0.436 | R47: 0.089 | S47: 0.678 | T47: 0.094 | U47: 0.406 | V47: 0.085 | W47: 0.423 | X47: 0.09 | Y47: 0.133 | Z47: 0.09 | AA47: 1.058 | AB47: 0.088 | AC47: 0.438 | AD47: 0.086 | AE47: 0.753 | AF47: 0.088 | AG47: 0.406 | AH47: 0.087 | AI47: 0.432 | AJ47: 0.085 | AK47: 0.134 | AL47: 0.09 | AM47: 1.048 | AN47: 0.084 | AO47: 0.427 | AP47: 0.09 | AQ47: 0.794 | AR47: 0.085 | AS47: 0.478 | AT47: 0.088 | AU47: 0.419 | AV47: 0.088 | AW47: 0.134 | AX47: 0.086 | AY47: 0.084 | AZ47: 0.083 | BA47: 0.086 | BB47: 0.087 | BC47: 0.083 | BD47: 0.085 | BE47: 0.087 | BF47: 0.083 | BG47: 0.084 | BH47: 0.086 | BI47: 0.095 | BJ47: 0.088 | BK47: 0.085 | BL47: 0.087 | BM47: 0.084 | BN47: 0.089 | BO47: 0.086 | BP47: 0.084 | BQ47: 0.086 | BR47: 0.084 | BS47: 0.087 | BT47: 0.084 | BU47: 0.089 | BV47: 0.086 | BW47: 0.085 | BX47: 0.087 | BY47: 0.089 | BZ47: 0.086 | CA47: 0.085 | CB47: 0.086 | CC47: 0.082 | CD47: 0.091 | CE47: 0.087 | CF47: 0.089 | CG47: 0.084 | CH47: 0.088 | CI47: 0.084 | CJ47: 0.093 | CK47: 0.09 | CL47: 0.087 | CM47: 0.088 | CN47: 0.087 | CO47: 0.087 | CP47: 0.087 | CQ47: 0.083 | CR47: 0.088 | CS47: 0.087 | CT47: 0.091
A48: 22:59:16 | B48: 37.1 | C48: 1.018 | D48: 0.087 | E48: 0.442 | F48: 0.086 | G48: 0.758 | H48: 0.089 | I48: 0.415 | J48: 0.086 | K48: 0.438 | L48: 0.086 | M48: 0.134 | N48: 0.084 | O48: 1.049 | P48: 0.089 | Q48: 0.445 | R48: 0.089 | S48: 0.694 | T48: 0.094 | U48: 0.411 | V48: 0.085 | W48: 0.432 | X48: 0.09 | Y48: 0.133 | Z48: 0.09 | AA48: 1.065 | AB48: 0.088 | AC48: 0.447 | AD48: 0.086 | AE48: 0.785 | AF48: 0.088 | AG48: 0.411 | AH48: 0.087 | AI48: 0.445 | AJ48: 0.085 | AK48: 0.134 | AL48: 0.09 | AM48: 1.046 | AN48: 0.084 | AO48: 0.434 | AP48: 0.09 | AQ48: 0.821 | AR48: 0.085 | AS48: 0.484 | AT48: 0.088 | AU48: 0.428 | AV48: 0.088 | AW48: 0.134 | AX48: 0.086 | AY48: 0.084 | AZ48: 0.084 | BA48: 0.086 | BB48: 0.088 | BC48: 0.084 | BD48: 0.085 | BE48: 0.087 | BF48: 0.083 | BG48: 0.084 | BH48: 0.086 | BI48: 0.095 | BJ48: 0.088 | BK48: 0.085 | BL48: 0.087 | BM48: 0.084 | BN48: 0.089 | BO48: 0.086 | BP48: 0.084 | BQ48: 0.087 | BR48: 0.084 | BS48: 0.087 | BT48: 0.084 | BU48: 0.09 | BV48: 0.086 | BW48: 0.085 | BX48: 0.087 | BY48: 0.089 | BZ48: 0.086 | CA48: 0.085 | CB48: 0.086 | CC48: 0.083 | CD48: 0.091 | CE48: 0.087 | CF48: 0.089 | CG48: 0.084 | CH48: 0.088 | CI48: 0.084 | CJ48: 0.093 | CK48: 0.09 | CL48: 0.087 | CM48: 0.088 | CN48: 0.087 | CO48: 0.087 | CP48: 0.087 | CQ48: 0.083 | CR48: 0.089 | CS48: 0.087 | CT48: 0.091
A49: 23:29:16 | B49: 37 | C49: 1.013 | D49: 0.087 | E49: 0.45 | F49: 0.085 | G49: 0.789 | H49: 0.089 | I49: 0.422 | J49: 0.085 | K49: 0.449 | L49: 0.086 | M49: 0.134 | N49: 0.084 | O49: 1.043 | P49: 0.088 | Q49: 0.451 | R49: 0.089 | S49: 0.715 | T49: 0.094 | U49: 0.418 | V49: 0.085 | W49: 0.439 | X49: 0.09 | Y49: 0.133 | Z49: 0.09 | AA49: 1.058 | AB49: 0.088 | AC49: 0.456 | AD49: 0.085 | AE49: 0.813 | AF49: 0.088 | AG49: 0.418 | AH49: 0.087 | AI49: 0.457 | AJ49: 0.085 | AK49: 0.134 | AL49: 0.09 | AM49: 1.044 | AN49: 0.084 | AO49: 0.444 | AP49: 0.09 | AQ49: 0.842 | AR49: 0.085 | AS49: 0.49 | AT49: 0.088 | AU49: 0.44 | AV49: 0.088 | AW49: 0.134 | AX49: 0.086 | AY49: 0.083 | AZ49: 0.084 | BA49: 0.086 | BB49: 0.087 | BC49: 0.083 | BD49: 0.085 | BE49: 0.087 | BF49: 0.083 | BG49: 0.084 | BH49: 0.086 | BI49: 0.095 | BJ49: 0.088 | BK49: 0.085 | BL49: 0.087 | BM49: 0.084 | BN49: 0.089 | BO49: 0.086 | BP49: 0.084 | BQ49: 0.086 | BR49: 0.084 | BS49: 0.087 | BT49: 0.084 | BU49: 0.089 | BV49: 0.086 | BW49: 0.085 | BX49: 0.086 | BY49: 0.089 | BZ49: 0.087 | CA49: 0.085 | CB49: 0.086 | CC49: 0.082 | CD49: 0.091 | CE49: 0.087 | CF49: 0.089 | CG49: 0.084 | CH49: 0.087 | CI49: 0.084 | CJ49: 0.093 | CK49: 0.09 | CL49: 0.087 | CM49: 0.088 | CN49: 0.087 | CO49: 0.087 | CP49: 0.087 | CQ49: 0.083 | CR49: 0.088 | CS49: 0.087 | CT49: 0.091
A50: 23:59:16 | B50: 37 | C50: 1.013 | D50: 0.087 | E50: 0.458 | F50: 0.086 | G50: 0.815 | H50: 0.089 | I50: 0.429 | J50: 0.085 | K50: 0.459 | L50: 0.086 | M50: 0.134 | N50: 0.084 | O50: 1.047 | P50: 0.089 | Q50: 0.459 | R50: 0.089 | S50: 0.74 | T50: 0.094 | U50: 0.424 | V50: 0.085 | W50: 0.45 | X50: 0.09 | Y50: 0.133 | Z50: 0.09 | AA50: 1.07 | AB50: 0.088 | AC50: 0.461 | AD50: 0.086 | AE50: 0.832 | AF50: 0.088 | AG50: 0.423 | AH50: 0.087 | AI50: 0.466 | AJ50: 0.085 | AK50: 0.134 | AL50: 0.09 | AM50: 1.044 | AN50: 0.084 | AO50: 0.451 | AP50: 0.09 | AQ50: 0.857 | AR50: 0.085 | AS50: 0.493 | AT50: 0.088 | AU50: 0.448 | AV50: 0.088 | AW50: 0.134 | AX50: 0.086 | AY50: 0.084 | AZ50: 0.084 | BA50: 0.086 | BB50: 0.087 | BC50: 0.084 | BD50: 0.085 | BE50: 0.087 | BF50: 0.083 | BG50: 0.084 | BH50: 0.086 | BI50: 0.095 | BJ50: 0.088 | BK50: 0.085 | BL50: 0.087 | BM50: 0.084 | BN50: 0.089 | BO50: 0.086 | BP50: 0.084 | BQ50: 0.086 | BR50: 0.084 | BS50: 0.087 | BT50: 0.084 | BU50: 0.089 | BV50: 0.086 | BW50: 0.085 | BX50: 0.087 | BY50: 0.089 | BZ50: 0.086 | CA50: 0.085 | CB50: 0.086 | CC50: 0.082 | CD50: 0.091 | CE50: 0.087 | CF50: 0.089 | CG50: 0.084 | CH50: 0.088 | CI50: 0.084 | CJ50: 0.093 | CK50: 0.09 | CL50: 0.087 | CM50: 0.088 | CN50: 0.087 | CO50: 0.087 | CP50: 0.087 | CQ50: 0.083 | CR50: 0.088 | CS50: 0.087 | CT50: 0.091
A51: 1.020324074 | B51: 37.1 | C51: 1.012 | D51: 0.087 | E51: 0.464 | F51: 0.086 | G51: 0.835 | H51: 0.089 | I51: 0.434 | J51: 0.085 | K51: 0.469 | L51: 0.086 | M51: 0.134 | N51: 0.084 | O51: 1.045 | P51: 0.088 | Q51: 0.464 | R51: 0.089 | S51: 0.756 | T51: 0.094 | U51: 0.428 | V51: 0.085 | W51: 0.457 | X51: 0.09 | Y51: 0.133 | Z51: 0.09 | AA51: 1.066 | AB51: 0.088 | AC51: 0.468 | AD51: 0.086 | AE51: 0.844 | AF51: 0.088 | AG51: 0.428 | AH51: 0.087 | AI51: 0.474 | AJ51: 0.085 | AK51: 0.134 | AL51: 0.09 | AM51: 1.046 | AN51: 0.084 | AO51: 0.459 | AP51: 0.09 | AQ51: 0.865 | AR51: 0.085 | AS51: 0.496 | AT51: 0.088 | AU51: 0.454 | AV51: 0.088 | AW51: 0.134 | AX51: 0.086 | AY51: 0.083 | AZ51: 0.083 | BA51: 0.086 | BB51: 0.087 | BC51: 0.084 | BD51: 0.085 | BE51: 0.087 | BF51: 0.083 | BG51: 0.084 | BH51: 0.086 | BI51: 0.095 | BJ51: 0.088 | BK51: 0.085 | BL51: 0.087 | BM51: 0.084 | BN51: 0.089 | BO51: 0.086 | BP51: 0.084 | BQ51: 0.086 | BR51: 0.084 | BS51: 0.087 | BT51: 0.084 | BU51: 0.089 | BV51: 0.086 | BW51: 0.085 | BX51: 0.087 | BY51: 0.089 | BZ51: 0.086 | CA51: 0.085 | CB51: 0.086 | CC51: 0.082 | CD51: 0.091 | CE51: 0.087 | CF51: 0.089 | CG51: 0.084 | CH51: 0.088 | CI51: 0.084 | CJ51: 0.093 | CK51: 0.09 | CL51: 0.087 | CM51: 0.088 | CN51: 0.087 | CO51: 0.087 | CP51: 0.087 | CQ51: 0.083 | CR51: 0.089 | CS51: 0.088 | CT51: 0.091
A54: Sample Information for Figure 1c
B55: Day 1 | C55: Day 2 | F55: Day3
A56: Code | B56: B.frag | C56: Sub-culture B.frag | D56: Mega Media | E56: Bile acid (20uL of 20mM) | F56: Normalize B.frag to OD (May be 0.2-0.4 TBD) | G56: Sub-culture Normalized B.frag | H56: CMC | I56: Phage (3.5x10^7 PFU/ml) | K56: 24hr growth curve | L56: 1 | M56: 2 | N56: 3 | O56: 4 | P56: 5 | Q56: 6 | R56: 7 | S56: 8 | T56: 9 | U56: 10 | V56: 11 | W56: 12
A57: 1 | B57: 5mL Mega Media + 0.5mL B.frag stock | C57: 400uL | D57: 3.6mL | E57: 0 | F57: Record OD | G57: 400uL | H57: 3.6mL | I57: 0 | K57: A | L57: 1 | N57: 2 | P57: 3 | R57: 4 | T57: 5 | V57: 6
A58: 2 | C58: 400uL | D58: 3.6mL | E58: 0 | F58: Record OD | G58: 400uL | H58: 3.6mL | I58: 10uL | K58: B | L58: 1 | N58: 2 | P58: 3 | R58: 4 | T58: 5 | V58: 6
A59: 3 | C59: 400uL | D59: 3.6mL | E59: DCA | F59: Record OD | G59: 400uL | H59: 3.6mL | I59: 10uL | K59: C | L59: 1 | N59: 2 | P59: 3 | R59: 4 | T59: 5 | V59: 6
A60: 4 | C60: 400uL | D60: 3.6mL | E60: TCA/GCA | F60: Record OD | G60: 400uL | H60: 3.6mL | I60: 10uL | K60: D | L60: 1 | N60: 2 | P60: 3 | R60: 4 | T60: 5 | V60: 6
A61: 5 | C61: 400uL | D61: 3.6mL | E61: CA | F61: Record OD | G61: 400uL | H61: 3.6mL | I61: 10uL | K61: E
A62: 6 | B62: CMC media only | C62: OD=0.821 | F62: 1. Aliquot into 96-well plate for growth curve | K62: F
F63: 2. Aliquote 1mL for harvest @2.5hrs - before lysis happen | K63: G
B64: Overnight culture | F64: 3. Aliquote 1mL for harvest @4hrs - before lysis happen | K64: H
B65: OD600 = 0.821 | F65: 4. Aliquote 1mL for harvest @24hrs
A66: Notes
A67: Day 1 | B67: start overnight B.frag culture
A68: Day 2 | B68: B.frag sub-culture + bile acids
A69: Day 3 | B69: B.frag sub-culture + Phage
B72: Day 1 | C72: Day 2 started @8:30am | F72: Collect 1mL culture | G72: Collect 1mL culture
A73: Code | B73: OD overnight culture | C73: Starting OD | D73: 24hr culture OD | E73: Normalized OD for growth curve | F73: at 11am (2.5hr culture) | G73: at 12:30pm (4hr culture) | K73: Starting OD | L73: 1 | M73: 2 | N73: 3 | O73: 4 | P73: 5 | Q73: 6 | R73: 7 | S73: 8 | T73: 9 | U73: 10 | V73: 11 | W73: 12 | X73: average CMC OD
A74: 1 | B74: 0.821 | C74: 0.821 | D74: 1.112 | E74: 0.846 | F74: yes | G74: yes | K74: A | L74: 0.219 | N74: 0.228 | P74: 0.211 | R74: 0.228 | T74: 0.214 | V74: 0.138 | X74: =AVERAGE(V74:V77) -> 0.1365
A75: 2 | D75: 1.141 | E75: 0.855 | F75: yes | G75: yes | K75: B | L75: 0.223 | N75: 0.23 | P75: 0.211 | R75: 0.223 | T75: 0.222 | V75: 0.135
A76: 3 | D76: 0.801 | E76: 0.801 | F76: yes | G76: yes | K76: C | L76: 0.221 | N76: 0.23 | P76: 0.214 | R76: 0.224 | T76: 0.22 | V76: 0.137
A77: 4 | D77: 1.103 | E77: 0.858 | F77: yes | G77: yes | K77: D | L77: 0.22 | N77: 0.226 | P77: 0.223 | R77: 0.228 | T77: 0.233 | V77: 0.136
A78: 5 | D78: 1.066 | E78: 0.806 | F78: yes | G78: yes | K78: E
K79: F
K80: G
A81: Bf12P1 Phage | B81: 3.5x10^7 PFU/mL | K81: H
K83: Starting OD | L83: 1 | M83: 2 | N83: 3 | O83: 4 | P83: 5 | Q83: 6 | R83: 7 | S83: 8 | T83: 9 | U83: 10 | V83: 11 | W83: 12
K84: A | L84: =L74-$X$20 -> 0.128 | N84: =N74-$X$20 -> 0.137 | P84: =P74-$X$20 -> 0.12 | R84: =R74-$X$20 -> 0.137 | T84: =T74-$X$20 -> 0.123
K85: B | L85: =L75-$X$20 -> 0.132 | N85: 0.139 | P85: =P75-$X$20 -> 0.12 | R85: =R75-$X$20 -> 0.132 | T85: =T75-$X$20 -> 0.131
K86: C | L86: 0.13 | N86: 0.139 | P86: =P76-$X$20 -> 0.123 | R86: =R76-$X$20 -> 0.133 | T86: =T76-$X$20 -> 0.129
K87: D | L87: 0.129 | N87: 0.135 | P87: =P77-$X$20 -> 0.132 | R87: =R77-$X$20 -> 0.137 | T87: =T77-$X$20 -> 0.142
K88: E
K89: F
K90: G
K91: H

Sheet Figure 1e
A1: Figure 1e
A2: cell_id | B2: sample | C2: BF_counts
A3: CTAAGGTC_AAACATCG_AAACGATA-0 | B3: Untreated | C3: 79
A4: GAGTTAGC_AAACATCG_AAACGATA-0 | B4: Untreated | C4: 113.5
A5: TCTTCACA_AAACATCG_AAACGATA-0 | B5: Untreated | C5: 51
A6: TTCACGCA_AAACATCG_AAACGATA-0 | B6: Untreated | C6: 113
A7: AGATGTAC_AACAACCA_AAACGATA-0 | B7: Untreated | C7: 68
A8: CACCTTAC_AACAACCA_AAACGATA-0 | B8: Untreated | C8: 77
A9: CCGACAAC_AACAACCA_AAACGATA-0 | B9: Untreated | C9: 151.14285
A10: CTGGCATA_AACAACCA_AAACGATA-0 | B10: Untreated | C10: 50
A11: GCCACATA_AACAACCA_AAACGATA-0 | B11: Untreated | C11: 78
A12: AATGTTGC_AACCGAGA_AAACGATA-0 | B12: Untreated | C12: 93
A13: ACAGATTC_AACCGAGA_AAACGATA-0 | B13: Untreated | C13: 84
A14: ATAGCGAC_AACCGAGA_AAACGATA-0 | B14: Untreated | C14: 125
A15: ATTGGCTC_AACCGAGA_AAACGATA-0 | B15: Untreated | C15: 95
A16: CCGACAAC_AACCGAGA_AAACGATA-0 | B16: Untreated | C16: 63.14286
A17: CCTCTATC_AACCGAGA_AAACGATA-0 | B17: Untreated | C17: 127
A18: CGAACTTA_AACCGAGA_AAACGATA-0 | B18: Untreated | C18: 51
A19: GATAGACA_AACCGAGA_AAACGATA-0 | B19: Untreated | C19: 93
A20: AGGCTAAC_AACGCTTA_AAACGATA-0 | B20: Untreated | C20: 45
A21: CACCTTAC_AACGCTTA_AAACGATA-0 | B21: Untreated | C21: 103.14286
A22: CCGTGAGA_AACGCTTA_AAACGATA-0 | B22: Untreated | C22: 57
A23: TCCGTCTA_AACGCTTA_AAACGATA-0 | B23: Untreated | C23: 69
A24: ACCTCCAA_AACGTGAT_AAACGATA-0 | B24: Untreated | C24: 55
A25: ACGCTCGA_AACGTGAT_AAACGATA-0 | B25: Untreated | C25: 40
A26: CACCTTAC_AACGTGAT_AAACGATA-0 | B26: Untreated | C26: 61
A27: CCATCCTC_AACGTGAT_AAACGATA-0 | B27: Untreated | C27: 64
A28: CCTAATCC_AACGTGAT_AAACGATA-0 | B28: Untreated | C28: 51.5
A29: CGACACAC_AACGTGAT_AAACGATA-0 | B29: Untreated | C29: 142
A30: GAACAGGC_AACGTGAT_AAACGATA-0 | B30: Untreated | C30: 51
A31: GAATCTGA_AACGTGAT_AAACGATA-0 | B31: Untreated | C31: 75
A32: GACAGTGC_AACGTGAT_AAACGATA-0 | B32: Untreated | C32: 98
A33: GATGAATC_AACGTGAT_AAACGATA-0 | B33: Untreated | C33: 121
A34: GTCTGTCA_AACGTGAT_AAACGATA-0 | B34: Untreated | C34: 59
A35: TTCACGCA_AACGTGAT_AAACGATA-0 | B35: Untreated | C35: 58.333332
A36: ATCATTCC_AACTCACC_AAACGATA-0 | B36: Untreated | C36: 84
A37: CCGAAGTA_AACTCACC_AAACGATA-0 | B37: Untreated | C37: 53
A38: GCCACATA_AACTCACC_AAACGATA-0 | B38: Untreated | C38: 62.16667
A39: ACAGATTC_AAGACGGA_AAACGATA-0 | B39: Untreated | C39: 40
A40: CCTCTATC_AAGACGGA_AAACGATA-0 | B40: Untreated | C40: 58
A41: CGGATTGC_AAGACGGA_AAACGATA-0 | B41: Untreated | C41: 42
A42: CCTCTATC_AAGAGATC_AAACGATA-0 | B42: Untreated | C42: 126
A43: GATGAATC_AAGAGATC_AAACGATA-0 | B43: Untreated | C43: 123
A44: AGCCATGC_AAGGACAC_AAACGATA-0 | B44: Untreated | C44: 135
A45: GCGAGTAA_AAGGACAC_AAACGATA-0 | B45: Untreated | C45: 40
A46: TATCAGCA_AAGGACAC_AAACGATA-0 | B46: Untreated | C46: 43
A47: CCATCCTC_AAGGTACA_AAACGATA-0 | B47: Untreated | C47: 69
A48: TAGGATGA_AAGGTACA_AAACGATA-0 | B48: Untreated | C48: 52
A49: TTCACGCA_AAGGTACA_AAACGATA-0 | B49: Untreated | C49: 66
A50: AACCGAGA_AATCCGTC_AAACGATA-0 | B50: Untreated | C50: 73
A51: AACTCACC_AATCCGTC_AAACGATA-0 | B51: Untreated | C51: 51
A52: AGTCACTA_AATCCGTC_AAACGATA-0 | B52: Untreated | C52: 67
A53: AGTGGTCA_AATCCGTC_AAACGATA-0 | B53: Untreated | C53: 49
A54: ATAGCGAC_AATCCGTC_AAACGATA-0 | B54: Untreated | C54: 110
A55: ATCCTGTA_AATCCGTC_AAACGATA-0 | B55: Untreated | C55: 116
A56: CCAGTTCA_AATCCGTC_AAACGATA-0 | B56: Untreated | C56: 127
A57: CCTAATCC_AATCCGTC_AAACGATA-0 | B57: Untreated | C57: 79.14286
A58: GATGAATC_AATCCGTC_AAACGATA-0 | B58: Untreated | C58: 42
A59: GCGAGTAA_AATCCGTC_AAACGATA-0 | B59: Untreated | C59: 102.14286
A60: GTACGCAA_AATCCGTC_AAACGATA-0 | B60: Untreated | C60: 66
A61: TATCAGCA_AATCCGTC_AAACGATA-0 | B61: Untreated | C61: 92
A62: AGTACAAG_ACAAGCTA_AAACGATA-0 | B62: Untreated | C62: 60
A63: ATCATTCC_ACAAGCTA_AAACGATA-0 | B63: Untreated | C63: 66
A64: CGGATTGC_ACAAGCTA_AAACGATA-0 | B64: Untreated | C64: 48
A65: AGCCATGC_ACACAGAA_AAACGATA-0 | B65: Untreated | C65: 85
A66: ATCATTCC_ACACAGAA_AAACGATA-0 | B66: Untreated | C66: 136
A67: ATTGGCTC_ACACAGAA_AAACGATA-0 | B67: Untreated | C67: 85
A68: GAGCTGAA_ACACAGAA_AAACGATA-0 | B68: Untreated | C68: 153
A69: GATGAATC_ACACAGAA_AAACGATA-0 | B69: Untreated | C69: 61
A70: GGTGCGAA_ACACAGAA_AAACGATA-0 | B70: Untreated | C70: 97.33333
A71: AAGAGATC_ACACGACC_AAACGATA-0 | B71: Untreated | C71: 50
A72: ACAGATTC_ACACGACC_AAACGATA-0 | B72: Untreated | C72: 65
A73: ACGTATCA_ACACGACC_AAACGATA-0 | B73: Untreated | C73: 44
A74: AGATCGCA_ACACGACC_AAACGATA-0 | B74: Untreated | C74: 111
A75: ATAGCGAC_ACACGACC_AAACGATA-0 | B75: Untreated | C75: 104.4762
A76: ATCATTCC_ACACGACC_AAACGATA-0 | B76: Untreated | C76: 66
A77: CAAGACTA_ACACGACC_AAACGATA-0 | B77: Untreated | C77: 56.142857
A78: TATCAGCA_ACACGACC_AAACGATA-0 | B78: Untreated | C78: 100
A79: ACAGATTC_ACAGATTC_AAACGATA-0 | B79: Untreated | C79: 95
A80: AGGCTAAC_ACAGATTC_AAACGATA-0 | B80: Untreated | C80: 61
A81: AGTACAAG_ACAGATTC_AAACGATA-0 | B81: Untreated | C81: 75.14286
A82: ATAGCGAC_ACAGATTC_AAACGATA-0 | B82: Untreated | C82: 42.14286
A83: GTGTTCTA_ACAGATTC_AAACGATA-0 | B83: Untreated | C83: 54
A84: AACCGAGA_ACAGCAGA_AAACGATA-0 | B84: Untreated | C84: 53
A85: CAGCGTTA_ACAGCAGA_AAACGATA-0 | B85: Untreated | C85: 64
A86: CCGAAGTA_ACAGCAGA_AAACGATA-0 | B86: Untreated | C86: 63
A87: CGACACAC_ACAGCAGA_AAACGATA-0 | B87: Untreated | C87: 60
A88: CGGATTGC_ACAGCAGA_AAACGATA-0 | B88: Untreated | C88: 56
A89: TAGGATGA_ACAGCAGA_AAACGATA-0 | B89: Untreated | C89: 74
A90: AATGTTGC_ACATTGGC_AAACGATA-0 | B90: Untreated | C90: 51
A91: ACAGATTC_ACATTGGC_AAACGATA-0 | B91: Untreated | C91: 295.2857
A92: AGCACCTC_ACATTGGC_AAACGATA-0 | B92: Untreated | C92: 51
A93: TGAAGAGA_ACATTGGC_AAACGATA-0 | B93: Untreated | C93: 124
A94: ATTGGCTC_ACCACTGT_AAACGATA-0 | B94: Untreated | C94: 75
A95: CAACCACA_ACCACTGT_AAACGATA-0 | B95: Untreated | C95: 45
A96: CCATCCTC_ACCACTGT_AAACGATA-0 | B96: Untreated | C96: 63
A97: ACACGACC_ACCTCCAA_AAACGATA-0 | B97: Untreated | C97: 110
A98: ATAGCGAC_ACCTCCAA_AAACGATA-0 | B98: Untreated | C98: 43
A99: CTAAGGTC_ACCTCCAA_AAACGATA-0 | B99: Untreated | C99: 50
A100: TATCAGCA_ACCTCCAA_AAACGATA-0 | B100: Untreated | C100: 103
A101: CTCAATGA_ACGCTCGA_AAACGATA-0 | B101: Untreated | C101: 45
A102: GACAGTGC_ACGCTCGA_AAACGATA-0 | B102: Untreated | C102: 76
A103: CCGACAAC_ACTATGCA_AAACGATA-0 | B103: Untreated | C103: 48
A104: GAACAGGC_AGAGTCAA_AAACGATA-0 | B104: Untreated | C104: 53
A105: TAGGATGA_AGAGTCAA_AAACGATA-0 | B105: Untreated | C105: 42
A106: AGTACAAG_AGATCGCA_AAACGATA-0 | B106: Untreated | C106: 54
A107: ATTGGCTC_AGATCGCA_AAACGATA-0 | B107: Untreated | C107: 53
A108: CGGATTGC_AGATCGCA_AAACGATA-0 | B108: Untreated | C108: 55
A109: CACCTTAC_AGCACCTC_AAACGATA-0 | B109: Untreated | C109: 47
A110: CCATCCTC_AGCACCTC_AAACGATA-0 | B110: Untreated | C110: 63
A111: CGACTGGA_AGCACCTC_AAACGATA-0 | B111: Untreated | C111: 51
A112: GTCTGTCA_AGCACCTC_AAACGATA-0 | B112: Untreated | C112: 54
A113: AGATGTAC_AGCAGGAA_AAACGATA-0 | B113: Untreated | C113: 137
A114: GAACAGGC_AGCAGGAA_AAACGATA-0 | B114: Untreated | C114: 177
A115: TAGGATGA_AGCAGGAA_AAACGATA-0 | B115: Untreated | C115: 49
A116: AATCCGTC_AGGCTAAC_AAACGATA-0 | B116: Untreated | C116: 70
A117: CCATCCTC_AGGCTAAC_AAACGATA-0 | B117: Untreated | C117: 143
A118: CCTAATCC_AGGCTAAC_AAACGATA-0 | B118: Untreated | C118: 49.333332
A119: GGTGCGAA_AGGCTAAC_AAACGATA-0 | B119: Untreated | C119: 59
A120: AAGAGATC_AGTACAAG_AAACGATA-0 | B120: Untreated | C120: 64
A121: AGATGTAC_AGTACAAG_AAACGATA-0 | B121: Untreated | C121: 92.14285
A122: AGTACAAG_AGTACAAG_AAACGATA-0 | B122: Untreated | C122: 66
A123: CAAGGAGC_AGTACAAG_AAACGATA-0 | B123: Untreated | C123: 80
A124: CCGAAGTA_AGTACAAG_AAACGATA-0 | B124: Untreated | C124: 75
A125: CGAACTTA_AGTACAAG_AAACGATA-0 | B125: Untreated | C125: 45
A126: GCTCGGTA_AGTACAAG_AAACGATA-0 | B126: Untreated | C126: 75
A127: AACAACCA_AGTCACTA_AAACGATA-0 | B127: Untreated | C127: 45
A128: ACGTATCA_AGTCACTA_AAACGATA-0 | B128: Untreated | C128: 73.14285
A129: AGCCATGC_AGTCACTA_AAACGATA-0 | B129: Untreated | C129: 45.333332
A130: CCGAAGTA_AGTCACTA_AAACGATA-0 | B130: Untreated | C130: 179.14285
A131: CCGTGAGA_AGTCACTA_AAACGATA-0 | B131: Untreated | C131: 51
A132: GAGCTGAA_AGTCACTA_AAACGATA-0 | B132: Untreated | C132: 79
A133: GATAGACA_AGTCACTA_AAACGATA-0 | B133: Untreated | C133: 101
A134: TATCAGCA_AGTCACTA_AAACGATA-0 | B134: Untreated | C134: 78
A135: TGAAGAGA_AGTCACTA_AAACGATA-0 | B135: Untreated | C135: 99
A136: AACGCTTA_AGTGGTCA_AAACGATA-0 | B136: Untreated | C136: 66
A137: CAAGGAGC_AGTGGTCA_AAACGATA-0 | B137: Untreated | C137: 42
A138: GATGAATC_AGTGGTCA_AAACGATA-0 | B138: Untreated | C138: 55.5
A139: TAGGATGA_AGTGGTCA_AAACGATA-0 | B139: Untreated | C139: 69
A140: AGATGTAC_ATAGCGAC_AAACGATA-0 | B140: Untreated | C140: 85
A141: AGGCTAAC_ATAGCGAC_AAACGATA-0 | B141: Untreated | C141: 51
A142: GATGAATC_ATCATTCC_AAACGATA-0 | B142: Untreated | C142: 102
A143: GCTAACGA_ATCATTCC_AAACGATA-0 | B143: Untreated | C143: 79
A144: TCTTCACA_ATCATTCC_AAACGATA-0 | B144: Untreated | C144: 43
A145: TTCACGCA_ATCATTCC_AAACGATA-0 | B145: Untreated | C145: 92
A146: ATCATTCC_ATCCTGTA_AAACGATA-0 | B146: Untreated | C146: 57
A147: CACCTTAC_ATCCTGTA_AAACGATA-0 | B147: Untreated | C147: 62
A148: CCGTGAGA_ATCCTGTA_AAACGATA-0 | B148: Untreated | C148: 61
A149: CTAAGGTC_ATCCTGTA_AAACGATA-0 | B149: Untreated | C149: 47
A150: GCCAAGAC_ATTGAGGA_AAACGATA-0 | B150: Untreated | C150: 45
A151: GACAGTGC_CAAGACTA_AAACGATA-0 | B151: Untreated | C151: 47
A152: TGAAGAGA_CAAGACTA_AAACGATA-0 | B152: Untreated | C152: 61
A153: AACTCACC_CACCTTAC_AAACGATA-0 | B153: Untreated | C153: 46
A154: AATGTTGC_CACCTTAC_AAACGATA-0 | B154: Untreated | C154: 220
A155: ACACGACC_CACCTTAC_AAACGATA-0 | B155: Untreated | C155: 54
A156: CTAAGGTC_CACCTTAC_AAACGATA-0 | B156: Untreated | C156: 81.14285
A157: GAGCTGAA_CACCTTAC_AAACGATA-0 | B157: Untreated | C157: 84
A158: TGAAGAGA_CACCTTAC_AAACGATA-0 | B158: Untreated | C158: 197.66667
A159: TTCACGCA_CACCTTAC_AAACGATA-0 | B159: Untreated | C159: 60
A160: AACGCTTA_CACTTCGA_AAACGATA-0 | B160: Untreated | C160: 60
A161: AACGTGAT_CACTTCGA_AAACGATA-0 | B161: Untreated | C161: 41
A162: AACTCACC_CACTTCGA_AAACGATA-0 | B162: Untreated | C162: 80
A163: AAGGACAC_CACTTCGA_AAACGATA-0 | B163: Untreated | C163: 48
A164: AATGTTGC_CACTTCGA_AAACGATA-0 | B164: Untreated | C164: 152.14285
A165: ACACGACC_CACTTCGA_AAACGATA-0 | B165: Untreated | C165: 45
A166: AGCACCTC_CACTTCGA_AAACGATA-0 | B166: Untreated | C166: 138
A167: ATCATTCC_CACTTCGA_AAACGATA-0 | B167: Untreated | C167: 54
A168: CCATCCTC_CACTTCGA_AAACGATA-0 | B168: Untreated | C168: 72
A169: CCGAAGTA_CACTTCGA_AAACGATA-0 | B169: Untreated | C169: 44
A170: GAATCTGA_CACTTCGA_AAACGATA-0 | B170: Untreated | C170: 57
A171: GAGTTAGC_CACTTCGA_AAACGATA-0 | B171: Untreated | C171: 105
A172: GCTCGGTA_CACTTCGA_AAACGATA-0 | B172: Untreated | C172: 47
A173: TTCACGCA_CACTTCGA_AAACGATA-0 | B173: Untreated | C173: 79
A174: AGCACCTC_CAGATCTG_AAACGATA-0 | B174: Untreated | C174: 50
A175: ATTGGCTC_CAGATCTG_AAACGATA-0 | B175: Untreated | C175: 87
A176: CCAGTTCA_CAGATCTG_AAACGATA-0 | B176: Untreated | C176: 86
A177: GAACAGGC_CAGATCTG_AAACGATA-0 | B177: Untreated | C177: 101
A178: TATCAGCA_CAGATCTG_AAACGATA-0 | B178: Untreated | C178: 87
A179: CCAGTTCA_CAGCGTTA_AAACGATA-0 | B179: Untreated | C179: 51
A180: CCGAAGTA_CAGCGTTA_AAACGATA-0 | B180: Untreated | C180: 44
A181: GAGTTAGC_CAGCGTTA_AAACGATA-0 | B181: Untreated | C181: 42
A182: TGAAGAGA_CAGCGTTA_AAACGATA-0 | B182: Untreated | C182: 42
A183: TGGAACAA_CAGCGTTA_AAACGATA-0 | B183: Untreated | C183: 83.14286
A184: AAGAGATC_CATACCAA_AAACGATA-0 | B184: Untreated | C184: 71.33333
A185: ACAAGCTA_CATACCAA_AAACGATA-0 | B185: Untreated | C185: 86
A186: CCAGTTCA_CATACCAA_AAACGATA-0 | B186: Untreated | C186: 43
A187: CGACTGGA_CATACCAA_AAACGATA-0 | B187: Untreated | C187: 41
A188: CGGATTGC_CATACCAA_AAACGATA-0 | B188: Untreated | C188: 52
A189: TGGTGGTA_CATACCAA_AAACGATA-0 | B189: Untreated | C189: 43
A190: ACACGACC_CATCAAGT_AAACGATA-0 | B190: Untreated | C190: 59
A191: AGGCTAAC_CATCAAGT_AAACGATA-0 | B191: Untreated | C191: 47
A192: CCTAATCC_CATCAAGT_AAACGATA-0 | B192: Untreated | C192: 94.33333
A193: CGACACAC_CATCAAGT_AAACGATA-0 | B193: Untreated | C193: 49
A194: TCCGTCTA_CATCAAGT_AAACGATA-0 | B194: Untreated | C194: 61
A195: AATGTTGC_CCAGTTCA_AAACGATA-0 | B195: Untreated | C195: 107
A196: ACCACTGT_CCAGTTCA_AAACGATA-0 | B196: Untreated | C196: 75
A197: AGCAGGAA_CCAGTTCA_AAACGATA-0 | B197: Untreated | C197: 60.5
A198: CGGATTGC_CCAGTTCA_AAACGATA-0 | B198: Untreated | C198: 123.2
A199: GAGCTGAA_CCAGTTCA_AAACGATA-0 | B199: Untreated | C199: 73.33333
A200: AATGTTGC_CCATCCTC_AAACGATA-0 | B200: Untreated | C200: 58
... 4300 more rows

Sheet Figure 1f
A1: Figure 1f
A2: cell_id | B2: sample | C2: Phage-treated_counts
A3: CTAAGGTC_AAACATCG_AAACGATA-0 | B3: Untreated | C3: 0
A4: GAGTTAGC_AAACATCG_AAACGATA-0 | B4: Untreated | C4: 0
A5: TCTTCACA_AAACATCG_AAACGATA-0 | B5: Untreated | C5: 0
A6: TTCACGCA_AAACATCG_AAACGATA-0 | B6: Untreated | C6: 0
A7: AGATGTAC_AACAACCA_AAACGATA-0 | B7: Untreated | C7: 0
A8: CACCTTAC_AACAACCA_AAACGATA-0 | B8: Untreated | C8: 0
A9: CCGACAAC_AACAACCA_AAACGATA-0 | B9: Untreated | C9: 0
A10: CTGGCATA_AACAACCA_AAACGATA-0 | B10: Untreated | C10: 1
A11: GCCACATA_AACAACCA_AAACGATA-0 | B11: Untreated | C11: 0
A12: AATGTTGC_AACCGAGA_AAACGATA-0 | B12: Untreated | C12: 0
A13: ACAGATTC_AACCGAGA_AAACGATA-0 | B13: Untreated | C13: 0
A14: ATAGCGAC_AACCGAGA_AAACGATA-0 | B14: Untreated | C14: 1
A15: ATTGGCTC_AACCGAGA_AAACGATA-0 | B15: Untreated | C15: 0
A16: CCGACAAC_AACCGAGA_AAACGATA-0 | B16: Untreated | C16: 0
A17: CCTCTATC_AACCGAGA_AAACGATA-0 | B17: Untreated | C17: 0
A18: CGAACTTA_AACCGAGA_AAACGATA-0 | B18: Untreated | C18: 0
A19: GATAGACA_AACCGAGA_AAACGATA-0 | B19: Untreated | C19: 0
A20: AGGCTAAC_AACGCTTA_AAACGATA-0 | B20: Untreated | C20: 0
A21: CACCTTAC_AACGCTTA_AAACGATA-0 | B21: Untreated | C21: 1
A22: CCGTGAGA_AACGCTTA_AAACGATA-0 | B22: Untreated | C22: 0
A23: TCCGTCTA_AACGCTTA_AAACGATA-0 | B23: Untreated | C23: 0
A24: ACCTCCAA_AACGTGAT_AAACGATA-0 | B24: Untreated | C24: 0
A25: ACGCTCGA_AACGTGAT_AAACGATA-0 | B25: Untreated | C25: 0
A26: CACCTTAC_AACGTGAT_AAACGATA-0 | B26: Untreated | C26: 0
A27: CCATCCTC_AACGTGAT_AAACGATA-0 | B27: Untreated | C27: 1
A28: CCTAATCC_AACGTGAT_AAACGATA-0 | B28: Untreated | C28: 0
A29: CGACACAC_AACGTGAT_AAACGATA-0 | B29: Untreated | C29: 0
A30: GAACAGGC_AACGTGAT_AAACGATA-0 | B30: Untreated | C30: 0
A31: GAATCTGA_AACGTGAT_AAACGATA-0 | B31: Untreated | C31: 0
A32: GACAGTGC_AACGTGAT_AAACGATA-0 | B32: Untreated | C32: 0
A33: GATGAATC_AACGTGAT_AAACGATA-0 | B33: Untreated | C33: 0
A34: GTCTGTCA_AACGTGAT_AAACGATA-0 | B34: Untreated | C34: 1
A35: TTCACGCA_AACGTGAT_AAACGATA-0 | B35: Untreated | C35: 0
A36: ATCATTCC_AACTCACC_AAACGATA-0 | B36: Untreated | C36: 0
A37: CCGAAGTA_AACTCACC_AAACGATA-0 | B37: Untreated | C37: 1
A38: GCCACATA_AACTCACC_AAACGATA-0 | B38: Untreated | C38: 0
A39: ACAGATTC_AAGACGGA_AAACGATA-0 | B39: Untreated | C39: 0
A40: CCTCTATC_AAGACGGA_AAACGATA-0 | B40: Untreated | C40: 0
A41: CGGATTGC_AAGACGGA_AAACGATA-0 | B41: Untreated | C41: 0
A42: CCTCTATC_AAGAGATC_AAACGATA-0 | B42: Untreated | C42: 0
A43: GATGAATC_AAGAGATC_AAACGATA-0 | B43: Untreated | C43: 0
A44: AGCCATGC_AAGGACAC_AAACGATA-0 | B44: Untreated | C44: 0
A45: GCGAGTAA_AAGGACAC_AAACGATA-0 | B45: Untreated | C45: 0
A46: TATCAGCA_AAGGACAC_AAACGATA-0 | B46: Untreated | C46: 0
A47: CCATCCTC_AAGGTACA_AAACGATA-0 | B47: Untreated | C47: 0
A48: TAGGATGA_AAGGTACA_AAACGATA-0 | B48: Untreated | C48: 0
A49: TTCACGCA_AAGGTACA_AAACGATA-0 | B49: Untreated | C49: 0
A50: AACCGAGA_AATCCGTC_AAACGATA-0 | B50: Untreated | C50: 0
A51: AACTCACC_AATCCGTC_AAACGATA-0 | B51: Untreated | C51: 0
A52: AGTCACTA_AATCCGTC_AAACGATA-0 | B52: Untreated | C52: 0
A53: AGTGGTCA_AATCCGTC_AAACGATA-0 | B53: Untreated | C53: 0
A54: ATAGCGAC_AATCCGTC_AAACGATA-0 | B54: Untreated | C54: 1
A55: ATCCTGTA_AATCCGTC_AAACGATA-0 | B55: Untreated | C55: 0
A56: CCAGTTCA_AATCCGTC_AAACGATA-0 | B56: Untreated | C56: 0
A57: CCTAATCC_AATCCGTC_AAACGATA-0 | B57: Untreated | C57: 0
A58: GATGAATC_AATCCGTC_AAACGATA-0 | B58: Untreated | C58: 0
A59: GCGAGTAA_AATCCGTC_AAACGATA-0 | B59: Untreated | C59: 0
A60: GTACGCAA_AATCCGTC_AAACGATA-0 | B60: Untreated | C60: 0
A61: TATCAGCA_AATCCGTC_AAACGATA-0 | B61: Untreated | C61: 0
A62: AGTACAAG_ACAAGCTA_AAACGATA-0 | B62: Untreated | C62: 0
A63: ATCATTCC_ACAAGCTA_AAACGATA-0 | B63: Untreated | C63: 0
A64: CGGATTGC_ACAAGCTA_AAACGATA-0 | B64: Untreated | C64: 1
A65: AGCCATGC_ACACAGAA_AAACGATA-0 | B65: Untreated | C65: 0
A66: ATCATTCC_ACACAGAA_AAACGATA-0 | B66: Untreated | C66: 1
A67: ATTGGCTC_ACACAGAA_AAACGATA-0 | B67: Untreated | C67: 0
A68: GAGCTGAA_ACACAGAA_AAACGATA-0 | B68: Untreated | C68: 1
A69: GATGAATC_ACACAGAA_AAACGATA-0 | B69: Untreated | C69: 0
A70: GGTGCGAA_ACACAGAA_AAACGATA-0 | B70: Untreated | C70: 0
A71: AAGAGATC_ACACGACC_AAACGATA-0 | B71: Untreated | C71: 0
A72: ACAGATTC_ACACGACC_AAACGATA-0 | B72: Untreated | C72: 0
A73: ACGTATCA_ACACGACC_AAACGATA-0 | B73: Untreated | C73: 0
A74: AGATCGCA_ACACGACC_AAACGATA-0 | B74: Untreated | C74: 0
A75: ATAGCGAC_ACACGACC_AAACGATA-0 | B75: Untreated | C75: 0
A76: ATCATTCC_ACACGACC_AAACGATA-0 | B76: Untreated | C76: 0
A77: CAAGACTA_ACACGACC_AAACGATA-0 | B77: Untreated | C77: 0
A78: TATCAGCA_ACACGACC_AAACGATA-0 | B78: Untreated | C78: 0
A79: ACAGATTC_ACAGATTC_AAACGATA-0 | B79: Untreated | C79: 0
A80: AGGCTAAC_ACAGATTC_AAACGATA-0 | B80: Untreated | C80: 0
A81: AGTACAAG_ACAGATTC_AAACGATA-0 | B81: Untreated | C81: 2
A82: ATAGCGAC_ACAGATTC_AAACGATA-0 | B82: Untreated | C82: 1
A83: GTGTTCTA_ACAGATTC_AAACGATA-0 | B83: Untreated | C83: 0
A84: AACCGAGA_ACAGCAGA_AAACGATA-0 | B84: Untreated | C84: 0
A85: CAGCGTTA_ACAGCAGA_AAACGATA-0 | B85: Untreated | C85: 0
A86: CCGAAGTA_ACAGCAGA_AAACGATA-0 | B86: Untreated | C86: 0
A87: CGACACAC_ACAGCAGA_AAACGATA-0 | B87: Untreated | C87: 0
A88: CGGATTGC_ACAGCAGA_AAACGATA-0 | B88: Untreated | C88: 0
A89: TAGGATGA_ACAGCAGA_AAACGATA-0 | B89: Untreated | C89: 0
A90: AATGTTGC_ACATTGGC_AAACGATA-0 | B90: Untreated | C90: 0
A91: ACAGATTC_ACATTGGC_AAACGATA-0 | B91: Untreated | C91: 0
A92: AGCACCTC_ACATTGGC_AAACGATA-0 | B92: Untreated | C92: 1
A93: TGAAGAGA_ACATTGGC_AAACGATA-0 | B93: Untreated | C93: 0
A94: ATTGGCTC_ACCACTGT_AAACGATA-0 | B94: Untreated | C94: 0
A95: CAACCACA_ACCACTGT_AAACGATA-0 | B95: Untreated | C95: 0
A96: CCATCCTC_ACCACTGT_AAACGATA-0 | B96: Untreated | C96: 0
A97: ACACGACC_ACCTCCAA_AAACGATA-0 | B97: Untreated | C97: 0
A98: ATAGCGAC_ACCTCCAA_AAACGATA-0 | B98: Untreated | C98: 1
A99: CTAAGGTC_ACCTCCAA_AAACGATA-0 | B99: Untreated | C99: 0
A100: TATCAGCA_ACCTCCAA_AAACGATA-0 | B100: Untreated | C100: 0
A101: CTCAATGA_ACGCTCGA_AAACGATA-0 | B101: Untreated | C101: 0
A102: GACAGTGC_ACGCTCGA_AAACGATA-0 | B102: Untreated | C102: 0
A103: CCGACAAC_ACTATGCA_AAACGATA-0 | B103: Untreated | C103: 0
A104: GAACAGGC_AGAGTCAA_AAACGATA-0 | B104: Untreated | C104: 0
A105: TAGGATGA_AGAGTCAA_AAACGATA-0 | B105: Untreated | C105: 0
A106: AGTACAAG_AGATCGCA_AAACGATA-0 | B106: Untreated | C106: 0
A107: ATTGGCTC_AGATCGCA_AAACGATA-0 | B107: Untreated | C107: 0
A108: CGGATTGC_AGATCGCA_AAACGATA-0 | B108: Untreated | C108: 0
A109: CACCTTAC_AGCACCTC_AAACGATA-0 | B109: Untreated | C109: 0
A110: CCATCCTC_AGCACCTC_AAACGATA-0 | B110: Untreated | C110: 0
A111: CGACTGGA_AGCACCTC_AAACGATA-0 | B111: Untreated | C111: 0
A112: GTCTGTCA_AGCACCTC_AAACGATA-0 | B112: Untreated | C112: 0
A113: AGATGTAC_AGCAGGAA_AAACGATA-0 | B113: Untreated | C113: 0
A114: GAACAGGC_AGCAGGAA_AAACGATA-0 | B114: Untreated | C114: 0
A115: TAGGATGA_AGCAGGAA_AAACGATA-0 | B115: Untreated | C115: 0
A116: AATCCGTC_AGGCTAAC_AAACGATA-0 | B116: Untreated | C116: 0
A117: CCATCCTC_AGGCTAAC_AAACGATA-0 | B117: Untreated | C117: 0
A118: CCTAATCC_AGGCTAAC_AAACGATA-0 | B118: Untreated | C118: 0
A119: GGTGCGAA_AGGCTAAC_AAACGATA-0 | B119: Untreated | C119: 0
A120: AAGAGATC_AGTACAAG_AAACGATA-0 | B120: Untreated | C120: 0
A121: AGATGTAC_AGTACAAG_AAACGATA-0 | B121: Untreated | C121: 0
A122: AGTACAAG_AGTACAAG_AAACGATA-0 | B122: Untreated | C122: 0
A123: CAAGGAGC_AGTACAAG_AAACGATA-0 | B123: Untreated | C123: 0
A124: CCGAAGTA_AGTACAAG_AAACGATA-0 | B124: Untreated | C124: 1
A125: CGAACTTA_AGTACAAG_AAACGATA-0 | B125: Untreated | C125: 0
A126: GCTCGGTA_AGTACAAG_AAACGATA-0 | B126: Untreated | C126: 0
A127: AACAACCA_AGTCACTA_AAACGATA-0 | B127: Untreated | C127: 1
A128: ACGTATCA_AGTCACTA_AAACGATA-0 | B128: Untreated | C128: 0
A129: AGCCATGC_AGTCACTA_AAACGATA-0 | B129: Untreated | C129: 0
A130: CCGAAGTA_AGTCACTA_AAACGATA-0 | B130: Untreated | C130: 0
A131: CCGTGAGA_AGTCACTA_AAACGATA-0 | B131: Untreated | C131: 0
A132: GAGCTGAA_AGTCACTA_AAACGATA-0 | B132: Untreated | C132: 0
A133: GATAGACA_AGTCACTA_AAACGATA-0 | B133: Untreated | C133: 0
A134: TATCAGCA_AGTCACTA_AAACGATA-0 | B134: Untreated | C134: 0
A135: TGAAGAGA_AGTCACTA_AAACGATA-0 | B135: Untreated | C135: 1
A136: AACGCTTA_AGTGGTCA_AAACGATA-0 | B136: Untreated | C136: 0
A137: CAAGGAGC_AGTGGTCA_AAACGATA-0 | B137: Untreated | C137: 0
A138: GATGAATC_AGTGGTCA_AAACGATA-0 | B138: Untreated | C138: 0
A139: TAGGATGA_AGTGGTCA_AAACGATA-0 | B139: Untreated | C139: 0
A140: AGATGTAC_ATAGCGAC_AAACGATA-0 | B140: Untreated | C140: 0
A141: AGGCTAAC_ATAGCGAC_AAACGATA-0 | B141: Untreated | C141: 0
A142: GATGAATC_ATCATTCC_AAACGATA-0 | B142: Untreated | C142: 0
A143: GCTAACGA_ATCATTCC_AAACGATA-0 | B143: Untreated | C143: 0
A144: TCTTCACA_ATCATTCC_AAACGATA-0 | B144: Untreated | C144: 1
A145: TTCACGCA_ATCATTCC_AAACGATA-0 | B145: Untreated | C145: 0
A146: ATCATTCC_ATCCTGTA_AAACGATA-0 | B146: Untreated | C146: 0
A147: CACCTTAC_ATCCTGTA_AAACGATA-0 | B147: Untreated | C147: 0
A148: CCGTGAGA_ATCCTGTA_AAACGATA-0 | B148: Untreated | C148: 0
A149: CTAAGGTC_ATCCTGTA_AAACGATA-0 | B149: Untreated | C149: 0
A150: GCCAAGAC_ATTGAGGA_AAACGATA-0 | B150: Untreated | C150: 0
A151: GACAGTGC_CAAGACTA_AAACGATA-0 | B151: Untreated | C151: 0
A152: TGAAGAGA_CAAGACTA_AAACGATA-0 | B152: Untreated | C152: 0
A153: AACTCACC_CACCTTAC_AAACGATA-0 | B153: Untreated | C153: 0
A154: AATGTTGC_CACCTTAC_AAACGATA-0 | B154: Untreated | C154: 0
A155: ACACGACC_CACCTTAC_AAACGATA-0 | B155: Untreated | C155: 1
A156: CTAAGGTC_CACCTTAC_AAACGATA-0 | B156: Untreated | C156: 0
A157: GAGCTGAA_CACCTTAC_AAACGATA-0 | B157: Untreated | C157: 1
A158: TGAAGAGA_CACCTTAC_AAACGATA-0 | B158: Untreated | C158: 0
A159: TTCACGCA_CACCTTAC_AAACGATA-0 | B159: Untreated | C159: 0
A160: AACGCTTA_CACTTCGA_AAACGATA-0 | B160: Untreated | C160: 0
A161: AACGTGAT_CACTTCGA_AAACGATA-0 | B161: Untreated | C161: 0
A162: AACTCACC_CACTTCGA_AAACGATA-0 | B162: Untreated | C162: 0
A163: AAGGACAC_CACTTCGA_AAACGATA-0 | B163: Untreated | C163: 0
A164: AATGTTGC_CACTTCGA_AAACGATA-0 | B164: Untreated | C164: 0
A165: ACACGACC_CACTTCGA_AAACGATA-0 | B165: Untreated | C165: 0
A166: AGCACCTC_CACTTCGA_AAACGATA-0 | B166: Untreated | C166: 0
A167: ATCATTCC_CACTTCGA_AAACGATA-0 | B167: Untreated | C167: 0
A168: CCATCCTC_CACTTCGA_AAACGATA-0 | B168: Untreated | C168: 0
A169: CCGAAGTA_CACTTCGA_AAACGATA-0 | B169: Untreated | C169: 0
A170: GAATCTGA_CACTTCGA_AAACGATA-0 | B170: Untreated | C170: 1
A171: GAGTTAGC_CACTTCGA_AAACGATA-0 | B171: Untreated | C171: 0
A172: GCTCGGTA_CACTTCGA_AAACGATA-0 | B172: Untreated | C172: 0
A173: TTCACGCA_CACTTCGA_AAACGATA-0 | B173: Untreated | C173: 0
A174: AGCACCTC_CAGATCTG_AAACGATA-0 | B174: Untreated | C174: 0
A175: ATTGGCTC_CAGATCTG_AAACGATA-0 | B175: Untreated | C175: 0
A176: CCAGTTCA_CAGATCTG_AAACGATA-0 | B176: Untreated | C176: 0
A177: GAACAGGC_CAGATCTG_AAACGATA-0 | B177: Untreated | C177: 0
A178: TATCAGCA_CAGATCTG_AAACGATA-0 | B178: Untreated | C178: 0
A179: CCAGTTCA_CAGCGTTA_AAACGATA-0 | B179: Untreated | C179: 0
A180: CCGAAGTA_CAGCGTTA_AAACGATA-0 | B180: Untreated | C180: 0
A181: GAGTTAGC_CAGCGTTA_AAACGATA-0 | B181: Untreated | C181: 0
A182: TGAAGAGA_CAGCGTTA_AAACGATA-0 | B182: Untreated | C182: 0
A183: TGGAACAA_CAGCGTTA_AAACGATA-0 | B183: Untreated | C183: 0
A184: AAGAGATC_CATACCAA_AAACGATA-0 | B184: Untreated | C184: 0
A185: ACAAGCTA_CATACCAA_AAACGATA-0 | B185: Untreated | C185: 0
A186: CCAGTTCA_CATACCAA_AAACGATA-0 | B186: Untreated | C186: 0
A187: CGACTGGA_CATACCAA_AAACGATA-0 | B187: Untreated | C187: 0
A188: CGGATTGC_CATACCAA_AAACGATA-0 | B188: Untreated | C188: 0
A189: TGGTGGTA_CATACCAA_AAACGATA-0 | B189: Untreated | C189: 0
A190: ACACGACC_CATCAAGT_AAACGATA-0 | B190: Untreated | C190: 0
A191: AGGCTAAC_CATCAAGT_AAACGATA-0 | B191: Untreated | C191: 0
A192: CCTAATCC_CATCAAGT_AAACGATA-0 | B192: Untreated | C192: 0
A193: CGACACAC_CATCAAGT_AAACGATA-0 | B193: Untreated | C193: 0
A194: TCCGTCTA_CATCAAGT_AAACGATA-0 | B194: Untreated | C194: 0
A195: AATGTTGC_CCAGTTCA_AAACGATA-0 | B195: Untreated | C195: 0
A196: ACCACTGT_CCAGTTCA_AAACGATA-0 | B196: Untreated | C196: 0
A197: AGCAGGAA_CCAGTTCA_AAACGATA-0 | B197: Untreated | C197: 0
A198: CGGATTGC_CCAGTTCA_AAACGATA-0 | B198: Untreated | C198: 0
A199: GAGCTGAA_CCAGTTCA_AAACGATA-0 | B199: Untreated | C199: 0
A200: AATGTTGC_CCATCCTC_AAACGATA-0 | B200: Untreated | C200: 0
... 4300 more rows

Sheet Figure 1g
A1: Figure 1g
A2: cell_id | B2: UMAP_1 | C2: UMAP_2 | D2: sample | E2: infection_status
A3: CTAAGGTC_AAACATCG_AAACGATA-0 | B3: -1.98869 | C3: -2.9728193 | D3: Untreated | E3: Untreated
A4: GAGTTAGC_AAACATCG_AAACGATA-0 | B4: -3.935015 | C4: -2.2979746 | D4: Untreated | E4: Untreated
A5: TCTTCACA_AAACATCG_AAACGATA-0 | B5: -1.2294669 | C5: -5.1126914 | D5: Untreated | E5: Untreated
A6: TTCACGCA_AAACATCG_AAACGATA-0 | B6: -3.9092572 | C6: -1.1390901 | D6: Untreated | E6: Untreated
A7: AGATGTAC_AACAACCA_AAACGATA-0 | B7: -2.0473483 | C7: -4.0241776 | D7: Untreated | E7: Untreated
A8: CACCTTAC_AACAACCA_AAACGATA-0 | B8: -2.0890584 | C8: -2.4259696 | D8: Untreated | E8: Untreated
A9: CCGACAAC_AACAACCA_AAACGATA-0 | B9: -6.2732925 | C9: -2.407235 | D9: Untreated | E9: Untreated
A10: CTGGCATA_AACAACCA_AAACGATA-0 | B10: 1.1653473 | C10: -2.160001 | D10: Untreated | E10: Untreated
A11: GCCACATA_AACAACCA_AAACGATA-0 | B11: -3.251262 | C11: 0.808952 | D11: Untreated | E11: Untreated
A12: AATGTTGC_AACCGAGA_AAACGATA-0 | B12: -3.7247717 | C12: -4.874963 | D12: Untreated | E12: Untreated
A13: ACAGATTC_AACCGAGA_AAACGATA-0 | B13: -2.9917722 | C13: -3.5064092 | D13: Untreated | E13: Untreated
A14: ATAGCGAC_AACCGAGA_AAACGATA-0 | B14: -4.5873275 | C14: -0.52227753 | D14: Untreated | E14: Untreated
A15: ATTGGCTC_AACCGAGA_AAACGATA-0 | B15: -3.534617 | C15: 0.95173705 | D15: Untreated | E15: Untreated
A16: CCGACAAC_AACCGAGA_AAACGATA-0 | B16: -2.157119 | C16: -0.8614603 | D16: Untreated | E16: Untreated
A17: CCTCTATC_AACCGAGA_AAACGATA-0 | B17: -5.0950127 | C17: -3.608554 | D17: Untreated | E17: Untreated
A18: CGAACTTA_AACCGAGA_AAACGATA-0 | B18: 0.30299962 | C18: -1.9852175 | D18: Untreated | E18: Untreated
A19: GATAGACA_AACCGAGA_AAACGATA-0 | B19: -2.40866 | C19: -1.3741745 | D19: Untreated | E19: Untreated
A20: AGGCTAAC_AACGCTTA_AAACGATA-0 | B20: -0.6446359 | C20: 3.7173884 | D20: Untreated | E20: Untreated
A21: CACCTTAC_AACGCTTA_AAACGATA-0 | B21: -6.088621 | C21: -4.7376647 | D21: Untreated | E21: Untreated
A22: CCGTGAGA_AACGCTTA_AAACGATA-0 | B22: 0.96279097 | C22: -3.6403167 | D22: Untreated | E22: Untreated
A23: TCCGTCTA_AACGCTTA_AAACGATA-0 | B23: -1.1951066 | C23: -1.8861139 | D23: Untreated | E23: Untreated
A24: ACCTCCAA_AACGTGAT_AAACGATA-0 | B24: -0.7173225 | C24: 0.78652966 | D24: Untreated | E24: Untreated
A25: ACGCTCGA_AACGTGAT_AAACGATA-0 | B25: 0.16318749 | C25: -3.529393 | D25: Untreated | E25: Untreated
A26: CACCTTAC_AACGTGAT_AAACGATA-0 | B26: -1.6961367 | C26: -2.480365 | D26: Untreated | E26: Untreated
A27: CCATCCTC_AACGTGAT_AAACGATA-0 | B27: -1.0528117 | C27: -2.3248718 | D27: Untreated | E27: Untreated
A28: CCTAATCC_AACGTGAT_AAACGATA-0 | B28: 0.33338767 | C28: -3.999584 | D28: Untreated | E28: Untreated
A29: CGACACAC_AACGTGAT_AAACGATA-0 | B29: -5.4262233 | C29: -0.86996716 | D29: Untreated | E29: Untreated
A30: GAACAGGC_AACGTGAT_AAACGATA-0 | B30: -0.5729727 | C30: -4.9013257 | D30: Untreated | E30: Untreated
A31: GAATCTGA_AACGTGAT_AAACGATA-0 | B31: -1.9507664 | C31: -1.0331773 | D31: Untreated | E31: Untreated
A32: GACAGTGC_AACGTGAT_AAACGATA-0 | B32: -5.7514696 | C32: 3.3988993 | D32: Untreated | E32: Untreated
A33: GATGAATC_AACGTGAT_AAACGATA-0 | B33: -4.9787955 | C33: -0.26803207 | D33: Untreated | E33: Untreated
A34: GTCTGTCA_AACGTGAT_AAACGATA-0 | B34: -0.73701733 | C34: -3.1387286 | D34: Untreated | E34: Untreated
A35: TTCACGCA_AACGTGAT_AAACGATA-0 | B35: 0.28802255 | C35: -2.77189 | D35: Untreated | E35: Untreated
A36: ATCATTCC_AACTCACC_AAACGATA-0 | B36: -3.4548073 | C36: -0.41149092 | D36: Untreated | E36: Untreated
A37: CCGAAGTA_AACTCACC_AAACGATA-0 | B37: -0.614716 | C37: -3.1900198 | D37: Untreated | E37: Untreated
A38: GCCACATA_AACTCACC_AAACGATA-0 | B38: -0.69450796 | C38: -2.9029977 | D38: Untreated | E38: Untreated
A39: ACAGATTC_AAGACGGA_AAACGATA-0 | B39: 1.4726026 | C39: -2.7239478 | D39: Untreated | E39: Untreated
A40: CCTCTATC_AAGACGGA_AAACGATA-0 | B40: 0.24696037 | C40: -3.9048643 | D40: Untreated | E40: Untreated
A41: CGGATTGC_AAGACGGA_AAACGATA-0 | B41: 1.867935 | C41: -1.3929979 | D41: Untreated | E41: Untreated
A42: CCTCTATC_AAGAGATC_AAACGATA-0 | B42: -5.442623 | C42: 0.6999988 | D42: Untreated | E42: Untreated
A43: GATGAATC_AAGAGATC_AAACGATA-0 | B43: -5.1829743 | C43: 6.6449575 | D43: Untreated | E43: Untreated
A44: AGCCATGC_AAGGACAC_AAACGATA-0 | B44: -5.950849 | C44: -2.1152887 | D44: Untreated | E44: Untreated
A45: GCGAGTAA_AAGGACAC_AAACGATA-0 | B45: 1.8675463 | C45: -2.7641451 | D45: Untreated | E45: Untreated
A46: TATCAGCA_AAGGACAC_AAACGATA-0 | B46: -0.14950821 | C46: -4.7423716 | D46: Untreated | E46: Untreated
A47: CCATCCTC_AAGGTACA_AAACGATA-0 | B47: -1.1945312 | C47: -1.7726878 | D47: Untreated | E47: Untreated
A48: TAGGATGA_AAGGTACA_AAACGATA-0 | B48: -1.7983063 | C48: -5.198488 | D48: Untreated | E48: Untreated
A49: TTCACGCA_AAGGTACA_AAACGATA-0 | B49: -4.1017175 | C49: -5.5451484 | D49: Untreated | E49: Untreated
A50: AACCGAGA_AATCCGTC_AAACGATA-0 | B50: -2.6768968 | C50: -4.4119606 | D50: Untreated | E50: Untreated
A51: AACTCACC_AATCCGTC_AAACGATA-0 | B51: 1.121294 | C51: -2.968536 | D51: Untreated | E51: Untreated
A52: AGTCACTA_AATCCGTC_AAACGATA-0 | B52: -2.1564686 | C52: -4.807034 | D52: Untreated | E52: Untreated
A53: AGTGGTCA_AATCCGTC_AAACGATA-0 | B53: 1.5094901 | C53: -2.2441716 | D53: Untreated | E53: Untreated
A54: ATAGCGAC_AATCCGTC_AAACGATA-0 | B54: -5.058501 | C54: 2.1917403 | D54: Untreated | E54: Untreated
A55: ATCCTGTA_AATCCGTC_AAACGATA-0 | B55: -4.6055903 | C55: -1.2985961 | D55: Untreated | E55: Untreated
A56: CCAGTTCA_AATCCGTC_AAACGATA-0 | B56: -4.707164 | C56: -3.531501 | D56: Untreated | E56: Untreated
A57: CCTAATCC_AATCCGTC_AAACGATA-0 | B57: -2.5071306 | C57: 1.1136371 | D57: Untreated | E57: Untreated
A58: GATGAATC_AATCCGTC_AAACGATA-0 | B58: 0.6692863 | C58: -2.3820825 | D58: Untreated | E58: Untreated
A59: GCGAGTAA_AATCCGTC_AAACGATA-0 | B59: -5.13989 | C59: 4.2864847 | D59: Untreated | E59: Untreated
A60: GTACGCAA_AATCCGTC_AAACGATA-0 | B60: -1.0472196 | C60: 0.48393875 | D60: Untreated | E60: Untreated
A61: TATCAGCA_AATCCGTC_AAACGATA-0 | B61: -1.9138104 | C61: 4.152759 | D61: Untreated | E61: Untreated
A62: AGTACAAG_ACAAGCTA_AAACGATA-0 | B62: -1.0208913 | C62: -1.145129 | D62: Untreated | E62: Untreated
A63: ATCATTCC_ACAAGCTA_AAACGATA-0 | B63: 0.017917428 | C63: 0.71163404 | D63: Untreated | E63: Untreated
A64: CGGATTGC_ACAAGCTA_AAACGATA-0 | B64: -4.9429317 | C64: -6.4183164 | D64: Untreated | E64: Untreated
A65: AGCCATGC_ACACAGAA_AAACGATA-0 | B65: -2.9638443 | C65: -0.50310725 | D65: Untreated | E65: Untreated
A66: ATCATTCC_ACACAGAA_AAACGATA-0 | B66: -5.264192 | C66: -1.4938264 | D66: Untreated | E66: Untreated
A67: ATTGGCTC_ACACAGAA_AAACGATA-0 | B67: -3.0748363 | C67: 1.0910305 | D67: Untreated | E67: Untreated
A68: GAGCTGAA_ACACAGAA_AAACGATA-0 | B68: -5.4684334 | C68: 0.009185113 | D68: Untreated | E68: Untreated
A69: GATGAATC_ACACAGAA_AAACGATA-0 | B69: -0.4751323 | C69: -3.2225797 | D69: Untreated | E69: Untreated
A70: GGTGCGAA_ACACAGAA_AAACGATA-0 | B70: -4.0496783 | C70: -2.0422173 | D70: Untreated | E70: Untreated
A71: AAGAGATC_ACACGACC_AAACGATA-0 | B71: -0.58586824 | C71: 3.9465358 | D71: Untreated | E71: Untreated
A72: ACAGATTC_ACACGACC_AAACGATA-0 | B72: -0.8416443 | C72: -1.1558435 | D72: Untreated | E72: Untreated
A73: ACGTATCA_ACACGACC_AAACGATA-0 | B73: 1.9423795 | C73: -2.6067195 | D73: Untreated | E73: Untreated
A74: AGATCGCA_ACACGACC_AAACGATA-0 | B74: -3.8649085 | C74: 1.3670332 | D74: Untreated | E74: Untreated
A75: ATAGCGAC_ACACGACC_AAACGATA-0 | B75: -3.9571989 | C75: -1.2218184 | D75: Untreated | E75: Untreated
A76: ATCATTCC_ACACGACC_AAACGATA-0 | B76: -1.266277 | C76: -3.1033735 | D76: Untreated | E76: Untreated
A77: CAAGACTA_ACACGACC_AAACGATA-0 | B77: -2.2832415 | C77: -0.86795527 | D77: Untreated | E77: Untreated
A78: TATCAGCA_ACACGACC_AAACGATA-0 | B78: -3.4265864 | C78: -1.0648923 | D78: Untreated | E78: Untreated
A79: ACAGATTC_ACAGATTC_AAACGATA-0 | B79: -6.6022353 | C79: -5.610535 | D79: Untreated | E79: Untreated
A80: AGGCTAAC_ACAGATTC_AAACGATA-0 | B80: -0.9847438 | C80: -2.4211779 | D80: Untreated | E80: Untreated
A81: AGTACAAG_ACAGATTC_AAACGATA-0 | B81: -1.4278209 | C81: -2.451128 | D81: Untreated | E81: Untreated
A82: ATAGCGAC_ACAGATTC_AAACGATA-0 | B82: -4.7147665 | C82: 4.9195256 | D82: Untreated | E82: Untreated
A83: GTGTTCTA_ACAGATTC_AAACGATA-0 | B83: 0.10474771 | C83: -2.1402254 | D83: Untreated | E83: Untreated
A84: AACCGAGA_ACAGCAGA_AAACGATA-0 | B84: -0.5816085 | C84: 2.221933 | D84: Untreated | E84: Untreated
A85: CAGCGTTA_ACAGCAGA_AAACGATA-0 | B85: -4.3343368 | C85: -5.6235476 | D85: Untreated | E85: Untreated
A86: CCGAAGTA_ACAGCAGA_AAACGATA-0 | B86: 0.11053261 | C86: -1.04826 | D86: Untreated | E86: Untreated
A87: CGACACAC_ACAGCAGA_AAACGATA-0 | B87: -0.64078844 | C87: -1.4076163 | D87: Untreated | E87: Untreated
A88: CGGATTGC_ACAGCAGA_AAACGATA-0 | B88: -0.66373146 | C88: -4.530509 | D88: Untreated | E88: Untreated
A89: TAGGATGA_ACAGCAGA_AAACGATA-0 | B89: -4.786991 | C89: 2.8528237 | D89: Untreated | E89: Untreated
A90: AATGTTGC_ACATTGGC_AAACGATA-0 | B90: -1.1008397 | C90: -4.1840467 | D90: Untreated | E90: Untreated
A91: ACAGATTC_ACATTGGC_AAACGATA-0 | B91: -8.755561 | C91: -3.8059042 | D91: Untreated | E91: Untreated
A92: AGCACCTC_ACATTGGC_AAACGATA-0 | B92: -0.48653826 | C92: -2.435245 | D92: Untreated | E92: Untreated
A93: TGAAGAGA_ACATTGGC_AAACGATA-0 | B93: -6.4847918 | C93: -4.7590685 | D93: Untreated | E93: Untreated
A94: ATTGGCTC_ACCACTGT_AAACGATA-0 | B94: -3.691191 | C94: 2.1816113 | D94: Untreated | E94: Untreated
A95: CAACCACA_ACCACTGT_AAACGATA-0 | B95: 0.5143925 | C95: 0.6189981 | D95: Untreated | E95: Untreated
A96: CCATCCTC_ACCACTGT_AAACGATA-0 | B96: -1.3899939 | C96: -0.08823513 | D96: Untreated | E96: Untreated
A97: ACACGACC_ACCTCCAA_AAACGATA-0 | B97: -3.4507842 | C97: 0.22881731 | D97: Untreated | E97: Untreated
A98: ATAGCGAC_ACCTCCAA_AAACGATA-0 | B98: -4.2098856 | C98: 2.8463848 | D98: Untreated | E98: Untreated
A99: CTAAGGTC_ACCTCCAA_AAACGATA-0 | B99: -0.20663649 | C99: -2.3631265 | D99: Untreated | E99: Untreated
A100: TATCAGCA_ACCTCCAA_AAACGATA-0 | B100: -3.6134152 | C100: -1.3556154 | D100: Untreated | E100: Untreated
A101: CTCAATGA_ACGCTCGA_AAACGATA-0 | B101: 0.042169716 | C101: -2.5802245 | D101: Untreated | E101: Untreated
A102: GACAGTGC_ACGCTCGA_AAACGATA-0 | B102: -1.6732078 | C102: -1.2800156 | D102: Untreated | E102: Untreated
A103: CCGACAAC_ACTATGCA_AAACGATA-0 | B103: 1.8404083 | C103: -0.98629963 | D103: Untreated | E103: Untreated
A104: GAACAGGC_AGAGTCAA_AAACGATA-0 | B104: -3.3476028 | C104: 2.1145318 | D104: Untreated | E104: Untreated
A105: TAGGATGA_AGAGTCAA_AAACGATA-0 | B105: -4.1431737 | C105: -6.503091 | D105: Untreated | E105: Untreated
A106: AGTACAAG_AGATCGCA_AAACGATA-0 | B106: 0.08656793 | C106: -1.4916401 | D106: Untreated | E106: Untreated
A107: ATTGGCTC_AGATCGCA_AAACGATA-0 | B107: -5.94527 | C107: -6.3316774 | D107: Untreated | E107: Untreated
A108: CGGATTGC_AGATCGCA_AAACGATA-0 | B108: -0.27862722 | C108: -2.4331715 | D108: Untreated | E108: Untreated
A109: CACCTTAC_AGCACCTC_AAACGATA-0 | B109: 2.0377522 | C109: -1.7024922 | D109: Untreated | E109: Untreated
A110: CCATCCTC_AGCACCTC_AAACGATA-0 | B110: -0.907461 | C110: -3.9319046 | D110: Untreated | E110: Untreated
A111: CGACTGGA_AGCACCTC_AAACGATA-0 | B111: -3.24239 | C111: 2.3543894 | D111: Untreated | E111: Untreated
A112: GTCTGTCA_AGCACCTC_AAACGATA-0 | B112: -4.504239 | C112: 3.368127 | D112: Untreated | E112: Untreated
A113: AGATGTAC_AGCAGGAA_AAACGATA-0 | B113: -5.6822853 | C113: -0.9077331 | D113: Untreated | E113: Untreated
A114: GAACAGGC_AGCAGGAA_AAACGATA-0 | B114: -7.5603147 | C114: -4.000551 | D114: Untreated | E114: Untreated
A115: TAGGATGA_AGCAGGAA_AAACGATA-0 | B115: 1.4264882 | C115: -1.589954 | D115: Untreated | E115: Untreated
A116: AATCCGTC_AGGCTAAC_AAACGATA-0 | B116: -0.424598 | C116: -0.020593323 | D116: Untreated | E116: Untreated
A117: CCATCCTC_AGGCTAAC_AAACGATA-0 | B117: -6.1271825 | C117: -0.32755575 | D117: Untreated | E117: Untreated
A118: CCTAATCC_AGGCTAAC_AAACGATA-0 | B118: -3.786669 | C118: -6.3735886 | D118: Untreated | E118: Untreated
A119: GGTGCGAA_AGGCTAAC_AAACGATA-0 | B119: -0.35366246 | C119: -0.3645884 | D119: Untreated | E119: Untreated
A120: AAGAGATC_AGTACAAG_AAACGATA-0 | B120: -0.614111 | C120: -1.7246412 | D120: Untreated | E120: Untreated
A121: AGATGTAC_AGTACAAG_AAACGATA-0 | B121: -4.0365486 | C121: -4.3503695 | D121: Untreated | E121: Untreated
A122: AGTACAAG_AGTACAAG_AAACGATA-0 | B122: -0.9350169 | C122: -3.622026 | D122: Untreated | E122: Untreated
A123: CAAGGAGC_AGTACAAG_AAACGATA-0 | B123: -1.4534262 | C123: 1.8255864 | D123: Untreated | E123: Untreated
A124: CCGAAGTA_AGTACAAG_AAACGATA-0 | B124: -2.2599978 | C124: -1.9201465 | D124: Untreated | E124: Untreated
A125: CGAACTTA_AGTACAAG_AAACGATA-0 | B125: 0.4944957 | C125: -3.0499618 | D125: Untreated | E125: Untreated
A126: GCTCGGTA_AGTACAAG_AAACGATA-0 | B126: -2.0627553 | C126: -1.9198653 | D126: Untreated | E126: Untreated
A127: AACAACCA_AGTCACTA_AAACGATA-0 | B127: 0.7388628 | C127: -4.09483 | D127: Untreated | E127: Untreated
A128: ACGTATCA_AGTCACTA_AAACGATA-0 | B128: -2.0645497 | C128: -2.7229168 | D128: Untreated | E128: Untreated
A129: AGCCATGC_AGTCACTA_AAACGATA-0 | B129: 0.515897 | C129: -1.0542167 | D129: Untreated | E129: Untreated
A130: CCGAAGTA_AGTCACTA_AAACGATA-0 | B130: -6.482264 | C130: 1.340362 | D130: Untreated | E130: Untreated
A131: CCGTGAGA_AGTCACTA_AAACGATA-0 | B131: 1.0725569 | C131: -1.0067728 | D131: Untreated | E131: Untreated
A132: GAGCTGAA_AGTCACTA_AAACGATA-0 | B132: -4.1196456 | C132: 0.96978766 | D132: Untreated | E132: Untreated
A133: GATAGACA_AGTCACTA_AAACGATA-0 | B133: -3.268522 | C133: -2.9102304 | D133: Untreated | E133: Untreated
A134: TATCAGCA_AGTCACTA_AAACGATA-0 | B134: -2.5125666 | C134: -1.4568332 | D134: Untreated | E134: Untreated
A135: TGAAGAGA_AGTCACTA_AAACGATA-0 | B135: -4.0186725 | C135: -2.6502604 | D135: Untreated | E135: Untreated
A136: AACGCTTA_AGTGGTCA_AAACGATA-0 | B136: -2.096266 | C136: -4.928988 | D136: Untreated | E136: Untreated
A137: CAAGGAGC_AGTGGTCA_AAACGATA-0 | B137: 0.7370167 | C137: -3.3301075 | D137: Untreated | E137: Untreated
A138: GATGAATC_AGTGGTCA_AAACGATA-0 | B138: -0.8433792 | C138: 4.2380567 | D138: Untreated | E138: Untreated
A139: TAGGATGA_AGTGGTCA_AAACGATA-0 | B139: -1.3677247 | C139: -3.6433172 | D139: Untreated | E139: Untreated
A140: AGATGTAC_ATAGCGAC_AAACGATA-0 | B140: -3.1872356 | C140: -0.9556069 | D140: Untreated | E140: Untreated
A141: AGGCTAAC_ATAGCGAC_AAACGATA-0 | B141: 0.9622526 | C141: -2.618908 | D141: Untreated | E141: Untreated
A142: GATGAATC_ATCATTCC_AAACGATA-0 | B142: -2.4512734 | C142: 2.1816897 | D142: Untreated | E142: Untreated
A143: GCTAACGA_ATCATTCC_AAACGATA-0 | B143: -2.6050913 | C143: -3.3256426 | D143: Untreated | E143: Untreated
A144: TCTTCACA_ATCATTCC_AAACGATA-0 | B144: -0.1849822 | C144: -5.292758 | D144: Untreated | E144: Untreated
A145: TTCACGCA_ATCATTCC_AAACGATA-0 | B145: -3.6504564 | C145: -3.2351828 | D145: Untreated | E145: Untreated
A146: ATCATTCC_ATCCTGTA_AAACGATA-0 | B146: 0.5094313 | C146: -2.1206129 | D146: Untreated | E146: Untreated
A147: CACCTTAC_ATCCTGTA_AAACGATA-0 | B147: -0.8994489 | C147: -2.4114616 | D147: Untreated | E147: Untreated
A148: CCGTGAGA_ATCCTGTA_AAACGATA-0 | B148: -1.1748192 | C148: -3.5117183 | D148: Untreated | E148: Untreated
A149: CTAAGGTC_ATCCTGTA_AAACGATA-0 | B149: 0.51600087 | C149: -1.6612136 | D149: Untreated | E149: Untreated
A150: GCCAAGAC_ATTGAGGA_AAACGATA-0 | B150: -0.07834061 | C150: -5.2778773 | D150: Untreated | E150: Untreated
A151: GACAGTGC_CAAGACTA_AAACGATA-0 | B151: -0.15216094 | C151: -3.9721787 | D151: Untreated | E151: Untreated
A152: TGAAGAGA_CAAGACTA_AAACGATA-0 | B152: -1.1475662 | C152: -1.4381196 | D152: Untreated | E152: Untreated
A153: AACTCACC_CACCTTAC_AAACGATA-0 | B153: 0.7959124 | C153: -3.9709861 | D153: Untreated | E153: Untreated
A154: AATGTTGC_CACCTTAC_AAACGATA-0 | B154: -7.280601 | C154: -1.6347178 | D154: Untreated | E154: Untreated
A155: ACACGACC_CACCTTAC_AAACGATA-0 | B155: 1.2259065 | C155: -1.7775899 | D155: Untreated | E155: Untreated
A156: CTAAGGTC_CACCTTAC_AAACGATA-0 | B156: -3.1551416 | C156: -0.58283925 | D156: Untreated | E156: Untreated
A157: GAGCTGAA_CACCTTAC_AAACGATA-0 | B157: -3.236234 | C157: -3.6235135 | D157: Untreated | E157: Untreated
A158: TGAAGAGA_CACCTTAC_AAACGATA-0 | B158: -6.4051876 | C158: 2.248052 | D158: Untreated | E158: Untreated
A159: TTCACGCA_CACCTTAC_AAACGATA-0 | B159: -0.33337942 | C159: -0.09289663 | D159: Untreated | E159: Untreated
A160: AACGCTTA_CACTTCGA_AAACGATA-0 | B160: -0.7937365 | C160: -0.2538716 | D160: Untreated | E160: Untreated
A161: AACGTGAT_CACTTCGA_AAACGATA-0 | B161: 0.19282536 | C161: 2.1292439 | D161: Untreated | E161: Untreated
A162: AACTCACC_CACTTCGA_AAACGATA-0 | B162: -2.8715477 | C162: -2.9831698 | D162: Untreated | E162: Untreated
A163: AAGGACAC_CACTTCGA_AAACGATA-0 | B163: 0.2589312 | C163: 2.0439124 | D163: Untreated | E163: Untreated
A164: AATGTTGC_CACTTCGA_AAACGATA-0 | B164: -6.338626 | C164: -3.2110486 | D164: Untreated | E164: Untreated
A165: ACACGACC_CACTTCGA_AAACGATA-0 | B165: 1.8040112 | C165: -1.3432088 | D165: Untreated | E165: Untreated
A166: AGCACCTC_CACTTCGA_AAACGATA-0 | B166: -2.625653 | C166: 2.7144513 | D166: Untreated | E166: Untreated
A167: ATCATTCC_CACTTCGA_AAACGATA-0 | B167: -0.6321279 | C167: 0.49176723 | D167: Untreated | E167: Untreated
A168: CCATCCTC_CACTTCGA_AAACGATA-0 | B168: -2.1620624 | C168: 1.1541561 | D168: Untreated | E168: Untreated
A169: CCGAAGTA_CACTTCGA_AAACGATA-0 | B169: 0.9431613 | C169: -0.86674523 | D169: Untreated | E169: Untreated
A170: GAATCTGA_CACTTCGA_AAACGATA-0 | B170: 0.71289444 | C170: -4.060182 | D170: Untreated | E170: Untreated
A171: GAGTTAGC_CACTTCGA_AAACGATA-0 | B171: -3.5413587 | C171: -0.78020036 | D171: Untreated | E171: Untreated
A172: GCTCGGTA_CACTTCGA_AAACGATA-0 | B172: 1.4045044 | C172: -2.071863 | D172: Untreated | E172: Untreated
A173: TTCACGCA_CACTTCGA_AAACGATA-0 | B173: -1.8199252 | C173: -0.37075517 | D173: Untreated | E173: Untreated
A174: AGCACCTC_CAGATCTG_AAACGATA-0 | B174: 0.5206517 | C174: -2.360112 | D174: Untreated | E174: Untreated
A175: ATTGGCTC_CAGATCTG_AAACGATA-0 | B175: -2.9835145 | C175: -0.8831286 | D175: Untreated | E175: Untreated
A176: CCAGTTCA_CAGATCTG_AAACGATA-0 | B176: -3.1378517 | C176: -3.182216 | D176: Untreated | E176: Untreated
A177: GAACAGGC_CAGATCTG_AAACGATA-0 | B177: -3.7383313 | C177: -0.9899515 | D177: Untreated | E177: Untreated
A178: TATCAGCA_CAGATCTG_AAACGATA-0 | B178: -4.3017807 | C178: 1.1671374 | D178: Untreated | E178: Untreated
A179: CCAGTTCA_CAGCGTTA_AAACGATA-0 | B179: -0.10325757 | C179: -0.21026525 | D179: Untreated | E179: Untreated
A180: CCGAAGTA_CAGCGTTA_AAACGATA-0 | B180: -4.6040926 | C180: -6.491778 | D180: Untreated | E180: Untreated
A181: GAGTTAGC_CAGCGTTA_AAACGATA-0 | B181: 1.4077733 | C181: -1.4896617 | D181: Untreated | E181: Untreated
A182: TGAAGAGA_CAGCGTTA_AAACGATA-0 | B182: 1.3825711 | C182: -4.4975276 | D182: Untreated | E182: Untreated
A183: TGGAACAA_CAGCGTTA_AAACGATA-0 | B183: -2.5832088 | C183: 0.96503204 | D183: Untreated | E183: Untreated
A184: AAGAGATC_CATACCAA_AAACGATA-0 | B184: -1.3528012 | C184: -1.7286785 | D184: Untreated | E184: Untreated
A185: ACAAGCTA_CATACCAA_AAACGATA-0 | B185: -2.883486 | C185: -4.3311796 | D185: Untreated | E185: Untreated
A186: CCAGTTCA_CATACCAA_AAACGATA-0 | B186: 0.5864365 | C186: -4.6302433 | D186: Untreated | E186: Untreated
A187: CGACTGGA_CATACCAA_AAACGATA-0 | B187: 1.4906467 | C187: -2.0863283 | D187: Untreated | E187: Untreated
A188: CGGATTGC_CATACCAA_AAACGATA-0 | B188: 1.4207965 | C188: -1.5190219 | D188: Untreated | E188: Untreated
A189: TGGTGGTA_CATACCAA_AAACGATA-0 | B189: 0.18276587 | C189: -2.180426 | D189: Untreated | E189: Untreated
A190: ACACGACC_CATCAAGT_AAACGATA-0 | B190: -0.4129176 | C190: -1.4729129 | D190: Untreated | E190: Untreated
A191: AGGCTAAC_CATCAAGT_AAACGATA-0 | B191: 1.8038025 | C191: -3.2331183 | D191: Untreated | E191: Untreated
A192: CCTAATCC_CATCAAGT_AAACGATA-0 | B192: -4.061632 | C192: -2.9847722 | D192: Untreated | E192: Untreated
A193: CGACACAC_CATCAAGT_AAACGATA-0 | B193: 0.0015540844 | C193: -4.7318797 | D193: Untreated | E193: Untreated
A194: TCCGTCTA_CATCAAGT_AAACGATA-0 | B194: 0.018318223 | C194: -1.6055992 | D194: Untreated | E194: Untreated
A195: AATGTTGC_CCAGTTCA_AAACGATA-0 | B195: -4.9673934 | C195: -2.894075 | D195: Untreated | E195: Untreated
A196: ACCACTGT_CCAGTTCA_AAACGATA-0 | B196: -2.6404753 | C196: -4.1048098 | D196: Untreated | E196: Untreated
A197: AGCAGGAA_CCAGTTCA_AAACGATA-0 | B197: -0.92398965 | C197: -3.736553 | D197: Untreated | E197: Untreated
A198: CGGATTGC_CCAGTTCA_AAACGATA-0 | B198: -4.8961287 | C198: -2.3573706 | D198: Untreated | E198: Untreated
A199: GAGCTGAA_CCAGTTCA_AAACGATA-0 | B199: -1.7468611 | C199: -3.9344203 | D199: Untreated | E199: Untreated
A200: AATGTTGC_CCATCCTC_AAACGATA-0 | B200: 0.016410738 | C200: -0.34391284 | D200: Untreated | E200: Untreated
... 4300 more rows

Sheet Figure 1h
A1: Figure 1g
A2: cell_id | B2: UMAP_1 | C2: UMAP_2 | D2: sample | E2: Phage_counts
A3: CTAAGGTC_AAACATCG_AAACGATA-0 | B3: -1.98869 | C3: -2.9728193 | D3: Untreated | E3: 0
A4: GAGTTAGC_AAACATCG_AAACGATA-0 | B4: -3.935015 | C4: -2.2979746 | D4: Untreated | E4: 0
A5: TCTTCACA_AAACATCG_AAACGATA-0 | B5: -1.2294669 | C5: -5.1126914 | D5: Untreated | E5: 0
A6: TTCACGCA_AAACATCG_AAACGATA-0 | B6: -3.9092572 | C6: -1.1390901 | D6: Untreated | E6: 0
A7: AGATGTAC_AACAACCA_AAACGATA-0 | B7: -2.0473483 | C7: -4.0241776 | D7: Untreated | E7: 0
A8: CACCTTAC_AACAACCA_AAACGATA-0 | B8: -2.0890584 | C8: -2.4259696 | D8: Untreated | E8: 0
A9: CCGACAAC_AACAACCA_AAACGATA-0 | B9: -6.2732925 | C9: -2.407235 | D9: Untreated | E9: 0
A10: CTGGCATA_AACAACCA_AAACGATA-0 | B10: 1.1653473 | C10: -2.160001 | D10: Untreated | E10: 1
A11: GCCACATA_AACAACCA_AAACGATA-0 | B11: -3.251262 | C11: 0.808952 | D11: Untreated | E11: 0
A12: AATGTTGC_AACCGAGA_AAACGATA-0 | B12: -3.7247717 | C12: -4.874963 | D12: Untreated | E12: 0
A13: ACAGATTC_AACCGAGA_AAACGATA-0 | B13: -2.9917722 | C13: -3.5064092 | D13: Untreated | E13: 0
A14: ATAGCGAC_AACCGAGA_AAACGATA-0 | B14: -4.5873275 | C14: -0.52227753 | D14: Untreated | E14: 1
A15: ATTGGCTC_AACCGAGA_AAACGATA-0 | B15: -3.534617 | C15: 0.95173705 | D15: Untreated | E15: 0
A16: CCGACAAC_AACCGAGA_AAACGATA-0 | B16: -2.157119 | C16: -0.8614603 | D16: Untreated | E16: 0
A17: CCTCTATC_AACCGAGA_AAACGATA-0 | B17: -5.0950127 | C17: -3.608554 | D17: Untreated | E17: 0
A18: CGAACTTA_AACCGAGA_AAACGATA-0 | B18: 0.30299962 | C18: -1.9852175 | D18: Untreated | E18: 0
A19: GATAGACA_AACCGAGA_AAACGATA-0 | B19: -2.40866 | C19: -1.3741745 | D19: Untreated | E19: 0
A20: AGGCTAAC_AACGCTTA_AAACGATA-0 | B20: -0.6446359 | C20: 3.7173884 | D20: Untreated | E20: 0
A21: CACCTTAC_AACGCTTA_AAACGATA-0 | B21: -6.088621 | C21: -4.7376647 | D21: Untreated | E21: 1
A22: CCGTGAGA_AACGCTTA_AAACGATA-0 | B22: 0.96279097 | C22: -3.6403167 | D22: Untreated | E22: 0
A23: TCCGTCTA_AACGCTTA_AAACGATA-0 | B23: -1.1951066 | C23: -1.8861139 | D23: Untreated | E23: 0
A24: ACCTCCAA_AACGTGAT_AAACGATA-0 | B24: -0.7173225 | C24: 0.78652966 | D24: Untreated | E24: 0
A25: ACGCTCGA_AACGTGAT_AAACGATA-0 | B25: 0.16318749 | C25: -3.529393 | D25: Untreated | E25: 0
A26: CACCTTAC_AACGTGAT_AAACGATA-0 | B26: -1.6961367 | C26: -2.480365 | D26: Untreated | E26: 0
A27: CCATCCTC_AACGTGAT_AAACGATA-0 | B27: -1.0528117 | C27: -2.3248718 | D27: Untreated | E27: 1
A28: CCTAATCC_AACGTGAT_AAACGATA-0 | B28: 0.33338767 | C28: -3.999584 | D28: Untreated | E28: 0
A29: CGACACAC_AACGTGAT_AAACGATA-0 | B29: -5.4262233 | C29: -0.86996716 | D29: Untreated | E29: 0
A30: GAACAGGC_AACGTGAT_AAACGATA-0 | B30: -0.5729727 | C30: -4.9013257 | D30: Untreated | E30: 0
A31: GAATCTGA_AACGTGAT_AAACGATA-0 | B31: -1.9507664 | C31: -1.0331773 | D31: Untreated | E31: 0
A32: GACAGTGC_AACGTGAT_AAACGATA-0 | B32: -5.7514696 | C32: 3.3988993 | D32: Untreated | E32: 0
A33: GATGAATC_AACGTGAT_AAACGATA-0 | B33: -4.9787955 | C33: -0.26803207 | D33: Untreated | E33: 0
A34: GTCTGTCA_AACGTGAT_AAACGATA-0 | B34: -0.73701733 | C34: -3.1387286 | D34: Untreated | E34: 1
A35: TTCACGCA_AACGTGAT_AAACGATA-0 | B35: 0.28802255 | C35: -2.77189 | D35: Untreated | E35: 0
A36: ATCATTCC_AACTCACC_AAACGATA-0 | B36: -3.4548073 | C36: -0.41149092 | D36: Untreated | E36: 0
A37: CCGAAGTA_AACTCACC_AAACGATA-0 | B37: -0.614716 | C37: -3.1900198 | D37: Untreated | E37: 1
A38: GCCACATA_AACTCACC_AAACGATA-0 | B38: -0.69450796 | C38: -2.9029977 | D38: Untreated | E38: 0
A39: ACAGATTC_AAGACGGA_AAACGATA-0 | B39: 1.4726026 | C39: -2.7239478 | D39: Untreated | E39: 0
A40: CCTCTATC_AAGACGGA_AAACGATA-0 | B40: 0.24696037 | C40: -3.9048643 | D40: Untreated | E40: 0
A41: CGGATTGC_AAGACGGA_AAACGATA-0 | B41: 1.867935 | C41: -1.3929979 | D41: Untreated | E41: 0
A42: CCTCTATC_AAGAGATC_AAACGATA-0 | B42: -5.442623 | C42: 0.6999988 | D42: Untreated | E42: 0
A43: GATGAATC_AAGAGATC_AAACGATA-0 | B43: -5.1829743 | C43: 6.6449575 | D43: Untreated | E43: 0
A44: AGCCATGC_AAGGACAC_AAACGATA-0 | B44: -5.950849 | C44: -2.1152887 | D44: Untreated | E44: 0
A45: GCGAGTAA_AAGGACAC_AAACGATA-0 | B45: 1.8675463 | C45: -2.7641451 | D45: Untreated | E45: 0
A46: TATCAGCA_AAGGACAC_AAACGATA-0 | B46: -0.14950821 | C46: -4.7423716 | D46: Untreated | E46: 0
A47: CCATCCTC_AAGGTACA_AAACGATA-0 | B47: -1.1945312 | C47: -1.7726878 | D47: Untreated | E47: 0
A48: TAGGATGA_AAGGTACA_AAACGATA-0 | B48: -1.7983063 | C48: -5.198488 | D48: Untreated | E48: 0
A49: TTCACGCA_AAGGTACA_AAACGATA-0 | B49: -4.1017175 | C49: -5.5451484 | D49: Untreated | E49: 0
A50: AACCGAGA_AATCCGTC_AAACGATA-0 | B50: -2.6768968 | C50: -4.4119606 | D50: Untreated | E50: 0
A51: AACTCACC_AATCCGTC_AAACGATA-0 | B51: 1.121294 | C51: -2.968536 | D51: Untreated | E51: 0
A52: AGTCACTA_AATCCGTC_AAACGATA-0 | B52: -2.1564686 | C52: -4.807034 | D52: Untreated | E52: 0
A53: AGTGGTCA_AATCCGTC_AAACGATA-0 | B53: 1.5094901 | C53: -2.2441716 | D53: Untreated | E53: 0
A54: ATAGCGAC_AATCCGTC_AAACGATA-0 | B54: -5.058501 | C54: 2.1917403 | D54: Untreated | E54: 1
A55: ATCCTGTA_AATCCGTC_AAACGATA-0 | B55: -4.6055903 | C55: -1.2985961 | D55: Untreated | E55: 0
A56: CCAGTTCA_AATCCGTC_AAACGATA-0 | B56: -4.707164 | C56: -3.531501 | D56: Untreated | E56: 0
A57: CCTAATCC_AATCCGTC_AAACGATA-0 | B57: -2.5071306 | C57: 1.1136371 | D57: Untreated | E57: 0
A58: GATGAATC_AATCCGTC_AAACGATA-0 | B58: 0.6692863 | C58: -2.3820825 | D58: Untreated | E58: 0
A59: GCGAGTAA_AATCCGTC_AAACGATA-0 | B59: -5.13989 | C59: 4.2864847 | D59: Untreated | E59: 0
A60: GTACGCAA_AATCCGTC_AAACGATA-0 | B60: -1.0472196 | C60: 0.48393875 | D60: Untreated | E60: 0
A61: TATCAGCA_AATCCGTC_AAACGATA-0 | B61: -1.9138104 | C61: 4.152759 | D61: Untreated | E61: 0
A62: AGTACAAG_ACAAGCTA_AAACGATA-0 | B62: -1.0208913 | C62: -1.145129 | D62: Untreated | E62: 0
A63: ATCATTCC_ACAAGCTA_AAACGATA-0 | B63: 0.017917428 | C63: 0.71163404 | D63: Untreated | E63: 0
A64: CGGATTGC_ACAAGCTA_AAACGATA-0 | B64: -4.9429317 | C64: -6.4183164 | D64: Untreated | E64: 1
A65: AGCCATGC_ACACAGAA_AAACGATA-0 | B65: -2.9638443 | C65: -0.50310725 | D65: Untreated | E65: 0
A66: ATCATTCC_ACACAGAA_AAACGATA-0 | B66: -5.264192 | C66: -1.4938264 | D66: Untreated | E66: 1
A67: ATTGGCTC_ACACAGAA_AAACGATA-0 | B67: -3.0748363 | C67: 1.0910305 | D67: Untreated | E67: 0
A68: GAGCTGAA_ACACAGAA_AAACGATA-0 | B68: -5.4684334 | C68: 0.009185113 | D68: Untreated | E68: 1
A69: GATGAATC_ACACAGAA_AAACGATA-0 | B69: -0.4751323 | C69: -3.2225797 | D69: Untreated | E69: 0
A70: GGTGCGAA_ACACAGAA_AAACGATA-0 | B70: -4.0496783 | C70: -2.0422173 | D70: Untreated | E70: 0
A71: AAGAGATC_ACACGACC_AAACGATA-0 | B71: -0.58586824 | C71: 3.9465358 | D71: Untreated | E71: 0
A72: ACAGATTC_ACACGACC_AAACGATA-0 | B72: -0.8416443 | C72: -1.1558435 | D72: Untreated | E72: 0
A73: ACGTATCA_ACACGACC_AAACGATA-0 | B73: 1.9423795 | C73: -2.6067195 | D73: Untreated | E73: 0
A74: AGATCGCA_ACACGACC_AAACGATA-0 | B74: -3.8649085 | C74: 1.3670332 | D74: Untreated | E74: 0
A75: ATAGCGAC_ACACGACC_AAACGATA-0 | B75: -3.9571989 | C75: -1.2218184 | D75: Untreated | E75: 0
A76: ATCATTCC_ACACGACC_AAACGATA-0 | B76: -1.266277 | C76: -3.1033735 | D76: Untreated | E76: 0
A77: CAAGACTA_ACACGACC_AAACGATA-0 | B77: -2.2832415 | C77: -0.86795527 | D77: Untreated | E77: 0
A78: TATCAGCA_ACACGACC_AAACGATA-0 | B78: -3.4265864 | C78: -1.0648923 | D78: Untreated | E78: 0
A79: ACAGATTC_ACAGATTC_AAACGATA-0 | B79: -6.6022353 | C79: -5.610535 | D79: Untreated | E79: 0
A80: AGGCTAAC_ACAGATTC_AAACGATA-0 | B80: -0.9847438 | C80: -2.4211779 | D80: Untreated | E80: 0
A81: AGTACAAG_ACAGATTC_AAACGATA-0 | B81: -1.4278209 | C81: -2.451128 | D81: Untreated | E81: 2
A82: ATAGCGAC_ACAGATTC_AAACGATA-0 | B82: -4.7147665 | C82: 4.9195256 | D82: Untreated | E82: 1
A83: GTGTTCTA_ACAGATTC_AAACGATA-0 | B83: 0.10474771 | C83: -2.1402254 | D83: Untreated | E83: 0
A84: AACCGAGA_ACAGCAGA_AAACGATA-0 | B84: -0.5816085 | C84: 2.221933 | D84: Untreated | E84: 0
A85: CAGCGTTA_ACAGCAGA_AAACGATA-0 | B85: -4.3343368 | C85: -5.6235476 | D85: Untreated | E85: 0
A86: CCGAAGTA_ACAGCAGA_AAACGATA-0 | B86: 0.11053261 | C86: -1.04826 | D86: Untreated | E86: 0
A87: CGACACAC_ACAGCAGA_AAACGATA-0 | B87: -0.64078844 | C87: -1.4076163 | D87: Untreated | E87: 0
A88: CGGATTGC_ACAGCAGA_AAACGATA-0 | B88: -0.66373146 | C88: -4.530509 | D88: Untreated | E88: 0
A89: TAGGATGA_ACAGCAGA_AAACGATA-0 | B89: -4.786991 | C89: 2.8528237 | D89: Untreated | E89: 0
A90: AATGTTGC_ACATTGGC_AAACGATA-0 | B90: -1.1008397 | C90: -4.1840467 | D90: Untreated | E90: 0
A91: ACAGATTC_ACATTGGC_AAACGATA-0 | B91: -8.755561 | C91: -3.8059042 | D91: Untreated | E91: 0
A92: AGCACCTC_ACATTGGC_AAACGATA-0 | B92: -0.48653826 | C92: -2.435245 | D92: Untreated | E92: 1
A93: TGAAGAGA_ACATTGGC_AAACGATA-0 | B93: -6.4847918 | C93: -4.7590685 | D93: Untreated | E93: 0
A94: ATTGGCTC_ACCACTGT_AAACGATA-0 | B94: -3.691191 | C94: 2.1816113 | D94: Untreated | E94: 0
A95: CAACCACA_ACCACTGT_AAACGATA-0 | B95: 0.5143925 | C95: 0.6189981 | D95: Untreated | E95: 0
A96: CCATCCTC_ACCACTGT_AAACGATA-0 | B96: -1.3899939 | C96: -0.08823513 | D96: Untreated | E96: 0
A97: ACACGACC_ACCTCCAA_AAACGATA-0 | B97: -3.4507842 | C97: 0.22881731 | D97: Untreated | E97: 0
A98: ATAGCGAC_ACCTCCAA_AAACGATA-0 | B98: -4.2098856 | C98: 2.8463848 | D98: Untreated | E98: 1
A99: CTAAGGTC_ACCTCCAA_AAACGATA-0 | B99: -0.20663649 | C99: -2.3631265 | D99: Untreated | E99: 0
A100: TATCAGCA_ACCTCCAA_AAACGATA-0 | B100: -3.6134152 | C100: -1.3556154 | D100: Untreated | E100: 0
A101: CTCAATGA_ACGCTCGA_AAACGATA-0 | B101: 0.042169716 | C101: -2.5802245 | D101: Untreated | E101: 0
A102: GACAGTGC_ACGCTCGA_AAACGATA-0 | B102: -1.6732078 | C102: -1.2800156 | D102: Untreated | E102: 0
A103: CCGACAAC_ACTATGCA_AAACGATA-0 | B103: 1.8404083 | C103: -0.98629963 | D103: Untreated | E103: 0
A104: GAACAGGC_AGAGTCAA_AAACGATA-0 | B104: -3.3476028 | C104: 2.1145318 | D104: Untreated | E104: 0
A105: TAGGATGA_AGAGTCAA_AAACGATA-0 | B105: -4.1431737 | C105: -6.503091 | D105: Untreated | E105: 0
A106: AGTACAAG_AGATCGCA_AAACGATA-0 | B106: 0.08656793 | C106: -1.4916401 | D106: Untreated | E106: 0
A107: ATTGGCTC_AGATCGCA_AAACGATA-0 | B107: -5.94527 | C107: -6.3316774 | D107: Untreated | E107: 0
A108: CGGATTGC_AGATCGCA_AAACGATA-0 | B108: -0.27862722 | C108: -2.4331715 | D108: Untreated | E108: 0
A109: CACCTTAC_AGCACCTC_AAACGATA-0 | B109: 2.0377522 | C109: -1.7024922 | D109: Untreated | E109: 0
A110: CCATCCTC_AGCACCTC_AAACGATA-0 | B110: -0.907461 | C110: -3.9319046 | D110: Untreated | E110: 0
A111: CGACTGGA_AGCACCTC_AAACGATA-0 | B111: -3.24239 | C111: 2.3543894 | D111: Untreated | E111: 0
A112: GTCTGTCA_AGCACCTC_AAACGATA-0 | B112: -4.504239 | C112: 3.368127 | D112: Untreated | E112: 0
A113: AGATGTAC_AGCAGGAA_AAACGATA-0 | B113: -5.6822853 | C113: -0.9077331 | D113: Untreated | E113: 0
A114: GAACAGGC_AGCAGGAA_AAACGATA-0 | B114: -7.5603147 | C114: -4.000551 | D114: Untreated | E114: 0
A115: TAGGATGA_AGCAGGAA_AAACGATA-0 | B115: 1.4264882 | C115: -1.589954 | D115: Untreated | E115: 0
A116: AATCCGTC_AGGCTAAC_AAACGATA-0 | B116: -0.424598 | C116: -0.020593323 | D116: Untreated | E116: 0
A117: CCATCCTC_AGGCTAAC_AAACGATA-0 | B117: -6.1271825 | C117: -0.32755575 | D117: Untreated | E117: 0
A118: CCTAATCC_AGGCTAAC_AAACGATA-0 | B118: -3.786669 | C118: -6.3735886 | D118: Untreated | E118: 0
A119: GGTGCGAA_AGGCTAAC_AAACGATA-0 | B119: -0.35366246 | C119: -0.3645884 | D119: Untreated | E119: 0
A120: AAGAGATC_AGTACAAG_AAACGATA-0 | B120: -0.614111 | C120: -1.7246412 | D120: Untreated | E120: 0
A121: AGATGTAC_AGTACAAG_AAACGATA-0 | B121: -4.0365486 | C121: -4.3503695 | D121: Untreated | E121: 0
A122: AGTACAAG_AGTACAAG_AAACGATA-0 | B122: -0.9350169 | C122: -3.622026 | D122: Untreated | E122: 0
A123: CAAGGAGC_AGTACAAG_AAACGATA-0 | B123: -1.4534262 | C123: 1.8255864 | D123: Untreated | E123: 0
A124: CCGAAGTA_AGTACAAG_AAACGATA-0 | B124: -2.2599978 | C124: -1.9201465 | D124: Untreated | E124: 1
A125: CGAACTTA_AGTACAAG_AAACGATA-0 | B125: 0.4944957 | C125: -3.0499618 | D125: Untreated | E125: 0
A126: GCTCGGTA_AGTACAAG_AAACGATA-0 | B126: -2.0627553 | C126: -1.9198653 | D126: Untreated | E126: 0
A127: AACAACCA_AGTCACTA_AAACGATA-0 | B127: 0.7388628 | C127: -4.09483 | D127: Untreated | E127: 1
A128: ACGTATCA_AGTCACTA_AAACGATA-0 | B128: -2.0645497 | C128: -2.7229168 | D128: Untreated | E128: 0
A129: AGCCATGC_AGTCACTA_AAACGATA-0 | B129: 0.515897 | C129: -1.0542167 | D129: Untreated | E129: 0
A130: CCGAAGTA_AGTCACTA_AAACGATA-0 | B130: -6.482264 | C130: 1.340362 | D130: Untreated | E130: 0
A131: CCGTGAGA_AGTCACTA_AAACGATA-0 | B131: 1.0725569 | C131: -1.0067728 | D131: Untreated | E131: 0
A132: GAGCTGAA_AGTCACTA_AAACGATA-0 | B132: -4.1196456 | C132: 0.96978766 | D132: Untreated | E132: 0
A133: GATAGACA_AGTCACTA_AAACGATA-0 | B133: -3.268522 | C133: -2.9102304 | D133: Untreated | E133: 0
A134: TATCAGCA_AGTCACTA_AAACGATA-0 | B134: -2.5125666 | C134: -1.4568332 | D134: Untreated | E134: 0
A135: TGAAGAGA_AGTCACTA_AAACGATA-0 | B135: -4.0186725 | C135: -2.6502604 | D135: Untreated | E135: 1
A136: AACGCTTA_AGTGGTCA_AAACGATA-0 | B136: -2.096266 | C136: -4.928988 | D136: Untreated | E136: 0
A137: CAAGGAGC_AGTGGTCA_AAACGATA-0 | B137: 0.7370167 | C137: -3.3301075 | D137: Untreated | E137: 0
A138: GATGAATC_AGTGGTCA_AAACGATA-0 | B138: -0.8433792 | C138: 4.2380567 | D138: Untreated | E138: 0
A139: TAGGATGA_AGTGGTCA_AAACGATA-0 | B139: -1.3677247 | C139: -3.6433172 | D139: Untreated | E139: 0
A140: AGATGTAC_ATAGCGAC_AAACGATA-0 | B140: -3.1872356 | C140: -0.9556069 | D140: Untreated | E140: 0
A141: AGGCTAAC_ATAGCGAC_AAACGATA-0 | B141: 0.9622526 | C141: -2.618908 | D141: Untreated | E141: 0
A142: GATGAATC_ATCATTCC_AAACGATA-0 | B142: -2.4512734 | C142: 2.1816897 | D142: Untreated | E142: 0
A143: GCTAACGA_ATCATTCC_AAACGATA-0 | B143: -2.6050913 | C143: -3.3256426 | D143: Untreated | E143: 0
A144: TCTTCACA_ATCATTCC_AAACGATA-0 | B144: -0.1849822 | C144: -5.292758 | D144: Untreated | E144: 1
A145: TTCACGCA_ATCATTCC_AAACGATA-0 | B145: -3.6504564 | C145: -3.2351828 | D145: Untreated | E145: 0
A146: ATCATTCC_ATCCTGTA_AAACGATA-0 | B146: 0.5094313 | C146: -2.1206129 | D146: Untreated | E146: 0
A147: CACCTTAC_ATCCTGTA_AAACGATA-0 | B147: -0.8994489 | C147: -2.4114616 | D147: Untreated | E147: 0
A148: CCGTGAGA_ATCCTGTA_AAACGATA-0 | B148: -1.1748192 | C148: -3.5117183 | D148: Untreated | E148: 0
A149: CTAAGGTC_ATCCTGTA_AAACGATA-0 | B149: 0.51600087 | C149: -1.6612136 | D149: Untreated | E149: 0
A150: GCCAAGAC_ATTGAGGA_AAACGATA-0 | B150: -0.07834061 | C150: -5.2778773 | D150: Untreated | E150: 0
A151: GACAGTGC_CAAGACTA_AAACGATA-0 | B151: -0.15216094 | C151: -3.9721787 | D151: Untreated | E151: 0
A152: TGAAGAGA_CAAGACTA_AAACGATA-0 | B152: -1.1475662 | C152: -1.4381196 | D152: Untreated | E152: 0
A153: AACTCACC_CACCTTAC_AAACGATA-0 | B153: 0.7959124 | C153: -3.9709861 | D153: Untreated | E153: 0
A154: AATGTTGC_CACCTTAC_AAACGATA-0 | B154: -7.280601 | C154: -1.6347178 | D154: Untreated | E154: 0
A155: ACACGACC_CACCTTAC_AAACGATA-0 | B155: 1.2259065 | C155: -1.7775899 | D155: Untreated | E155: 1
A156: CTAAGGTC_CACCTTAC_AAACGATA-0 | B156: -3.1551416 | C156: -0.58283925 | D156: Untreated | E156: 0
A157: GAGCTGAA_CACCTTAC_AAACGATA-0 | B157: -3.236234 | C157: -3.6235135 | D157: Untreated | E157: 1
A158: TGAAGAGA_CACCTTAC_AAACGATA-0 | B158: -6.4051876 | C158: 2.248052 | D158: Untreated | E158: 0
A159: TTCACGCA_CACCTTAC_AAACGATA-0 | B159: -0.33337942 | C159: -0.09289663 | D159: Untreated | E159: 0
A160: AACGCTTA_CACTTCGA_AAACGATA-0 | B160: -0.7937365 | C160: -0.2538716 | D160: Untreated | E160: 0
A161: AACGTGAT_CACTTCGA_AAACGATA-0 | B161: 0.19282536 | C161: 2.1292439 | D161: Untreated | E161: 0
A162: AACTCACC_CACTTCGA_AAACGATA-0 | B162: -2.8715477 | C162: -2.9831698 | D162: Untreated | E162: 0
A163: AAGGACAC_CACTTCGA_AAACGATA-0 | B163: 0.2589312 | C163: 2.0439124 | D163: Untreated | E163: 0
A164: AATGTTGC_CACTTCGA_AAACGATA-0 | B164: -6.338626 | C164: -3.2110486 | D164: Untreated | E164: 0
A165: ACACGACC_CACTTCGA_AAACGATA-0 | B165: 1.8040112 | C165: -1.3432088 | D165: Untreated | E165: 0
A166: AGCACCTC_CACTTCGA_AAACGATA-0 | B166: -2.625653 | C166: 2.7144513 | D166: Untreated | E166: 0
A167: ATCATTCC_CACTTCGA_AAACGATA-0 | B167: -0.6321279 | C167: 0.49176723 | D167: Untreated | E167: 0
A168: CCATCCTC_CACTTCGA_AAACGATA-0 | B168: -2.1620624 | C168: 1.1541561 | D168: Untreated | E168: 0
A169: CCGAAGTA_CACTTCGA_AAACGATA-0 | B169: 0.9431613 | C169: -0.86674523 | D169: Untreated | E169: 0
A170: GAATCTGA_CACTTCGA_AAACGATA-0 | B170: 0.71289444 | C170: -4.060182 | D170: Untreated | E170: 1
A171: GAGTTAGC_CACTTCGA_AAACGATA-0 | B171: -3.5413587 | C171: -0.78020036 | D171: Untreated | E171: 0
A172: GCTCGGTA_CACTTCGA_AAACGATA-0 | B172: 1.4045044 | C172: -2.071863 | D172: Untreated | E172: 0
A173: TTCACGCA_CACTTCGA_AAACGATA-0 | B173: -1.8199252 | C173: -0.37075517 | D173: Untreated | E173: 0
A174: AGCACCTC_CAGATCTG_AAACGATA-0 | B174: 0.5206517 | C174: -2.360112 | D174: Untreated | E174: 0
A175: ATTGGCTC_CAGATCTG_AAACGATA-0 | B175: -2.9835145 | C175: -0.8831286 | D175: Untreated | E175: 0
A176: CCAGTTCA_CAGATCTG_AAACGATA-0 | B176: -3.1378517 | C176: -3.182216 | D176: Untreated | E176: 0
A177: GAACAGGC_CAGATCTG_AAACGATA-0 | B177: -3.7383313 | C177: -0.9899515 | D177: Untreated | E177: 0
A178: TATCAGCA_CAGATCTG_AAACGATA-0 | B178: -4.3017807 | C178: 1.1671374 | D178: Untreated | E178: 0
A179: CCAGTTCA_CAGCGTTA_AAACGATA-0 | B179: -0.10325757 | C179: -0.21026525 | D179: Untreated | E179: 0
A180: CCGAAGTA_CAGCGTTA_AAACGATA-0 | B180: -4.6040926 | C180: -6.491778 | D180: Untreated | E180: 0
A181: GAGTTAGC_CAGCGTTA_AAACGATA-0 | B181: 1.4077733 | C181: -1.4896617 | D181: Untreated | E181: 0
A182: TGAAGAGA_CAGCGTTA_AAACGATA-0 | B182: 1.3825711 | C182: -4.4975276 | D182: Untreated | E182: 0
A183: TGGAACAA_CAGCGTTA_AAACGATA-0 | B183: -2.5832088 | C183: 0.96503204 | D183: Untreated | E183: 0
A184: AAGAGATC_CATACCAA_AAACGATA-0 | B184: -1.3528012 | C184: -1.7286785 | D184: Untreated | E184: 0
A185: ACAAGCTA_CATACCAA_AAACGATA-0 | B185: -2.883486 | C185: -4.3311796 | D185: Untreated | E185: 0
A186: CCAGTTCA_CATACCAA_AAACGATA-0 | B186: 0.5864365 | C186: -4.6302433 | D186: Untreated | E186: 0
A187: CGACTGGA_CATACCAA_AAACGATA-0 | B187: 1.4906467 | C187: -2.0863283 | D187: Untreated | E187: 0
A188: CGGATTGC_CATACCAA_AAACGATA-0 | B188: 1.4207965 | C188: -1.5190219 | D188: Untreated | E188: 0
A189: TGGTGGTA_CATACCAA_AAACGATA-0 | B189: 0.18276587 | C189: -2.180426 | D189: Untreated | E189: 0
A190: ACACGACC_CATCAAGT_AAACGATA-0 | B190: -0.4129176 | C190: -1.4729129 | D190: Untreated | E190: 0
A191: AGGCTAAC_CATCAAGT_AAACGATA-0 | B191: 1.8038025 | C191: -3.2331183 | D191: Untreated | E191: 0
A192: CCTAATCC_CATCAAGT_AAACGATA-0 | B192: -4.061632 | C192: -2.9847722 | D192: Untreated | E192: 0
A193: CGACACAC_CATCAAGT_AAACGATA-0 | B193: 0.0015540844 | C193: -4.7318797 | D193: Untreated | E193: 0
A194: TCCGTCTA_CATCAAGT_AAACGATA-0 | B194: 0.018318223 | C194: -1.6055992 | D194: Untreated | E194: 0
A195: AATGTTGC_CCAGTTCA_AAACGATA-0 | B195: -4.9673934 | C195: -2.894075 | D195: Untreated | E195: 0
A196: ACCACTGT_CCAGTTCA_AAACGATA-0 | B196: -2.6404753 | C196: -4.1048098 | D196: Untreated | E196: 0
A197: AGCAGGAA_CCAGTTCA_AAACGATA-0 | B197: -0.92398965 | C197: -3.736553 | D197: Untreated | E197: 0
A198: CGGATTGC_CCAGTTCA_AAACGATA-0 | B198: -4.8961287 | C198: -2.3573706 | D198: Untreated | E198: 0
A199: GAGCTGAA_CCAGTTCA_AAACGATA-0 | B199: -1.7468611 | C199: -3.9344203 | D199: Untreated | E199: 0
A200: AATGTTGC_CCATCCTC_AAACGATA-0 | B200: 0.016410738 | C200: -0.34391284 | D200: Untreated | E200: 0
... 4300 more rows

Sheet Figure 1j
A1: Figure 1j
A2: cell_id | B2: infection_status | C2: BF_counts
A3: CTAAGGTC_AAACATCG_AAACGATA-0 | B3: Untreated | C3: 79
A4: GAGTTAGC_AAACATCG_AAACGATA-0 | B4: Untreated | C4: 113.5
A5: TCTTCACA_AAACATCG_AAACGATA-0 | B5: Untreated | C5: 51
A6: TTCACGCA_AAACATCG_AAACGATA-0 | B6: Untreated | C6: 113
A7: AGATGTAC_AACAACCA_AAACGATA-0 | B7: Untreated | C7: 68
A8: CACCTTAC_AACAACCA_AAACGATA-0 | B8: Untreated | C8: 77
A9: CCGACAAC_AACAACCA_AAACGATA-0 | B9: Untreated | C9: 151.14285
A10: CTGGCATA_AACAACCA_AAACGATA-0 | B10: Untreated | C10: 50
A11: GCCACATA_AACAACCA_AAACGATA-0 | B11: Untreated | C11: 78
A12: AATGTTGC_AACCGAGA_AAACGATA-0 | B12: Untreated | C12: 93
A13: ACAGATTC_AACCGAGA_AAACGATA-0 | B13: Untreated | C13: 84
A14: ATAGCGAC_AACCGAGA_AAACGATA-0 | B14: Untreated | C14: 125
A15: ATTGGCTC_AACCGAGA_AAACGATA-0 | B15: Untreated | C15: 95
A16: CCGACAAC_AACCGAGA_AAACGATA-0 | B16: Untreated | C16: 63.14286
A17: CCTCTATC_AACCGAGA_AAACGATA-0 | B17: Untreated | C17: 127
A18: CGAACTTA_AACCGAGA_AAACGATA-0 | B18: Untreated | C18: 51
A19: GATAGACA_AACCGAGA_AAACGATA-0 | B19: Untreated | C19: 93
A20: AGGCTAAC_AACGCTTA_AAACGATA-0 | B20: Untreated | C20: 45
A21: CACCTTAC_AACGCTTA_AAACGATA-0 | B21: Untreated | C21: 103.14286
A22: CCGTGAGA_AACGCTTA_AAACGATA-0 | B22: Untreated | C22: 57
A23: TCCGTCTA_AACGCTTA_AAACGATA-0 | B23: Untreated | C23: 69
A24: ACCTCCAA_AACGTGAT_AAACGATA-0 | B24: Untreated | C24: 55
A25: ACGCTCGA_AACGTGAT_AAACGATA-0 | B25: Untreated | C25: 40
A26: CACCTTAC_AACGTGAT_AAACGATA-0 | B26: Untreated | C26: 61
A27: CCATCCTC_AACGTGAT_AAACGATA-0 | B27: Untreated | C27: 64
A28: CCTAATCC_AACGTGAT_AAACGATA-0 | B28: Untreated | C28: 51.5
A29: CGACACAC_AACGTGAT_AAACGATA-0 | B29: Untreated | C29: 142
A30: GAACAGGC_AACGTGAT_AAACGATA-0 | B30: Untreated | C30: 51
A31: GAATCTGA_AACGTGAT_AAACGATA-0 | B31: Untreated | C31: 75
A32: GACAGTGC_AACGTGAT_AAACGATA-0 | B32: Untreated | C32: 98
A33: GATGAATC_AACGTGAT_AAACGATA-0 | B33: Untreated | C33: 121
A34: GTCTGTCA_AACGTGAT_AAACGATA-0 | B34: Untreated | C34: 59
A35: TTCACGCA_AACGTGAT_AAACGATA-0 | B35: Untreated | C35: 58.333332
A36: ATCATTCC_AACTCACC_AAACGATA-0 | B36: Untreated | C36: 84
A37: CCGAAGTA_AACTCACC_AAACGATA-0 | B37: Untreated | C37: 53
A38: GCCACATA_AACTCACC_AAACGATA-0 | B38: Untreated | C38: 62.16667
A39: ACAGATTC_AAGACGGA_AAACGATA-0 | B39: Untreated | C39: 40
A40: CCTCTATC_AAGACGGA_AAACGATA-0 | B40: Untreated | C40: 58
A41: CGGATTGC_AAGACGGA_AAACGATA-0 | B41: Untreated | C41: 42
A42: CCTCTATC_AAGAGATC_AAACGATA-0 | B42: Untreated | C42: 126
A43: GATGAATC_AAGAGATC_AAACGATA-0 | B43: Untreated | C43: 123
A44: AGCCATGC_AAGGACAC_AAACGATA-0 | B44: Untreated | C44: 135
A45: GCGAGTAA_AAGGACAC_AAACGATA-0 | B45: Untreated | C45: 40
A46: TATCAGCA_AAGGACAC_AAACGATA-0 | B46: Untreated | C46: 43
A47: CCATCCTC_AAGGTACA_AAACGATA-0 | B47: Untreated | C47: 69
A48: TAGGATGA_AAGGTACA_AAACGATA-0 | B48: Untreated | C48: 52
A49: TTCACGCA_AAGGTACA_AAACGATA-0 | B49: Untreated | C49: 66
A50: AACCGAGA_AATCCGTC_AAACGATA-0 | B50: Untreated | C50: 73
A51: AACTCACC_AATCCGTC_AAACGATA-0 | B51: Untreated | C51: 51
A52: AGTCACTA_AATCCGTC_AAACGATA-0 | B52: Untreated | C52: 67
A53: AGTGGTCA_AATCCGTC_AAACGATA-0 | B53: Untreated | C53: 49
A54: ATAGCGAC_AATCCGTC_AAACGATA-0 | B54: Untreated | C54: 110
A55: ATCCTGTA_AATCCGTC_AAACGATA-0 | B55: Untreated | C55: 116
A56: CCAGTTCA_AATCCGTC_AAACGATA-0 | B56: Untreated | C56: 127
A57: CCTAATCC_AATCCGTC_AAACGATA-0 | B57: Untreated | C57: 79.14286
A58: GATGAATC_AATCCGTC_AAACGATA-0 | B58: Untreated | C58: 42
A59: GCGAGTAA_AATCCGTC_AAACGATA-0 | B59: Untreated | C59: 102.14286
A60: GTACGCAA_AATCCGTC_AAACGATA-0 | B60: Untreated | C60: 66
A61: TATCAGCA_AATCCGTC_AAACGATA-0 | B61: Untreated | C61: 92
A62: AGTACAAG_ACAAGCTA_AAACGATA-0 | B62: Untreated | C62: 60
A63: ATCATTCC_ACAAGCTA_AAACGATA-0 | B63: Untreated | C63: 66
A64: CGGATTGC_ACAAGCTA_AAACGATA-0 | B64: Untreated | C64: 48
A65: AGCCATGC_ACACAGAA_AAACGATA-0 | B65: Untreated | C65: 85
A66: ATCATTCC_ACACAGAA_AAACGATA-0 | B66: Untreated | C66: 136
A67: ATTGGCTC_ACACAGAA_AAACGATA-0 | B67: Untreated | C67: 85
A68: GAGCTGAA_ACACAGAA_AAACGATA-0 | B68: Untreated | C68: 153
A69: GATGAATC_ACACAGAA_AAACGATA-0 | B69: Untreated | C69: 61
A70: GGTGCGAA_ACACAGAA_AAACGATA-0 | B70: Untreated | C70: 97.33333
A71: AAGAGATC_ACACGACC_AAACGATA-0 | B71: Untreated | C71: 50
A72: ACAGATTC_ACACGACC_AAACGATA-0 | B72: Untreated | C72: 65
A73: ACGTATCA_ACACGACC_AAACGATA-0 | B73: Untreated | C73: 44
A74: AGATCGCA_ACACGACC_AAACGATA-0 | B74: Untreated | C74: 111
A75: ATAGCGAC_ACACGACC_AAACGATA-0 | B75: Untreated | C75: 104.4762
A76: ATCATTCC_ACACGACC_AAACGATA-0 | B76: Untreated | C76: 66
A77: CAAGACTA_ACACGACC_AAACGATA-0 | B77: Untreated | C77: 56.142857
A78: TATCAGCA_ACACGACC_AAACGATA-0 | B78: Untreated | C78: 100
A79: ACAGATTC_ACAGATTC_AAACGATA-0 | B79: Untreated | C79: 95
A80: AGGCTAAC_ACAGATTC_AAACGATA-0 | B80: Untreated | C80: 61
A81: AGTACAAG_ACAGATTC_AAACGATA-0 | B81: Untreated | C81: 75.14286
A82: ATAGCGAC_ACAGATTC_AAACGATA-0 | B82: Untreated | C82: 42.14286
A83: GTGTTCTA_ACAGATTC_AAACGATA-0 | B83: Untreated | C83: 54
A84: AACCGAGA_ACAGCAGA_AAACGATA-0 | B84: Untreated | C84: 53
A85: CAGCGTTA_ACAGCAGA_AAACGATA-0 | B85: Untreated | C85: 64
A86: CCGAAGTA_ACAGCAGA_AAACGATA-0 | B86: Untreated | C86: 63
A87: CGACACAC_ACAGCAGA_AAACGATA-0 | B87: Untreated | C87: 60
A88: CGGATTGC_ACAGCAGA_AAACGATA-0 | B88: Untreated | C88: 56
A89: TAGGATGA_ACAGCAGA_AAACGATA-0 | B89: Untreated | C89: 74
A90: AATGTTGC_ACATTGGC_AAACGATA-0 | B90: Untreated | C90: 51
A91: ACAGATTC_ACATTGGC_AAACGATA-0 | B91: Untreated | C91: 295.2857
A92: AGCACCTC_ACATTGGC_AAACGATA-0 | B92: Untreated | C92: 51
A93: TGAAGAGA_ACATTGGC_AAACGATA-0 | B93: Untreated | C93: 124
A94: ATTGGCTC_ACCACTGT_AAACGATA-0 | B94: Untreated | C94: 75
A95: CAACCACA_ACCACTGT_AAACGATA-0 | B95: Untreated | C95: 45
A96: CCATCCTC_ACCACTGT_AAACGATA-0 | B96: Untreated | C96: 63
A97: ACACGACC_ACCTCCAA_AAACGATA-0 | B97: Untreated | C97: 110
A98: ATAGCGAC_ACCTCCAA_AAACGATA-0 | B98: Untreated | C98: 43
A99: CTAAGGTC_ACCTCCAA_AAACGATA-0 | B99: Untreated | C99: 50
A100: TATCAGCA_ACCTCCAA_AAACGATA-0 | B100: Untreated | C100: 103
A101: CTCAATGA_ACGCTCGA_AAACGATA-0 | B101: Untreated | C101: 45
A102: GACAGTGC_ACGCTCGA_AAACGATA-0 | B102: Untreated | C102: 76
A103: CCGACAAC_ACTATGCA_AAACGATA-0 | B103: Untreated | C103: 48
A104: GAACAGGC_AGAGTCAA_AAACGATA-0 | B104: Untreated | C104: 53
A105: TAGGATGA_AGAGTCAA_AAACGATA-0 | B105: Untreated | C105: 42
A106: AGTACAAG_AGATCGCA_AAACGATA-0 | B106: Untreated | C106: 54
A107: ATTGGCTC_AGATCGCA_AAACGATA-0 | B107: Untreated | C107: 53
A108: CGGATTGC_AGATCGCA_AAACGATA-0 | B108: Untreated | C108: 55
A109: CACCTTAC_AGCACCTC_AAACGATA-0 | B109: Untreated | C109: 47
A110: CCATCCTC_AGCACCTC_AAACGATA-0 | B110: Untreated | C110: 63
A111: CGACTGGA_AGCACCTC_AAACGATA-0 | B111: Untreated | C111: 51
A112: GTCTGTCA_AGCACCTC_AAACGATA-0 | B112: Untreated | C112: 54
A113: AGATGTAC_AGCAGGAA_AAACGATA-0 | B113: Untreated | C113: 137
A114: GAACAGGC_AGCAGGAA_AAACGATA-0 | B114: Untreated | C114: 177
A115: TAGGATGA_AGCAGGAA_AAACGATA-0 | B115: Untreated | C115: 49
A116: AATCCGTC_AGGCTAAC_AAACGATA-0 | B116: Untreated | C116: 70
A117: CCATCCTC_AGGCTAAC_AAACGATA-0 | B117: Untreated | C117: 143
A118: CCTAATCC_AGGCTAAC_AAACGATA-0 | B118: Untreated | C118: 49.333332
A119: GGTGCGAA_AGGCTAAC_AAACGATA-0 | B119: Untreated | C119: 59
A120: AAGAGATC_AGTACAAG_AAACGATA-0 | B120: Untreated | C120: 64
A121: AGATGTAC_AGTACAAG_AAACGATA-0 | B121: Untreated | C121: 92.14285
A122: AGTACAAG_AGTACAAG_AAACGATA-0 | B122: Untreated | C122: 66
A123: CAAGGAGC_AGTACAAG_AAACGATA-0 | B123: Untreated | C123: 80
A124: CCGAAGTA_AGTACAAG_AAACGATA-0 | B124: Untreated | C124: 75
A125: CGAACTTA_AGTACAAG_AAACGATA-0 | B125: Untreated | C125: 45
A126: GCTCGGTA_AGTACAAG_AAACGATA-0 | B126: Untreated | C126: 75
A127: AACAACCA_AGTCACTA_AAACGATA-0 | B127: Untreated | C127: 45
A128: ACGTATCA_AGTCACTA_AAACGATA-0 | B128: Untreated | C128: 73.14285
A129: AGCCATGC_AGTCACTA_AAACGATA-0 | B129: Untreated | C129: 45.333332
A130: CCGAAGTA_AGTCACTA_AAACGATA-0 | B130: Untreated | C130: 179.14285
A131: CCGTGAGA_AGTCACTA_AAACGATA-0 | B131: Untreated | C131: 51
A132: GAGCTGAA_AGTCACTA_AAACGATA-0 | B132: Untreated | C132: 79
A133: GATAGACA_AGTCACTA_AAACGATA-0 | B133: Untreated | C133: 101
A134: TATCAGCA_AGTCACTA_AAACGATA-0 | B134: Untreated | C134: 78
A135: TGAAGAGA_AGTCACTA_AAACGATA-0 | B135: Untreated | C135: 99
A136: AACGCTTA_AGTGGTCA_AAACGATA-0 | B136: Untreated | C136: 66
A137: CAAGGAGC_AGTGGTCA_AAACGATA-0 | B137: Untreated | C137: 42
A138: GATGAATC_AGTGGTCA_AAACGATA-0 | B138: Untreated | C138: 55.5
A139: TAGGATGA_AGTGGTCA_AAACGATA-0 | B139: Untreated | C139: 69
A140: AGATGTAC_ATAGCGAC_AAACGATA-0 | B140: Untreated | C140: 85
A141: AGGCTAAC_ATAGCGAC_AAACGATA-0 | B141: Untreated | C141: 51
A142: GATGAATC_ATCATTCC_AAACGATA-0 | B142: Untreated | C142: 102
A143: GCTAACGA_ATCATTCC_AAACGATA-0 | B143: Untreated | C143: 79
A144: TCTTCACA_ATCATTCC_AAACGATA-0 | B144: Untreated | C144: 43
A145: TTCACGCA_ATCATTCC_AAACGATA-0 | B145: Untreated | C145: 92
A146: ATCATTCC_ATCCTGTA_AAACGATA-0 | B146: Untreated | C146: 57
A147: CACCTTAC_ATCCTGTA_AAACGATA-0 | B147: Untreated | C147: 62
A148: CCGTGAGA_ATCCTGTA_AAACGATA-0 | B148: Untreated | C148: 61
A149: CTAAGGTC_ATCCTGTA_AAACGATA-0 | B149: Untreated | C149: 47
A150: GCCAAGAC_ATTGAGGA_AAACGATA-0 | B150: Untreated | C150: 45
A151: GACAGTGC_CAAGACTA_AAACGATA-0 | B151: Untreated | C151: 47
A152: TGAAGAGA_CAAGACTA_AAACGATA-0 | B152: Untreated | C152: 61
A153: AACTCACC_CACCTTAC_AAACGATA-0 | B153: Untreated | C153: 46
A154: AATGTTGC_CACCTTAC_AAACGATA-0 | B154: Untreated | C154: 220
A155: ACACGACC_CACCTTAC_AAACGATA-0 | B155: Untreated | C155: 54
A156: CTAAGGTC_CACCTTAC_AAACGATA-0 | B156: Untreated | C156: 81.14285
A157: GAGCTGAA_CACCTTAC_AAACGATA-0 | B157: Untreated | C157: 84
A158: TGAAGAGA_CACCTTAC_AAACGATA-0 | B158: Untreated | C158: 197.66667
A159: TTCACGCA_CACCTTAC_AAACGATA-0 | B159: Untreated | C159: 60
A160: AACGCTTA_CACTTCGA_AAACGATA-0 | B160: Untreated | C160: 60
A161: AACGTGAT_CACTTCGA_AAACGATA-0 | B161: Untreated | C161: 41
A162: AACTCACC_CACTTCGA_AAACGATA-0 | B162: Untreated | C162: 80
A163: AAGGACAC_CACTTCGA_AAACGATA-0 | B163: Untreated | C163: 48
A164: AATGTTGC_CACTTCGA_AAACGATA-0 | B164: Untreated | C164: 152.14285
A165: ACACGACC_CACTTCGA_AAACGATA-0 | B165: Untreated | C165: 45
A166: AGCACCTC_CACTTCGA_AAACGATA-0 | B166: Untreated | C166: 138
A167: ATCATTCC_CACTTCGA_AAACGATA-0 | B167: Untreated | C167: 54
A168: CCATCCTC_CACTTCGA_AAACGATA-0 | B168: Untreated | C168: 72
A169: CCGAAGTA_CACTTCGA_AAACGATA-0 | B169: Untreated | C169: 44
A170: GAATCTGA_CACTTCGA_AAACGATA-0 | B170: Untreated | C170: 57
A171: GAGTTAGC_CACTTCGA_AAACGATA-0 | B171: Untreated | C171: 105
A172: GCTCGGTA_CACTTCGA_AAACGATA-0 | B172: Untreated | C172: 47
A173: TTCACGCA_CACTTCGA_AAACGATA-0 | B173: Untreated | C173: 79
A174: AGCACCTC_CAGATCTG_AAACGATA-0 | B174: Untreated | C174: 50
A175: ATTGGCTC_CAGATCTG_AAACGATA-0 | B175: Untreated | C175: 87
A176: CCAGTTCA_CAGATCTG_AAACGATA-0 | B176: Untreated | C176: 86
A177: GAACAGGC_CAGATCTG_AAACGATA-0 | B177: Untreated | C177: 101
A178: TATCAGCA_CAGATCTG_AAACGATA-0 | B178: Untreated | C178: 87
A179: CCAGTTCA_CAGCGTTA_AAACGATA-0 | B179: Untreated | C179: 51
A180: CCGAAGTA_CAGCGTTA_AAACGATA-0 | B180: Untreated | C180: 44
A181: GAGTTAGC_CAGCGTTA_AAACGATA-0 | B181: Untreated | C181: 42
A182: TGAAGAGA_CAGCGTTA_AAACGATA-0 | B182: Untreated | C182: 42
A183: TGGAACAA_CAGCGTTA_AAACGATA-0 | B183: Untreated | C183: 83.14286
A184: AAGAGATC_CATACCAA_AAACGATA-0 | B184: Untreated | C184: 71.33333
A185: ACAAGCTA_CATACCAA_AAACGATA-0 | B185: Untreated | C185: 86
A186: CCAGTTCA_CATACCAA_AAACGATA-0 | B186: Untreated | C186: 43
A187: CGACTGGA_CATACCAA_AAACGATA-0 | B187: Untreated | C187: 41
A188: CGGATTGC_CATACCAA_AAACGATA-0 | B188: Untreated | C188: 52
A189: TGGTGGTA_CATACCAA_AAACGATA-0 | B189: Untreated | C189: 43
A190: ACACGACC_CATCAAGT_AAACGATA-0 | B190: Untreated | C190: 59
A191: AGGCTAAC_CATCAAGT_AAACGATA-0 | B191: Untreated | C191: 47
A192: CCTAATCC_CATCAAGT_AAACGATA-0 | B192: Untreated | C192: 94.33333
A193: CGACACAC_CATCAAGT_AAACGATA-0 | B193: Untreated | C193: 49
A194: TCCGTCTA_CATCAAGT_AAACGATA-0 | B194: Untreated | C194: 61
A195: AATGTTGC_CCAGTTCA_AAACGATA-0 | B195: Untreated | C195: 107
A196: ACCACTGT_CCAGTTCA_AAACGATA-0 | B196: Untreated | C196: 75
A197: AGCAGGAA_CCAGTTCA_AAACGATA-0 | B197: Untreated | C197: 60.5
A198: CGGATTGC_CCAGTTCA_AAACGATA-0 | B198: Untreated | C198: 123.2
A199: GAGCTGAA_CCAGTTCA_AAACGATA-0 | B199: Untreated | C199: 73.33333
A200: AATGTTGC_CCATCCTC_AAACGATA-0 | B200: Untreated | C200: 58
... 4300 more rows

Sheet Figure 1k
A1: Figure 1k
A2: cell_id | B2: infection_status | C2: Phage_counts
A3: CTAAGGTC_AAACATCG_AAACGATA-0 | B3: Untreated | C3: 0
A4: GAGTTAGC_AAACATCG_AAACGATA-0 | B4: Untreated | C4: 0
A5: TCTTCACA_AAACATCG_AAACGATA-0 | B5: Untreated | C5: 0
A6: TTCACGCA_AAACATCG_AAACGATA-0 | B6: Untreated | C6: 0
A7: AGATGTAC_AACAACCA_AAACGATA-0 | B7: Untreated | C7: 0
A8: CACCTTAC_AACAACCA_AAACGATA-0 | B8: Untreated | C8: 0
A9: CCGACAAC_AACAACCA_AAACGATA-0 | B9: Untreated | C9: 0
A10: CTGGCATA_AACAACCA_AAACGATA-0 | B10: Untreated | C10: 1
A11: GCCACATA_AACAACCA_AAACGATA-0 | B11: Untreated | C11: 0
A12: AATGTTGC_AACCGAGA_AAACGATA-0 | B12: Untreated | C12: 0
A13: ACAGATTC_AACCGAGA_AAACGATA-0 | B13: Untreated | C13: 0
A14: ATAGCGAC_AACCGAGA_AAACGATA-0 | B14: Untreated | C14: 1
A15: ATTGGCTC_AACCGAGA_AAACGATA-0 | B15: Untreated | C15: 0
A16: CCGACAAC_AACCGAGA_AAACGATA-0 | B16: Untreated | C16: 0
A17: CCTCTATC_AACCGAGA_AAACGATA-0 | B17: Untreated | C17: 0
A18: CGAACTTA_AACCGAGA_AAACGATA-0 | B18: Untreated | C18: 0
A19: GATAGACA_AACCGAGA_AAACGATA-0 | B19: Untreated | C19: 0
A20: AGGCTAAC_AACGCTTA_AAACGATA-0 | B20: Untreated | C20: 0
A21: CACCTTAC_AACGCTTA_AAACGATA-0 | B21: Untreated | C21: 1
A22: CCGTGAGA_AACGCTTA_AAACGATA-0 | B22: Untreated | C22: 0
A23: TCCGTCTA_AACGCTTA_AAACGATA-0 | B23: Untreated | C23: 0
A24: ACCTCCAA_AACGTGAT_AAACGATA-0 | B24: Untreated | C24: 0
A25: ACGCTCGA_AACGTGAT_AAACGATA-0 | B25: Untreated | C25: 0
A26: CACCTTAC_AACGTGAT_AAACGATA-0 | B26: Untreated | C26: 0
A27: CCATCCTC_AACGTGAT_AAACGATA-0 | B27: Untreated | C27: 1
A28: CCTAATCC_AACGTGAT_AAACGATA-0 | B28: Untreated | C28: 0
A29: CGACACAC_AACGTGAT_AAACGATA-0 | B29: Untreated | C29: 0
A30: GAACAGGC_AACGTGAT_AAACGATA-0 | B30: Untreated | C30: 0
A31: GAATCTGA_AACGTGAT_AAACGATA-0 | B31: Untreated | C31: 0
A32: GACAGTGC_AACGTGAT_AAACGATA-0 | B32: Untreated | C32: 0
A33: GATGAATC_AACGTGAT_AAACGATA-0 | B33: Untreated | C33: 0
A34: GTCTGTCA_AACGTGAT_AAACGATA-0 | B34: Untreated | C34: 1
A35: TTCACGCA_AACGTGAT_AAACGATA-0 | B35: Untreated | C35: 0
A36: ATCATTCC_AACTCACC_AAACGATA-0 | B36: Untreated | C36: 0
A37: CCGAAGTA_AACTCACC_AAACGATA-0 | B37: Untreated | C37: 1
A38: GCCACATA_AACTCACC_AAACGATA-0 | B38: Untreated | C38: 0
A39: ACAGATTC_AAGACGGA_AAACGATA-0 | B39: Untreated | C39: 0
A40: CCTCTATC_AAGACGGA_AAACGATA-0 | B40: Untreated | C40: 0
A41: CGGATTGC_AAGACGGA_AAACGATA-0 | B41: Untreated | C41: 0
A42: CCTCTATC_AAGAGATC_AAACGATA-0 | B42: Untreated | C42: 0
A43: GATGAATC_AAGAGATC_AAACGATA-0 | B43: Untreated | C43: 0
A44: AGCCATGC_AAGGACAC_AAACGATA-0 | B44: Untreated | C44: 0
A45: GCGAGTAA_AAGGACAC_AAACGATA-0 | B45: Untreated | C45: 0
A46: TATCAGCA_AAGGACAC_AAACGATA-0 | B46: Untreated | C46: 0
A47: CCATCCTC_AAGGTACA_AAACGATA-0 | B47: Untreated | C47: 0
A48: TAGGATGA_AAGGTACA_AAACGATA-0 | B48: Untreated | C48: 0
A49: TTCACGCA_AAGGTACA_AAACGATA-0 | B49: Untreated | C49: 0
A50: AACCGAGA_AATCCGTC_AAACGATA-0 | B50: Untreated | C50: 0
A51: AACTCACC_AATCCGTC_AAACGATA-0 | B51: Untreated | C51: 0
A52: AGTCACTA_AATCCGTC_AAACGATA-0 | B52: Untreated | C52: 0
A53: AGTGGTCA_AATCCGTC_AAACGATA-0 | B53: Untreated | C53: 0
A54: ATAGCGAC_AATCCGTC_AAACGATA-0 | B54: Untreated | C54: 1
A55: ATCCTGTA_AATCCGTC_AAACGATA-0 | B55: Untreated | C55: 0
A56: CCAGTTCA_AATCCGTC_AAACGATA-0 | B56: Untreated | C56: 0
A57: CCTAATCC_AATCCGTC_AAACGATA-0 | B57: Untreated | C57: 0
A58: GATGAATC_AATCCGTC_AAACGATA-0 | B58: Untreated | C58: 0
A59: GCGAGTAA_AATCCGTC_AAACGATA-0 | B59: Untreated | C59: 0
A60: GTACGCAA_AATCCGTC_AAACGATA-0 | B60: Untreated | C60: 0
A61: TATCAGCA_AATCCGTC_AAACGATA-0 | B61: Untreated | C61: 0
A62: AGTACAAG_ACAAGCTA_AAACGATA-0 | B62: Untreated | C62: 0
A63: ATCATTCC_ACAAGCTA_AAACGATA-0 | B63: Untreated | C63: 0
A64: CGGATTGC_ACAAGCTA_AAACGATA-0 | B64: Untreated | C64: 1
A65: AGCCATGC_ACACAGAA_AAACGATA-0 | B65: Untreated | C65: 0
A66: ATCATTCC_ACACAGAA_AAACGATA-0 | B66: Untreated | C66: 1
A67: ATTGGCTC_ACACAGAA_AAACGATA-0 | B67: Untreated | C67: 0
A68: GAGCTGAA_ACACAGAA_AAACGATA-0 | B68: Untreated | C68: 1
A69: GATGAATC_ACACAGAA_AAACGATA-0 | B69: Untreated | C69: 0
A70: GGTGCGAA_ACACAGAA_AAACGATA-0 | B70: Untreated | C70: 0
A71: AAGAGATC_ACACGACC_AAACGATA-0 | B71: Untreated | C71: 0
A72: ACAGATTC_ACACGACC_AAACGATA-0 | B72: Untreated | C72: 0
A73: ACGTATCA_ACACGACC_AAACGATA-0 | B73: Untreated | C73: 0
A74: AGATCGCA_ACACGACC_AAACGATA-0 | B74: Untreated | C74: 0
A75: ATAGCGAC_ACACGACC_AAACGATA-0 | B75: Untreated | C75: 0
A76: ATCATTCC_ACACGACC_AAACGATA-0 | B76: Untreated | C76: 0
A77: CAAGACTA_ACACGACC_AAACGATA-0 | B77: Untreated | C77: 0
A78: TATCAGCA_ACACGACC_AAACGATA-0 | B78: Untreated | C78: 0
A79: ACAGATTC_ACAGATTC_AAACGATA-0 | B79: Untreated | C79: 0
A80: AGGCTAAC_ACAGATTC_AAACGATA-0 | B80: Untreated | C80: 0
A81: AGTACAAG_ACAGATTC_AAACGATA-0 | B81: Untreated | C81: 2
A82: ATAGCGAC_ACAGATTC_AAACGATA-0 | B82: Untreated | C82: 1
A83: GTGTTCTA_ACAGATTC_AAACGATA-0 | B83: Untreated | C83: 0
A84: AACCGAGA_ACAGCAGA_AAACGATA-0 | B84: Untreated | C84: 0
A85: CAGCGTTA_ACAGCAGA_AAACGATA-0 | B85: Untreated | C85: 0
A86: CCGAAGTA_ACAGCAGA_AAACGATA-0 | B86: Untreated | C86: 0
A87: CGACACAC_ACAGCAGA_AAACGATA-0 | B87: Untreated | C87: 0
A88: CGGATTGC_ACAGCAGA_AAACGATA-0 | B88: Untreated | C88: 0
A89: TAGGATGA_ACAGCAGA_AAACGATA-0 | B89: Untreated | C89: 0
A90: AATGTTGC_ACATTGGC_AAACGATA-0 | B90: Untreated | C90: 0
A91: ACAGATTC_ACATTGGC_AAACGATA-0 | B91: Untreated | C91: 0
A92: AGCACCTC_ACATTGGC_AAACGATA-0 | B92: Untreated | C92: 1
A93: TGAAGAGA_ACATTGGC_AAACGATA-0 | B93: Untreated | C93: 0
A94: ATTGGCTC_ACCACTGT_AAACGATA-0 | B94: Untreated | C94: 0
A95: CAACCACA_ACCACTGT_AAACGATA-0 | B95: Untreated | C95: 0
A96: CCATCCTC_ACCACTGT_AAACGATA-0 | B96: Untreated | C96: 0
A97: ACACGACC_ACCTCCAA_AAACGATA-0 | B97: Untreated | C97: 0
A98: ATAGCGAC_ACCTCCAA_AAACGATA-0 | B98: Untreated | C98: 1
A99: CTAAGGTC_ACCTCCAA_AAACGATA-0 | B99: Untreated | C99: 0
A100: TATCAGCA_ACCTCCAA_AAACGATA-0 | B100: Untreated | C100: 0
A101: CTCAATGA_ACGCTCGA_AAACGATA-0 | B101: Untreated | C101: 0
A102: GACAGTGC_ACGCTCGA_AAACGATA-0 | B102: Untreated | C102: 0
A103: CCGACAAC_ACTATGCA_AAACGATA-0 | B103: Untreated | C103: 0
A104: GAACAGGC_AGAGTCAA_AAACGATA-0 | B104: Untreated | C104: 0
A105: TAGGATGA_AGAGTCAA_AAACGATA-0 | B105: Untreated | C105: 0
A106: AGTACAAG_AGATCGCA_AAACGATA-0 | B106: Untreated | C106: 0
A107: ATTGGCTC_AGATCGCA_AAACGATA-0 | B107: Untreated | C107: 0
A108: CGGATTGC_AGATCGCA_AAACGATA-0 | B108: Untreated | C108: 0
A109: CACCTTAC_AGCACCTC_AAACGATA-0 | B109: Untreated | C109: 0
A110: CCATCCTC_AGCACCTC_AAACGATA-0 | B110: Untreated | C110: 0
A111: CGACTGGA_AGCACCTC_AAACGATA-0 | B111: Untreated | C111: 0
A112: GTCTGTCA_AGCACCTC_AAACGATA-0 | B112: Untreated | C112: 0
A113: AGATGTAC_AGCAGGAA_AAACGATA-0 | B113: Untreated | C113: 0
A114: GAACAGGC_AGCAGGAA_AAACGATA-0 | B114: Untreated | C114: 0
A115: TAGGATGA_AGCAGGAA_AAACGATA-0 | B115: Untreated | C115: 0
A116: AATCCGTC_AGGCTAAC_AAACGATA-0 | B116: Untreated | C116: 0
A117: CCATCCTC_AGGCTAAC_AAACGATA-0 | B117: Untreated | C117: 0
A118: CCTAATCC_AGGCTAAC_AAACGATA-0 | B118: Untreated | C118: 0
A119: GGTGCGAA_AGGCTAAC_AAACGATA-0 | B119: Untreated | C119: 0
A120: AAGAGATC_AGTACAAG_AAACGATA-0 | B120: Untreated | C120: 0
A121: AGATGTAC_AGTACAAG_AAACGATA-0 | B121: Untreated | C121: 0
A122: AGTACAAG_AGTACAAG_AAACGATA-0 | B122: Untreated | C122: 0
A123: CAAGGAGC_AGTACAAG_AAACGATA-0 | B123: Untreated | C123: 0
A124: CCGAAGTA_AGTACAAG_AAACGATA-0 | B124: Untreated | C124: 1
A125: CGAACTTA_AGTACAAG_AAACGATA-0 | B125: Untreated | C125: 0
A126: GCTCGGTA_AGTACAAG_AAACGATA-0 | B126: Untreated | C126: 0
A127: AACAACCA_AGTCACTA_AAACGATA-0 | B127: Untreated | C127: 1
A128: ACGTATCA_AGTCACTA_AAACGATA-0 | B128: Untreated | C128: 0
A129: AGCCATGC_AGTCACTA_AAACGATA-0 | B129: Untreated | C129: 0
A130: CCGAAGTA_AGTCACTA_AAACGATA-0 | B130: Untreated | C130: 0
A131: CCGTGAGA_AGTCACTA_AAACGATA-0 | B131: Untreated | C131: 0
A132: GAGCTGAA_AGTCACTA_AAACGATA-0 | B132: Untreated | C132: 0
A133: GATAGACA_AGTCACTA_AAACGATA-0 | B133: Untreated | C133: 0
A134: TATCAGCA_AGTCACTA_AAACGATA-0 | B134: Untreated | C134: 0
A135: TGAAGAGA_AGTCACTA_AAACGATA-0 | B135: Untreated | C135: 1
A136: AACGCTTA_AGTGGTCA_AAACGATA-0 | B136: Untreated | C136: 0
A137: CAAGGAGC_AGTGGTCA_AAACGATA-0 | B137: Untreated | C137: 0
A138: GATGAATC_AGTGGTCA_AAACGATA-0 | B138: Untreated | C138: 0
A139: TAGGATGA_AGTGGTCA_AAACGATA-0 | B139: Untreated | C139: 0
A140: AGATGTAC_ATAGCGAC_AAACGATA-0 | B140: Untreated | C140: 0
A141: AGGCTAAC_ATAGCGAC_AAACGATA-0 | B141: Untreated | C141: 0
A142: GATGAATC_ATCATTCC_AAACGATA-0 | B142: Untreated | C142: 0
A143: GCTAACGA_ATCATTCC_AAACGATA-0 | B143: Untreated | C143: 0
A144: TCTTCACA_ATCATTCC_AAACGATA-0 | B144: Untreated | C144: 1
A145: TTCACGCA_ATCATTCC_AAACGATA-0 | B145: Untreated | C145: 0
A146: ATCATTCC_ATCCTGTA_AAACGATA-0 | B146: Untreated | C146: 0
A147: CACCTTAC_ATCCTGTA_AAACGATA-0 | B147: Untreated | C147: 0
A148: CCGTGAGA_ATCCTGTA_AAACGATA-0 | B148: Untreated | C148: 0
A149: CTAAGGTC_ATCCTGTA_AAACGATA-0 | B149: Untreated | C149: 0
A150: GCCAAGAC_ATTGAGGA_AAACGATA-0 | B150: Untreated | C150: 0
A151: GACAGTGC_CAAGACTA_AAACGATA-0 | B151: Untreated | C151: 0
A152: TGAAGAGA_CAAGACTA_AAACGATA-0 | B152: Untreated | C152: 0
A153: AACTCACC_CACCTTAC_AAACGATA-0 | B153: Untreated | C153: 0
A154: AATGTTGC_CACCTTAC_AAACGATA-0 | B154: Untreated | C154: 0
A155: ACACGACC_CACCTTAC_AAACGATA-0 | B155: Untreated | C155: 1
A156: CTAAGGTC_CACCTTAC_AAACGATA-0 | B156: Untreated | C156: 0
A157: GAGCTGAA_CACCTTAC_AAACGATA-0 | B157: Untreated | C157: 1
A158: TGAAGAGA_CACCTTAC_AAACGATA-0 | B158: Untreated | C158: 0
A159: TTCACGCA_CACCTTAC_AAACGATA-0 | B159: Untreated | C159: 0
A160: AACGCTTA_CACTTCGA_AAACGATA-0 | B160: Untreated | C160: 0
A161: AACGTGAT_CACTTCGA_AAACGATA-0 | B161: Untreated | C161: 0
A162: AACTCACC_CACTTCGA_AAACGATA-0 | B162: Untreated | C162: 0
A163: AAGGACAC_CACTTCGA_AAACGATA-0 | B163: Untreated | C163: 0
A164: AATGTTGC_CACTTCGA_AAACGATA-0 | B164: Untreated | C164: 0
A165: ACACGACC_CACTTCGA_AAACGATA-0 | B165: Untreated | C165: 0
A166: AGCACCTC_CACTTCGA_AAACGATA-0 | B166: Untreated | C166: 0
A167: ATCATTCC_CACTTCGA_AAACGATA-0 | B167: Untreated | C167: 0
A168: CCATCCTC_CACTTCGA_AAACGATA-0 | B168: Untreated | C168: 0
A169: CCGAAGTA_CACTTCGA_AAACGATA-0 | B169: Untreated | C169: 0
A170: GAATCTGA_CACTTCGA_AAACGATA-0 | B170: Untreated | C170: 1
A171: GAGTTAGC_CACTTCGA_AAACGATA-0 | B171: Untreated | C171: 0
A172: GCTCGGTA_CACTTCGA_AAACGATA-0 | B172: Untreated | C172: 0
A173: TTCACGCA_CACTTCGA_AAACGATA-0 | B173: Untreated | C173: 0
A174: AGCACCTC_CAGATCTG_AAACGATA-0 | B174: Untreated | C174: 0
A175: ATTGGCTC_CAGATCTG_AAACGATA-0 | B175: Untreated | C175: 0
A176: CCAGTTCA_CAGATCTG_AAACGATA-0 | B176: Untreated | C176: 0
A177: GAACAGGC_CAGATCTG_AAACGATA-0 | B177: Untreated | C177: 0
A178: TATCAGCA_CAGATCTG_AAACGATA-0 | B178: Untreated | C178: 0
A179: CCAGTTCA_CAGCGTTA_AAACGATA-0 | B179: Untreated | C179: 0
A180: CCGAAGTA_CAGCGTTA_AAACGATA-0 | B180: Untreated | C180: 0
A181: GAGTTAGC_CAGCGTTA_AAACGATA-0 | B181: Untreated | C181: 0
A182: TGAAGAGA_CAGCGTTA_AAACGATA-0 | B182: Untreated | C182: 0
A183: TGGAACAA_CAGCGTTA_AAACGATA-0 | B183: Untreated | C183: 0
A184: AAGAGATC_CATACCAA_AAACGATA-0 | B184: Untreated | C184: 0
A185: ACAAGCTA_CATACCAA_AAACGATA-0 | B185: Untreated | C185: 0
A186: CCAGTTCA_CATACCAA_AAACGATA-0 | B186: Untreated | C186: 0
A187: CGACTGGA_CATACCAA_AAACGATA-0 | B187: Untreated | C187: 0
A188: CGGATTGC_CATACCAA_AAACGATA-0 | B188: Untreated | C188: 0
A189: TGGTGGTA_CATACCAA_AAACGATA-0 | B189: Untreated | C189: 0
A190: ACACGACC_CATCAAGT_AAACGATA-0 | B190: Untreated | C190: 0
A191: AGGCTAAC_CATCAAGT_AAACGATA-0 | B191: Untreated | C191: 0
A192: CCTAATCC_CATCAAGT_AAACGATA-0 | B192: Untreated | C192: 0
A193: CGACACAC_CATCAAGT_AAACGATA-0 | B193: Untreated | C193: 0
A194: TCCGTCTA_CATCAAGT_AAACGATA-0 | B194: Untreated | C194: 0
A195: AATGTTGC_CCAGTTCA_AAACGATA-0 | B195: Untreated | C195: 0
A196: ACCACTGT_CCAGTTCA_AAACGATA-0 | B196: Untreated | C196: 0
A197: AGCAGGAA_CCAGTTCA_AAACGATA-0 | B197: Untreated | C197: 0
A198: CGGATTGC_CCAGTTCA_AAACGATA-0 | B198: Untreated | C198: 0
A199: GAGCTGAA_CCAGTTCA_AAACGATA-0 | B199: Untreated | C199: 0
A200: AATGTTGC_CCATCCTC_AAACGATA-0 | B200: Untreated | C200: 0
... 4300 more rows

Sheet Figure 1l
A1: Figure 1l
A2: cell_id | B2: UMAP_1 | C2: UMAP_2 | D2: sample
A3: CTAAGGTC_AAACATCG_AAACGATA-0 | B3: 0.65238184 | C3: 2.8806674 | D3: Untreated
A4: GAGTTAGC_AAACATCG_AAACGATA-0 | B4: -0.7775931 | C4: 2.2636478 | D4: Untreated
A5: TCTTCACA_AAACATCG_AAACGATA-0 | B5: 1.7357998 | C5: 5.174016 | D5: Untreated
A6: TTCACGCA_AAACATCG_AAACGATA-0 | B6: -0.566483 | C6: 1.4021406 | D6: Untreated
A7: AGATGTAC_AACAACCA_AAACGATA-0 | B7: 1.2492032 | C7: 4.4557557 | D7: Untreated
A8: CACCTTAC_AACAACCA_AAACGATA-0 | B8: 0.79631025 | C8: 2.291759 | D8: Untreated
A9: CCGACAAC_AACAACCA_AAACGATA-0 | B9: -3.2004693 | C9: 2.4445508 | D9: Untreated
A10: CTGGCATA_AACAACCA_AAACGATA-0 | B10: 4.823686 | C10: 1.5161511 | D10: Untreated
A11: GCCACATA_AACAACCA_AAACGATA-0 | B11: -3.5642219 | C11: -1.762049 | D11: Untreated
A12: AATGTTGC_AACCGAGA_AAACGATA-0 | B12: -0.7688067 | C12: 4.9306746 | D12: Untreated
A13: ACAGATTC_AACCGAGA_AAACGATA-0 | B13: -0.1322918 | C13: 3.7038488 | D13: Untreated
A14: ATAGCGAC_AACCGAGA_AAACGATA-0 | B14: -1.6978685 | C14: 1.3485532 | D14: Untreated
A15: ATTGGCTC_AACCGAGA_AAACGATA-0 | B15: 0.040580694 | C15: -0.10744079 | D15: Untreated
A16: CCGACAAC_AACCGAGA_AAACGATA-0 | B16: -1.1754144 | C16: -1.1123334 | D16: Untreated
A17: CCTCTATC_AACCGAGA_AAACGATA-0 | B17: -2.072595 | C17: 3.8644066 | D17: Untreated
A18: CGAACTTA_AACCGAGA_AAACGATA-0 | B18: 3.5110593 | C18: 2.5330944 | D18: Untreated
A19: GATAGACA_AACCGAGA_AAACGATA-0 | B19: 0.42120674 | C19: 1.4864393 | D19: Untreated
A20: AGGCTAAC_AACGCTTA_AAACGATA-0 | B20: -0.79302365 | C20: -4.571728 | D20: Untreated
A21: CACCTTAC_AACGCTTA_AAACGATA-0 | B21: -3.0706255 | C21: 4.9118 | D21: Untreated
A22: CCGTGAGA_AACGCTTA_AAACGATA-0 | B22: 3.493826 | C22: 3.9324868 | D22: Untreated
A23: TCCGTCTA_AACGCTTA_AAACGATA-0 | B23: 1.8111672 | C23: 1.6186507 | D23: Untreated
A24: ACCTCCAA_AACGTGAT_AAACGATA-0 | B24: 2.2061265 | C24: 0.1856197 | D24: Untreated
A25: ACGCTCGA_AACGTGAT_AAACGATA-0 | B25: 3.1439216 | C25: 3.7263129 | D25: Untreated
A26: CACCTTAC_AACGTGAT_AAACGATA-0 | B26: 0.97232014 | C26: 2.9863029 | D26: Untreated
A27: CCATCCTC_AACGTGAT_AAACGATA-0 | B27: 1.6158701 | C27: 3.0416296 | D27: Untreated
A28: CCTAATCC_AACGTGAT_AAACGATA-0 | B28: 3.2332325 | C28: 3.8838868 | D28: Untreated
A29: CGACACAC_AACGTGAT_AAACGATA-0 | B29: -1.9739614 | C29: 1.4086975 | D29: Untreated
A30: GAACAGGC_AACGTGAT_AAACGATA-0 | B30: 2.297807 | C30: 4.887399 | D30: Untreated
A31: GAATCTGA_AACGTGAT_AAACGATA-0 | B31: 0.66740566 | C31: 1.7689675 | D31: Untreated
A32: GACAGTGC_AACGTGAT_AAACGATA-0 | B32: -6.579153 | C32: -2.2170773 | D32: Untreated
A33: GATGAATC_AACGTGAT_AAACGATA-0 | B33: -1.7778049 | C33: 1.0344366 | D33: Untreated
A34: GTCTGTCA_AACGTGAT_AAACGATA-0 | B34: 1.6909078 | C34: 3.631123 | D34: Untreated
A35: TTCACGCA_AACGTGAT_AAACGATA-0 | B35: 2.8858888 | C35: 3.053077 | D35: Untreated
A36: ATCATTCC_AACTCACC_AAACGATA-0 | B36: -0.7151748 | C36: 0.5401804 | D36: Untreated
A37: CCGAAGTA_AACTCACC_AAACGATA-0 | B37: 1.8519716 | C37: 2.847544 | D37: Untreated
A38: GCCACATA_AACTCACC_AAACGATA-0 | B38: 2.1973517 | C38: 3.3447762 | D38: Untreated
A39: ACAGATTC_AAGACGGA_AAACGATA-0 | B39: 4.2994742 | C39: 2.82843 | D39: Untreated
A40: CCTCTATC_AAGACGGA_AAACGATA-0 | B40: 3.1190512 | C40: 3.392847 | D40: Untreated
A41: CGGATTGC_AAGACGGA_AAACGATA-0 | B41: 3.6948414 | C41: 1.805891 | D41: Untreated
A42: CCTCTATC_AAGAGATC_AAACGATA-0 | B42: -4.4767213 | C42: -0.3346796 | D42: Untreated
A43: GATGAATC_AAGAGATC_AAACGATA-0 | B43: -1.9108969 | C43: -8.565332 | D43: Untreated
A44: AGCCATGC_AAGGACAC_AAACGATA-0 | B44: -2.7069724 | C44: 2.790546 | D44: Untreated
A45: GCGAGTAA_AAGGACAC_AAACGATA-0 | B45: 4.477733 | C45: 3.1591375 | D45: Untreated
A46: TATCAGCA_AAGGACAC_AAACGATA-0 | B46: 2.695196 | C46: 4.4264507 | D46: Untreated
A47: CCATCCTC_AAGGTACA_AAACGATA-0 | B47: 1.7205102 | C47: 1.4705796 | D47: Untreated
A48: TAGGATGA_AAGGTACA_AAACGATA-0 | B48: 1.1684973 | C48: 5.083997 | D48: Untreated
A49: TTCACGCA_AAGGTACA_AAACGATA-0 | B49: -0.93838173 | C49: 5.653902 | D49: Untreated
A50: AACCGAGA_AATCCGTC_AAACGATA-0 | B50: 0.23445487 | C50: 4.413541 | D50: Untreated
A51: AACTCACC_AATCCGTC_AAACGATA-0 | B51: 3.751728 | C51: 3.6229193 | D51: Untreated
A52: AGTCACTA_AATCCGTC_AAACGATA-0 | B52: 0.5706398 | C52: 4.7493596 | D52: Untreated
A53: AGTGGTCA_AATCCGTC_AAACGATA-0 | B53: 4.179927 | C53: 2.9117532 | D53: Untreated
A54: ATAGCGAC_AATCCGTC_AAACGATA-0 | B54: -5.019089 | C54: -1.3255584 | D54: Untreated
A55: ATCCTGTA_AATCCGTC_AAACGATA-0 | B55: -1.6828351 | C55: 1.5069362 | D55: Untreated
A56: CCAGTTCA_AATCCGTC_AAACGATA-0 | B56: -1.7891163 | C56: 3.5774202 | D56: Untreated
A57: CCTAATCC_AATCCGTC_AAACGATA-0 | B57: 0.52032876 | C57: -0.6009061 | D57: Untreated
A58: GATGAATC_AATCCGTC_AAACGATA-0 | B58: 4.1898 | C58: 2.4434807 | D58: Untreated
A59: GCGAGTAA_AATCCGTC_AAACGATA-0 | B59: -4.733472 | C59: -1.5314264 | D59: Untreated
A60: GTACGCAA_AATCCGTC_AAACGATA-0 | B60: 1.7720964 | C60: 0.114103094 | D60: Untreated
A61: TATCAGCA_AATCCGTC_AAACGATA-0 | B61: -1.843939 | C61: -3.938218 | D61: Untreated
A62: AGTACAAG_ACAAGCTA_AAACGATA-0 | B62: 2.3366053 | C62: 1.9038903 | D62: Untreated
A63: ATCATTCC_ACAAGCTA_AAACGATA-0 | B63: 2.3930354 | C63: 0.14199209 | D63: Untreated
A64: CGGATTGC_ACAAGCTA_AAACGATA-0 | B64: -2.1254816 | C64: 6.6306386 | D64: Untreated
A65: AGCCATGC_ACACAGAA_AAACGATA-0 | B65: -0.06686614 | C65: 0.5383321 | D65: Untreated
A66: ATCATTCC_ACACAGAA_AAACGATA-0 | B66: -2.1103754 | C66: 2.0775783 | D66: Untreated
A67: ATTGGCTC_ACACAGAA_AAACGATA-0 | B67: 0.5637005 | C67: -0.6181086 | D67: Untreated
A68: GAGCTGAA_ACACAGAA_AAACGATA-0 | B68: 0.46817037 | C68: -1.9976785 | D68: Untreated
A69: GATGAATC_ACACAGAA_AAACGATA-0 | B69: 2.8412116 | C69: 3.0274131 | D69: Untreated
A70: GGTGCGAA_ACACAGAA_AAACGATA-0 | B70: -1.0127357 | C70: 2.6270187 | D70: Untreated
A71: AAGAGATC_ACACGACC_AAACGATA-0 | B71: -1.1583805 | C71: -4.555923 | D71: Untreated
A72: ACAGATTC_ACACGACC_AAACGATA-0 | B72: 2.351838 | C72: 1.8267783 | D72: Untreated
A73: ACGTATCA_ACACGACC_AAACGATA-0 | B73: 5.0297976 | C73: 1.9840697 | D73: Untreated
A74: AGATCGCA_ACACGACC_AAACGATA-0 | B74: -1.2415315 | C74: -1.1458604 | D74: Untreated
A75: ATAGCGAC_ACACGACC_AAACGATA-0 | B75: -0.67414445 | C75: 1.2475703 | D75: Untreated
A76: ATCATTCC_ACACGACC_AAACGATA-0 | B76: 1.387986 | C76: 3.531963 | D76: Untreated
A77: CAAGACTA_ACACGACC_AAACGATA-0 | B77: -1.0031826 | C77: -0.98369 | D77: Untreated
A78: TATCAGCA_ACACGACC_AAACGATA-0 | B78: 0.041121367 | C78: 0.92765146 | D78: Untreated
A79: ACAGATTC_ACAGATTC_AAACGATA-0 | B79: -3.4433188 | C79: 5.7611876 | D79: Untreated
A80: AGGCTAAC_ACAGATTC_AAACGATA-0 | B80: 2.5602934 | C80: 2.5879924 | D80: Untreated
A81: AGTACAAG_ACAGATTC_AAACGATA-0 | B81: 1.5329982 | C81: 2.6599464 | D81: Untreated
A82: ATAGCGAC_ACAGATTC_AAACGATA-0 | B82: -0.6618869 | C82: -6.8689795 | D82: Untreated
A83: GTGTTCTA_ACAGATTC_AAACGATA-0 | B83: 2.3337467 | C83: 1.7504761 | D83: Untreated
A84: AACCGAGA_ACAGCAGA_AAACGATA-0 | B84: -0.6607172 | C84: -3.1621 | D84: Untreated
A85: CAGCGTTA_ACAGCAGA_AAACGATA-0 | B85: -1.5534554 | C85: 6.1103396 | D85: Untreated
A86: CCGAAGTA_ACAGCAGA_AAACGATA-0 | B86: 3.5589778 | C86: 1.0525455 | D86: Untreated
A87: CGACACAC_ACAGCAGA_AAACGATA-0 | B87: 2.0044138 | C87: 2.6083658 | D87: Untreated
A88: CGGATTGC_ACAGCAGA_AAACGATA-0 | B88: 1.7830795 | C88: 4.674597 | D88: Untreated
A89: TAGGATGA_ACAGCAGA_AAACGATA-0 | B89: -5.2441115 | C89: -2.5477328 | D89: Untreated
A90: AATGTTGC_ACATTGGC_AAACGATA-0 | B90: 1.5323336 | C90: 4.390575 | D90: Untreated
A91: ACAGATTC_ACATTGGC_AAACGATA-0 | B91: -5.56319 | C91: 4.1602473 | D91: Untreated
A92: AGCACCTC_ACATTGGC_AAACGATA-0 | B92: 2.347521 | C92: 2.3587706 | D92: Untreated
A93: TGAAGAGA_ACATTGGC_AAACGATA-0 | B93: -3.6970553 | C93: 5.645576 | D93: Untreated
A94: ATTGGCTC_ACCACTGT_AAACGATA-0 | B94: -3.7249722 | C94: -2.1631687 | D94: Untreated
A95: CAACCACA_ACCACTGT_AAACGATA-0 | B95: 2.7546923 | C95: -0.06054637 | D95: Untreated
A96: CCATCCTC_ACCACTGT_AAACGATA-0 | B96: 1.5307353 | C96: 0.92718536 | D96: Untreated
A97: ACACGACC_ACCTCCAA_AAACGATA-0 | B97: -1.0955024 | C97: 0.655576 | D97: Untreated
A98: ATAGCGAC_ACCTCCAA_AAACGATA-0 | B98: -5.2896385 | C98: -3.0151985 | D98: Untreated
A99: CTAAGGTC_ACCTCCAA_AAACGATA-0 | B99: 2.8031168 | C99: 3.6268826 | D99: Untreated
A100: TATCAGCA_ACCTCCAA_AAACGATA-0 | B100: -0.37741214 | C100: 2.0660472 | D100: Untreated
A101: CTCAATGA_ACGCTCGA_AAACGATA-0 | B101: 2.8718734 | C101: 3.658773 | D101: Untreated
A102: GACAGTGC_ACGCTCGA_AAACGATA-0 | B102: 1.5373586 | C102: 1.6804606 | D102: Untreated
A103: CCGACAAC_ACTATGCA_AAACGATA-0 | B103: 3.8387308 | C103: 1.8800737 | D103: Untreated
A104: GAACAGGC_AGAGTCAA_AAACGATA-0 | B104: -4.2918525 | C104: -3.01788 | D104: Untreated
A105: TAGGATGA_AGAGTCAA_AAACGATA-0 | B105: -1.1071811 | C105: 6.3920355 | D105: Untreated
A106: AGTACAAG_AGATCGCA_AAACGATA-0 | B106: 3.4356148 | C106: 1.8646678 | D106: Untreated
A107: ATTGGCTC_AGATCGCA_AAACGATA-0 | B107: -2.958226 | C107: 6.5785937 | D107: Untreated
A108: CGGATTGC_AGATCGCA_AAACGATA-0 | B108: -0.26172608 | C108: 5.75591 | D108: Untreated
A109: CACCTTAC_AGCACCTC_AAACGATA-0 | B109: 4.323842 | C109: 1.8506587 | D109: Untreated
A110: CCATCCTC_AGCACCTC_AAACGATA-0 | B110: 2.190288 | C110: 3.7203684 | D110: Untreated
A111: CGACTGGA_AGCACCTC_AAACGATA-0 | B111: -4.1923614 | C111: -3.1991699 | D111: Untreated
A112: GTCTGTCA_AGCACCTC_AAACGATA-0 | B112: -5.7568326 | C112: -2.9292228 | D112: Untreated
A113: AGATGTAC_AGCAGGAA_AAACGATA-0 | B113: -3.0480402 | C113: 2.328105 | D113: Untreated
A114: GAACAGGC_AGCAGGAA_AAACGATA-0 | B114: -4.3113136 | C114: 4.3900976 | D114: Untreated
A115: TAGGATGA_AGCAGGAA_AAACGATA-0 | B115: 3.7749605 | C115: 2.2555404 | D115: Untreated
A116: AATCCGTC_AGGCTAAC_AAACGATA-0 | B116: 2.4479563 | C116: 0.45273006 | D116: Untreated
A117: CCATCCTC_AGGCTAAC_AAACGATA-0 | B117: -2.546503 | C117: -0.10542111 | D117: Untreated
A118: CCTAATCC_AGGCTAAC_AAACGATA-0 | B118: -0.6629402 | C118: 6.313385 | D118: Untreated
A119: GGTGCGAA_AGGCTAAC_AAACGATA-0 | B119: 2.462356 | C119: 0.94306904 | D119: Untreated
A120: AAGAGATC_AGTACAAG_AAACGATA-0 | B120: 0.27815205 | C120: 0.06739915 | D120: Untreated
A121: AGATGTAC_AGTACAAG_AAACGATA-0 | B121: -1.0637554 | C121: 4.2925377 | D121: Untreated
A122: AGTACAAG_AGTACAAG_AAACGATA-0 | B122: 1.6486521 | C122: 3.1928878 | D122: Untreated
A123: CAAGGAGC_AGTACAAG_AAACGATA-0 | B123: -0.29876998 | C123: -2.0696373 | D123: Untreated
A124: CCGAAGTA_AGTACAAG_AAACGATA-0 | B124: 0.6186191 | C124: 2.0179799 | D124: Untreated
A125: CGAACTTA_AGTACAAG_AAACGATA-0 | B125: 3.8664196 | C125: 3.340859 | D125: Untreated
A126: GCTCGGTA_AGTACAAG_AAACGATA-0 | B126: 0.723574 | C126: 3.0276144 | D126: Untreated
A127: AACAACCA_AGTCACTA_AAACGATA-0 | B127: 3.7023134 | C127: 3.8431988 | D127: Untreated
A128: ACGTATCA_AGTCACTA_AAACGATA-0 | B128: 0.6012671 | C128: 2.4199488 | D128: Untreated
A129: AGCCATGC_AGTCACTA_AAACGATA-0 | B129: 3.1713517 | C129: 1.4874959 | D129: Untreated
A130: CCGAAGTA_AGTCACTA_AAACGATA-0 | B130: -5.172546 | C130: -0.2452734 | D130: Untreated
A131: CCGTGAGA_AGTCACTA_AAACGATA-0 | B131: 3.64472 | C131: 1.6456171 | D131: Untreated
A132: GAGCTGAA_AGTCACTA_AAACGATA-0 | B132: -3.915412 | C132: -1.7230668 | D132: Untreated
A133: GATAGACA_AGTCACTA_AAACGATA-0 | B133: -0.37951347 | C133: 2.79345 | D133: Untreated
A134: TATCAGCA_AGTCACTA_AAACGATA-0 | B134: 0.9046613 | C134: 0.63321584 | D134: Untreated
A135: TGAAGAGA_AGTCACTA_AAACGATA-0 | B135: -0.6824488 | C135: 2.5782268 | D135: Untreated
A136: AACGCTTA_AGTGGTCA_AAACGATA-0 | B136: 0.8039979 | C136: 5.1487484 | D136: Untreated
A137: CAAGGAGC_AGTGGTCA_AAACGATA-0 | B137: 3.6958172 | C137: 4.043377 | D137: Untreated
A138: GATGAATC_AGTGGTCA_AAACGATA-0 | B138: -1.6303595 | C138: -4.458539 | D138: Untreated
A139: TAGGATGA_AGTGGTCA_AAACGATA-0 | B139: 1.3367939 | C139: 3.5759614 | D139: Untreated
A140: AGATGTAC_ATAGCGAC_AAACGATA-0 | B140: -0.17944764 | C140: 1.0902634 | D140: Untreated
A141: AGGCTAAC_ATAGCGAC_AAACGATA-0 | B141: 3.1917782 | C141: 3.028492 | D141: Untreated
A142: GATGAATC_ATCATTCC_AAACGATA-0 | B142: -1.4352419 | C142: -1.7735609 | D142: Untreated
A143: GCTAACGA_ATCATTCC_AAACGATA-0 | B143: -0.09514647 | C143: 3.0837016 | D143: Untreated
A144: TCTTCACA_ATCATTCC_AAACGATA-0 | B144: 2.5461078 | C144: 5.2605095 | D144: Untreated
A145: TTCACGCA_ATCATTCC_AAACGATA-0 | B145: -0.65731555 | C145: 3.6963573 | D145: Untreated
A146: ATCATTCC_ATCCTGTA_AAACGATA-0 | B146: 4.062242 | C146: 1.826487 | D146: Untreated
A147: CACCTTAC_ATCCTGTA_AAACGATA-0 | B147: 3.0087636 | C147: 2.2375257 | D147: Untreated
A148: CCGTGAGA_ATCCTGTA_AAACGATA-0 | B148: 1.8246808 | C148: 2.9646537 | D148: Untreated
A149: CTAAGGTC_ATCCTGTA_AAACGATA-0 | B149: 3.538866 | C149: 2.9089675 | D149: Untreated
A150: GCCAAGAC_ATTGAGGA_AAACGATA-0 | B150: 2.1141305 | C150: 4.9076877 | D150: Untreated
A151: GACAGTGC_CAAGACTA_AAACGATA-0 | B151: -0.10069692 | C151: -1.5718703 | D151: Untreated
A152: TGAAGAGA_CAAGACTA_AAACGATA-0 | B152: 1.7840587 | C152: 1.9058611 | D152: Untreated
A153: AACTCACC_CACCTTAC_AAACGATA-0 | B153: 3.6309125 | C153: 4.25787 | D153: Untreated
A154: AATGTTGC_CACCTTAC_AAACGATA-0 | B154: -3.9866762 | C154: 1.774272 | D154: Untreated
A155: ACACGACC_CACCTTAC_AAACGATA-0 | B155: 3.4443176 | C155: 2.7720923 | D155: Untreated
A156: CTAAGGTC_CACCTTAC_AAACGATA-0 | B156: -0.103326894 | C156: 1.0935141 | D156: Untreated
A157: GAGCTGAA_CACCTTAC_AAACGATA-0 | B157: -0.19239438 | C157: 4.0337067 | D157: Untreated
A158: TGAAGAGA_CACCTTAC_AAACGATA-0 | B158: -5.9857078 | C158: -0.6662204 | D158: Untreated
A159: TTCACGCA_CACCTTAC_AAACGATA-0 | B159: 2.193023 | C159: 1.372622 | D159: Untreated
A160: AACGCTTA_CACTTCGA_AAACGATA-0 | B160: 2.9562407 | C160: -0.57113945 | D160: Untreated
A161: AACGTGAT_CACTTCGA_AAACGATA-0 | B161: 0.18430455 | C161: -3.4862697 | D161: Untreated
A162: AACTCACC_CACTTCGA_AAACGATA-0 | B162: 0.08603468 | C162: 2.7256913 | D162: Untreated
A163: AAGGACAC_CACTTCGA_AAACGATA-0 | B163: 0.25437585 | C163: -3.93715 | D163: Untreated
A164: AATGTTGC_CACTTCGA_AAACGATA-0 | B164: -2.9645472 | C164: 3.5336318 | D164: Untreated
A165: ACACGACC_CACTTCGA_AAACGATA-0 | B165: 4.132521 | C165: 1.5860788 | D165: Untreated
A166: AGCACCTC_CACTTCGA_AAACGATA-0 | B166: -2.2390616 | C166: -1.6355658 | D166: Untreated
A167: ATCATTCC_CACTTCGA_AAACGATA-0 | B167: 2.0339668 | C167: 0.04580514 | D167: Untreated
A168: CCATCCTC_CACTTCGA_AAACGATA-0 | B168: 0.952231 | C168: -0.5529921 | D168: Untreated
A169: CCGAAGTA_CACTTCGA_AAACGATA-0 | B169: 3.8524306 | C169: 1.0835046 | D169: Untreated
A170: GAATCTGA_CACTTCGA_AAACGATA-0 | B170: 4.0260315 | C170: 3.9715064 | D170: Untreated
A171: GAGTTAGC_CACTTCGA_AAACGATA-0 | B171: -0.46202427 | C171: 0.49725038 | D171: Untreated
A172: GCTCGGTA_CACTTCGA_AAACGATA-0 | B172: 4.6121607 | C172: 1.8434969 | D172: Untreated
A173: TTCACGCA_CACTTCGA_AAACGATA-0 | B173: 0.8534275 | C173: 1.7938641 | D173: Untreated
A174: AGCACCTC_CAGATCTG_AAACGATA-0 | B174: 3.0284758 | C174: 2.352312 | D174: Untreated
A175: ATTGGCTC_CAGATCTG_AAACGATA-0 | B175: -0.17053711 | C175: 0.9029617 | D175: Untreated
A176: CCAGTTCA_CAGATCTG_AAACGATA-0 | B176: -0.12789251 | C176: 3.6009889 | D176: Untreated
A177: GAACAGGC_CAGATCTG_AAACGATA-0 | B177: -0.42975304 | C177: 1.826677 | D177: Untreated
A178: TATCAGCA_CAGATCTG_AAACGATA-0 | B178: -3.8813019 | C178: -1.663376 | D178: Untreated
A179: CCAGTTCA_CAGCGTTA_AAACGATA-0 | B179: 2.2198813 | C179: 0.86636883 | D179: Untreated
A180: CCGAAGTA_CAGCGTTA_AAACGATA-0 | B180: -1.8469518 | C180: 6.619451 | D180: Untreated
A181: GAGTTAGC_CAGCGTTA_AAACGATA-0 | B181: 4.3224745 | C181: 1.4269747 | D181: Untreated
A182: TGAAGAGA_CAGCGTTA_AAACGATA-0 | B182: 4.4669647 | C182: 3.6764762 | D182: Untreated
A183: TGGAACAA_CAGCGTTA_AAACGATA-0 | B183: 0.3842725 | C183: -0.45153847 | D183: Untreated
A184: AAGAGATC_CATACCAA_AAACGATA-0 | B184: 1.9445199 | C184: 0.43222842 | D184: Untreated
A185: ACAAGCTA_CATACCAA_AAACGATA-0 | B185: 0.09242206 | C185: 4.1658216 | D185: Untreated
A186: CCAGTTCA_CATACCAA_AAACGATA-0 | B186: 3.6495478 | C186: 4.574755 | D186: Untreated
A187: CGACTGGA_CATACCAA_AAACGATA-0 | B187: 4.4940286 | C187: 1.6640241 | D187: Untreated
A188: CGGATTGC_CATACCAA_AAACGATA-0 | B188: 3.4033973 | C188: 1.8969301 | D188: Untreated
A189: TGGTGGTA_CATACCAA_AAACGATA-0 | B189: 3.4708502 | C189: 2.8455744 | D189: Untreated
A190: ACACGACC_CATCAAGT_AAACGATA-0 | B190: 2.0027306 | C190: 1.6866654 | D190: Untreated
A191: AGGCTAAC_CATCAAGT_AAACGATA-0 | B191: 3.804316 | C191: 3.1709094 | D191: Untreated
A192: CCTAATCC_CATCAAGT_AAACGATA-0 | B192: -1.2282342 | C192: 1.064598 | D192: Untreated
A193: CGACACAC_CATCAAGT_AAACGATA-0 | B193: 2.9317105 | C193: 4.752815 | D193: Untreated
A194: TCCGTCTA_CATCAAGT_AAACGATA-0 | B194: 2.665835 | C194: 1.2372636 | D194: Untreated
A195: AATGTTGC_CCAGTTCA_AAACGATA-0 | B195: -1.5919204 | C195: 3.1462839 | D195: Untreated
A196: ACCACTGT_CCAGTTCA_AAACGATA-0 | B196: 0.43108854 | C196: 4.262798 | D196: Untreated
A197: AGCAGGAA_CCAGTTCA_AAACGATA-0 | B197: 2.0221963 | C197: 4.060929 | D197: Untreated
A198: CGGATTGC_CCAGTTCA_AAACGATA-0 | B198: -1.923521 | C198: 2.6749208 | D198: Untreated
A199: GAGCTGAA_CCAGTTCA_AAACGATA-0 | B199: 1.2470628 | C199: 4.1608076 | D199: Untreated
A200: AATGTTGC_CCATCCTC_AAACGATA-0 | B200: 2.5832753 | C200: 0.57802886 | D200: Untreated
... 4300 more rows

Sheet Figure 2a
A1: Figure 2a
A2: cell_id | B2: UMAP_1 | C2: UMAP_2 | D2: Phage_counts
A3: ACCTCCAA_AAACATCG_AATAGAAC-0 | B3: 0.5586975 | C3: -0.6328468 | D3: 12
A4: AGAGTCAA_AAACATCG_AATAGAAC-0 | B4: 3.6207178 | C4: -2.0538034 | D4: 0
A5: ATCATTCC_AAACATCG_AATAGAAC-0 | B5: 4.595522 | C5: -5.5414476 | D5: 9
A6: CACCTTAC_AAACATCG_AATAGAAC-0 | B6: 1.5679455 | C6: 2.8566818 | D6: 48
A7: CGACACAC_AAACATCG_AATAGAAC-0 | B7: 1.915581 | C7: 1.2987063 | D7: 23
A8: CGACTGGA_AAACATCG_AATAGAAC-0 | B8: -1.1009221 | C8: -2.859692 | D8: 14
A9: TCTTCACA_AAACATCG_AATAGAAC-0 | B9: -3.7819889 | C9: 3.4228604 | D9: 102
A10: AAGAGATC_AACAACCA_AATAGAAC-0 | B10: 6.684339 | C10: -1.2060357 | D10: 0
A11: ACACGACC_AACAACCA_AATAGAAC-0 | B11: 6.2951555 | C11: 0.11970851 | D11: 1
A12: AGTACAAG_AACAACCA_AATAGAAC-0 | B12: -2.844971 | C12: 2.0383933 | D12: 43
A13: CAAGGAGC_AACAACCA_AATAGAAC-0 | B13: 7.546356 | C13: -0.7286201 | D13: 1
A14: CCTAATCC_AACAACCA_AATAGAAC-0 | B14: 7.988169 | C14: 0.1682858 | D14: 0
A15: CGACACAC_AACAACCA_AATAGAAC-0 | B15: -5.664224 | C15: 1.7599093 | D15: 256
A16: CGCTGATC_AACAACCA_AATAGAAC-0 | B16: -1.2819631 | C16: 2.9064667 | D16: 62
A17: GTGTTCTA_AACAACCA_AATAGAAC-0 | B17: 1.9889153 | C17: 1.1290948 | D17: 20
A18: AATCCGTC_AACCGAGA_AATAGAAC-0 | B18: -7.217215 | C18: 3.9085107 | D18: 169
A19: ATTGGCTC_AACCGAGA_AATAGAAC-0 | B19: -2.6962554 | C19: 5.178722 | D19: 247
A20: CCTAATCC_AACCGAGA_AATAGAAC-0 | B20: 3.9313164 | C20: -5.8046784 | D20: 2
A21: CGCTGATC_AACCGAGA_AATAGAAC-0 | B21: -0.50091016 | C21: 0.6255901 | D21: 17
A22: GAGCTGAA_AACCGAGA_AATAGAAC-0 | B22: -4.404758 | C22: 3.983276 | D22: 167
A23: GAGTTAGC_AACCGAGA_AATAGAAC-0 | B23: 7.628192 | C23: -1.9263523 | D23: 1
A24: GCCACATA_AACCGAGA_AATAGAAC-0 | B24: -8.621456 | C24: -1.2984297 | D24: 131
A25: AACAACCA_AACGCTTA_AATAGAAC-0 | B25: 4.454229 | C25: -0.98231214 | D25: 0
A26: AGATGTAC_AACGCTTA_AATAGAAC-0 | B26: 0.41702133 | C26: 2.1934214 | D26: 44
A27: AGCACCTC_AACGCTTA_AATAGAAC-0 | B27: 6.9246297 | C27: -3.527163 | D27: 0
A28: ATCCTGTA_AACGCTTA_AATAGAAC-0 | B28: 4.9929075 | C28: -0.46837452 | D28: 0
A29: ATTGGCTC_AACGCTTA_AATAGAAC-0 | B29: -1.317363 | C29: 2.68149 | D29: 58
A30: CGACACAC_AACGCTTA_AATAGAAC-0 | B30: 4.763953 | C30: -5.720649 | D30: 0
A31: CTAAGGTC_AACGCTTA_AATAGAAC-0 | B31: -7.5361395 | C31: 2.7916248 | D31: 113
A32: GATAGACA_AACGCTTA_AATAGAAC-0 | B32: 5.449742 | C32: -1.3408045 | D32: 0
A33: CAAGGAGC_AACGTGAT_AATAGAAC-0 | B33: -3.370176 | C33: 4.626942 | D33: 95
A34: CAATGGAA_AACGTGAT_AATAGAAC-0 | B34: 4.7823286 | C34: -1.7959594 | D34: 0
A35: CACCTTAC_AACGTGAT_AATAGAAC-0 | B35: -6.3533115 | C35: 4.831272 | D35: 306
A36: CGAACTTA_AACGTGAT_AATAGAAC-0 | B36: 6.4862356 | C36: -3.180422 | D36: 0
A37: CTGAGCCA_AACGTGAT_AATAGAAC-0 | B37: -7.7143536 | C37: 0.25149438 | D37: 58
A38: CTGTAGCC_AACGTGAT_AATAGAAC-0 | B38: 6.529771 | C38: -0.6581077 | D38: 2
A39: GAGCTGAA_AACGTGAT_AATAGAAC-0 | B39: -1.7728581 | C39: 0.08788051 | D39: 38
A40: TATCAGCA_AACGTGAT_AATAGAAC-0 | B40: 2.9816513 | C40: 3.502717 | D40: 55
A41: AAGGTACA_AACTCACC_AATAGAAC-0 | B41: -4.3284364 | C41: 0.46418133 | D41: 43
A42: ACAGATTC_AACTCACC_AATAGAAC-0 | B42: -4.9453173 | C42: 2.8868563 | D42: 109
A43: ACTATGCA_AACTCACC_AATAGAAC-0 | B43: 5.1581745 | C43: -3.9157546 | D43: 1
A44: ATAGCGAC_AACTCACC_AATAGAAC-0 | B44: 2.0812113 | C44: 1.590555 | D44: 36
A45: ATGCCTAA_AACTCACC_AATAGAAC-0 | B45: -7.2749043 | C45: 1.119907 | D45: 64.14286
A46: CAAGGAGC_AACTCACC_AATAGAAC-0 | B46: -0.13345975 | C46: 1.6568067 | D46: 46
A47: CTAAGGTC_AACTCACC_AATAGAAC-0 | B47: -1.2665104 | C47: 2.8491445 | D47: 58
A48: GAACAGGC_AACTCACC_AATAGAAC-0 | B48: -3.4435678 | C48: 3.3672407 | D48: 81
A49: GAGTTAGC_AACTCACC_AATAGAAC-0 | B49: -0.35170648 | C49: 2.2264216 | D49: 141
A50: GCGAGTAA_AACTCACC_AATAGAAC-0 | B50: -2.441243 | C50: 1.9008428 | D50: 48
A51: GCTCGGTA_AACTCACC_AATAGAAC-0 | B51: -4.010731 | C51: 0.20755865 | D51: 27
A52: GTGTTCTA_AACTCACC_AATAGAAC-0 | B52: 7.772956 | C52: -1.538135 | D52: 0
A53: ATAGCGAC_AAGACGGA_AATAGAAC-0 | B53: 5.3714952 | C53: 1.0783354 | D53: 1
A54: AACCGAGA_AAGAGATC_AATAGAAC-0 | B54: 4.947104 | C54: -4.054687 | D54: 1
A55: ATTGGCTC_AAGAGATC_AATAGAAC-0 | B55: 1.3407035 | C55: -1.7476764 | D55: 6
A56: CACCTTAC_AAGAGATC_AATAGAAC-0 | B56: 4.4720106 | C56: 1.325385 | D56: 0
A57: CGACTGGA_AAGAGATC_AATAGAAC-0 | B57: -5.3880343 | C57: -1.8104155 | D57: 33
A58: GTCTGTCA_AAGAGATC_AATAGAAC-0 | B58: 5.435344 | C58: -1.8212867 | D58: 0
A59: TTCACGCA_AAGAGATC_AATAGAAC-0 | B59: -3.1692727 | C59: 4.4184637 | D59: 118
A60: AACAACCA_AAGGACAC_AATAGAAC-0 | B60: -4.4012547 | C60: -1.2030089 | D60: 29
A61: AACGTGAT_AAGGACAC_AATAGAAC-0 | B61: -0.44527903 | C61: 1.3169119 | D61: 30
A62: ACACGACC_AAGGACAC_AATAGAAC-0 | B62: 1.1440398 | C62: 0.6016264 | D62: 19
A63: AGCAGGAA_AAGGACAC_AATAGAAC-0 | B63: -4.43282 | C63: -0.15781127 | D63: 29
A64: TCCGTCTA_AAGGACAC_AATAGAAC-0 | B64: 5.136785 | C64: -0.3674633 | D64: 0
A65: CCTCTATC_AAGGTACA_AATAGAAC-0 | B65: -2.3722994 | C65: 2.6331248 | D65: 59.14286
A66: CTCAATGA_AAGGTACA_AATAGAAC-0 | B66: 0.7004297 | C66: -0.18879077 | D66: 11
A67: CTGTAGCC_AAGGTACA_AATAGAAC-0 | B67: -4.3713913 | C67: -1.7799623 | D67: 26
A68: ACAGATTC_AATCCGTC_AATAGAAC-0 | B68: -0.20559265 | C68: 2.096703 | D68: 81
A69: ACCTCCAA_AATCCGTC_AATAGAAC-0 | B69: 7.9349523 | C69: -3.5966096 | D69: 2
A70: AGTCACTA_AATCCGTC_AATAGAAC-0 | B70: 2.1146452 | C70: 1.8668958 | D70: 28
A71: CACCTTAC_AATCCGTC_AATAGAAC-0 | B71: -8.65871 | C71: -1.8346304 | D71: 139
A72: CCAGTTCA_AATCCGTC_AATAGAAC-0 | B72: -5.653767 | C72: 3.8357205 | D72: 144
A73: GATAGACA_AATCCGTC_AATAGAAC-0 | B73: 5.1094685 | C73: -2.6136184 | D73: 0
A74: GATGAATC_AATCCGTC_AATAGAAC-0 | B74: 7.633329 | C74: -3.3588765 | D74: 2
A75: GTCGTAGA_AATCCGTC_AATAGAAC-0 | B75: -8.8613 | C75: -1.6310602 | D75: 165
A76: GTGTTCTA_AATCCGTC_AATAGAAC-0 | B76: -7.9594984 | C76: 3.9596686 | D76: 236
A77: ATCCTGTA_AATGTTGC_AATAGAAC-0 | B77: 3.5521548 | C77: -3.1507964 | D77: 0
A78: ATTGGCTC_AATGTTGC_AATAGAAC-0 | B78: 4.117664 | C78: -4.175851 | D78: 0
A79: CCAGTTCA_AATGTTGC_AATAGAAC-0 | B79: 1.6539952 | C79: 0.33731055 | D79: 16
A80: GGTGCGAA_AATGTTGC_AATAGAAC-0 | B80: -1.0372407 | C80: 0.19115897 | D80: 18
A81: AGCACCTC_ACAAGCTA_AATAGAAC-0 | B81: -6.748901 | C81: -0.17065263 | D81: 40
A82: ATTGGCTC_ACAAGCTA_AATAGAAC-0 | B82: 3.3457735 | C82: -3.3742561 | D82: 0
A83: CCTCTATC_ACAAGCTA_AATAGAAC-0 | B83: -0.7888761 | C83: -0.14985117 | D83: 17
A84: ATCATTCC_ACACAGAA_AATAGAAC-0 | B84: -4.2158165 | C84: 2.2406507 | D84: 124
A85: ATTGAGGA_ACACAGAA_AATAGAAC-0 | B85: 6.6409597 | C85: -1.2067932 | D85: 0
A86: CAGATCTG_ACACAGAA_AATAGAAC-0 | B86: -2.6128979 | C86: 3.6361234 | D86: 175
A87: CCGACAAC_ACACAGAA_AATAGAAC-0 | B87: 5.9713397 | C87: -5.3855124 | D87: 0
A88: CTGTAGCC_ACACAGAA_AATAGAAC-0 | B88: 7.553997 | C88: -2.1956704 | D88: 1
A89: GTACGCAA_ACACAGAA_AATAGAAC-0 | B89: -6.3286586 | C89: 1.561939 | D89: 66
A90: TGAAGAGA_ACACAGAA_AATAGAAC-0 | B90: 4.975839 | C90: -5.9681263 | D90: 0
A91: TGGAACAA_ACACAGAA_AATAGAAC-0 | B91: 8.121826 | C91: -1.5048639 | D91: 3
A92: AACTCACC_ACACGACC_AATAGAAC-0 | B92: -0.061401647 | C92: -0.049122866 | D92: 13
A93: AAGAGATC_ACACGACC_AATAGAAC-0 | B93: -0.56376433 | C93: -1.5184526 | D93: 14
A94: ACCTCCAA_ACACGACC_AATAGAAC-0 | B94: 5.4659634 | C94: -1.6439202 | D94: 1
A95: ACGTATCA_ACACGACC_AATAGAAC-0 | B95: 4.786131 | C95: -0.41312176 | D95: 1
A96: CAATGGAA_ACACGACC_AATAGAAC-0 | B96: 0.64911467 | C96: -0.38837418 | D96: 11
A97: CCGAAGTA_ACACGACC_AATAGAAC-0 | B97: -4.0854616 | C97: 4.4544044 | D97: 137.1429
A98: CCTCCTGA_ACACGACC_AATAGAAC-0 | B98: 0.5919205 | C98: 1.6135951 | D98: 29
A99: CGAACTTA_ACACGACC_AATAGAAC-0 | B99: -6.351298 | C99: 2.3544562 | D99: 97.14286
A100: GAGTTAGC_ACACGACC_AATAGAAC-0 | B100: 3.9761655 | C100: 2.7894118 | D100: 48
A101: GCGAGTAA_ACACGACC_AATAGAAC-0 | B101: -9.2019 | C101: 0.83364886 | D101: 78.33333
A102: AATCCGTC_ACAGATTC_AATAGAAC-0 | B102: 6.7811475 | C102: -0.85866517 | D102: 1
A103: ACAAGCTA_ACAGATTC_AATAGAAC-0 | B103: 5.856255 | C103: -2.0561159 | D103: 0
A104: AGCCATGC_ACAGATTC_AATAGAAC-0 | B104: 1.8479494 | C104: -3.2871983 | D104: 0
A105: ATAGCGAC_ACAGATTC_AATAGAAC-0 | B105: -0.45528588 | C105: 0.59832156 | D105: 20
A106: CAGCGTTA_ACAGATTC_AATAGAAC-0 | B106: -7.6304636 | C106: -0.1653979 | D106: 43
A107: CCAGTTCA_ACAGATTC_AATAGAAC-0 | B107: -5.293825 | C107: 0.617801 | D107: 49
A108: GCCAAGAC_ACAGATTC_AATAGAAC-0 | B108: 1.0502754 | C108: 1.3850561 | D108: 37.666664
A109: GCGAGTAA_ACAGATTC_AATAGAAC-0 | B109: 3.6928136 | C109: -1.7142301 | D109: 0
A110: GCTCGGTA_ACAGATTC_AATAGAAC-0 | B110: -6.3731537 | C110: -1.771185 | D110: 31
A111: GTCTGTCA_ACAGATTC_AATAGAAC-0 | B111: -1.6690528 | C111: 2.5720425 | D111: 93
A112: TAGGATGA_ACAGATTC_AATAGAAC-0 | B112: -5.686368 | C112: 1.2013795 | D112: 88
A113: TGGCTTCA_ACAGATTC_AATAGAAC-0 | B113: 2.9460783 | C113: -2.2168815 | D113: 0
A114: AAGACGGA_ACAGCAGA_AATAGAAC-0 | B114: -8.389147 | C114: -3.7427132 | D114: 40
A115: AAGAGATC_ACAGCAGA_AATAGAAC-0 | B115: -2.0720232 | C115: 0.94025147 | D115: 38
A116: ACCACTGT_ACAGCAGA_AATAGAAC-0 | B116: -3.585451 | C116: -0.09016441 | D116: 29
A117: CAAGGAGC_ACAGCAGA_AATAGAAC-0 | B117: -8.791693 | C117: 0.12131993 | D117: 117
A118: CAATGGAA_ACAGCAGA_AATAGAAC-0 | B118: -5.9342575 | C118: -2.4409165 | D118: 30
A119: CCGAAGTA_ACAGCAGA_AATAGAAC-0 | B119: 1.8101858 | C119: 1.0412632 | D119: 23
A120: CCTCTATC_ACAGCAGA_AATAGAAC-0 | B120: -2.574247 | C120: 0.7816822 | D120: 35
A121: GAACAGGC_ACAGCAGA_AATAGAAC-0 | B121: 7.2835474 | C121: -0.53518885 | D121: 0
A122: GCTAACGA_ACAGCAGA_AATAGAAC-0 | B122: -6.6284533 | C122: 1.1875284 | D122: 67
A123: AAGAGATC_ACATTGGC_AATAGAAC-0 | B123: -1.2045877 | C123: 3.856657 | D123: 68
A124: AGCACCTC_ACATTGGC_AATAGAAC-0 | B124: 7.9039993 | C124: -1.7938396 | D124: 0
A125: AGTCACTA_ACATTGGC_AATAGAAC-0 | B125: 3.0476577 | C125: -0.562429 | D125: 1
A126: ATAGCGAC_ACATTGGC_AATAGAAC-0 | B126: 0.33223948 | C126: 3.2773907 | D126: 63
A127: ATCATTCC_ACATTGGC_AATAGAAC-0 | B127: 7.236579 | C127: -4.021374 | D127: 0
A128: ATCCTGTA_ACATTGGC_AATAGAAC-0 | B128: 2.3345585 | C128: -1.275794 | D128: 1
A129: CAAGGAGC_ACATTGGC_AATAGAAC-0 | B129: -8.430365 | C129: 2.165426 | D129: 110
A130: CACCTTAC_ACATTGGC_AATAGAAC-0 | B130: 6.953418 | C130: 0.8648348 | D130: 0
A131: CCTAATCC_ACATTGGC_AATAGAAC-0 | B131: -7.175331 | C131: 3.9094057 | D131: 204
A132: CCTCTATC_ACATTGGC_AATAGAAC-0 | B132: -6.4905667 | C132: 3.852109 | D132: 155
A133: CTCAATGA_ACATTGGC_AATAGAAC-0 | B133: -4.150056 | C133: -0.8460901 | D133: 29
A134: GATAGACA_ACATTGGC_AATAGAAC-0 | B134: -3.2672746 | C134: 2.2262719 | D134: 74
A135: GCGAGTAA_ACATTGGC_AATAGAAC-0 | B135: 3.3118052 | C135: 2.7825036 | D135: 27
A136: TATCAGCA_ACATTGGC_AATAGAAC-0 | B136: -1.105284 | C136: 5.3886957 | D136: 302
A137: AAGGACAC_ACCACTGT_AATAGAAC-0 | B137: 5.3358297 | C137: 1.9347194 | D137: 4
A138: ACCACTGT_ACCACTGT_AATAGAAC-0 | B138: -7.562908 | C138: -2.8016124 | D138: 40
A139: ACCTCCAA_ACCACTGT_AATAGAAC-0 | B139: -6.3413534 | C139: 1.1051296 | D139: 45.14286
A140: AGTCACTA_ACCACTGT_AATAGAAC-0 | B140: 2.690508 | C140: -3.194461 | D140: 0
A141: CACCTTAC_ACCACTGT_AATAGAAC-0 | B141: 4.917398 | C141: -3.0695724 | D141: 1
A142: CAGCGTTA_ACCACTGT_AATAGAAC-0 | B142: -7.7727365 | C142: 3.5582163 | D142: 101
A143: CTAAGGTC_ACCACTGT_AATAGAAC-0 | B143: 1.3265318 | C143: 1.6608307 | D143: 26
A144: GAGTTAGC_ACCACTGT_AATAGAAC-0 | B144: -6.375004 | C144: 4.694177 | D144: 193
A145: AGAGTCAA_ACCTCCAA_AATAGAAC-0 | B145: -4.1429734 | C145: 0.7357887 | D145: 46
A146: CATCAAGT_ACCTCCAA_AATAGAAC-0 | B146: -7.2793813 | C146: 0.831313 | D146: 65.5
A147: GACAGTGC_ACCTCCAA_AATAGAAC-0 | B147: -7.3069253 | C147: 1.514466 | D147: 120
A148: GAGCTGAA_ACCTCCAA_AATAGAAC-0 | B148: 8.648832 | C148: -2.21293 | D148: 1
A149: GCCACATA_ACCTCCAA_AATAGAAC-0 | B149: -8.893462 | C149: -1.823564 | D149: 66
A150: GCTAACGA_ACCTCCAA_AATAGAAC-0 | B150: 5.7054687 | C150: -4.483439 | D150: 0
A151: AATCCGTC_ACGCTCGA_AATAGAAC-0 | B151: 5.263466 | C151: -2.5820856 | D151: 1
A152: AATGTTGC_ACGCTCGA_AATAGAAC-0 | B152: -3.0543754 | C152: 1.2494433 | D152: 28
A153: GAGTTAGC_ACGCTCGA_AATAGAAC-0 | B153: 0.36455038 | C153: -0.9255544 | D153: 9
A154: TGGCTTCA_ACGCTCGA_AATAGAAC-0 | B154: -1.7900432 | C154: -1.8561554 | D154: 29
A155: TTCACGCA_ACGCTCGA_AATAGAAC-0 | B155: -0.69326264 | C155: 2.2873187 | D155: 24
A156: ATTGGCTC_ACGTATCA_AATAGAAC-0 | B156: 5.5145483 | C156: -1.0011121 | D156: 0
A157: CCATCCTC_ACGTATCA_AATAGAAC-0 | B157: 3.6169984 | C157: -3.6263576 | D157: 0
A158: CCTCCTGA_ACGTATCA_AATAGAAC-0 | B158: -5.606735 | C158: -1.4504089 | D158: 30
A159: GATAGACA_ACGTATCA_AATAGAAC-0 | B159: 0.03151579 | C159: 0.014904153 | D159: 14
A160: CCGTGAGA_ACTATGCA_AATAGAAC-0 | B160: 3.1088014 | C160: -1.3281692 | D160: 0
A161: CCTCTATC_ACTATGCA_AATAGAAC-0 | B161: 0.54080653 | C161: 1.3165305 | D161: 29
A162: GATGAATC_ACTATGCA_AATAGAAC-0 | B162: -8.921736 | C162: -2.033455 | D162: 96
A163: TAGGATGA_ACTATGCA_AATAGAAC-0 | B163: 2.2124164 | C163: -0.898624 | D163: 3
A164: AAGAGATC_AGAGTCAA_AATAGAAC-0 | B164: 4.498244 | C164: -0.088482484 | D164: 0
A165: AAGGACAC_AGAGTCAA_AATAGAAC-0 | B165: 4.3852186 | C165: -0.83231026 | D165: 1
A166: CCTCTATC_AGAGTCAA_AATAGAAC-0 | B166: 4.5372367 | C166: -4.9247007 | D166: 0
A167: GATAGACA_AGAGTCAA_AATAGAAC-0 | B167: 5.661416 | C167: -3.7775233 | D167: 2
A168: TAGGATGA_AGAGTCAA_AATAGAAC-0 | B168: 0.86409503 | C168: 1.2504789 | D168: 29
A169: TCTTCACA_AGAGTCAA_AATAGAAC-0 | B169: -4.106357 | C169: 3.556633 | D169: 122
A170: ATTGGCTC_AGATCGCA_AATAGAAC-0 | B170: 4.1237216 | C170: -2.5219333 | D170: 1
A171: CACCTTAC_AGATCGCA_AATAGAAC-0 | B171: -9.128813 | C171: 3.0117867 | D171: 168
A172: CCTAATCC_AGATCGCA_AATAGAAC-0 | B172: 4.1192665 | C172: -1.3717858 | D172: 0
A173: CTAAGGTC_AGATCGCA_AATAGAAC-0 | B173: -4.644094 | C173: -1.1769797 | D173: 28
A174: GAACAGGC_AGATCGCA_AATAGAAC-0 | B174: 1.2198237 | C174: 0.33273488 | D174: 19
A175: ACACGACC_AGATGTAC_AATAGAAC-0 | B175: -9.202124 | C175: -0.23052965 | D175: 105
A176: AGATGTAC_AGATGTAC_AATAGAAC-0 | B176: 0.58001155 | C176: -0.40570998 | D176: 15
A177: AGCACCTC_AGATGTAC_AATAGAAC-0 | B177: -0.66749066 | C177: 0.3332195 | D177: 15
A178: GTGTTCTA_AGATGTAC_AATAGAAC-0 | B178: 0.285605 | C178: 0.66786563 | D178: 20
A179: TGGTGGTA_AGATGTAC_AATAGAAC-0 | B179: 2.0898275 | C179: -3.2866645 | D179: 0
A180: AACGTGAT_AGCACCTC_AATAGAAC-0 | B180: 5.069669 | C180: 1.4596868 | D180: 0
A181: AACTCACC_AGCACCTC_AATAGAAC-0 | B181: 1.3998871 | C181: 0.21953155 | D181: 11
A182: AGATGTAC_AGCACCTC_AATAGAAC-0 | B182: 5.726718 | C182: -3.735972 | D182: 0
A183: CGACACAC_AGCACCTC_AATAGAAC-0 | B183: 4.0737295 | C183: -5.8668256 | D183: 0
A184: GAGTTAGC_AGCACCTC_AATAGAAC-0 | B184: 2.480527 | C184: -2.270106 | D184: 0
A185: AGTGGTCA_AGCAGGAA_AATAGAAC-0 | B185: -0.7305863 | C185: 3.5325232 | D185: 65
A186: ATTGAGGA_AGCAGGAA_AATAGAAC-0 | B186: -1.841878 | C186: 3.203988 | D186: 51
A187: CACTTCGA_AGCAGGAA_AATAGAAC-0 | B187: -2.54584 | C187: 0.02261417 | D187: 24
A188: CAGCGTTA_AGCAGGAA_AATAGAAC-0 | B188: -8.602384 | C188: 0.4081627 | D188: 199
A189: GAACAGGC_AGCAGGAA_AATAGAAC-0 | B189: 6.6326056 | C189: 0.1328737 | D189: 15
A190: GTACGCAA_AGCAGGAA_AATAGAAC-0 | B190: 7.0188394 | C190: 0.3124809 | D190: 0
A191: GTCTGTCA_AGCAGGAA_AATAGAAC-0 | B191: 1.3542104 | C191: 3.2538996 | D191: 113
A192: GTGTTCTA_AGCAGGAA_AATAGAAC-0 | B192: 8.125473 | C192: -0.351409 | D192: 1
A193: AGCACCTC_AGCCATGC_AATAGAAC-0 | B193: 0.21726339 | C193: -0.5584631 | D193: 13
A194: CACCTTAC_AGCCATGC_AATAGAAC-0 | B194: -1.9143246 | C194: -0.2830051 | D194: 17
A195: CATACCAA_AGCCATGC_AATAGAAC-0 | B195: -7.035773 | C195: -3.0411065 | D195: 37
A196: CCGACAAC_AGCCATGC_AATAGAAC-0 | B196: -2.016225 | C196: 0.19410437 | D196: 26
A197: GAGCTGAA_AGCCATGC_AATAGAAC-0 | B197: -6.7104173 | C197: 2.0059147 | D197: 73
A198: GAGTTAGC_AGCCATGC_AATAGAAC-0 | B198: 6.1396604 | C198: -0.6159154 | D198: 2
A199: AAGACGGA_AGGCTAAC_AATAGAAC-0 | B199: -7.928236 | C199: 1.7148007 | D199: 40
A200: AGTCACTA_AGGCTAAC_AATAGAAC-0 | B200: -5.1856747 | C200: 1.9534979 | D200: 57.14286
... 4300 more rows

Sheet Figure 2b
A1: Figure 2b
A2: cell_id | B2: UMAP_1 | C2: UMAP_2 | D2: dpt_pseudotime
A3: ACCTCCAA_AAACATCG_AATAGAAC-0 | B3: 0.5586975 | C3: -0.6328468 | D3: 0.28153312
A4: AGAGTCAA_AAACATCG_AATAGAAC-0 | B4: 3.6207178 | C4: -2.0538034 | D4: 0.11064874
A5: ATCATTCC_AAACATCG_AATAGAAC-0 | B5: 4.595522 | C5: -5.5414476 | D5: 0.14080368
A6: CACCTTAC_AAACATCG_AATAGAAC-0 | B6: 1.5679455 | C6: 2.8566818 | D6: 0.27247512
A7: CGACACAC_AAACATCG_AATAGAAC-0 | B7: 1.915581 | C7: 1.2987063 | D7: 0.16848949
A8: CGACTGGA_AAACATCG_AATAGAAC-0 | B8: -1.1009221 | C8: -2.859692 | D8: 0.54062337
A9: TCTTCACA_AAACATCG_AATAGAAC-0 | B9: -3.7819889 | C9: 3.4228604 | D9: 0.51286536
A10: AAGAGATC_AACAACCA_AATAGAAC-0 | B10: 6.684339 | C10: -1.2060357 | D10: 0
A11: ACACGACC_AACAACCA_AATAGAAC-0 | B11: 6.2951555 | C11: 0.11970851 | D11: 0.03714692
A12: AGTACAAG_AACAACCA_AATAGAAC-0 | B12: -2.844971 | C12: 2.0383933 | D12: 0.4504027
A13: CAAGGAGC_AACAACCA_AATAGAAC-0 | B13: 7.546356 | C13: -0.7286201 | D13: 0.03787327
A14: CCTAATCC_AACAACCA_AATAGAAC-0 | B14: 7.988169 | C14: 0.1682858 | D14: 0.07733907
A15: CGACACAC_AACAACCA_AATAGAAC-0 | B15: -5.664224 | C15: 1.7599093 | D15: 0.6183643
A16: CGCTGATC_AACAACCA_AATAGAAC-0 | B16: -1.2819631 | C16: 2.9064667 | D16: 0.3949958
A17: GTGTTCTA_AACAACCA_AATAGAAC-0 | B17: 1.9889153 | C17: 1.1290948 | D17: 0.21294405
A18: AATCCGTC_AACCGAGA_AATAGAAC-0 | B18: -7.217215 | C18: 3.9085107 | D18: 0.6874466
A19: ATTGGCTC_AACCGAGA_AATAGAAC-0 | B19: -2.6962554 | C19: 5.178722 | D19: 0.48625383
A20: CCTAATCC_AACCGAGA_AATAGAAC-0 | B20: 3.9313164 | C20: -5.8046784 | D20: 0.16269636
A21: CGCTGATC_AACCGAGA_AATAGAAC-0 | B21: -0.5009102 | C21: 0.6255901 | D21: 0.37103283
A22: GAGCTGAA_AACCGAGA_AATAGAAC-0 | B22: -4.404758 | C22: 3.983276 | D22: 0.547403
A23: GAGTTAGC_AACCGAGA_AATAGAAC-0 | B23: 7.628192 | C23: -1.9263523 | D23: 0.11010094
A24: GCCACATA_AACCGAGA_AATAGAAC-0 | B24: -8.621456 | C24: -1.2984297 | D24: 0.780624
A25: AACAACCA_AACGCTTA_AATAGAAC-0 | B25: 4.454229 | C25: -0.9823121 | D25: 0.09082887
A26: AGATGTAC_AACGCTTA_AATAGAAC-0 | B26: 0.41702133 | C26: 2.1934214 | D26: 0.3046341
A27: AGCACCTC_AACGCTTA_AATAGAAC-0 | B27: 6.9246297 | C27: -3.527163 | D27: 0.1148385
A28: ATCCTGTA_AACGCTTA_AATAGAAC-0 | B28: 4.9929075 | C28: -0.4683745 | D28: 0.08099487
A29: ATTGGCTC_AACGCTTA_AATAGAAC-0 | B29: -1.317363 | C29: 2.68149 | D29: 0.41353166
A30: CGACACAC_AACGCTTA_AATAGAAC-0 | B30: 4.763953 | C30: -5.720649 | D30: 0.18179604
A31: CTAAGGTC_AACGCTTA_AATAGAAC-0 | B31: -7.5361395 | C31: 2.7916248 | D31: 0.64136755
A32: GATAGACA_AACGCTTA_AATAGAAC-0 | B32: 5.449742 | C32: -1.3408045 | D32: 0.04210819
A33: CAAGGAGC_AACGTGAT_AATAGAAC-0 | B33: -3.370176 | C33: 4.626942 | D33: 0.48624068
A34: CAATGGAA_AACGTGAT_AATAGAAC-0 | B34: 4.7823286 | C34: -1.7959594 | D34: 0.07345723
A35: CACCTTAC_AACGTGAT_AATAGAAC-0 | B35: -6.3533115 | C35: 4.831272 | D35: 0.64578944
A36: CGAACTTA_AACGTGAT_AATAGAAC-0 | B36: 6.4862356 | C36: -3.180422 | D36: 0.07954859
A37: CTGAGCCA_AACGTGAT_AATAGAAC-0 | B37: -7.7143536 | C37: 0.25149438 | D37: 0.6705798
A38: CTGTAGCC_AACGTGAT_AATAGAAC-0 | B38: 6.529771 | C38: -0.6581077 | D38: 0.01603532
A39: GAGCTGAA_AACGTGAT_AATAGAAC-0 | B39: -1.7728581 | C39: 0.08788051 | D39: 0.4032523
A40: TATCAGCA_AACGTGAT_AATAGAAC-0 | B40: 2.9816513 | C40: 3.502717 | D40: 0.16201577
A41: AAGGTACA_AACTCACC_AATAGAAC-0 | B41: -4.3284364 | C41: 0.46418133 | D41: 0.54042864
A42: ACAGATTC_AACTCACC_AATAGAAC-0 | B42: -4.9453173 | C42: 2.8868563 | D42: 0.56024086
A43: ACTATGCA_AACTCACC_AATAGAAC-0 | B43: 5.1581745 | C43: -3.9157546 | D43: 0.10712157
A44: ATAGCGAC_AACTCACC_AATAGAAC-0 | B44: 2.0812113 | C44: 1.590555 | D44: 0.19540435
A45: ATGCCTAA_AACTCACC_AATAGAAC-0 | B45: -7.2749043 | C45: 1.119907 | D45: 0.6798005
A46: CAAGGAGC_AACTCACC_AATAGAAC-0 | B46: -0.1334598 | C46: 1.6568067 | D46: 0.34058255
A47: CTAAGGTC_AACTCACC_AATAGAAC-0 | B47: -1.2665104 | C47: 2.8491445 | D47: 0.39397442
A48: GAACAGGC_AACTCACC_AATAGAAC-0 | B48: -3.4435678 | C48: 3.3672407 | D48: 0.50494564
A49: GAGTTAGC_AACTCACC_AATAGAAC-0 | B49: -0.3517065 | C49: 2.2264216 | D49: 0.4375075
A50: GCGAGTAA_AACTCACC_AATAGAAC-0 | B50: -2.441243 | C50: 1.9008428 | D50: 0.44055474
A51: GCTCGGTA_AACTCACC_AATAGAAC-0 | B51: -4.010731 | C51: 0.20755865 | D51: 0.5292863
A52: GTGTTCTA_AACTCACC_AATAGAAC-0 | B52: 7.772956 | C52: -1.538135 | D52: 0.08688782
A53: ATAGCGAC_AAGACGGA_AATAGAAC-0 | B53: 5.3714952 | C53: 1.0783354 | D53: 0.11324591
A54: AACCGAGA_AAGAGATC_AATAGAAC-0 | B54: 4.947104 | C54: -4.054687 | D54: 0.1161378
A55: ATTGGCTC_AAGAGATC_AATAGAAC-0 | B55: 1.3407035 | C55: -1.7476764 | D55: 0.20267203
A56: CACCTTAC_AAGAGATC_AATAGAAC-0 | B56: 4.4720106 | C56: 1.325385 | D56: 0.1552777
A57: CGACTGGA_AAGAGATC_AATAGAAC-0 | B57: -5.3880343 | C57: -1.8104155 | D57: 0.6259466
A58: GTCTGTCA_AAGAGATC_AATAGAAC-0 | B58: 5.435344 | C58: -1.8212867 | D58: 0.05482741
A59: TTCACGCA_AAGAGATC_AATAGAAC-0 | B59: -3.1692727 | C59: 4.4184637 | D59: 0.47739252
A60: AACAACCA_AAGGACAC_AATAGAAC-0 | B60: -4.4012547 | C60: -1.2030089 | D60: 0.5629851
A61: AACGTGAT_AAGGACAC_AATAGAAC-0 | B61: -0.445279 | C61: 1.3169119 | D61: 0.40216514
A62: ACACGACC_AAGGACAC_AATAGAAC-0 | B62: 1.1440398 | C62: 0.6016264 | D62: 0.25969386
A63: AGCAGGAA_AAGGACAC_AATAGAAC-0 | B63: -4.43282 | C63: -0.1578113 | D63: 0.5414051
A64: TCCGTCTA_AAGGACAC_AATAGAAC-0 | B64: 5.136785 | C64: -0.3674633 | D64: 0.07575251
A65: CCTCTATC_AAGGTACA_AATAGAAC-0 | B65: -2.3722994 | C65: 2.6331248 | D65: 0.46727702
A66: CTCAATGA_AAGGTACA_AATAGAAC-0 | B66: 0.7004297 | C66: -0.1887908 | D66: 0.26415077
A67: CTGTAGCC_AAGGTACA_AATAGAAC-0 | B67: -4.3713913 | C67: -1.7799623 | D67: 0.54187113
A68: ACAGATTC_AATCCGTC_AATAGAAC-0 | B68: -0.2055927 | C68: 2.096703 | D68: 0.34802926
A69: ACCTCCAA_AATCCGTC_AATAGAAC-0 | B69: 7.9349523 | C69: -3.5966096 | D69: 0.12300341
A70: AGTCACTA_AATCCGTC_AATAGAAC-0 | B70: 2.1146452 | C70: 1.8668958 | D70: 0.23509452
A71: CACCTTAC_AATCCGTC_AATAGAAC-0 | B71: -8.65871 | C71: -1.8346304 | D71: 0.78553414
A72: CCAGTTCA_AATCCGTC_AATAGAAC-0 | B72: -5.653767 | C72: 3.8357205 | D72: 0.5821646
A73: GATAGACA_AATCCGTC_AATAGAAC-0 | B73: 5.1094685 | C73: -2.6136184 | D73: 0.07443012
A74: GATGAATC_AATCCGTC_AATAGAAC-0 | B74: 7.633329 | C74: -3.3588765 | D74: 0.09667862
A75: GTCGTAGA_AATCCGTC_AATAGAAC-0 | B75: -8.8613 | C75: -1.6310602 | D75: 0.7587129
A76: GTGTTCTA_AATCCGTC_AATAGAAC-0 | B76: -7.9594984 | C76: 3.9596686 | D76: 0.7152769
A77: ATCCTGTA_AATGTTGC_AATAGAAC-0 | B77: 3.5521548 | C77: -3.1507964 | D77: 0.12207463
A78: ATTGGCTC_AATGTTGC_AATAGAAC-0 | B78: 4.117664 | C78: -4.175851 | D78: 0.13673621
A79: CCAGTTCA_AATGTTGC_AATAGAAC-0 | B79: 1.6539952 | C79: 0.33731055 | D79: 0.22304952
A80: GGTGCGAA_AATGTTGC_AATAGAAC-0 | B80: -1.0372407 | C80: 0.19115897 | D80: 0.3965759
A81: AGCACCTC_ACAAGCTA_AATAGAAC-0 | B81: -6.748901 | C81: -0.1706526 | D81: 0.6882578
A82: ATTGGCTC_ACAAGCTA_AATAGAAC-0 | B82: 3.3457735 | C82: -3.3742561 | D82: 0.13327244
A83: CCTCTATC_ACAAGCTA_AATAGAAC-0 | B83: -0.7888761 | C83: -0.1498512 | D83: 0.36402637
A84: ATCATTCC_ACACAGAA_AATAGAAC-0 | B84: -4.2158165 | C84: 2.2406507 | D84: 0.49227068
A85: ATTGAGGA_ACACAGAA_AATAGAAC-0 | B85: 6.6409597 | C85: -1.2067932 | D85: 0.01066
A86: CAGATCTG_ACACAGAA_AATAGAAC-0 | B86: -2.6128979 | C86: 3.6361234 | D86: 0.5124917
A87: CCGACAAC_ACACAGAA_AATAGAAC-0 | B87: 5.9713397 | C87: -5.3855124 | D87: 0.13610609
A88: CTGTAGCC_ACACAGAA_AATAGAAC-0 | B88: 7.553997 | C88: -2.1956704 | D88: 0.06031328
A89: GTACGCAA_ACACAGAA_AATAGAAC-0 | B89: -6.3286586 | C89: 1.561939 | D89: 0.6080634
A90: TGAAGAGA_ACACAGAA_AATAGAAC-0 | B90: 4.975839 | C90: -5.9681263 | D90: 0.14719744
A91: TGGAACAA_ACACAGAA_AATAGAAC-0 | B91: 8.121826 | C91: -1.5048639 | D91: 0.08560453
A92: AACTCACC_ACACGACC_AATAGAAC-0 | B92: -0.0614016 | C92: -0.0491229 | D92: 0.34139013
A93: AAGAGATC_ACACGACC_AATAGAAC-0 | B93: -0.5637643 | C93: -1.5184526 | D93: 0.29160944
A94: ACCTCCAA_ACACGACC_AATAGAAC-0 | B94: 5.4659634 | C94: -1.6439202 | D94: 0.06114496
A95: ACGTATCA_ACACGACC_AATAGAAC-0 | B95: 4.786131 | C95: -0.4131218 | D95: 0.08185037
A96: CAATGGAA_ACACGACC_AATAGAAC-0 | B96: 0.64911467 | C96: -0.3883742 | D96: 0.2786409
A97: CCGAAGTA_ACACGACC_AATAGAAC-0 | B97: -4.0854616 | C97: 4.4544044 | D97: 0.54938173
A98: CCTCCTGA_ACACGACC_AATAGAAC-0 | B98: 0.5919205 | C98: 1.6135951 | D98: 0.33322796
A99: CGAACTTA_ACACGACC_AATAGAAC-0 | B99: -6.351298 | C99: 2.3544562 | D99: 0.6291102
A100: GAGTTAGC_ACACGACC_AATAGAAC-0 | B100: 3.9761655 | C100: 2.7894118 | D100: 0.14623894
A101: GCGAGTAA_ACACGACC_AATAGAAC-0 | B101: -9.2019 | C101: 0.83364886 | D101: 0.77141124
A102: AATCCGTC_ACAGATTC_AATAGAAC-0 | B102: 6.7811475 | C102: -0.8586652 | D102: 0.01702424
A103: ACAAGCTA_ACAGATTC_AATAGAAC-0 | B103: 5.856255 | C103: -2.0561159 | D103: 0.06410623
A104: AGCCATGC_ACAGATTC_AATAGAAC-0 | B104: 1.8479494 | C104: -3.2871983 | D104: 0.15929657
A105: ATAGCGAC_ACAGATTC_AATAGAAC-0 | B105: -0.4552859 | C105: 0.59832156 | D105: 0.38446385
A106: CAGCGTTA_ACAGATTC_AATAGAAC-0 | B106: -7.6304636 | C106: -0.1653979 | D106: 0.68425
A107: CCAGTTCA_ACAGATTC_AATAGAAC-0 | B107: -5.293825 | C107: 0.617801 | D107: 0.57470495
A108: GCCAAGAC_ACAGATTC_AATAGAAC-0 | B108: 1.0502754 | C108: 1.3850561 | D108: 0.28055802
A109: GCGAGTAA_ACAGATTC_AATAGAAC-0 | B109: 3.6928136 | C109: -1.7142301 | D109: 0.11087152
A110: GCTCGGTA_ACAGATTC_AATAGAAC-0 | B110: -6.3731537 | C110: -1.771185 | D110: 0.671808
A111: GTCTGTCA_ACAGATTC_AATAGAAC-0 | B111: -1.6690528 | C111: 2.5720425 | D111: 0.41943583
A112: TAGGATGA_ACAGATTC_AATAGAAC-0 | B112: -5.686368 | C112: 1.2013795 | D112: 0.57767266
A113: TGGCTTCA_ACAGATTC_AATAGAAC-0 | B113: 2.9460783 | C113: -2.2168815 | D113: 0.13270724
A114: AAGACGGA_ACAGCAGA_AATAGAAC-0 | B114: -8.389147 | C114: -3.7427132 | D114: 0.83885884
A115: AAGAGATC_ACAGCAGA_AATAGAAC-0 | B115: -2.0720232 | C115: 0.94025147 | D115: 0.42627174
A116: ACCACTGT_ACAGCAGA_AATAGAAC-0 | B116: -3.585451 | C116: -0.0901644 | D116: 0.5058206
A117: CAAGGAGC_ACAGCAGA_AATAGAAC-0 | B117: -8.791693 | C117: 0.12131993 | D117: 0.76469785
A118: CAATGGAA_ACAGCAGA_AATAGAAC-0 | B118: -5.9342575 | C118: -2.4409165 | D118: 0.66082704
A119: CCGAAGTA_ACAGCAGA_AATAGAAC-0 | B119: 1.8101858 | C119: 1.0412632 | D119: 0.21696046
A120: CCTCTATC_ACAGCAGA_AATAGAAC-0 | B120: -2.574247 | C120: 0.7816822 | D120: 0.458669
A121: GAACAGGC_ACAGCAGA_AATAGAAC-0 | B121: 7.2835474 | C121: -0.5351889 | D121: 0.04832722
A122: GCTAACGA_ACAGCAGA_AATAGAAC-0 | B122: -6.6284533 | C122: 1.1875284 | D122: 0.65592754
A123: AAGAGATC_ACATTGGC_AATAGAAC-0 | B123: -1.2045877 | C123: 3.856657 | D123: 0.38607517
A124: AGCACCTC_ACATTGGC_AATAGAAC-0 | B124: 7.9039993 | C124: -1.7938396 | D124: 0.09873866
A125: AGTCACTA_ACATTGGC_AATAGAAC-0 | B125: 3.0476577 | C125: -0.562429 | D125: 0.1163694
A126: ATAGCGAC_ACATTGGC_AATAGAAC-0 | B126: 0.33223948 | C126: 3.2773907 | D126: 0.33412752
A127: ATCATTCC_ACATTGGC_AATAGAAC-0 | B127: 7.236579 | C127: -4.021374 | D127: 0.11339579
A128: ATCCTGTA_ACATTGGC_AATAGAAC-0 | B128: 2.3345585 | C128: -1.275794 | D128: 0.14829971
A129: CAAGGAGC_ACATTGGC_AATAGAAC-0 | B129: -8.430365 | C129: 2.165426 | D129: 0.7079642
A130: CACCTTAC_ACATTGGC_AATAGAAC-0 | B130: 6.953418 | C130: 0.8648348 | D130: 0.0842072
A131: CCTAATCC_ACATTGGC_AATAGAAC-0 | B131: -7.175331 | C131: 3.9094057 | D131: 0.66884184
A132: CCTCTATC_ACATTGGC_AATAGAAC-0 | B132: -6.4905667 | C132: 3.852109 | D132: 0.648824
A133: CTCAATGA_ACATTGGC_AATAGAAC-0 | B133: -4.150056 | C133: -0.8460901 | D133: 0.54198116
A134: GATAGACA_ACATTGGC_AATAGAAC-0 | B134: -3.2672746 | C134: 2.2262719 | D134: 0.49185103
A135: GCGAGTAA_ACATTGGC_AATAGAAC-0 | B135: 3.3118052 | C135: 2.7825036 | D135: 0.11870906
A136: TATCAGCA_ACATTGGC_AATAGAAC-0 | B136: -1.105284 | C136: 5.3886957 | D136: 0.4044284
A137: AAGGACAC_ACCACTGT_AATAGAAC-0 | B137: 5.3358297 | C137: 1.9347194 | D137: 0.20473948
A138: ACCACTGT_ACCACTGT_AATAGAAC-0 | B138: -7.562908 | C138: -2.8016124 | D138: 0.77385145
A139: ACCTCCAA_ACCACTGT_AATAGAAC-0 | B139: -6.3413534 | C139: 1.1051296 | D139: 0.62757844
A140: AGTCACTA_ACCACTGT_AATAGAAC-0 | B140: 2.690508 | C140: -3.194461 | D140: 0.14895305
A141: CACCTTAC_ACCACTGT_AATAGAAC-0 | B141: 4.917398 | C141: -3.0695724 | D141: 0.08917447
A142: CAGCGTTA_ACCACTGT_AATAGAAC-0 | B142: -7.7727365 | C142: 3.5582163 | D142: 0.6967403
A143: CTAAGGTC_ACCACTGT_AATAGAAC-0 | B143: 1.3265318 | C143: 1.6608307 | D143: 0.2434087
A144: GAGTTAGC_ACCACTGT_AATAGAAC-0 | B144: -6.375004 | C144: 4.694177 | D144: 0.65276057
A145: AGAGTCAA_ACCTCCAA_AATAGAAC-0 | B145: -4.1429734 | C145: 0.7357887 | D145: 0.53321046
A146: CATCAAGT_ACCTCCAA_AATAGAAC-0 | B146: -7.2793813 | C146: 0.831313 | D146: 0.68761253
A147: GACAGTGC_ACCTCCAA_AATAGAAC-0 | B147: -7.3069253 | C147: 1.514466 | D147: 0.70014143
A148: GAGCTGAA_ACCTCCAA_AATAGAAC-0 | B148: 8.648832 | C148: -2.21293 | D148: 0.09520418
A149: GCCACATA_ACCTCCAA_AATAGAAC-0 | B149: -8.893462 | C149: -1.823564 | D149: 0.82459337
A150: GCTAACGA_ACCTCCAA_AATAGAAC-0 | B150: 5.7054687 | C150: -4.483439 | D150: 0.10922566
A151: AATCCGTC_ACGCTCGA_AATAGAAC-0 | B151: 5.263466 | C151: -2.5820856 | D151: 0.06832279
A152: AATGTTGC_ACGCTCGA_AATAGAAC-0 | B152: -3.0543754 | C152: 1.2494433 | D152: 0.46070945
A153: GAGTTAGC_ACGCTCGA_AATAGAAC-0 | B153: 0.36455038 | C153: -0.9255544 | D153: 0.27696842
A154: TGGCTTCA_ACGCTCGA_AATAGAAC-0 | B154: -1.7900432 | C154: -1.8561554 | D154: 0.2995643
A155: TTCACGCA_ACGCTCGA_AATAGAAC-0 | B155: -0.6932626 | C155: 2.2873187 | D155: 0.360156
A156: ATTGGCTC_ACGTATCA_AATAGAAC-0 | B156: 5.5145483 | C156: -1.0011121 | D156: 0.03872744
A157: CCATCCTC_ACGTATCA_AATAGAAC-0 | B157: 3.6169984 | C157: -3.6263576 | D157: 0.12666994
A158: CCTCCTGA_ACGTATCA_AATAGAAC-0 | B158: -5.606735 | C158: -1.4504089 | D158: 0.61742777
A159: GATAGACA_ACGTATCA_AATAGAAC-0 | B159: 0.03151579 | C159: 0.01490415 | D159: 0.30670643
A160: CCGTGAGA_ACTATGCA_AATAGAAC-0 | B160: 3.1088014 | C160: -1.3281692 | D160: 0.12839833
A161: CCTCTATC_ACTATGCA_AATAGAAC-0 | B161: 0.54080653 | C161: 1.3165305 | D161: 0.33466437
A162: GATGAATC_ACTATGCA_AATAGAAC-0 | B162: -8.921736 | C162: -2.033455 | D162: 0.84458876
A163: TAGGATGA_ACTATGCA_AATAGAAC-0 | B163: 2.2124164 | C163: -0.898624 | D163: 0.14920752
A164: AAGAGATC_AGAGTCAA_AATAGAAC-0 | B164: 4.498244 | C164: -0.0884825 | D164: 0.09139916
A165: AAGGACAC_AGAGTCAA_AATAGAAC-0 | B165: 4.3852186 | C165: -0.8323103 | D165: 0.10434423
A166: CCTCTATC_AGAGTCAA_AATAGAAC-0 | B166: 4.5372367 | C166: -4.9247007 | D166: 0.11648097
A167: GATAGACA_AGAGTCAA_AATAGAAC-0 | B167: 5.661416 | C167: -3.7775233 | D167: 0.10284425
A168: TAGGATGA_AGAGTCAA_AATAGAAC-0 | B168: 0.86409503 | C168: 1.2504789 | D168: 0.29773974
A169: TCTTCACA_AGAGTCAA_AATAGAAC-0 | B169: -4.106357 | C169: 3.556633 | D169: 0.5257415
A170: ATTGGCTC_AGATCGCA_AATAGAAC-0 | B170: 4.1237216 | C170: -2.5219333 | D170: 0.12700625
A171: CACCTTAC_AGATCGCA_AATAGAAC-0 | B171: -9.128813 | C171: 3.0117867 | D171: 0.7291711
A172: CCTAATCC_AGATCGCA_AATAGAAC-0 | B172: 4.1192665 | C172: -1.3717858 | D172: 0.09490074
A173: CTAAGGTC_AGATCGCA_AATAGAAC-0 | B173: -4.644094 | C173: -1.1769797 | D173: 0.56011957
A174: GAACAGGC_AGATCGCA_AATAGAAC-0 | B174: 1.2198237 | C174: 0.33273488 | D174: 0.26540077
A175: ACACGACC_AGATGTAC_AATAGAAC-0 | B175: -9.202124 | C175: -0.2305297 | D175: 0.75550556
A176: AGATGTAC_AGATGTAC_AATAGAAC-0 | B176: 0.58001155 | C176: -0.40571 | D176: 0.28363398
A177: AGCACCTC_AGATGTAC_AATAGAAC-0 | B177: -0.6674907 | C177: 0.3332195 | D177: 0.3437813
A178: GTGTTCTA_AGATGTAC_AATAGAAC-0 | B178: 0.285605 | C178: 0.66786563 | D178: 0.32738116
A179: TGGTGGTA_AGATGTAC_AATAGAAC-0 | B179: 2.0898275 | C179: -3.2866645 | D179: 0.15239738
A180: AACGTGAT_AGCACCTC_AATAGAAC-0 | B180: 5.069669 | C180: 1.4596868 | D180: 0.13315496
A181: AACTCACC_AGCACCTC_AATAGAAC-0 | B181: 1.3998871 | C181: 0.21953155 | D181: 0.23209608
A182: AGATGTAC_AGCACCTC_AATAGAAC-0 | B182: 5.726718 | C182: -3.735972 | D182: 0.09262925
A183: CGACACAC_AGCACCTC_AATAGAAC-0 | B183: 4.0737295 | C183: -5.8668256 | D183: 0.19583857
A184: GAGTTAGC_AGCACCTC_AATAGAAC-0 | B184: 2.480527 | C184: -2.270106 | D184: 0.14422089
A185: AGTGGTCA_AGCAGGAA_AATAGAAC-0 | B185: -0.7305863 | C185: 3.5325232 | D185: 0.37242645
A186: ATTGAGGA_AGCAGGAA_AATAGAAC-0 | B186: -1.841878 | C186: 3.203988 | D186: 0.40512308
A187: CACTTCGA_AGCAGGAA_AATAGAAC-0 | B187: -2.54584 | C187: 0.02261417 | D187: 0.45367098
A188: CAGCGTTA_AGCAGGAA_AATAGAAC-0 | B188: -8.602384 | C188: 0.4081627 | D188: 0.72833574
A189: GAACAGGC_AGCAGGAA_AATAGAAC-0 | B189: 6.6326056 | C189: 0.1328737 | D189: 0.03404109
A190: GTACGCAA_AGCAGGAA_AATAGAAC-0 | B190: 7.0188394 | C190: 0.3124809 | D190: 0.0482983
A191: GTCTGTCA_AGCAGGAA_AATAGAAC-0 | B191: 1.3542104 | C191: 3.2538996 | D191: 0.30339456
A192: GTGTTCTA_AGCAGGAA_AATAGAAC-0 | B192: 8.125473 | C192: -0.351409 | D192: 0.08445059
A193: AGCACCTC_AGCCATGC_AATAGAAC-0 | B193: 0.21726339 | C193: -0.5584631 | D193: 0.30355862
A194: CACCTTAC_AGCCATGC_AATAGAAC-0 | B194: -1.9143246 | C194: -0.2830051 | D194: 0.4153125
A195: CATACCAA_AGCCATGC_AATAGAAC-0 | B195: -7.035773 | C195: -3.0411065 | D195: 0.7627159
A196: CCGACAAC_AGCCATGC_AATAGAAC-0 | B196: -2.016225 | C196: 0.19410437 | D196: 0.42139357
A197: GAGCTGAA_AGCCATGC_AATAGAAC-0 | B197: -6.7104173 | C197: 2.0059147 | D197: 0.6442026
A198: GAGTTAGC_AGCCATGC_AATAGAAC-0 | B198: 6.1396604 | C198: -0.6159154 | D198: 0.02810668
A199: AAGACGGA_AGGCTAAC_AATAGAAC-0 | B199: -7.928236 | C199: 1.7148007 | D199: 0.70145196
A200: AGTCACTA_AGGCTAAC_AATAGAAC-0 | B200: -5.1856747 | C200: 1.9534979 | D200: 0.5690438
... 4300 more rows

Sheet Figure 2c
A1: Figure 2c
A2: dpt_pseudotime | B2: BF_counts | C2: Phage_counts | D2: infection_status | E2: BF_median | F2: Phage_median
A3: 0.28153312 | B3: 35 | D3: infected | E3: 75 | F3: 20.5
A4: 0.27247512 | B4: 124 | D4: infected | E4: 75 | F4: 20.5
A5: 0.16848949 | B5: 137 | D5: infected | E5: 110 | F5: 9
A6: 0.51286536 | B6: 88 | D6: infected | E6: 54 | F6: 62
A7: 0.4504027 | B7: 91.14285 | D7: infected | E7: 59 | F7: 43.5
A8: 0.6183643 | B8: 77 | D8: infected | E8: 38 | F8: 72
A9: 0.3949958 | B9: 104.5 | D9: infected | E9: 70.14286 | F9: 44
A10: 0.21294405 | B10: 106 | D10: infected | E10: 88 | F10: 19
A11: 0.6874466 | B11: 29 | D11: infected | E11: 24 | F11: 89
A12: 0.48625383 | B12: 181 | D12: infected | E12: 56.5 | F12: 50
A13: 0.37103283 | B13: 44 | D13: infected | E13: 74 | F13: 37
A14: 0.547403 | B14: 82 | D14: infected | E14: 45 | F14: 65
A15: 0.780624 | B15: 28 | D15: infected | E15: 15 | F15: 71
A16: 0.3046341 | B16: 91 | D16: infected | E16: 76.75 | F16: 29
A17: 0.41353166 | B17: 50 | D17: infected | E17: 70.14286 | F17: 44
A18: 0.64136755 | B18: 30 | D18: infected | E18: 32 | F18: 82
A19: 0.48624068 | B19: 105 | D19: infected | E19: 56.5 | F19: 50
A20: 0.64578944 | B20: 70 | D20: infected | E20: 32 | F20: 82
A21: 0.6705798 | B21: 18 | D21: infected | E21: 24 | F21: 89
A22: 0.4032523 | B22: 48 | D22: infected | E22: 70.14286 | F22: 44
A23: 0.16201577 | B23: 287.14285 | D23: infected | E23: 61.16667 | F23: 0
A24: 0.54042864 | B24: 34 | D24: infected | E24: 54 | F24: 62
A25: 0.56024086 | B25: 51.14286 | D25: infected | E25: 45 | F25: 65
A26: 0.19540435 | B26: 116 | D26: infected | E26: 110 | F26: 9
A27: 0.6798005 | B27: 16 | D27: infected | E27: 24 | F27: 89
A28: 0.34058255 | B28: 69 | D28: infected | E28: 74 | F28: 37
A29: 0.39397442 | B29: 92.47619 | D29: infected | E29: 70.14286 | F29: 44
A30: 0.50494564 | B30: 74 | D30: infected | E30: 54 | F30: 62
A31: 0.4375075 | B31: 64 | D31: infected | E31: 59 | F31: 43.5
A32: 0.44055474 | B32: 72 | D32: infected | E32: 59 | F32: 43.5
A33: 0.5292863 | B33: 35 | D33: infected | E33: 54 | F33: 62
A34: 0.20267203 | B34: 49 | D34: infected | E34: 110 | F34: 9
A35: 0.6259466 | B35: 19 | D35: infected | E35: 32 | F35: 82
A36: 0.47739252 | B36: 93 | D36: infected | E36: 56.5 | F36: 50
A37: 0.5629851 | B37: 21 | D37: infected | E37: 45 | F37: 65
A38: 0.40216514 | B38: 32 | D38: infected | E38: 70.14286 | F38: 44
A39: 0.25969386 | B39: 80 | D39: infected | E39: 75 | F39: 20.5
A40: 0.5414051 | B40: 19 | D40: infected | E40: 54 | F40: 62
A41: 0.46727702 | B41: 44.33333 | D41: infected | E41: 56.5 | F41: 50
A42: 0.26415077 | B42: 54 | D42: infected | E42: 75 | F42: 20.5
A43: 0.54187113 | B43: 31 | D43: infected | E43: 45 | F43: 65
A44: 0.34802926 | B44: 94 | D44: infected | E44: 74 | F44: 37
A45: 0.23509452 | B45: 111.25 | D45: infected | E45: 88 | F45: 19
A46: 0.78553414 | B46: 23.333332 | D46: infected | E46: 15 | F46: 71
A47: 0.5821646 | B47: 56 | D47: infected | E47: 45 | F47: 65
A48: 0.7587129 | B48: 25 | D48: infected | E48: 15 | F48: 71
A49: 0.7152769 | B49: 52 | D49: infected | E49: 19.154764 | F49: 83
A50: 0.22304952 | B50: 76 | D50: infected | E50: 88 | F50: 19
A51: 0.3965759 | B51: 36 | D51: infected | E51: 70.14286 | F51: 44
A52: 0.6882578 | B52: 11 | D52: infected | E52: 24 | F52: 89
A53: 0.36402637 | B53: 50 | D53: infected | E53: 74 | F53: 37
A54: 0.49227068 | B54: 86.833336 | D54: infected | E54: 56.5 | F54: 50
A55: 0.5124917 | B55: 94 | D55: infected | E55: 54 | F55: 62
A56: 0.6080634 | B56: 41 | D56: infected | E56: 38 | F56: 72
A57: 0.34139013 | B57: 41 | D57: infected | E57: 74 | F57: 37
A58: 0.29160944 | B58: 43 | D58: infected | E58: 75 | F58: 20.5
A59: 0.2786409 | B59: 49.33333 | D59: infected | E59: 75 | F59: 20.5
A60: 0.54938173 | B60: 78 | D60: infected | E60: 45 | F60: 65
A61: 0.33322796 | B61: 72 | D61: infected | E61: 76.75 | F61: 29
A62: 0.6291102 | B62: 34 | D62: infected | E62: 32 | F62: 82
A63: 0.14623894 | B63: 234 | D63: infected | E63: 61.16667 | F63: 0
A64: 0.77141124 | B64: 15 | D64: infected | E64: 15 | F64: 71
A65: 0.38446385 | B65: 38 | D65: infected | E65: 70.14286 | F65: 44
A66: 0.68425 | B66: 7 | D66: infected | E66: 24 | F66: 89
A67: 0.57470495 | B67: 25 | D67: infected | E67: 45 | F67: 65
A68: 0.28055802 | B68: 88.33333 | D68: infected | E68: 75 | F68: 20.5
A69: 0.671808 | B69: 19 | D69: infected | E69: 24 | F69: 89
A70: 0.41943583 | B70: 76 | D70: infected | E70: 59 | F70: 43.5
A71: 0.57767266 | B71: 43.14286 | D71: infected | E71: 45 | F71: 65
A72: 0.83885884 | B72: 6 | D72: infected | E72: 12 | F72: 66
A73: 0.42627174 | B73: 58 | D73: infected | E73: 59 | F73: 43.5
A74: 0.5058206 | B74: 37 | D74: infected | E74: 54 | F74: 62
A75: 0.76469785 | B75: 16 | D75: infected | E75: 15 | F75: 71
A76: 0.66082704 | B76: 10 | D76: infected | E76: 32 | F76: 82
A77: 0.21696046 | B77: 75.14285 | D77: infected | E77: 88 | F77: 19
A78: 0.458669 | B78: 43.142857 | D78: infected | E78: 56.5 | F78: 50
A79: 0.65592754 | B79: 40 | D79: infected | E79: 32 | F79: 82
A80: 0.38607517 | B80: 137 | D80: infected | E80: 70.14286 | F80: 44
A81: 0.33412752 | B81: 131 | D81: infected | E81: 74 | F81: 37
A82: 0.7079642 | B82: 27 | D82: infected | E82: 24 | F82: 89
A83: 0.66884184 | B83: 51 | D83: infected | E83: 24 | F83: 89
A84: 0.648824 | B84: 48 | D84: infected | E84: 32 | F84: 82
A85: 0.54198116 | B85: 19 | D85: infected | E85: 45 | F85: 65
A86: 0.49185103 | B86: 60.14286 | D86: infected | E86: 56.5 | F86: 50
A87: 0.11870906 | B87: 188.33333 | D87: infected | E87: 89 | F87: 0
A88: 0.4044284 | B88: 221 | D88: infected | E88: 70.14286 | F88: 44
A89: 0.77385145 | B89: 8 | D89: infected | E89: 15 | F89: 71
A90: 0.62757844 | B90: 31 | D90: infected | E90: 32 | F90: 82
A91: 0.6967403 | B91: 30 | D91: infected | E91: 24 | F91: 89
A92: 0.2434087 | B92: 101 | D92: infected | E92: 88 | F92: 19
A93: 0.65276057 | B93: 63 | D93: infected | E93: 32 | F93: 82
A94: 0.53321046 | B94: 53 | D94: infected | E94: 54 | F94: 62
A95: 0.68761253 | B95: 13.5 | D95: infected | E95: 24 | F95: 89
A96: 0.70014143 | B96: 35 | D96: infected | E96: 24 | F96: 89
A97: 0.82459337 | B97: 5 | D97: infected | E97: 13 | F97: 66
A98: 0.46070945 | B98: 54 | D98: infected | E98: 56.5 | F98: 50
A99: 0.27696842 | B99: 38 | D99: infected | E99: 75 | F99: 20.5
A100: 0.2995643 | B100: 52 | D100: infected | E100: 76.75 | F100: 29
A101: 0.360156 | B101: 76 | D101: infected | E101: 74 | F101: 37
A102: 0.61742777 | B102: 16 | D102: infected | E102: 38 | F102: 72
A103: 0.30670643 | B103: 55 | D103: infected | E103: 76.75 | F103: 29
A104: 0.33466437 | B104: 59 | D104: infected | E104: 74 | F104: 37
A105: 0.84458876 | B105: 15 | D105: infected | E105: 12 | F105: 66
A106: 0.29773974 | B106: 66 | D106: infected | E106: 76.75 | F106: 29
A107: 0.5257415 | B107: 87 | D107: infected | E107: 54 | F107: 62
A108: 0.7291711 | B108: 12 | D108: infected | E108: 19.154764 | F108: 83
A109: 0.56011957 | B109: 40 | D109: infected | E109: 45 | F109: 65
A110: 0.26540077 | B110: 49 | D110: infected | E110: 75 | F110: 20.5
A111: 0.75550556 | B111: 14 | D111: infected | E111: 15 | F111: 71
A112: 0.28363398 | B112: 47 | D112: infected | E112: 75 | F112: 20.5
A113: 0.3437813 | B113: 55 | D113: infected | E113: 74 | F113: 37
A114: 0.32738116 | B114: 53 | D114: infected | E114: 76.75 | F114: 29
A115: 0.23209608 | B115: 70 | D115: infected | E115: 88 | F115: 19
A116: 0.37242645 | B116: 135 | D116: infected | E116: 74 | F116: 37
A117: 0.40512308 | B117: 82 | D117: infected | E117: 70.14286 | F117: 44
A118: 0.45367098 | B118: 39 | D118: infected | E118: 59 | F118: 43.5
A119: 0.72833574 | B119: 29 | D119: infected | E119: 19.154764 | F119: 83
A120: 0.03404109 | B120: 170.14285 | D120: infected | E120: 151.33333 | F120: 0
A121: 0.30339456 | B121: 173 | D121: infected | E121: 76.75 | F121: 29
A122: 0.30355862 | B122: 39 | D122: infected | E122: 76.75 | F122: 29
A123: 0.4153125 | B123: 25 | D123: infected | E123: 70.14286 | F123: 44
A124: 0.7627159 | B124: 7 | D124: infected | E124: 15 | F124: 71
A125: 0.42139357 | B125: 35 | D125: infected | E125: 59 | F125: 43.5
A126: 0.6442026 | B126: 24 | D126: infected | E126: 32 | F126: 82
A127: 0.70145196 | B127: 18 | D127: infected | E127: 24 | F127: 89
A128: 0.5690438 | B128: 29 | D128: infected | E128: 45 | F128: 65
A129: 0.41393524 | B129: 24 | D129: infected | E129: 70.14286 | F129: 44
A130: 0.70089644 | B130: 22 | D130: infected | E130: 24 | F130: 89
A131: 0.34642652 | B131: 70 | D131: infected | E131: 74 | F131: 37
A132: 0.55974215 | B132: 51.333332 | D132: infected | E132: 45 | F132: 65
A133: 0.6971742 | B133: 13 | D133: infected | E133: 24 | F133: 89
A134: 0.5457538 | B134: 43 | D134: infected | E134: 45 | F134: 65
A135: 0.78122187 | B135: 7 | D135: infected | E135: 15 | F135: 71
A136: 0.5746677 | B136: 30 | D136: infected | E136: 45 | F136: 65
A137: 0.27647555 | B137: 162 | D137: infected | E137: 75 | F137: 20.5
A138: 0.66690767 | B138: 27.333332 | D138: infected | E138: 24 | F138: 89
A139: 0.11404535 | B139: 204 | D139: infected | E139: 89 | F139: 0
A140: 0.5002459 | B140: 107 | D140: infected | E140: 54 | F140: 62
A141: 0.1654483 | B141: 99 | D141: infected | E141: 61.16667 | F141: 0
A142: 0.7056319 | B142: 6 | D142: infected | E142: 24 | F142: 89
A143: 0.51318294 | B143: 112 | D143: infected | E143: 54 | F143: 62
A144: 0.82292545 | B144: 10 | D144: infected | E144: 13 | F144: 66
A145: 0.37611717 | B145: 45 | D145: infected | E145: 70.14286 | F145: 44
A146: 0.5243257 | B146: 171.14285 | D146: infected | E146: 54 | F146: 62
A147: 0.23678519 | B147: 92 | D147: infected | E147: 88 | F147: 19
A148: 0.63606423 | B148: 28.333332 | D148: infected | E148: 32 | F148: 82
A149: 0.37880653 | B149: 28 | D149: infected | E149: 70.14286 | F149: 44
A150: 0.22223805 | B150: 61 | D150: infected | E150: 88 | F150: 19
A151: 0.47803107 | B151: 50 | D151: infected | E151: 56.5 | F151: 50
A152: 0.33019525 | B152: 110.14285 | D152: infected | E152: 76.75 | F152: 29
A153: 0.2555938 | B153: 83 | D153: infected | E153: 75 | F153: 20.5
A154: 0.6032377 | B154: 21 | D154: infected | E154: 38 | F154: 72
A155: 0.7217608 | B155: 10 | D155: infected | E155: 19.154764 | F155: 83
A156: 0.5079885 | B156: 39 | D156: infected | E156: 54 | F156: 62
A157: 0.90273434 | B157: 12 | D157: infected | E157: 13 | F157: 64
A158: 0.25086883 | B158: 128 | D158: infected | E158: 75 | F158: 20.5
A159: 0.47938693 | B159: 57 | D159: infected | E159: 56.5 | F159: 50
A160: 0.08844367 | B160: 439 | D160: infected | E160: 89 | F160: 0
A161: 0.52532387 | B161: 69 | D161: infected | E161: 54 | F161: 62
A162: 0.34199077 | B162: 87.33333 | D162: infected | E162: 74 | F162: 37
A163: 0.83825976 | B163: 11 | D163: infected | E163: 12 | F163: 66
A164: 0.38361147 | B164: 28.64286 | D164: infected | E164: 70.14286 | F164: 44
A165: 0.7020137 | B165: 16 | D165: infected | E165: 24 | F165: 89
A166: 0.6909464 | B166: 31 | D166: infected | E166: 24 | F166: 89
A167: 0.64950216 | B167: 18 | D167: infected | E167: 32 | F167: 82
A168: 0.37277806 | B168: 67 | D168: infected | E168: 74 | F168: 37
A169: 0.43107125 | B169: 55 | D169: infected | E169: 59 | F169: 43.5
A170: 0.52267903 | B170: 32 | D170: infected | E170: 54 | F170: 62
A171: 0.53501683 | B171: 35 | D171: infected | E171: 54 | F171: 62
A172: 0.6017438 | B172: 12.833333 | D172: infected | E172: 38 | F172: 72
A173: 0.7037088 | B173: 21 | D173: infected | E173: 24 | F173: 89
A174: 0.20982617 | B174: 90 | D174: infected | E174: 88 | F174: 19
A175: 0.39668256 | B175: 44 | D175: infected | E175: 70.14286 | F175: 44
A176: 0.38328865 | B176: 73.5 | D176: infected | E176: 70.14286 | F176: 44
A177: 0.52743757 | B177: 37 | D177: infected | E177: 54 | F177: 62
A178: 0.7745955 | B178: 7.333333 | D178: infected | E178: 15 | F178: 71
A179: 0.5033195 | B179: 32 | D179: infected | E179: 54 | F179: 62
A180: 0.54933864 | B180: 15 | D180: infected | E180: 45 | F180: 65
A181: 0.41504163 | B181: 39 | D181: infected | E181: 70.14286 | F181: 44
A182: 0.82029927 | B182: 9 | D182: infected | E182: 13 | F182: 66
A183: 0.24665342 | B183: 39 | D183: infected | E183: 88 | F183: 19
A184: 0.4907487 | B184: 42 | D184: infected | E184: 56.5 | F184: 50
A185: 0.2978745 | B185: 52 | D185: infected | E185: 76.75 | F185: 29
A186: 0.7846501 | B186: 9 | D186: infected | E186: 15 | F186: 71
A187: 0.6733427 | B187: 4 | D187: infected | E187: 24 | F187: 89
A188: 0.31529692 | B188: 54 | D188: infected | E188: 76.75 | F188: 29
A189: 0.21280704 | B189: 46 | D189: infected | E189: 88 | F189: 19
A190: 0.33300313 | B190: 34.5 | D190: infected | E190: 76.75 | F190: 29
A191: 0.5055026 | B191: 36.333332 | D191: infected | E191: 54 | F191: 62
A192: 0.67673504 | B192: 24.5 | D192: infected | E192: 24 | F192: 89
A193: 0.5933061 | B193: 57.5 | D193: infected | E193: 38 | F193: 72
A194: 0.65402937 | B194: 37 | D194: infected | E194: 32 | F194: 82
A195: 0.654106 | B195: 22 | D195: infected | E195: 32 | F195: 82
A196: 0.6700596 | B196: 31 | D196: infected | E196: 24 | F196: 89
A197: 0.7260604 | B197: 29 | D197: infected | E197: 19.154764 | F197: 83
A198: 0.6295371 | B198: 47 | D198: infected | E198: 32 | F198: 82
A199: 0.2785668 | B199: 136 | D199: infected | E199: 75 | F199: 20.5
A200: 0.37835622 | B200: 139 | D200: infected | E200: 70.14286 | F200: 44
... 4300 more rows

Sheet Figure 2d
A1: Figure 2d
A2: B. fragilis gene | B2: COG Category | C2: Pseudotime Bin
A3: eno | B3: Carb. metab. | C3: 0.0-0.2
A4: BF9343_RS18430 | B4: Cell wall biogenesis | C4: 0.0-0.2
A5: BF9343_RS02570 | B5: Inorg. ion metab. | C5: 0.0-0.2
A6: BF9343_RS12195 | B6: Energy prod. | C6: 0.0-0.2
A7: gap | B7: Energy prod. | C7: 0.0-0.2
A8: BF9343_RS07450 | B8: Inorg. ion metab. | C8: 0.0-0.2
A9: BF9343_RS01225 | B9: Transcription | C9: 0.0-0.2
A10: pnp | B10: Translation | C10: 0.0-0.2
A11: BF9343_RS20815 | B11: Vesicular transport | C11: 0.0-0.2
A12: BF9343_RS07455 | B12: Amino acid metab. | C12: 0.0-0.2
A13: BF9343_RS20590 | B13: Unknown | C13: 0.2-0.4
A14: BF9343_RS17000 | B14: Nucleotide metab. | C14: 0.2-0.4
A15: BF9343_RS17005 | B15: Nucleotide metab. | C15: 0.2-0.4
A16: nusG | B16: Transcription | C16: 0.2-0.4
A17: rpoB | B17: Transcription | C17: 0.2-0.4
A18: BF9343_RS19285 | B18: Transcription | C18: 0.2-0.4
A19: rplA | B19: Translation | C19: 0.2-0.4
A20: rplK | B20: Translation | C20: 0.2-0.4
A21: rplJ | B21: Translation | C21: 0.2-0.4
A22: BF9343_RS20585 | B22: Unknown | C22: 0.2-0.4
A23: BF9343_RS20600 | B23: Unknown | C23: 0.2-0.4
A24: secY | B24: Vesicular transport | C24: 0.2-0.4
A25: fkp | B25: Carb. metab. | C25: 0.4-0.6
A26: BF9343_RS16805 | B26: Nucleotide metab. | C26: 0.4-0.6
A27: BF9343_RS17460 | B27: Nucleotide metab. | C27: 0.4-0.6
A28: nrdG | B28: Nucleotide metab. | C28: 0.4-0.6
A29: secE | B29: Vesicular transport | C29: 0.4-0.6
A30: rpoN | B30: Transcription | C30: 0.4-0.6
A31: rpoC | B31: Transcription | C31: 0.4-0.6
A32: BF9343_RS01255 | B32: Nucleotide metab. | C32: 0.4-0.6
A33: BF9343_RS14805 | B33: Carb. metab. | C33: 0.6-0.8
A34: priA | B34: Replication | C34: 0.6-0.8
A35: BF9343_RS03630 | B35: Unknown | C35: 0.6-0.8
A36: ssrA | B36: Post-translation mod. | C36: 0.6-0.8
A37: BF9343_RS03635 | B37: Cell wall biogenesis | C37: 0.6-0.8
A38: rnpB | B38: RNA mod. | C38: 0.6-0.8
A39: BF9343_RS18405 | B39: Cell wall biogenesis | C39: 0.8-1.0
A40: BF9343_RS18380 | B40: Cell wall biogenesis | C40: 0.8-1.0
A41: BF9343_RS18395 | B41: Inorg. ion metab. | C41: 0.8-1.0
A42: BF9343_RS03175 | B42: Inorg. ion metab. | C42: 0.8-1.0
A43: BF9343_RS18390 | B43: Cell wall biogenesis | C43: 0.8-1.0
A44: BF9343_RS18385 | B44: Inorg. ion metab. | C44: 0.8-1.0
A45: BF9343_RS18375 | B45: Cell wall biogenesis | C45: 0.8-1.0
A46: BF9343_RS18400 | B46: Cell wall biogenesis | C46: 0.8-1.0

Sheet Figure 2e
A1: Figure 2e
A2: pseudotime | B2: category | C2: mean_expression
A3: 0.2-0.4 | B3: Translation | C3: 0.08401086069
A4: 0.2-0.4 | B4: Transcription | C4: 0.06034810366
A5: 0.2-0.4 | B5: Amino acid metab. | C5: -0.03635205075
A6: 0.2-0.4 | B6: Cell wall biogenesis | C6: -0.07223504573
A7: 0.2-0.4 | B7: Vesicular transport | C7: 0.04527145482
A8: 0.2-0.4 | B8: Inorg. ion metab. | C8: -0.0567808958
A9: 0.2-0.4 | B9: Carb metab. | C9: -0.04388066842
A10: 0.2-0.4 | B10: Energy prod. | C10: -0.1572420356
A11: 0.2-0.4 | B11: Nucleotide metab. | C11: 0.1944752669
A12: 0.2-0.4 | B12: RNA mod. | C12: 0.02545146115
A13: 0.2-0.4 | B13: Post-translation mod. | C13: 0.08293277573
A14: 0.0-0.2 | B14: Translation | C14: 0.2093993072
A15: 0.0-0.2 | B15: Transcription | C15: 0.150429341
A16: 0.0-0.2 | B16: Amino acid metab. | C16: 0.1704617925
A17: 0.0-0.2 | B17: Cell wall biogenesis | C17: -0.02671810424
A18: 0.0-0.2 | B18: Vesicular transport | C18: 0.1719776962
A19: 0.0-0.2 | B19: Inorg. ion metab. | C19: 0.05776294822
A20: 0.0-0.2 | B20: Carb metab. | C20: 0.04459673616
A21: 0.0-0.2 | B21: Energy prod. | C21: 0.1486449458
A22: 0.0-0.2 | B22: Nucleotide metab. | C22: -0.1071791724
A23: 0.0-0.2 | B23: RNA mod. | C23: 0.01699526954
A24: 0.0-0.2 | B24: Post-translation mod. | C24: 0.03087093159
A25: 0.4-0.6 | B25: Translation | C25: -0.2051434358
A26: 0.4-0.6 | B26: Transcription | C26: -0.08121137488
A27: 0.4-0.6 | B27: Amino acid metab. | C27: -0.3318727124
A28: 0.4-0.6 | B28: Cell wall biogenesis | C28: -0.06436878879
A29: 0.4-0.6 | B29: Vesicular transport | C29: -0.1660176772
A30: 0.4-0.6 | B30: Inorg. ion metab. | C30: -0.1621987017
A31: 0.4-0.6 | B31: Carb metab. | C31: -0.05286932541
A32: 0.4-0.6 | B32: Energy prod. | C32: -0.3309213803
A33: 0.4-0.6 | B33: Nucleotide metab. | C33: 0.4848126664
A34: 0.4-0.6 | B34: RNA mod. | C34: 0.00754104417
A35: 0.4-0.6 | B35: Post-translation mod. | C35: 0.02978075015
A36: 0.6-0.8 | B36: Translation | C36: -0.5324805209
A37: 0.6-0.8 | B37: Transcription | C37: -0.4010721242
A38: 0.6-0.8 | B38: Amino acid metab. | C38: -0.4668136201
A39: 0.6-0.8 | B39: Cell wall biogenesis | C39: -0.05059535807
A40: 0.6-0.8 | B40: Vesicular transport | C40: -0.4541449414
A41: 0.6-0.8 | B41: Inorg. ion metab. | C41: -0.2188105065
A42: 0.6-0.8 | B42: Carb metab. | C42: -0.1555910352
A43: 0.6-0.8 | B43: Energy prod. | C43: -0.408609597
A44: 0.6-0.8 | B44: Nucleotide metab. | C44: 0.2029157464
A45: 0.6-0.8 | B45: RNA mod. | C45: -0.04952236512
A46: 0.6-0.8 | B46: Post-translation mod. | C46: -0.04583956321
A47: 0.8-1.0 | B47: Translation | C47: -0.5415355605
A48: 0.8-1.0 | B48: Transcription | C48: -0.5068122539
A49: 0.8-1.0 | B49: Amino acid metab. | C49: -0.4471654251
A50: 0.8-1.0 | B50: Cell wall biogenesis | C50: 0.2728861192
A51: 0.8-1.0 | B51: Vesicular transport | C51: -0.4907683137
A52: 0.8-1.0 | B52: Inorg. ion metab. | C52: -0.03984978131
A53: 0.8-1.0 | B53: Carb metab. | C53: -0.1939337712
A54: 0.8-1.0 | B54: Energy prod. | C54: -0.3999741585
A55: 0.8-1.0 | B55: Nucleotide metab. | C55: -0.04118471427
A56: 0.8-1.0 | B56: RNA mod. | C56: -0.006908564952
A57: 0.8-1.0 | B57: Post-translation mod. | C57: 0.1210247333

Sheet Figure 2f
A1: Figure 2f
A2: pseudotime bin | B2: gene | C2: category | D2: mean_expression | E2: fraction_expressed
A3: 0.2-0.4 | B3: Bf12P1_08 | C3: DNA packaging | D3: 0.434265787 | E3: 0.4566403881
A4: 0.2-0.4 | B4: Bf12P1_39 | C4: DNA packaging | D4: 0.5368086435 | E4: 0.8012937134
A5: 0.2-0.4 | B5: Bf12P1_53 | C5: DNA packaging | D5: -0.3595774842 | E5: 0.2120477057
A6: 0.2-0.4 | B6: Bf12P1_63 | C6: DNA packaging | D6: 0.1896944293 | E6: 0.4768546594
A7: 0.2-0.4 | B7: Bf12P1_05 | C7: Immunity | D7: 0.2604347679 | E7: 0.2625833839
A8: 0.2-0.4 | B8: Bf12P1_20 | C8: Immunity | D8: 0.4160608715 | E8: 0.2003234283
A9: 0.2-0.4 | B9: Bf12P1_22 | C9: Lysis | D9: -0.4305586399 | E9: 0.1580756014
A10: 0.2-0.4 | B10: Bf12P1_24 | C10: Lysis | D10: -0.3806235819 | E10: 0.1621184556
A11: 0.2-0.4 | B11: Bf12P1_13 | C11: Nucleotide metab. | D11: 0.3707220643 | E11: 0.4527996766
A12: 0.2-0.4 | B12: Bf12P1_54 | C12: Nucleotide metab. | D12: -0.2745911685 | E12: 0.1985041439
A13: 0.2-0.4 | B13: Bf12P1_55 | C13: Nucleotide metab. | D13: 0.2540937186 | E13: 0.4732160906
A14: 0.2-0.4 | B14: Bf12P1_56 | C14: Nucleotide metab. | D14: 0.2705664497 | E14: 0.5419446129
A15: 0.2-0.4 | B15: Bf12P1_09 | C15: Recombination | D15: 0.4243381722 | E15: 0.5225389125
A16: 0.2-0.4 | B16: Bf12P1_67 | C16: Recombination | D16: 0.4472261965 | E16: 0.6850616535
A17: 0.2-0.4 | B17: Bf12P1_03 | C17: Regulation | D17: 0.2258026394 | E17: 0.3737618759
A18: 0.2-0.4 | B18: Bf12P1_04 | C18: Regulation | D18: 0.1975624214 | E18: 0.1875884374
A19: 0.2-0.4 | B19: Bf12P1_10 | C19: Regulation | D19: 0.3469566858 | E19: 0.4257125531
A20: 0.2-0.4 | B20: Bf12P1_62 | C20: Regulation | D20: 0.1165275806 | E20: 0.4127754194
A21: 0.2-0.4 | B21: Bf12P1_01 | C21: Replication | D21: 0.1124642233 | E21: 0.1469577522
A22: 0.2-0.4 | B22: Bf12P1_02 | C22: Replication | D22: 0.2130528567 | E22: 0.3523347483
A23: 0.2-0.4 | B23: Bf12P1_07 | C23: Replication | D23: 0.2579009218 | E23: 0.2007277138
A24: 0.2-0.4 | B24: Bf12P1_61 | C24: Replication | D24: 0.07988700294 | E24: 0.4242975541
A25: 0.2-0.4 | B25: Bf12P1_66 | C25: Replication | D25: 0.3894497869 | E25: 0.5959167172
A26: 0.2-0.4 | B26: Bf12P1_70 | C26: Replication | D26: 0.07360946758 | E26: 0.153426319
A27: 0.2-0.4 | B27: Bf12P1_44 | C27: Structural: connector | D27: -0.3358509731 | E27: 0.0586213867
A28: 0.2-0.4 | B28: Bf12P1_47 | C28: Structural: head | D28: -0.3646342889 | E28: 0.4244996968
A29: 0.2-0.4 | B29: Bf12P1_48 | C29: Structural: head | D29: -0.318716528 | E29: 0.4491611077
A30: 0.2-0.4 | B30: Bf12P1_52 | C30: Structural: head | D30: -0.405943016 | E30: 0.2935112189
A31: 0.2-0.4 | B31: Bf12P1_50 | C31: Structural: portal | D31: -0.3619614165 | E31: 0.3972104306
A32: 0.2-0.4 | B32: Bf12P1_25 | C32: Structural: tail | D32: -0.452231111 | E32: 0.2666262381
A33: 0.2-0.4 | B33: Bf12P1_26 | C33: Structural: tail | D33: -0.3867954028 | E33: 0.1406913281
A34: 0.2-0.4 | B34: Bf12P1_27 | C34: Structural: tail | D34: -0.4052979399 | E34: 0.1987062866
A35: 0.2-0.4 | B35: Bf12P1_28 | C35: Structural: tail | D35: -0.262335914 | E35: 0.1039013544
A36: 0.2-0.4 | B36: Bf12P1_45 | C36: Structural: tail | D36: -0.3531627806 | E36: 0.06610066707
A37: 0.2-0.4 | B37: Bf12P1_46 | C37: Structural: tail | D37: -0.4596907074 | E37: 0.1475641803
A38: 0.2-0.4 | B38: Bf12P1_06 | C38: Unknown | D38: 0.2403326226 | E38: 0.173842733
A39: 0.2-0.4 | B39: Bf12P1_11 | C39: Unknown | D39: 0.321183234 | E39: 0.4026682838
A40: 0.2-0.4 | B40: Bf12P1_12 | C40: Unknown | D40: 0.1645454679 | E40: 0.0808570851
A41: 0.2-0.4 | B41: Bf12P1_14 | C41: Unknown | D41: 0.3367187272 | E41: 0.2961390742
A42: 0.2-0.4 | B42: Bf12P1_15 | C42: Unknown | D42: 0.4784038386 | E42: 0.3848797251
A43: 0.2-0.4 | B43: Bf12P1_16 | C43: Unknown | D43: 0.6736561045 | E43: 0.4479482515
A44: 0.2-0.4 | B44: Bf12P1_17 | C44: Unknown | D44: 0.567918459 | E44: 0.2943197898
A45: 0.2-0.4 | B45: Bf12P1_18 | C45: Unknown | D45: 0.5558144619 | E45: 0.3883161512
A46: 0.2-0.4 | B46: Bf12P1_19 | C46: Unknown | D46: 0.4698246243 | E46: 0.2676369517
A47: 0.2-0.4 | B47: Bf12P1_21 | C47: Unknown | D47: -0.4077915833 | E47: 0.1350313321
A48: 0.2-0.4 | B48: Bf12P1_23 | C48: Unknown | D48: -0.4264631992 | E48: 0.1869820093
A49: 0.2-0.4 | B49: Bf12P1_29 | C49: Unknown | D49: -0.2065963827 | E49: 0.07984637154
A50: 0.2-0.4 | B50: Bf12P1_30 | C50: Unknown | D50: -0.1619849484 | E50: 0.06347281181
A51: 0.2-0.4 | B51: Bf12P1_31 | C51: Unknown | D51: 0.2038546843 | E51: 0.2704669497
A52: 0.2-0.4 | B52: Bf12P1_32 | C52: Unknown | D52: 0.3224235287 | E52: 0.4214675561
A53: 0.2-0.4 | B53: Bf12P1_33 | C53: Unknown | D53: 0.3010801611 | E53: 0.3949868607
A54: 0.2-0.4 | B54: Bf12P1_34 | C54: Unknown | D54: 0.3283251837 | E54: 0.526379624
A55: 0.2-0.4 | B55: Bf12P1_35 | C55: Unknown | D55: 0.2876246911 | E55: 0.4602789569
A56: 0.2-0.4 | B56: Bf12P1_36 | C56: Unknown | D56: 0.2224905798 | E56: 0.2933090762
A57: 0.2-0.4 | B57: Bf12P1_37 | C57: Unknown | D57: 0.1838555559 | E57: 0.2757226602
A58: 0.2-0.4 | B58: Bf12P1_38 | C58: Unknown | D58: 0.2776243081 | E58: 0.412371134
A59: 0.2-0.4 | B59: Bf12P1_40 | C59: Unknown | D59: 0.3147738787 | E59: 0.3909440065
A60: 0.2-0.4 | B60: Bf12P1_41 | C60: Unknown | D60: 0.2043255829 | E60: 0.289266222
A61: 0.2-0.4 | B61: Bf12P1_42 | C61: Unknown | D61: 0.1724794999 | E61: 0.1742470184
A62: 0.2-0.4 | B62: Bf12P1_43 | C62: Unknown | D62: 0.167409977 | E62: 0.1902162927
A63: 0.2-0.4 | B63: Bf12P1_49 | C63: Unknown | D63: -0.328403494 | E63: 0.4083282798
A64: 0.2-0.4 | B64: Bf12P1_51 | C64: Unknown | D64: -0.3904300762 | E64: 0.1659591672
A65: 0.2-0.4 | B65: Bf12P1_57 | C65: Unknown | D65: 0.2984040151 | E65: 0.4014554275
A66: 0.2-0.4 | B66: Bf12P1_58 | C66: Unknown | D66: 0.3294794704 | E66: 0.3533454619
A67: 0.2-0.4 | B67: Bf12P1_59 | C67: Unknown | D67: 0.3566708644 | E67: 0.3652718819
A68: 0.2-0.4 | B68: Bf12P1_60 | C68: Unknown | D68: 0.283378582 | E68: 0.2967455023
A69: 0.2-0.4 | B69: Bf12P1_64 | C69: Unknown | D69: 0.2576549226 | E69: 0.6737416616
A70: 0.2-0.4 | B70: Bf12P1_65 | C70: Unknown | D70: 0.2190166582 | E70: 0.4519911057
A71: 0.2-0.4 | B71: Bf12P1_68 | C71: Unknown | D71: 0.4097493237 | E71: 0.618556701
A72: 0.2-0.4 | B72: Bf12P1_69 | C72: Unknown | D72: 0.03383154576 | E72: 0.03840711542
A73: 0.2-0.4 | B73: Bf12P1_71 | C73: Unknown | D73: 0.05127138664 | E73: 0.09419850414
A74: 0.2-0.4 | B74: Bf12P1_72 | C74: Unknown | D74: 0.165662911 | E74: 0.2003234283
A75: 0.0-0.2 | B75: Bf12P1_08 | C75: DNA packaging | D75: -0.4420008368 | E75: 0.06135089962
A76: 0.0-0.2 | B76: Bf12P1_39 | C76: DNA packaging | D76: -0.7454586467 | E76: 0.1425621866
A77: 0.0-0.2 | B77: Bf12P1_53 | C77: DNA packaging | D77: -0.6496277709 | E77: 0.02684101858
A78: 0.0-0.2 | B78: Bf12P1_63 | C78: DNA packaging | D78: -0.6124507327 | E78: 0.05161734343
A79: 0.0-0.2 | B79: Bf12P1_05 | C79: Immunity | D79: -0.3382553897 | E79: 0.03313341854
A80: 0.0-0.2 | B80: Bf12P1_20 | C80: Immunity | D80: -0.1946397166 | E80: 0.03047881231
A81: 0.0-0.2 | B81: Bf12P1_22 | C81: Lysis | D81: -0.640757933 | E81: 0.01710746239
A82: 0.0-0.2 | B82: Bf12P1_24 | C82: Lysis | D82: -0.6048825262 | E82: 0.01779569364
A83: 0.0-0.2 | B83: Bf12P1_13 | C83: Nucleotide metab. | D83: -0.4712013991 | E83: 0.06076098712
A84: 0.0-0.2 | B84: Bf12P1_54 | C84: Nucleotide metab. | D84: -0.5799551502 | E84: 0.01927047488
A85: 0.0-0.2 | B85: Bf12P1_55 | C85: Nucleotide metab. | D85: -0.5641894816 | E85: 0.05810638089
A86: 0.0-0.2 | B86: Bf12P1_56 | C86: Nucleotide metab. | D86: -0.6238850425 | E86: 0.0726575558
A87: 0.0-0.2 | B87: Bf12P1_09 | C87: Recombination | D87: -0.4997747819 | E87: 0.07904827451
A88: 0.0-0.2 | B88: Bf12P1_67 | C88: Recombination | D88: -0.7098050796 | E88: 0.08465244322
A89: 0.0-0.2 | B89: Bf12P1_03 | C89: Regulation | D89: -0.4508146692 | E89: 0.0565332809
A90: 0.0-0.2 | B90: Bf12P1_04 | C90: Regulation | D90: -0.2719708338 | E90: 0.02802084357
A91: 0.0-0.2 | B91: Bf12P1_10 | C91: Regulation | D91: -0.4492951855 | E91: 0.05997443713
A92: 0.0-0.2 | B92: Bf12P1_62 | C92: Regulation | D92: -0.5844052602 | E92: 0.04335856848
A93: 0.0-0.2 | B93: Bf12P1_01 | C93: Replication | D93: -0.2679048148 | E93: 0.02074525612
A94: 0.0-0.2 | B94: Bf12P1_02 | C94: Replication | D94: -0.4319860287 | E94: 0.05368203716
A95: 0.0-0.2 | B95: Bf12P1_07 | C95: Replication | D95: -0.2721481345 | E95: 0.0246780061
A96: 0.0-0.2 | B96: Bf12P1_61 | C96: Replication | D96: -0.6193355079 | E96: 0.0475862747
A97: 0.0-0.2 | B97: Bf12P1_66 | C97: Replication | D97: -0.6420976156 | E97: 0.06725002458
A98: 0.0-0.2 | B98: Bf12P1_70 | C98: Replication | D98: -0.2962063947 | E98: 0.01927047488
A99: 0.0-0.2 | B99: Bf12P1_44 | C99: Structural: connector | D99: -0.4269039872 | E99: 0.007472224953
A100: 0.0-0.2 | B100: Bf12P1_47 | C100: Structural: head | D100: -0.8896198587 | E100: 0.07845836201
A101: 0.0-0.2 | B101: Bf12P1_48 | C101: Structural: head | D101: -0.9187541648 | E101: 0.06479205585
A102: 0.0-0.2 | B102: Bf12P1_52 | C102: Structural: head | D102: -0.7887980426 | E102: 0.03834431226
A103: 0.0-0.2 | B103: Bf12P1_50 | C103: Structural: portal | D103: -0.8935689486 | E103: 0.05063415593
A104: 0.0-0.2 | B104: Bf12P1_25 | C104: Structural: tail | D104: -0.786656777 | E104: 0.040409006
A105: 0.0-0.2 | B105: Bf12P1_26 | C105: Structural: tail | D105: -0.5804574093 | E105: 0.01809064989
A106: 0.0-0.2 | B106: Bf12P1_27 | C106: Structural: tail | D106: -0.6639995108 | E106: 0.02910234982
A107: 0.0-0.2 | B107: Bf12P1_28 | C107: Structural: tail | D107: -0.4376526429 | E107: 0.01199488743
A108: 0.0-0.2 | B108: Bf12P1_45 | C108: Structural: tail | D108: -0.4492452336 | E108: 0.008848687445
A109: 0.0-0.2 | B109: Bf12P1_46 | C109: Structural: tail | D109: -0.6488122898 | E109: 0.01858224363
A110: 0.0-0.2 | B110: Bf12P1_06 | C110: Unknown | D110: -0.2456303534 | E110: 0.02310490611
A111: 0.0-0.2 | B111: Bf12P1_11 | C111: Unknown | D111: -0.4325509934 | E111: 0.05830301839
A112: 0.0-0.2 | B112: Bf12P1_12 | C112: Unknown | D112: -0.1643464498 | E112: 0.008357093698
A113: 0.0-0.2 | B113: Bf12P1_14 | C113: Unknown | D113: -0.3354953174 | E113: 0.03627961852
A114: 0.0-0.2 | B114: Bf12P1_15 | C114: Unknown | D114: -0.34157291 | E114: 0.05584504965
A115: 0.0-0.2 | B115: Bf12P1_16 | C115: Unknown | D115: -0.3214138715 | E115: 0.0637105496
A116: 0.0-0.2 | B116: Bf12P1_17 | C116: Unknown | D116: -0.2457101106 | E116: 0.03627961852
A117: 0.0-0.2 | B117: Bf12P1_18 | C117: Unknown | D117: -0.3334252285 | E117: 0.0473896372
A118: 0.0-0.2 | B118: Bf12P1_19 | C118: Unknown | D118: -0.2427566538 | E118: 0.03677121227
A119: 0.0-0.2 | B119: Bf12P1_21 | C119: Unknown | D119: -0.5903531438 | E119: 0.01366630616
A120: 0.0-0.2 | B120: Bf12P1_23 | C120: Unknown | D120: -0.6717326805 | E120: 0.0236948186
A121: 0.0-0.2 | B121: Bf12P1_29 | C121: Unknown | D121: -0.3615745214 | E121: 0.008750368695
A122: 0.0-0.2 | B122: Bf12P1_30 | C122: Unknown | D122: -0.3005245608 | E122: 0.007668862452
A123: 0.0-0.2 | B123: Bf12P1_31 | C123: Unknown | D123: -0.372316564 | E123: 0.03087208731
A124: 0.0-0.2 | B124: Bf12P1_32 | C124: Unknown | D124: -0.4811045606 | E124: 0.05014256219
A125: 0.0-0.2 | B125: Bf12P1_33 | C125: Unknown | D125: -0.4558965542 | E125: 0.05132238718
A126: 0.0-0.2 | B126: Bf12P1_34 | C126: Unknown | D126: -0.5664507173 | E126: 0.07482056828
A127: 0.0-0.2 | B127: Bf12P1_35 | C127: Unknown | D127: -0.5230049614 | E127: 0.06115426212
A128: 0.0-0.2 | B128: Bf12P1_36 | C128: Unknown | D128: -0.3871828116 | E128: 0.03529643103
A129: 0.0-0.2 | B129: Bf12P1_37 | C129: Unknown | D129: -0.3744713814 | E129: 0.03765608101
A130: 0.0-0.2 | B130: Bf12P1_38 | C130: Unknown | D130: -0.4668087064 | E130: 0.06026939337
A131: 0.0-0.2 | B131: Bf12P1_40 | C131: Unknown | D131: -0.4177150057 | E131: 0.05790974339
A132: 0.0-0.2 | B132: Bf12P1_41 | C132: Unknown | D132: -0.3538541053 | E132: 0.05250221217
A133: 0.0-0.2 | B133: Bf12P1_42 | C133: Unknown | D133: -0.239819862 | E133: 0.03795103726
A134: 0.0-0.2 | B134: Bf12P1_43 | C134: Unknown | D134: -0.2553919101 | E134: 0.04208042474
A135: 0.0-0.2 | B135: Bf12P1_49 | C135: Unknown | D135: -0.8909238016 | E135: 0.04326024973
A136: 0.0-0.2 | B136: Bf12P1_51 | C136: Unknown | D136: -0.6118242666 | E136: 0.0165175499
A137: 0.0-0.2 | B137: Bf12P1_57 | C137: Unknown | D137: -0.4547685288 | E137: 0.05230557467
A138: 0.0-0.2 | B138: Bf12P1_58 | C138: Unknown | D138: -0.3884275466 | E138: 0.04748795595
A139: 0.0-0.2 | B139: Bf12P1_59 | C139: Unknown | D139: -0.3875240964 | E139: 0.04915937469
A140: 0.0-0.2 | B140: Bf12P1_60 | C140: Unknown | D140: -0.3533110127 | E140: 0.04188378724
A141: 0.0-0.2 | B141: Bf12P1_64 | C141: Unknown | D141: -0.8215428365 | E141: 0.08396421198
A142: 0.0-0.2 | B142: Bf12P1_65 | C142: Unknown | D142: -0.5748435971 | E142: 0.04581653721
A143: 0.0-0.2 | B143: Bf12P1_68 | C143: Unknown | D143: -0.650407148 | E143: 0.07885163701
A144: 0.0-0.2 | B144: Bf12P1_69 | C144: Unknown | D144: -0.1420312564 | E144: 0.00481761872
A145: 0.0-0.2 | B145: Bf12P1_71 | C145: Unknown | D145: -0.2299993484 | E145: 0.01061842493
A146: 0.0-0.2 | B146: Bf12P1_72 | C146: Unknown | D146: -0.3096950152 | E146: 0.02664438108
A147: 0.4-0.6 | B147: Bf12P1_08 | C147: DNA packaging | D147: 0.2769832879 | E147: 0.3677652074
A148: 0.4-0.6 | B148: Bf12P1_39 | C148: DNA packaging | D148: 0.5221273545 | E148: 0.7714379406
A149: 0.4-0.6 | B149: Bf12P1_53 | C149: DNA packaging | D149: 0.5002609565 | E149: 0.6089522873
A150: 0.4-0.6 | B150: Bf12P1_63 | C150: DNA packaging | D150: 0.6855344125 | E150: 0.6565010657
A151: 0.4-0.6 | B151: Bf12P1_05 | C151: Immunity | D151: 0.2819958257 | E151: 0.252008526
A152: 0.4-0.6 | B152: Bf12P1_20 | C152: Immunity | D152: 0.05076378305 | E152: 0.09132644696
A153: 0.4-0.6 | B153: Bf12P1_22 | C153: Lysis | D153: 0.3373516202 | E153: 0.5387768487
A154: 0.4-0.6 | B154: Bf12P1_24 | C154: Lysis | D154: 0.2966110847 | E154: 0.484669618
A155: 0.4-0.6 | B155: Bf12P1_13 | C155: Nucleotide metab. | D155: 0.356021715 | E155: 0.4202328251
A156: 0.4-0.6 | B156: Bf12P1_54 | C156: Nucleotide metab. | D156: 0.4638378979 | E156: 0.5228726021
A157: 0.4-0.6 | B157: Bf12P1_55 | C157: Nucleotide metab. | D157: 0.5189434801 | E157: 0.5576323988
A158: 0.4-0.6 | B158: Bf12P1_56 | C158: Nucleotide metab. | D158: 0.566510352 | E158: 0.6397770126
A159: 0.4-0.6 | B159: Bf12P1_09 | C159: Recombination | D159: 0.2656164943 | E159: 0.4287588129
A160: 0.4-0.6 | B160: Bf12P1_67 | C160: Recombination | D160: 0.7197918154 | E160: 0.7729135924
A161: 0.4-0.6 | B161: Bf12P1_03 | C161: Regulation | D161: 0.4190408147 | E161: 0.4279390064
A162: 0.4-0.6 | B162: Bf12P1_04 | C162: Regulation | D162: 0.2389027889 | E162: 0.1887194622
A163: 0.4-0.6 | B163: Bf12P1_10 | C163: Regulation | D163: 0.2222574175 | E163: 0.3531726513
A164: 0.4-0.6 | B164: Bf12P1_62 | C164: Regulation | D164: 0.6708566393 | E164: 0.617970159
A165: 0.4-0.6 | B165: Bf12P1_01 | C165: Replication | D165: 0.2657720888 | E165: 0.1815051648
A166: 0.4-0.6 | B166: Bf12P1_02 | C166: Replication | D166: 0.3913721573 | E166: 0.4005574684
A167: 0.4-0.6 | B167: Bf12P1_07 | C167: Replication | D167: 0.1867546994 | E167: 0.1641252664
A168: 0.4-0.6 | B168: Bf12P1_61 | C168: Replication | D168: 0.640264652 | E168: 0.6404328578
A169: 0.4-0.6 | B169: Bf12P1_66 | C169: Replication | D169: 0.6997449764 | E169: 0.701754386
A170: 0.4-0.6 | B170: Bf12P1_70 | C170: Replication | D170: 0.2721801418 | E170: 0.2026561731
A171: 0.4-0.6 | B171: Bf12P1_44 | C171: Structural: connector | D171: 0.07242573877 | E171: 0.2347925889
A172: 0.4-0.6 | B172: Bf12P1_47 | C172: Structural: head | D172: 0.6865147057 | E172: 0.9250696836
A173: 0.4-0.6 | B173: Bf12P1_48 | C173: Structural: head | D173: 0.732724525 | E173: 0.9353992458
A174: 0.4-0.6 | B174: Bf12P1_52 | C174: Structural: head | D174: 0.5409640898 | E174: 0.7634038367
A175: 0.4-0.6 | B175: Bf12P1_50 | C175: Structural: portal | D175: 0.6945528418 | E175: 0.9022790621
A176: 0.4-0.6 | B176: Bf12P1_25 | C176: Structural: tail | D176: 0.545373945 | E176: 0.7625840302
A177: 0.4-0.6 | B177: Bf12P1_26 | C177: Structural: tail | D177: 0.2912394296 | E177: 0.4576160026
A178: 0.4-0.6 | B178: Bf12P1_27 | C178: Structural: tail | D178: 0.3823680004 | E178: 0.5822265945
A179: 0.4-0.6 | B179: Bf12P1_28 | C179: Structural: tail | D179: 0.2393705414 | E179: 0.3069355632
A180: 0.4-0.6 | B180: Bf12P1_45 | C180: Structural: tail | D180: 0.08513927605 | E180: 0.2611903591
A181: 0.4-0.6 | B181: Bf12P1_46 | C181: Structural: tail | D181: 0.3239218393 | E181: 0.5422200361
A182: 0.4-0.6 | B182: Bf12P1_06 | C182: Unknown | D182: 0.1923431026 | E182: 0.1470732907
A183: 0.4-0.6 | B183: Bf12P1_11 | C183: Unknown | D183: 0.2062760987 | E183: 0.3300541072
A184: 0.4-0.6 | B184: Bf12P1_12 | C184: Unknown | D184: 0.1200006027 | E184: 0.06492867683
A185: 0.4-0.6 | B185: Bf12P1_14 | C185: Unknown | D185: 0.2579236372 | E185: 0.2485653386
A186: 0.4-0.6 | B186: Bf12P1_15 | C186: Unknown | D186: 0.208540865 | E186: 0.2625020495
A187: 0.4-0.6 | B187: Bf12P1_16 | C187: Unknown | D187: 0.1847164386 | E187: 0.2492211838
A188: 0.4-0.6 | B188: Bf12P1_17 | C188: Unknown | D188: 0.1255752465 | E188: 0.145105755
A189: 0.4-0.6 | B189: Bf12P1_18 | C189: Unknown | D189: 0.2353893671 | E189: 0.2508607969
A190: 0.4-0.6 | B190: Bf12P1_19 | C190: Unknown | D190: 0.1441816668 | E190: 0.1528119364
A191: 0.4-0.6 | B191: Bf12P1_21 | C191: Unknown | D191: 0.2850698969 | E191: 0.4682734875
A192: 0.4-0.6 | B192: Bf12P1_23 | C192: Unknown | D192: 0.3740991948 | E192: 0.5850139367
A193: 0.4-0.6 | B193: Bf12P1_29 | C193: Unknown | D193: 0.1756392496 | E193: 0.2175766519
A194: 0.4-0.6 | B194: Bf12P1_30 | C194: Unknown | D194: 0.1546415932 | E194: 0.1596983112
A195: 0.4-0.6 | B195: Bf12P1_31 | C195: Unknown | D195: 0.3006906922 | E195: 0.2843089031
A196: 0.4-0.6 | B196: Bf12P1_32 | C196: Unknown | D196: 0.3886884102 | E196: 0.4300705034
A197: 0.4-0.6 | B197: Bf12P1_33 | C197: Unknown | D197: 0.3650948195 | E197: 0.4036727332
A198: 0.4-0.6 | B198: Bf12P1_34 | C198: Unknown | D198: 0.4512293323 | E198: 0.5530414822
A199: 0.4-0.6 | B199: Bf12P1_35 | C199: Unknown | D199: 0.3841669444 | E199: 0.4741760944
A200: 0.4-0.6 | B200: Bf12P1_36 | C200: Unknown | D200: 0.2534629881 | E200: 0.2884079357
... 162 more rows

Sheet Figure 2g
A1: Figure 2g
A2: pseudotime | B2: gene | C2: mean_expression
A3: 0.2-0.4 | B3: Immunity | C3: 0.3382478197
A4: 0.2-0.4 | B4: Recombination | C4: 0.4357821844
A5: 0.2-0.4 | B5: Regulation | C5: 0.2217123318
A6: 0.2-0.4 | B6: Replication | C6: 0.1877273765
A7: 0.2-0.4 | B7: DNA packaging | C7: 0.2002978439
A8: 0.2-0.4 | B8: Nucleotide metab. | C8: 0.155197766
A9: 0.2-0.4 | B9: Structural: head | C9: -0.3630979443
A10: 0.2-0.4 | B10: Structural: portal | C10: -0.3619614165
A11: 0.2-0.4 | B11: Lysis | C11: -0.4055911109
A12: 0.2-0.4 | B12: Structural: tail | C12: -0.3865856426
A13: 0.2-0.4 | B13: Structural: connector | C13: -0.3358509731
A14: 0.0-0.2 | B14: Immunity | C14: -0.2664475531
A15: 0.0-0.2 | B15: Recombination | C15: -0.6047899307
A16: 0.0-0.2 | B16: Regulation | C16: -0.4391214872
A17: 0.0-0.2 | B17: Replication | C17: -0.4216130827
A18: 0.0-0.2 | B18: DNA packaging | C18: -0.6123844968
A19: 0.0-0.2 | B19: Nucleotide metab. | C19: -0.5598077684
A20: 0.0-0.2 | B20: Structural: head | C20: -0.865724022
A21: 0.0-0.2 | B21: Structural: portal | C21: -0.8935689486
A22: 0.0-0.2 | B22: Lysis | C22: -0.6228202296
A23: 0.0-0.2 | B23: Structural: tail | C23: -0.5944706439
A24: 0.0-0.2 | B24: Structural: connector | C24: -0.4269039872
A25: 0.4-0.6 | B25: Immunity | C25: 0.1663798044
A26: 0.4-0.6 | B26: Recombination | C26: 0.4927041549
A27: 0.4-0.6 | B27: Regulation | C27: 0.3877644151
A28: 0.4-0.6 | B28: Replication | C28: 0.4093481193
A29: 0.4-0.6 | B29: DNA packaging | C29: 0.4962265029
A30: 0.4-0.6 | B30: Nucleotide metab. | C30: 0.4763283613
A31: 0.4-0.6 | B31: Structural: head | C31: 0.6534011068
A32: 0.4-0.6 | B32: Structural: portal | C32: 0.6945528418
A33: 0.4-0.6 | B33: Lysis | C33: 0.3169813524
A34: 0.4-0.6 | B34: Structural: tail | C34: 0.3112355053
A35: 0.4-0.6 | B35: Structural: connector | C35: 0.07242573877
A36: 0.6-0.8 | B36: Immunity | C36: 0.0521932201
A37: 0.6-0.8 | B37: Recombination | C37: 0.3069013519
A38: 0.6-0.8 | B38: Regulation | C38: 0.2708414829
A39: 0.6-0.8 | B39: Replication | C39: 0.2353841273
A40: 0.6-0.8 | B40: DNA packaging | C40: 0.5142692636
A41: 0.6-0.8 | B41: Nucleotide metab. | C41: 0.4709984562
A42: 0.6-0.8 | B42: Structural: head | C42: 1.183512421
A43: 0.6-0.8 | B43: Structural: portal | C43: 1.201049074
A44: 0.6-0.8 | B44: Lysis | C44: 1.137605661
A45: 0.6-0.8 | B45: Structural: tail | C45: 1.085396299
A46: 0.6-0.8 | B46: Structural: connector | C46: 0.9169336351
A47: 0.8-1.0 | B47: Immunity | C47: -0.275486514
A48: 0.8-1.0 | B48: Recombination | C48: -0.5615063327
A49: 0.8-1.0 | B49: Regulation | C49: -0.3601730714
A50: 0.8-1.0 | B50: Replication | C50: -0.3185371344
A51: 0.8-1.0 | B51: DNA packaging | C51: -0.2448677771
A52: 0.8-1.0 | B52: Nucleotide metab. | C52: -0.2291342138
A53: 0.8-1.0 | B53: Structural: head | C53: 1.439131971
A54: 0.8-1.0 | B54: Structural: portal | C54: 1.382585115
A55: 0.8-1.0 | B55: Lysis | C55: 1.414541636
A56: 0.8-1.0 | B56: Structural: tail | C56: 1.29890699
A57: 0.8-1.0 | B57: Structural: connector | C57: 1.645552733

Sheet Figure 2h
A1: Figure 2h
A2: Bf12P1 gene | B2: median pseudotime | C2: functional category | D2: temporal gene cluster | E2: genomic cluster
A3: 1 | B3: 0.468347847 | C3: Replication | D3: Middle | E3: Middle 1
A4: 2 | B4: 0.464643553 | C4: Replication | D4: Middle | E4: Middle 1
A5: 3 | B5: 0.460669756 | C5: Regulation | D5: Middle | E5: Middle 1
A6: 4 | B6: 0.442866266 | C6: Regulation | D6: Middle | E6: Middle 1
A7: 5 | B7: 0.440951973 | C7: Immunity | D7: Middle | E7: Middle 2
A8: 6 | B8: 0.416968077 | C8: Unknown | D8: Middle | E8: Middle 2
A9: 7 | B9: 0.427155942 | C9: Replication | D9: Middle | E9: Middle 2
A10: 8 | B10: 0.425869226 | C10: DNA packaging | D10: Middle | E10: Middle 2
A11: 9 | B11: 0.437006339 | C11: Recombination | D11: Middle | E11: Middle 2
A12: 10 | B12: 0.446779102 | C12: Regulation | D12: Middle | E12: Middle 2
A13: 11 | B13: 0.449412644 | C13: Unknown | D13: Middle | E13: Middle 2
A14: 12 | B14: 0.421237677 | C14: Unknown | D14: Middle | E14: Middle 3
A15: 13 | B15: 0.440922409 | C15: Nucleotide metab. | D15: Middle | E15: Middle 3
A16: 14 | B16: 0.422266781 | C16: Unknown | D16: Middle | E16: Middle 3
A17: 15 | B17: 0.399170995 | C17: Unknown | D17: Middle | E17: Middle 3
A18: 16 | B18: 0.37025255 | C18: Unknown | D18: Early | E18: Early 1-2
A19: 17 | B19: 0.360427678 | C19: Unknown | D19: Early | E19: Early 1-2
A20: 18 | B20: 0.389619946 | C20: Unknown | D20: Early | E20: Early 1-2
A21: 19 | B21: 0.377626464 | C21: Unknown | D21: Early | E21: Early 1-2
A22: 20 | B22: 0.361671627 | C22: Immunity | D22: Early | E22: Early 1-2
A23: 21 | B23: 0.607402265 | C23: Unknown | D23: Late | E23: Late 1
A24: 22 | B24: 0.601636648 | C24: Lysis | D24: Late | E24: Late 1
A25: 23 | B25: 0.594544947 | C25: Unknown | D25: Late | E25: Late 1
A26: 24 | B26: 0.601935685 | C26: Lysis | D26: Late | E26: Late 1
A27: 25 | B27: 0.574666113 | C27: Structural: tail | D27: Late | E27: Late 2
A28: 26 | B28: 0.603869468 | C28: Structural: tail | D28: Late | E28: Late 3
A29: 27 | B29: 0.589807451 | C29: Structural: tail | D29: Late | E29: Late 3
A30: 28 | B30: 0.595151663 | C30: Structural: tail | D30: Late | E30: Late 3
A31: 29 | B31: 0.596274346 | C31: Unknown | D31: Late | E31: Late 3
A32: 30 | B32: 0.592157155 | C32: Unknown | D32: Late | E32: Late 3
A33: 31 | B33: 0.46527794 | C33: Unknown | D33: Middle | E33: Middle 4
A34: 32 | B34: 0.459145263 | C34: Unknown | D34: Middle | E34: Middle 4
A35: 33 | B35: 0.455230564 | C35: Unknown | D35: Middle | E35: Middle 4
A36: 34 | B36: 0.463738412 | C36: Unknown | D36: Middle | E36: Middle 4
A37: 35 | B37: 0.467892379 | C37: Unknown | D37: Middle | E37: Middle 4
A38: 36 | B38: 0.468347847 | C38: Unknown | D38: Middle | E38: Middle 4
A39: 37 | B39: 0.472127646 | C39: Unknown | D39: Middle | E39: Middle 4
A40: 38 | B40: 0.463578314 | C40: Unknown | D40: Middle | E40: Middle 4
A41: 39 | B41: 0.449168295 | C41: DNA packaging | D41: Middle | E41: Middle 4
A42: 40 | B42: 0.443678498 | C42: Unknown | D42: Middle | E42: Middle 4
A43: 41 | B43: 0.463072389 | C43: Unknown | D43: Middle | E43: Middle 4
A44: 42 | B44: 0.445592403 | C44: Unknown | D44: Middle | E44: Middle 5
A45: 43 | B45: 0.451857015 | C45: Unknown | D45: Middle | E45: Middle 5
A46: 44 | B46: 0.645289809 | C46: Structural: connector | D46: Late | E46: Late 4
A47: 45 | B47: 0.642162561 | C47: Structural: tail | D47: Late | E47: Late 4
A48: 46 | B48: 0.606747121 | C48: Structural: tail | D48: Late | E48: Late 4
A49: 47 | B49: 0.54399249 | C49: Structural: head | D49: Late | E49: Late 4
A50: 48 | B50: 0.543109685 | C50: Structural: head | D50: Late | E50: Late 4
A51: 49 | B51: 0.551794767 | C51: Unknown | D51: Late | E51: Late 4
A52: 50 | B52: 0.552563965 | C52: Structural: portal | D52: Late | E52: Late 4
A53: 51 | B53: 0.594062746 | C53: Unknown | D53: Late | E53: Late 4
A54: 52 | B54: 0.569758832 | C54: Structural: head | D54: Late | E54: Late 4
A55: 53 | B55: 0.572240531 | C55: DNA packaging | D55: Late | E55: Late 5
A56: 54 | B56: 0.565975308 | C56: Nucleotide metab. | D56: Late | E56: Late 5
A57: 55 | B57: 0.473211735 | C57: Nucleotide metab. | D57: Middle | E57: Middle 6
A58: 56 | B58: 0.474468723 | C58: Nucleotide metab. | D58: Middle | E58: Middle 6
A59: 57 | B59: 0.449233755 | C59: Unknown | D59: Middle | E59: Middle 6
A60: 58 | B60: 0.434611022 | C60: Unknown | D60: Middle | E60: Middle 6
A61: 59 | B61: 0.427359283 | C61: Unknown | D61: Middle | E61: Middle 6
A62: 60 | B62: 0.436186939 | C62: Unknown | D62: Middle | E62: Middle 6
A63: 61 | B63: 0.496613979 | C63: Replication | D63: Middle | E63: Middle 7
A64: 62 | B64: 0.487569809 | C64: Regulation | D64: Middle | E64: Middle 7
A65: 63 | B65: 0.479343385 | C65: DNA packaging | D65: Middle | E65: Middle 7
A66: 64 | B66: 0.485767618 | C66: Unknown | D66: Middle | E66: Middle 7
A67: 65 | B67: 0.474815577 | C67: Unknown | D67: Middle | E67: Middle 7
A68: 66 | B68: 0.459000111 | C68: Replication | D68: Middle | E68: Middle 7
A69: 67 | B69: 0.457638681 | C69: Recombination | D69: Middle | E69: Middle 7
A70: 68 | B70: 0.455230564 | C70: Unknown | D70: Middle | E70: Middle 7
A71: 69 | B71: 0.489395946 | C71: Unknown | D71: Middle | E71: Middle 8
A72: 70 | B72: 0.487286881 | C72: Replication | D72: Middle | E72: Middle 8
A73: 71 | B73: 0.494580343 | C73: Unknown | D73: Middle | E73: Middle 8
A74: 72 | B74: 0.466040626 | C74: Unknown | D74: Middle | E74: Middle 8

Sheet Figure 2i
A1: Figure 2i: co-expression scores
B2: Module_1 | C2: Module_2 | D2: Module_3 | E2: Module_4 | F2: Module_5 | G2: Module_6
A3: Module_1 | B3: 4.268313443 | C3: 4.163258373 | D3: 3.172634757 | E3: 3.907505105 | F3: 2.96443874 | G3: 3.781244156
A4: Module_2 | B4: 4.163258373 | C4: 6.225083541 | D4: 2.359927599 | E4: 3.896873471 | F4: 2.26998345 | G4: 3.652126076
A5: Module_3 | B5: 3.172634757 | C5: 2.359927599 | D5: 4.625307544 | E5: 3.274210097 | F5: 4.078618958 | G5: 3.30792146
A6: Module_4 | B6: 3.907505105 | C6: 3.896873471 | D6: 3.274210097 | E6: 4.116836275 | F6: 3.043304775 | G6: 3.650765039
A7: Module_5 | B7: 2.96443874 | C7: 2.26998345 | D7: 4.078618958 | E7: 3.043304775 | F7: 3.856160692 | G7: 3.13011115
A8: Module_6 | B8: 3.781244156 | C8: 3.652126076 | D8: 3.30792146 | E8: 3.650765039 | F8: 3.13011115 | G8: 3.859261964

Sheet Figure 3a
A1: Figure 3a
A2: cell_id | B2: UMAP_1 | C2: UMAP_2 | D2: louvain
A3: CTAAGGTC_AAACATCG_AAACGATA-0 | B3: -1.98869 | C3: -2.9728193 | D3: 0
A4: GAGTTAGC_AAACATCG_AAACGATA-0 | B4: -3.935015 | C4: -2.2979746 | D4: 5
A5: TCTTCACA_AAACATCG_AAACGATA-0 | B5: -1.2294669 | C5: -5.1126914 | D5: 5
A6: TTCACGCA_AAACATCG_AAACGATA-0 | B6: -3.9092572 | C6: -1.1390901 | D6: 1
A7: AGATGTAC_AACAACCA_AAACGATA-0 | B7: -2.0473483 | C7: -4.0241776 | D7: 5
A8: CACCTTAC_AACAACCA_AAACGATA-0 | B8: -2.0890584 | C8: -2.4259696 | D8: 0
A9: CCGACAAC_AACAACCA_AAACGATA-0 | B9: -6.2732925 | C9: -2.407235 | D9: 1
A10: CTGGCATA_AACAACCA_AAACGATA-0 | B10: 1.1653473 | C10: -2.160001 | D10: 0
A11: GCCACATA_AACAACCA_AAACGATA-0 | B11: -3.251262 | C11: 0.808952 | D11: 0
A12: AATGTTGC_AACCGAGA_AAACGATA-0 | B12: -3.7247717 | C12: -4.874963 | D12: 5
A13: ACAGATTC_AACCGAGA_AAACGATA-0 | B13: -2.9917722 | C13: -3.5064092 | D13: 0
A14: ATAGCGAC_AACCGAGA_AAACGATA-0 | B14: -4.5873275 | C14: -0.52227753 | D14: 1
A15: ATTGGCTC_AACCGAGA_AAACGATA-0 | B15: -3.534617 | C15: 0.95173705 | D15: 1
A16: CCGACAAC_AACCGAGA_AAACGATA-0 | B16: -2.157119 | C16: -0.8614603 | D16: 1
A17: CCTCTATC_AACCGAGA_AAACGATA-0 | B17: -5.0950127 | C17: -3.608554 | D17: 1
A18: CGAACTTA_AACCGAGA_AAACGATA-0 | B18: 0.30299962 | C18: -1.9852175 | D18: 0
A19: GATAGACA_AACCGAGA_AAACGATA-0 | B19: -2.40866 | C19: -1.3741745 | D19: 1
A20: AGGCTAAC_AACGCTTA_AAACGATA-0 | B20: -0.6446359 | C20: 3.7173884 | D20: 7
A21: CACCTTAC_AACGCTTA_AAACGATA-0 | B21: -6.088621 | C21: -4.7376647 | D21: 6
A22: CCGTGAGA_AACGCTTA_AAACGATA-0 | B22: 0.96279097 | C22: -3.6403167 | D22: 0
A23: TCCGTCTA_AACGCTTA_AAACGATA-0 | B23: -1.1951066 | C23: -1.8861139 | D23: 0
A24: ACCTCCAA_AACGTGAT_AAACGATA-0 | B24: -0.7173225 | C24: 0.78652966 | D24: 0
A25: ACGCTCGA_AACGTGAT_AAACGATA-0 | B25: 0.16318749 | C25: -3.529393 | D25: 0
A26: CACCTTAC_AACGTGAT_AAACGATA-0 | B26: -1.6961367 | C26: -2.480365 | D26: 5
A27: CCATCCTC_AACGTGAT_AAACGATA-0 | B27: -1.0528117 | C27: -2.3248718 | D27: 0
A28: CCTAATCC_AACGTGAT_AAACGATA-0 | B28: 0.33338767 | C28: -3.999584 | D28: 0
A29: CGACACAC_AACGTGAT_AAACGATA-0 | B29: -5.4262233 | C29: -0.86996716 | D29: 1
A30: GAACAGGC_AACGTGAT_AAACGATA-0 | B30: -0.5729727 | C30: -4.9013257 | D30: 0
A31: GAATCTGA_AACGTGAT_AAACGATA-0 | B31: -1.9507664 | C31: -1.0331773 | D31: 5
A32: GACAGTGC_AACGTGAT_AAACGATA-0 | B32: -5.7514696 | C32: 3.3988993 | D32: 8
A33: GATGAATC_AACGTGAT_AAACGATA-0 | B33: -4.9787955 | C33: -0.26803207 | D33: 1
A34: GTCTGTCA_AACGTGAT_AAACGATA-0 | B34: -0.73701733 | C34: -3.1387286 | D34: 0
A35: TTCACGCA_AACGTGAT_AAACGATA-0 | B35: 0.28802255 | C35: -2.77189 | D35: 0
A36: ATCATTCC_AACTCACC_AAACGATA-0 | B36: -3.4548073 | C36: -0.41149092 | D36: 1
A37: CCGAAGTA_AACTCACC_AAACGATA-0 | B37: -0.614716 | C37: -3.1900198 | D37: 5
A38: GCCACATA_AACTCACC_AAACGATA-0 | B38: -0.69450796 | C38: -2.9029977 | D38: 0
A39: ACAGATTC_AAGACGGA_AAACGATA-0 | B39: 1.4726026 | C39: -2.7239478 | D39: 0
A40: CCTCTATC_AAGACGGA_AAACGATA-0 | B40: 0.24696037 | C40: -3.9048643 | D40: 0
A41: CGGATTGC_AAGACGGA_AAACGATA-0 | B41: 1.867935 | C41: -1.3929979 | D41: 0
A42: CCTCTATC_AAGAGATC_AAACGATA-0 | B42: -5.442623 | C42: 0.6999988 | D42: 8
A43: GATGAATC_AAGAGATC_AAACGATA-0 | B43: -5.1829743 | C43: 6.6449575 | D43: 9
A44: AGCCATGC_AAGGACAC_AAACGATA-0 | B44: -5.950849 | C44: -2.1152887 | D44: 1
A45: GCGAGTAA_AAGGACAC_AAACGATA-0 | B45: 1.8675463 | C45: -2.7641451 | D45: 0
A46: TATCAGCA_AAGGACAC_AAACGATA-0 | B46: -0.14950821 | C46: -4.7423716 | D46: 5
A47: CCATCCTC_AAGGTACA_AAACGATA-0 | B47: -1.1945312 | C47: -1.7726878 | D47: 0
A48: TAGGATGA_AAGGTACA_AAACGATA-0 | B48: -1.7983063 | C48: -5.198488 | D48: 5
A49: TTCACGCA_AAGGTACA_AAACGATA-0 | B49: -4.1017175 | C49: -5.5451484 | D49: 6
A50: AACCGAGA_AATCCGTC_AAACGATA-0 | B50: -2.6768968 | C50: -4.4119606 | D50: 5
A51: AACTCACC_AATCCGTC_AAACGATA-0 | B51: 1.121294 | C51: -2.968536 | D51: 0
A52: AGTCACTA_AATCCGTC_AAACGATA-0 | B52: -2.1564686 | C52: -4.807034 | D52: 5
A53: AGTGGTCA_AATCCGTC_AAACGATA-0 | B53: 1.5094901 | C53: -2.2441716 | D53: 0
A54: ATAGCGAC_AATCCGTC_AAACGATA-0 | B54: -5.058501 | C54: 2.1917403 | D54: 8
A55: ATCCTGTA_AATCCGTC_AAACGATA-0 | B55: -4.6055903 | C55: -1.2985961 | D55: 1
A56: CCAGTTCA_AATCCGTC_AAACGATA-0 | B56: -4.707164 | C56: -3.531501 | D56: 1
A57: CCTAATCC_AATCCGTC_AAACGATA-0 | B57: -2.5071306 | C57: 1.1136371 | D57: 1
A58: GATGAATC_AATCCGTC_AAACGATA-0 | B58: 0.6692863 | C58: -2.3820825 | D58: 0
A59: GCGAGTAA_AATCCGTC_AAACGATA-0 | B59: -5.13989 | C59: 4.2864847 | D59: 9
A60: GTACGCAA_AATCCGTC_AAACGATA-0 | B60: -1.0472196 | C60: 0.48393875 | D60: 0
A61: TATCAGCA_AATCCGTC_AAACGATA-0 | B61: -1.9138104 | C61: 4.152759 | D61: 7
A62: AGTACAAG_ACAAGCTA_AAACGATA-0 | B62: -1.0208913 | C62: -1.145129 | D62: 0
A63: ATCATTCC_ACAAGCTA_AAACGATA-0 | B63: 0.017917428 | C63: 0.71163404 | D63: 7
A64: CGGATTGC_ACAAGCTA_AAACGATA-0 | B64: -4.9429317 | C64: -6.4183164 | D64: 6
A65: AGCCATGC_ACACAGAA_AAACGATA-0 | B65: -2.9638443 | C65: -0.50310725 | D65: 1
A66: ATCATTCC_ACACAGAA_AAACGATA-0 | B66: -5.264192 | C66: -1.4938264 | D66: 1
A67: ATTGGCTC_ACACAGAA_AAACGATA-0 | B67: -3.0748363 | C67: 1.0910305 | D67: 1
A68: GAGCTGAA_ACACAGAA_AAACGATA-0 | B68: -5.4684334 | C68: 0.009185113 | D68: 1
A69: GATGAATC_ACACAGAA_AAACGATA-0 | B69: -0.4751323 | C69: -3.2225797 | D69: 0
A70: GGTGCGAA_ACACAGAA_AAACGATA-0 | B70: -4.0496783 | C70: -2.0422173 | D70: 0
A71: AAGAGATC_ACACGACC_AAACGATA-0 | B71: -0.58586824 | C71: 3.9465358 | D71: 7
A72: ACAGATTC_ACACGACC_AAACGATA-0 | B72: -0.8416443 | C72: -1.1558435 | D72: 0
A73: ACGTATCA_ACACGACC_AAACGATA-0 | B73: 1.9423795 | C73: -2.6067195 | D73: 0
A74: AGATCGCA_ACACGACC_AAACGATA-0 | B74: -3.8649085 | C74: 1.3670332 | D74: 1
A75: ATAGCGAC_ACACGACC_AAACGATA-0 | B75: -3.9571989 | C75: -1.2218184 | D75: 1
A76: ATCATTCC_ACACGACC_AAACGATA-0 | B76: -1.266277 | C76: -3.1033735 | D76: 5
A77: CAAGACTA_ACACGACC_AAACGATA-0 | B77: -2.2832415 | C77: -0.86795527 | D77: 1
A78: TATCAGCA_ACACGACC_AAACGATA-0 | B78: -3.4265864 | C78: -1.0648923 | D78: 1
A79: ACAGATTC_ACAGATTC_AAACGATA-0 | B79: -6.6022353 | C79: -5.610535 | D79: 6
A80: AGGCTAAC_ACAGATTC_AAACGATA-0 | B80: -0.9847438 | C80: -2.4211779 | D80: 6
A81: AGTACAAG_ACAGATTC_AAACGATA-0 | B81: -1.4278209 | C81: -2.451128 | D81: 0
A82: ATAGCGAC_ACAGATTC_AAACGATA-0 | B82: -4.7147665 | C82: 4.9195256 | D82: 9
A83: GTGTTCTA_ACAGATTC_AAACGATA-0 | B83: 0.10474771 | C83: -2.1402254 | D83: 5
A84: AACCGAGA_ACAGCAGA_AAACGATA-0 | B84: -0.5816085 | C84: 2.221933 | D84: 7
A85: CAGCGTTA_ACAGCAGA_AAACGATA-0 | B85: -4.3343368 | C85: -5.6235476 | D85: 6
A86: CCGAAGTA_ACAGCAGA_AAACGATA-0 | B86: 0.11053261 | C86: -1.04826 | D86: 0
A87: CGACACAC_ACAGCAGA_AAACGATA-0 | B87: -0.64078844 | C87: -1.4076163 | D87: 5
A88: CGGATTGC_ACAGCAGA_AAACGATA-0 | B88: -0.66373146 | C88: -4.530509 | D88: 0
A89: TAGGATGA_ACAGCAGA_AAACGATA-0 | B89: -4.786991 | C89: 2.8528237 | D89: 8
A90: AATGTTGC_ACATTGGC_AAACGATA-0 | B90: -1.1008397 | C90: -4.1840467 | D90: 5
A91: ACAGATTC_ACATTGGC_AAACGATA-0 | B91: -8.755561 | C91: -3.8059042 | D91: 6
A92: AGCACCTC_ACATTGGC_AAACGATA-0 | B92: -0.48653826 | C92: -2.435245 | D92: 5
A93: TGAAGAGA_ACATTGGC_AAACGATA-0 | B93: -6.4847918 | C93: -4.7590685 | D93: 6
A94: ATTGGCTC_ACCACTGT_AAACGATA-0 | B94: -3.691191 | C94: 2.1816113 | D94: 8
A95: CAACCACA_ACCACTGT_AAACGATA-0 | B95: 0.5143925 | C95: 0.6189981 | D95: 0
A96: CCATCCTC_ACCACTGT_AAACGATA-0 | B96: -1.3899939 | C96: -0.08823513 | D96: 0
A97: ACACGACC_ACCTCCAA_AAACGATA-0 | B97: -3.4507842 | C97: 0.22881731 | D97: 7
A98: ATAGCGAC_ACCTCCAA_AAACGATA-0 | B98: -4.2098856 | C98: 2.8463848 | D98: 8
A99: CTAAGGTC_ACCTCCAA_AAACGATA-0 | B99: -0.20663649 | C99: -2.3631265 | D99: 0
A100: TATCAGCA_ACCTCCAA_AAACGATA-0 | B100: -3.6134152 | C100: -1.3556154 | D100: 1
A101: CTCAATGA_ACGCTCGA_AAACGATA-0 | B101: 0.042169716 | C101: -2.5802245 | D101: 0
A102: GACAGTGC_ACGCTCGA_AAACGATA-0 | B102: -1.6732078 | C102: -1.2800156 | D102: 1
A103: CCGACAAC_ACTATGCA_AAACGATA-0 | B103: 1.8404083 | C103: -0.98629963 | D103: 0
A104: GAACAGGC_AGAGTCAA_AAACGATA-0 | B104: -3.3476028 | C104: 2.1145318 | D104: 8
A105: TAGGATGA_AGAGTCAA_AAACGATA-0 | B105: -4.1431737 | C105: -6.503091 | D105: 6
A106: AGTACAAG_AGATCGCA_AAACGATA-0 | B106: 0.08656793 | C106: -1.4916401 | D106: 0
A107: ATTGGCTC_AGATCGCA_AAACGATA-0 | B107: -5.94527 | C107: -6.3316774 | D107: 6
A108: CGGATTGC_AGATCGCA_AAACGATA-0 | B108: -0.27862722 | C108: -2.4331715 | D108: 0
A109: CACCTTAC_AGCACCTC_AAACGATA-0 | B109: 2.0377522 | C109: -1.7024922 | D109: 0
A110: CCATCCTC_AGCACCTC_AAACGATA-0 | B110: -0.907461 | C110: -3.9319046 | D110: 0
A111: CGACTGGA_AGCACCTC_AAACGATA-0 | B111: -3.24239 | C111: 2.3543894 | D111: 8
A112: GTCTGTCA_AGCACCTC_AAACGATA-0 | B112: -4.504239 | C112: 3.368127 | D112: 8
A113: AGATGTAC_AGCAGGAA_AAACGATA-0 | B113: -5.6822853 | C113: -0.9077331 | D113: 1
A114: GAACAGGC_AGCAGGAA_AAACGATA-0 | B114: -7.5603147 | C114: -4.000551 | D114: 6
A115: TAGGATGA_AGCAGGAA_AAACGATA-0 | B115: 1.4264882 | C115: -1.589954 | D115: 0
A116: AATCCGTC_AGGCTAAC_AAACGATA-0 | B116: -0.424598 | C116: -0.020593323 | D116: 0
A117: CCATCCTC_AGGCTAAC_AAACGATA-0 | B117: -6.1271825 | C117: -0.32755575 | D117: 1
A118: CCTAATCC_AGGCTAAC_AAACGATA-0 | B118: -3.786669 | C118: -6.3735886 | D118: 6
A119: GGTGCGAA_AGGCTAAC_AAACGATA-0 | B119: -0.35366246 | C119: -0.3645884 | D119: 0
A120: AAGAGATC_AGTACAAG_AAACGATA-0 | B120: -0.614111 | C120: -1.7246412 | D120: 0
A121: AGATGTAC_AGTACAAG_AAACGATA-0 | B121: -4.0365486 | C121: -4.3503695 | D121: 5
A122: AGTACAAG_AGTACAAG_AAACGATA-0 | B122: -0.9350169 | C122: -3.622026 | D122: 0
A123: CAAGGAGC_AGTACAAG_AAACGATA-0 | B123: -1.4534262 | C123: 1.8255864 | D123: 7
A124: CCGAAGTA_AGTACAAG_AAACGATA-0 | B124: -2.2599978 | C124: -1.9201465 | D124: 0
A125: CGAACTTA_AGTACAAG_AAACGATA-0 | B125: 0.4944957 | C125: -3.0499618 | D125: 0
A126: GCTCGGTA_AGTACAAG_AAACGATA-0 | B126: -2.0627553 | C126: -1.9198653 | D126: 5
A127: AACAACCA_AGTCACTA_AAACGATA-0 | B127: 0.7388628 | C127: -4.09483 | D127: 0
A128: ACGTATCA_AGTCACTA_AAACGATA-0 | B128: -2.0645497 | C128: -2.7229168 | D128: 0
A129: AGCCATGC_AGTCACTA_AAACGATA-0 | B129: 0.515897 | C129: -1.0542167 | D129: 0
A130: CCGAAGTA_AGTCACTA_AAACGATA-0 | B130: -6.482264 | C130: 1.340362 | D130: 8
A131: CCGTGAGA_AGTCACTA_AAACGATA-0 | B131: 1.0725569 | C131: -1.0067728 | D131: 0
A132: GAGCTGAA_AGTCACTA_AAACGATA-0 | B132: -4.1196456 | C132: 0.96978766 | D132: 8
A133: GATAGACA_AGTCACTA_AAACGATA-0 | B133: -3.268522 | C133: -2.9102304 | D133: 0
A134: TATCAGCA_AGTCACTA_AAACGATA-0 | B134: -2.5125666 | C134: -1.4568332 | D134: 0
A135: TGAAGAGA_AGTCACTA_AAACGATA-0 | B135: -4.0186725 | C135: -2.6502604 | D135: 5
A136: AACGCTTA_AGTGGTCA_AAACGATA-0 | B136: -2.096266 | C136: -4.928988 | D136: 5
A137: CAAGGAGC_AGTGGTCA_AAACGATA-0 | B137: 0.7370167 | C137: -3.3301075 | D137: 0
A138: GATGAATC_AGTGGTCA_AAACGATA-0 | B138: -0.8433792 | C138: 4.2380567 | D138: 7
A139: TAGGATGA_AGTGGTCA_AAACGATA-0 | B139: -1.3677247 | C139: -3.6433172 | D139: 5
A140: AGATGTAC_ATAGCGAC_AAACGATA-0 | B140: -3.1872356 | C140: -0.9556069 | D140: 1
A141: AGGCTAAC_ATAGCGAC_AAACGATA-0 | B141: 0.9622526 | C141: -2.618908 | D141: 0
A142: GATGAATC_ATCATTCC_AAACGATA-0 | B142: -2.4512734 | C142: 2.1816897 | D142: 7
A143: GCTAACGA_ATCATTCC_AAACGATA-0 | B143: -2.6050913 | C143: -3.3256426 | D143: 0
A144: TCTTCACA_ATCATTCC_AAACGATA-0 | B144: -0.1849822 | C144: -5.292758 | D144: 0
A145: TTCACGCA_ATCATTCC_AAACGATA-0 | B145: -3.6504564 | C145: -3.2351828 | D145: 5
A146: ATCATTCC_ATCCTGTA_AAACGATA-0 | B146: 0.5094313 | C146: -2.1206129 | D146: 0
A147: CACCTTAC_ATCCTGTA_AAACGATA-0 | B147: -0.8994489 | C147: -2.4114616 | D147: 0
A148: CCGTGAGA_ATCCTGTA_AAACGATA-0 | B148: -1.1748192 | C148: -3.5117183 | D148: 0
A149: CTAAGGTC_ATCCTGTA_AAACGATA-0 | B149: 0.51600087 | C149: -1.6612136 | D149: 0
A150: GCCAAGAC_ATTGAGGA_AAACGATA-0 | B150: -0.07834061 | C150: -5.2778773 | D150: 0
A151: GACAGTGC_CAAGACTA_AAACGATA-0 | B151: -0.15216094 | C151: -3.9721787 | D151: 5
A152: TGAAGAGA_CAAGACTA_AAACGATA-0 | B152: -1.1475662 | C152: -1.4381196 | D152: 0
A153: AACTCACC_CACCTTAC_AAACGATA-0 | B153: 0.7959124 | C153: -3.9709861 | D153: 0
A154: AATGTTGC_CACCTTAC_AAACGATA-0 | B154: -7.280601 | C154: -1.6347178 | D154: 1
A155: ACACGACC_CACCTTAC_AAACGATA-0 | B155: 1.2259065 | C155: -1.7775899 | D155: 0
A156: CTAAGGTC_CACCTTAC_AAACGATA-0 | B156: -3.1551416 | C156: -0.58283925 | D156: 1
A157: GAGCTGAA_CACCTTAC_AAACGATA-0 | B157: -3.236234 | C157: -3.6235135 | D157: 5
A158: TGAAGAGA_CACCTTAC_AAACGATA-0 | B158: -6.4051876 | C158: 2.248052 | D158: 8
A159: TTCACGCA_CACCTTAC_AAACGATA-0 | B159: -0.33337942 | C159: -0.09289663 | D159: 0
A160: AACGCTTA_CACTTCGA_AAACGATA-0 | B160: -0.7937365 | C160: -0.2538716 | D160: 0
A161: AACGTGAT_CACTTCGA_AAACGATA-0 | B161: 0.19282536 | C161: 2.1292439 | D161: 7
A162: AACTCACC_CACTTCGA_AAACGATA-0 | B162: -2.8715477 | C162: -2.9831698 | D162: 5
A163: AAGGACAC_CACTTCGA_AAACGATA-0 | B163: 0.2589312 | C163: 2.0439124 | D163: 7
A164: AATGTTGC_CACTTCGA_AAACGATA-0 | B164: -6.338626 | C164: -3.2110486 | D164: 1
A165: ACACGACC_CACTTCGA_AAACGATA-0 | B165: 1.8040112 | C165: -1.3432088 | D165: 0
A166: AGCACCTC_CACTTCGA_AAACGATA-0 | B166: -2.625653 | C166: 2.7144513 | D166: 7
A167: ATCATTCC_CACTTCGA_AAACGATA-0 | B167: -0.6321279 | C167: 0.49176723 | D167: 0
A168: CCATCCTC_CACTTCGA_AAACGATA-0 | B168: -2.1620624 | C168: 1.1541561 | D168: 0
A169: CCGAAGTA_CACTTCGA_AAACGATA-0 | B169: 0.9431613 | C169: -0.86674523 | D169: 0
A170: GAATCTGA_CACTTCGA_AAACGATA-0 | B170: 0.71289444 | C170: -4.060182 | D170: 0
A171: GAGTTAGC_CACTTCGA_AAACGATA-0 | B171: -3.5413587 | C171: -0.78020036 | D171: 1
A172: GCTCGGTA_CACTTCGA_AAACGATA-0 | B172: 1.4045044 | C172: -2.071863 | D172: 0
A173: TTCACGCA_CACTTCGA_AAACGATA-0 | B173: -1.8199252 | C173: -0.37075517 | D173: 0
A174: AGCACCTC_CAGATCTG_AAACGATA-0 | B174: 0.5206517 | C174: -2.360112 | D174: 0
A175: ATTGGCTC_CAGATCTG_AAACGATA-0 | B175: -2.9835145 | C175: -0.8831286 | D175: 1
A176: CCAGTTCA_CAGATCTG_AAACGATA-0 | B176: -3.1378517 | C176: -3.182216 | D176: 5
A177: GAACAGGC_CAGATCTG_AAACGATA-0 | B177: -3.7383313 | C177: -0.9899515 | D177: 0
A178: TATCAGCA_CAGATCTG_AAACGATA-0 | B178: -4.3017807 | C178: 1.1671374 | D178: 8
A179: CCAGTTCA_CAGCGTTA_AAACGATA-0 | B179: -0.10325757 | C179: -0.21026525 | D179: 0
A180: CCGAAGTA_CAGCGTTA_AAACGATA-0 | B180: -4.6040926 | C180: -6.491778 | D180: 6
A181: GAGTTAGC_CAGCGTTA_AAACGATA-0 | B181: 1.4077733 | C181: -1.4896617 | D181: 0
A182: TGAAGAGA_CAGCGTTA_AAACGATA-0 | B182: 1.3825711 | C182: -4.4975276 | D182: 0
A183: TGGAACAA_CAGCGTTA_AAACGATA-0 | B183: -2.5832088 | C183: 0.96503204 | D183: 1
A184: AAGAGATC_CATACCAA_AAACGATA-0 | B184: -1.3528012 | C184: -1.7286785 | D184: 0
A185: ACAAGCTA_CATACCAA_AAACGATA-0 | B185: -2.883486 | C185: -4.3311796 | D185: 5
A186: CCAGTTCA_CATACCAA_AAACGATA-0 | B186: 0.5864365 | C186: -4.6302433 | D186: 0
A187: CGACTGGA_CATACCAA_AAACGATA-0 | B187: 1.4906467 | C187: -2.0863283 | D187: 0
A188: CGGATTGC_CATACCAA_AAACGATA-0 | B188: 1.4207965 | C188: -1.5190219 | D188: 0
A189: TGGTGGTA_CATACCAA_AAACGATA-0 | B189: 0.18276587 | C189: -2.180426 | D189: 0
A190: ACACGACC_CATCAAGT_AAACGATA-0 | B190: -0.4129176 | C190: -1.4729129 | D190: 0
A191: AGGCTAAC_CATCAAGT_AAACGATA-0 | B191: 1.8038025 | C191: -3.2331183 | D191: 0
A192: CCTAATCC_CATCAAGT_AAACGATA-0 | B192: -4.061632 | C192: -2.9847722 | D192: 5
A193: CGACACAC_CATCAAGT_AAACGATA-0 | B193: 0.0015540844 | C193: -4.7318797 | D193: 0
A194: TCCGTCTA_CATCAAGT_AAACGATA-0 | B194: 0.018318223 | C194: -1.6055992 | D194: 0
A195: AATGTTGC_CCAGTTCA_AAACGATA-0 | B195: -4.9673934 | C195: -2.894075 | D195: 0
A196: ACCACTGT_CCAGTTCA_AAACGATA-0 | B196: -2.6404753 | C196: -4.1048098 | D196: 5
A197: AGCAGGAA_CCAGTTCA_AAACGATA-0 | B197: -0.92398965 | C197: -3.736553 | D197: 5
A198: CGGATTGC_CCAGTTCA_AAACGATA-0 | B198: -4.8961287 | C198: -2.3573706 | D198: 1
A199: GAGCTGAA_CCAGTTCA_AAACGATA-0 | B199: -1.7468611 | C199: -3.9344203 | D199: 5
A200: AATGTTGC_CCATCCTC_AAACGATA-0 | B200: 0.016410738 | C200: -0.34391284 | D200: 0
... 4300 more rows

Sheet Figure 3c
A1: Figure 3c
A2: Locus | B2: Gene | C2: Core gene (true=1, false=0) | D2: Color | E2: Co-expression score
A3: PSA | B3: BF9343_RS06295 | C3: 0 | D3: #5296CB | E3: 1.334191241
A4: PSA | B4: BF9343_RS06300 | C4: 0 | D4: #5296CB | E4: 1.755695574
A5: PSA | B5: BF9343_RS06305 | C5: 0 | D5: #5296CB | E5: 1.522759102
A6: PSA | B6: BF9343_RS22250 | C6: 0 | D6: #5296CB | E6: 0
A7: PSA | B7: upaY | C7: 1 | D7: #5296CB | E7: 7.748046715
A8: PSA | B8: BF9343_RS06315 | C8: 1 | D8: #5296CB | E8: 8.39581159
A9: PSA | B9: BF9343_RS06320 | C9: 1 | D9: #5296CB | E9: 7.293380374
A10: PSA | B10: glf | C10: 1 | D10: #5296CB | E10: 8.427645292
A11: PSA | B11: BF9343_RS06330 | C11: 1 | D11: #5296CB | E11: 8.955269848
A12: PSA | B12: BF9343_RS06335 | C12: 1 | D12: #5296CB | E12: 7.990587399
A13: PSA | B13: BF9343_RS06340 | C13: 1 | D13: #5296CB | E13: 7.990912652
A14: PSA | B14: BF9343_RS06345 | C14: 1 | D14: #5296CB | E14: 8.245187094
A15: PSA | B15: BF9343_RS06350 | C15: 1 | D15: #5296CB | E15: 8.552523818
A16: PSA | B16: BF9343_RS06355 | C16: 1 | D16: #5296CB | E16: 6.547178753
A17: PSA | B17: BF9343_RS06360 | C17: 1 | D17: #5296CB | E17: 5.816977414
A18: PSA | B18: BF9343_RS06365 | C18: 0 | D18: #5296CB | E18: 0
A19: PSA | B19: BF9343_RS06370 | C19: 0 | D19: #5296CB | E19: 1.970003695
A20: PSA | B20: BF9343_RS06375 | C20: 0 | D20: #5296CB | E20: 1.966848356
A21: PSA | B21: BF9343_RS06380 | C21: 0 | D21: #5296CB | E21: 1.366955377
A22: PSB | B22: BF9343_RS08810 | C22: 0 | D22: #D8575E | E22: 1.3419857
A23: PSB | B23: BF9343_RS08815 | C23: 0 | D23: #D8575E | E23: 0.9337726547
A24: PSB | B24: BF9343_RS08820 | C24: 0 | D24: #D8575E | E24: 0.7512198132
A25: PSB | B25: upbY | C25: 1 | D25: #D8575E | E25: 13.1678766
A26: PSB | B26: BF9343_RS08830 | C26: 1 | D26: #D8575E | E26: 15.54277255
A27: PSB | B27: BF9343_RS08835 | C27: 1 | D27: #D8575E | E27: 15.68855064
A28: PSB | B28: BF9343_RS08840 | C28: 1 | D28: #D8575E | E28: 14.10416304
A29: PSB | B29: aepX | C29: 1 | D29: #D8575E | E29: 12.35551736
A30: PSB | B30: aepY | C30: 1 | D30: #D8575E | E30: 12.93753178
A31: PSB | B31: BF9343_RS08855 | C31: 1 | D31: #D8575E | E31: 13.58720645
A32: PSB | B32: BF9343_RS08860 | C32: 1 | D32: #D8575E | E32: 14.68677398
A33: PSB | B33: BF9343_RS08865 | C33: 1 | D33: #D8575E | E33: 14.96115447
A34: PSB | B34: BF9343_RS08870 | C34: 1 | D34: #D8575E | E34: 15.03734839
A35: PSB | B35: BF9343_RS08875 | C35: 1 | D35: #D8575E | E35: 14.15149455
A36: PSB | B36: BF9343_RS08880 | C36: 1 | D36: #D8575E | E36: 14.05631679
A37: PSB | B37: BF9343_RS08885 | C37: 1 | D37: #D8575E | E37: 15.56119263
A38: PSB | B38: BF9343_RS08890 | C38: 1 | D38: #D8575E | E38: 17.89720258
A39: PSB | B39: BF9343_RS08895 | C39: 1 | D39: #D8575E | E39: 19.66154212
A40: PSB | B40: BF9343_RS08900 | C40: 1 | D40: #D8575E | E40: 16.00199025
A41: PSB | B41: BF9343_RS08905 | C41: 1 | D41: #D8575E | E41: 15.86427064
A42: PSB | B42: wecB 1 | C42: 1 | D42: #D8575E | E42: 14.34328667
A43: PSB | B43: BF9343_RS08915 | C43: 1 | D43: #D8575E | E43: 13.95285514
A44: PSB | B44: BF9343_RS08920 | C44: 1 | D44: #D8575E | E44: 16.24773968
A45: PSB | B45: BF9343_RS08925 | C45: 1 | D45: #D8575E | E45: 17.01845603
A46: PSB | B46: BF9343_RS08930 | C46: 1 | D46: #D8575E | E46: 15.59727097
A47: PSB | B47: BF9343_RS08935 | C47: 0 | D47: #D8575E | E47: 0
A48: PSB | B48: BF9343_RS22450 | C48: 0 | D48: #D8575E | E48: 0
A49: PSB | B49: BF9343_RS08940 | C49: 0 | D49: #D8575E | E49: 6.762218886
A50: PSB | B50: BF9343_RS08945 | C50: 0 | D50: #D8575E | E50: 1.126650683
A51: PSB | B51: gnd | C51: 0 | D51: #D8575E | E51: 1.764822546
A52: PSC | B52: BF9343_RS04730 | C52: 0 | D52: #FBC850 | E52: 1.170391129
A53: PSC | B53: BF9343_RS04735 | C53: 0 | D53: #FBC850 | E53: 1.287608001
A54: PSC | B54: BF9343_RS04740 | C54: 0 | D54: #FBC850 | E54: 0
A55: PSC | B55: BF9343_RS04745 | C55: 0 | D55: #FBC850 | E55: 2.720164888
A56: PSC | B56: upcY | C56: 1 | D56: #FBC850 | E56: 15.86665121
A57: PSC | B57: BF9343_RS04755 | C57: 1 | D57: #FBC850 | E57: 21.95133906
A58: PSC | B58: rfbA | C58: 1 | D58: #FBC850 | E58: 24.33315101
A59: PSC | B59: rfbC | C59: 1 | D59: #FBC850 | E59: 28.15348095
A60: PSC | B60: BF9343_RS04770 | C60: 1 | D60: #FBC850 | E60: 32.63618755
A61: PSC | B61: BF9343_RS04775 | C61: 1 | D61: #FBC850 | E61: 23.22043753
A62: PSC | B62: BF9343_RS04780 | C62: 1 | D62: #FBC850 | E62: 20.02022289
A63: PSC | B63: BF9343_RS04785 | C63: 1 | D63: #FBC850 | E63: 19.27943172
A64: PSC | B64: BF9343_RS04790 | C64: 1 | D64: #FBC850 | E64: 23.21660955
A65: PSC | B65: BF9343_RS04795 | C65: 1 | D65: #FBC850 | E65: 24.14653889
A66: PSC | B66: BF9343_RS04800 | C66: 1 | D66: #FBC850 | E66: 21.52080453
A67: PSC | B67: BF9343_RS04805 | C67: 1 | D67: #FBC850 | E67: 15.57830955
A68: PSC | B68: BF9343_RS04810 | C68: 1 | D68: #FBC850 | E68: 16.01604837
A69: PSC | B69: BF9343_RS04815 | C69: 1 | D69: #FBC850 | E69: 16.58658268
A70: PSC | B70: BF9343_RS04820 | C70: 1 | D70: #FBC850 | E70: 19.01067134
A71: PSC | B71: BF9343_RS04825 | C71: 1 | D71: #FBC850 | E71: 22.45011819
A72: PSC | B72: BF9343_RS04830 | C72: 1 | D72: #FBC850 | E72: 21.5296602
A73: PSC | B73: BF9343_RS04835 | C73: 1 | D73: #FBC850 | E73: 16.44502996
A74: PSC | B74: BF9343_RS04840 | C74: 0 | D74: #FBC850 | E74: 1.188965509
A75: PSC | B75: BF9343_RS04845 | C75: 0 | D75: #FBC850 | E75: 1.033813152
A76: PSC | B76: BF9343_RS04850 | C76: 0 | D76: #FBC850 | E76: 1.122642268
A77: PSD | B77: BF9343_RS17750 | C77: 0 | D77: #6EB163 | E77: 2.219607685
A78: PSD | B78: BF9343_RS17755 | C78: 0 | D78: #6EB163 | E78: 2.400647405
A79: PSD | B79: BF9343_RS23790 | C79: 0 | D79: #6EB163 | E79: 0
A80: PSD | B80: BF9343_RS17760 | C80: 1 | D80: #6EB163 | E80: 13.36742039
A81: PSD | B81: BF9343_RS21660 | C81: 1 | D81: #6EB163 | E81: 31.17036775
A82: PSD | B82: BF9343_RS17770 | C82: 1 | D82: #6EB163 | E82: 22.98569312
A83: PSD | B83: BF9343_RS17775 | C83: 1 | D83: #6EB163 | E83: 31.92023712
A84: PSD | B84: BF9343_RS17780 | C84: 1 | D84: #6EB163 | E84: 40.09297953
A85: PSD | B85: BF9343_RS17785 | C85: 1 | D85: #6EB163 | E85: 36.63374939
A86: PSD | B86: BF9343_RS17790 | C86: 1 | D86: #6EB163 | E86: 38.1656181
A87: PSD | B87: BF9343_RS17795 | C87: 1 | D87: #6EB163 | E87: 34.02306112
A88: PSD | B88: BF9343_RS17800 | C88: 1 | D88: #6EB163 | E88: 34.15031237
A89: PSD | B89: BF9343_RS17805 | C89: 1 | D89: #6EB163 | E89: 29.19241385
A90: PSD | B90: BF9343_RS23795 | C90: 1 | D90: #6EB163 | E90: 32.536124
A91: PSD | B91: BF9343_RS17815 | C91: 1 | D91: #6EB163 | E91: 31.0139501
A92: PSD | B92: BF9343_RS17820 | C92: 1 | D92: #6EB163 | E92: 30.87858321
A93: PSD | B93: BF9343_RS17825 | C93: 1 | D93: #6EB163 | E93: 33.16528748
A94: PSD | B94: BF9343_RS17830 | C94: 1 | D94: #6EB163 | E94: 30.16546574
A95: PSD | B95: BF9343_RS17835 | C95: 1 | D95: #6EB163 | E95: 33.52048539
A96: PSD | B96: BF9343_RS17840 | C96: 1 | D96: #6EB163 | E96: 31.12413709
A97: PSD | B97: BF9343_RS17845 | C97: 1 | D97: #6EB163 | E97: 28.76770582
A98: PSD | B98: BF9343_RS17850 | C98: 1 | D98: #6EB163 | E98: 30.4881447
A99: PSD | B99: updY | C99: 1 | D99: #6EB163 | E99: 28.46424916
A100: PSD | B100: BF9343_RS17865 | C100: 0 | D100: #6EB163 | E100: 1.080589945
A101: PSD | B101: BF9343_RS17870 | C101: 0 | D101: #6EB163 | E101: 1.296901948
A102: PSD | B102: BF9343_RS17875 | C102: 0 | D102: #6EB163 | E102: 1.098131784
A103: PSE | B103: BF9343_RS12360 | C103: 0 | D103: #BCB8EC | E103: 2.083937083
A104: PSE | B104: BF9343_RS12365 | C104: 0 | D104: #BCB8EC | E104: 1.785870285
A105: PSE | B105: pheT | C105: 0 | D105: #BCB8EC | E105: 1.688905698
A106: PSE | B106: BF9343_RS12375 | C106: 1 | D106: #BCB8EC | E106: 31.52419249
A107: PSE | B107: BF9343_RS12380 | C107: 1 | D107: #BCB8EC | E107: 37.19296276
A108: PSE | B108: BF9343_RS12385 | C108: 1 | D108: #BCB8EC | E108: 43.12005187
A109: PSE | B109: BF9343_RS12390 | C109: 1 | D109: #BCB8EC | E109: 40.20601649
A110: PSE | B110: BF9343_RS12395 | C110: 1 | D110: #BCB8EC | E110: 41.99996446
A111: PSE | B111: BF9343_RS12400 | C111: 1 | D111: #BCB8EC | E111: 41.63689805
A112: PSE | B112: BF9343_RS12405 | C112: 1 | D112: #BCB8EC | E112: 43.42219862
A113: PSE | B113: BF9343_RS12410 | C113: 1 | D113: #BCB8EC | E113: 37.7591921
A114: PSE | B114: BF9343_RS12415 | C114: 1 | D114: #BCB8EC | E114: 32.76784227
A115: PSE | B115: BF9343_RS12420 | C115: 1 | D115: #BCB8EC | E115: 34.15604684
A116: PSE | B116: BF9343_RS12425 | C116: 1 | D116: #BCB8EC | E116: 29.99203796
A117: PSE | B117: rfbG | C117: 1 | D117: #BCB8EC | E117: 30.0164245
A118: PSE | B118: rfbF | C118: 1 | D118: #BCB8EC | E118: 33.46454098
A119: PSE | B119: rfbH | C119: 1 | D119: #BCB8EC | E119: 27.53144305
A120: PSE | B120: BF9343_RS12445 | C120: 1 | D120: #BCB8EC | E120: 33.91576262
A121: PSE | B121: upeY | C121: 1 | D121: #BCB8EC | E121: 29.32465531
A122: PSE | B122: fkp | C122: 0 | D122: #BCB8EC | E122: 1.564323987
A123: PSE | B123: BF9343_RS12460 | C123: 0 | D123: #BCB8EC | E123: 1.539342692
A124: PSE | B124: dnaB | C124: 0 | D124: #BCB8EC | E124: 1.293862867
A125: PSF | B125: BF9343_RS07105 | C125: 0 | D125: #C47C51 | E125: 1.81497739
A126: PSF | B126: BF9343_RS07110 | C126: 0 | D126: #C47C51 | E126: 1.656262583
A127: PSF | B127: BF9343_RS07115 | C127: 0 | D127: #C47C51 | E127: 4.907642945
A128: PSF | B128: BF9343_RS07120 | C128: 0 | D128: #C47C51 | E128: 0
A129: PSF | B129: upfY | C129: 1 | D129: #C47C51 | E129: 10.6282282
A130: PSF | B130: BF9343_RS07130 | C130: 1 | D130: #C47C51 | E130: 11.99114896
A131: PSF | B131: rfbA 1 | C131: 1 | D131: #C47C51 | E131: 12.66336609
A132: PSF | B132: rfbC 1 | C132: 1 | D132: #C47C51 | E132: 13.1779079
A133: PSF | B133: BF9343_RS07145 | C133: 1 | D133: #C47C51 | E133: 11.16873515
A134: PSF | B134: BF9343_RS07150 | C134: 1 | D134: #C47C51 | E134: 10.5510334
A135: PSF | B135: BF9343_RS07155 | C135: 1 | D135: #C47C51 | E135: 10.812113
A136: PSF | B136: BF9343_RS07160 | C136: 1 | D136: #C47C51 | E136: 11.38662199
A137: PSF | B137: BF9343_RS07170 | C137: 1 | D137: #C47C51 | E137: 12.0098497
A138: PSF | B138: BF9343_RS07175 | C138: 1 | D138: #C47C51 | E138: 12.54917958
A139: PSF | B139: BF9343_RS07180 | C139: 1 | D139: #C47C51 | E139: 12.49438144
A140: PSF | B140: BF9343_RS07185 | C140: 1 | D140: #C47C51 | E140: 13.67205699
A141: PSF | B141: BF9343_RS07190 | C141: 1 | D141: #C47C51 | E141: 13.48908197
A142: PSF | B142: BF9343_RS07195 | C142: 1 | D142: #C47C51 | E142: 13.61781867
A143: PSF | B143: BF9343_RS07200 | C143: 1 | D143: #C47C51 | E143: 13.34653712
A144: PSF | B144: BF9343_RS07205 | C144: 1 | D144: #C47C51 | E144: 12.35613361
A145: PSF | B145: BF9343_RS07210 | C145: 1 | D145: #C47C51 | E145: 11.1996356
A146: PSF | B146: BF9343_RS07215 | C146: 0 | D146: #C47C51 | E146: 1.564554949
A147: PSF | B147: BF9343_RS07220 | C147: 0 | D147: #C47C51 | E147: 1.711590195
A148: PSF | B148: mutY | C148: 0 | D148: #C47C51 | E148: 1.58230382
A149: PSF | B149: BF9343_RS07230 | C149: 0 | D149: #C47C51 | E149: 1.988950291
A150: PSG | B150: BF9343_RS03400 | C150: 0 | D150: #EE7CBB | E150: 1.955209019
A151: PSG | B151: BF9343_RS03405 | C151: 0 | D151: #EE7CBB | E151: 4.218912708
A152: PSG | B152: BF9343_RS03410 | C152: 0 | D152: #EE7CBB | E152: 2.705136439
A153: PSG | B153: upgY | C153: 1 | D153: #EE7CBB | E153: 8.974079521
A154: PSG | B154: BF9343_RS03425 | C154: 1 | D154: #EE7CBB | E154: 9.746553372
A155: PSG | B155: BF9343_RS03430 | C155: 1 | D155: #EE7CBB | E155: 8.685804662
A156: PSG | B156: BF9343_RS03435 | C156: 1 | D156: #EE7CBB | E156: 8.350747784
A157: PSG | B157: BF9343_RS03440 | C157: 1 | D157: #EE7CBB | E157: 8.931111697
A158: PSG | B158: BF9343_RS03445 | C158: 1 | D158: #EE7CBB | E158: 9.507549439
A159: PSG | B159: BF9343_RS03450 | C159: 1 | D159: #EE7CBB | E159: 10.00330407
A160: PSG | B160: BF9343_RS03455 | C160: 1 | D160: #EE7CBB | E160: 9.10880452
A161: PSG | B161: BF9343_RS03460 | C161: 1 | D161: #EE7CBB | E161: 10.36603963
A162: PSG | B162: BF9343_RS03465 | C162: 1 | D162: #EE7CBB | E162: 9.687506479
A163: PSG | B163: BF9343_RS03470 | C163: 1 | D163: #EE7CBB | E163: 10.18075414
A164: PSG | B164: BF9343_RS03475 | C164: 1 | D164: #EE7CBB | E164: 9.923232916
A165: PSG | B165: wecC | C165: 1 | D165: #EE7CBB | E165: 8.73685938
A166: PSG | B166: wecB | C166: 1 | D166: #EE7CBB | E166: 8.698277692
A167: PSG | B167: BF9343_RS03495 | C167: 1 | D167: #EE7CBB | E167: 6.223730254
A168: PSG | B168: BF9343_RS03500 | C168: 1 | D168: #EE7CBB | E168: 8.50454843
A169: PSG | B169: BF9343_RS03505 | C169: 1 | D169: #EE7CBB | E169: 9.464982076
A170: PSG | B170: BF9343_RS03510 | C170: 1 | D170: #EE7CBB | E170: 10.13341628
A171: PSG | B171: BF9343_RS03515 | C171: 1 | D171: #EE7CBB | E171: 9.546438087
A172: PSG | B172: BF9343_RS03520 | C172: 1 | D172: #EE7CBB | E172: 1.601296055
A173: PSG | B173: BF9343_RS03525 | C173: 1 | D173: #EE7CBB | E173: 7.955992871
A174: PSG | B174: BF9343_RS03530 | C174: 0 | D174: #EE7CBB | E174: 5.020734752
A175: PSG | B175: BF9343_RS23575 | C175: 0 | D175: #EE7CBB | E175: 0
A176: PSG | B176: BF9343_RS03535 | C176: 0 | D176: #EE7CBB | E176: 2.200559011
A177: PSG | B177: BF9343_RS03540 | C177: 0 | D177: #EE7CBB | E177: 1.68954844
A178: PSG | B178: BF9343_RS03545 | C178: 0 | D178: #EE7CBB | E178: 3.306055118
A179: PSG | B179: BF9343_RS03550 | C179: 0 | D179: #EE7CBB | E179: 1.820534943
A180: PSH | B180: BF9343_RS16630 | C180: 0 | D180: #929392 | E180: 1.402151365
A181: PSH | B181: BF9343_RS16635 | C181: 0 | D181: #929392 | E181: 1.561955798
A182: PSH | B182: BF9343_RS16640 | C182: 0 | D182: #929392 | E182: 1.575887263
A183: PSH | B183: BF9343_RS23770 | C183: 0 | D183: #929392 | E183: 0
A184: PSH | B184: BF9343_RS16645 | C184: 1 | D184: #929392 | E184: 10.95440663
A185: PSH | B185: rfbC 3 | C185: 1 | D185: #929392 | E185: 12.51916653
A186: PSH | B186: rfbA 2 | C186: 1 | D186: #929392 | E186: 11.3154461
A187: PSH | B187: BF9343_RS16660 | C187: 1 | D187: #929392 | E187: 10.36975536
A188: PSH | B188: BF9343_RS16665 | C188: 1 | D188: #929392 | E188: 13.7260126
A189: PSH | B189: BF9343_RS16670 | C189: 1 | D189: #929392 | E189: 13.43862419
A190: PSH | B190: BF9343_RS16675 | C190: 1 | D190: #929392 | E190: 15.30226852
A191: PSH | B191: BF9343_RS16680 | C191: 1 | D191: #929392 | E191: 15.50234578
A192: PSH | B192: BF9343_RS16685 | C192: 1 | D192: #929392 | E192: 15.75617212
A193: PSH | B193: BF9343_RS16690 | C193: 1 | D193: #929392 | E193: 12.87660347
A194: PSH | B194: BF9343_RS16695 | C194: 1 | D194: #929392 | E194: 11.9548914
A195: PSH | B195: BF9343_RS16700 | C195: 1 | D195: #929392 | E195: 11.57074825
A196: PSH | B196: BF9343_RS16705 | C196: 1 | D196: #929392 | E196: 12.39121342
A197: PSH | B197: BF9343_RS16710 | C197: 1 | D197: #929392 | E197: 9.868619002
A198: PSH | B198: BF9343_RS16715 | C198: 1 | D198: #929392 | E198: 11.54628366
A199: PSH | B199: uphY | C199: 1 | D199: #929392 | E199: 9.494907783
A200: PSH | B200: BF9343_RS16725 | C200: 0 | D200: #929392 | E200: 1.906770603
... 2 more rows

Sheet Figure 3d
A1: Figure 3d
A2: names | B2: scores | C2: logfoldchanges | D2: pvals | E2: pvals_adj
A3: wecB | B3: 16.592964 | C3: 1.8141383 | D3: 4.12E-61 | E3: 2.62E-58
A4: BF9343_RS03430 | B4: 16.129084 | C4: 1.7864168 | D4: 7.00E-58 | E4: 2.97E-55
A5: BF9343_RS03500 | B5: 15.786576 | C5: 1.8337367 | D5: 1.52E-55 | E5: 5.80E-53
A6: BF9343_RS03435 | B6: 14.298055 | C6: 1.7100643 | D6: 5.62E-46 | E6: 1.26E-43
A7: wecC | B7: 13.482887 | C7: 1.5538005 | D7: 4.00E-41 | E7: 5.26E-39
A8: upgY | B8: 11.693473 | C8: 1.6473073 | D8: 2.07E-31 | E8: 1.65E-29
A9: BF9343_RS03425 | B9: 11.579752 | C9: 1.9101729 | D9: 7.88E-31 | E9: 6.01E-29
A10: BF9343_RS03465 | B10: 11.391167 | C10: 1.7700537 | D10: 6.74E-30 | E10: 4.59E-28
A11: aepX | B11: 11.301302 | C11: 1.4540309 | D11: 1.83E-29 | E11: 1.18E-27
A12: BF9343_RS03505 | B12: 11.1769 | C12: 1.6183164 | D12: 7.44E-29 | E12: 4.58E-27
A13: BF9343_RS03445 | B13: 10.516657 | C13: 1.7877847 | D13: 9.53E-26 | E13: 4.72E-24
A14: BF9343_RS03450 | B14: 10.2444315 | C14: 1.920835 | D14: 1.61E-24 | E14: 7.23E-23
A15: BF9343_RS03470 | B15: 10.09254 | C15: 1.6649052 | D15: 7.50E-24 | E15: 3.29E-22
A16: BF9343_RS07155 | B16: 9.885183 | C16: 1.311936 | D16: 5.89E-23 | E16: 2.32E-21
A17: aepY | B17: 9.5947 | C17: 1.4946057 | D17: 1.01E-21 | E17: 3.74E-20
A18: BF9343_RS03475 | B18: 9.496707 | C18: 1.4962571 | D18: 2.58E-21 | E18: 9.20E-20
A19: BF9343_RS03515 | B19: 9.428589 | C19: 2.0252342 | D19: 4.99E-21 | E19: 1.75E-19
A20: BF9343_RS07150 | B20: 9.296605 | C20: 1.0142094 | D20: 1.68E-20 | E20: 5.73E-19
A21: BF9343_RS03440 | B21: 9.062143 | C21: 1.745586 | D21: 1.49E-19 | E21: 4.90E-18
A22: BF9343_RS03525 | B22: 9.019477 | C22: 1.6201164 | D22: 2.19E-19 | E22: 7.07E-18
A23: BF9343_RS08835 | B23: 9.01606 | C23: 1.8238236 | D23: 2.27E-19 | E23: 7.27E-18
A24: BF9343_RS08905 | B24: 8.867172 | C24: 1.6638956 | D24: 8.61E-19 | E24: 2.65E-17
A25: upfY | B25: 8.8146925 | C25: 1.3966614 | D25: 1.37E-18 | E25: 4.14E-17
A26: BF9343_RS08860 | B26: 8.641916 | C26: 1.6146833 | D26: 6.26E-18 | E26: 1.85E-16
A27: BF9343_RS08855 | B27: 8.436824 | C27: 1.5627406 | D27: 3.64E-17 | E27: 1.05E-15
A28: BF9343_RS08880 | B28: 8.3717785 | C28: 1.3810256 | D28: 6.30E-17 | E28: 1.77E-15
A29: BF9343_RS03455 | B29: 8.240863 | C29: 1.564555 | D29: 1.89E-16 | E29: 5.16E-15
A30: BF9343_RS03460 | B30: 8.201688 | C30: 1.6683106 | D30: 2.62E-16 | E30: 7.10E-15
A31: BF9343_RS07130 | B31: 8.184351 | C31: 1.5037717 | D31: 3.02E-16 | E31: 8.12E-15
A32: wecB 1 | B32: 8.029117 | C32: 1.4448925 | D32: 1.07E-15 | E32: 2.81E-14
A33: BF9343_RS08865 | B33: 7.798128 | C33: 1.5750494 | D33: 6.82E-15 | E33: 1.71E-13
A34: rfbA 1 | B34: 7.76824 | C34: 1.2018199 | D34: 8.59E-15 | E34: 2.12E-13
A35: BF9343_RS08875 | B35: 7.757213 | C35: 1.4374095 | D35: 9.39E-15 | E35: 2.30E-13
A36: BF9343_RS03510 | B36: 7.401557 | C36: 1.6450903 | D36: 1.44E-13 | E36: 3.23E-12
A37: BF9343_RS08870 | B37: 7.2556286 | C37: 1.5829129 | D37: 4.25E-13 | E37: 9.16E-12
A38: BF9343_RS08840 | B38: 7.1882534 | C38: 1.8070292 | D38: 6.98E-13 | E38: 1.50E-11
A39: BF9343_RS08830 | B39: 7.0654955 | C39: 1.6235335 | D39: 1.69E-12 | E39: 3.57E-11
A40: BF9343_RS08920 | B40: 6.9644594 | C40: 1.5245378 | D40: 3.48E-12 | E40: 7.17E-11
A41: BF9343_RS07160 | B41: 6.960981 | C41: 1.062759 | D41: 3.55E-12 | E41: 7.28E-11
A42: BF9343_RS07170 | B42: 6.8472424 | C42: 1.076397 | D42: 7.88E-12 | E42: 1.58E-10
A43: BF9343_RS07175 | B43: 6.4199185 | C43: 1.0304683 | D43: 1.41E-10 | E43: 2.62E-09
A44: upbY | B44: 6.4166865 | C44: 1.6271937 | D44: 1.45E-10 | E44: 2.67E-09
A45: BF9343_RS07180 | B45: 6.2887053 | C45: 1.0198283 | D45: 3.31E-10 | E45: 6.01E-09
A46: BF9343_RS08885 | B46: 6.2548833 | C46: 1.3853568 | D46: 4.11E-10 | E46: 7.44E-09
A47: BF9343_RS08925 | B47: 5.9771533 | C47: 1.6817099 | D47: 2.34E-09 | E47: 3.83E-08
A48: BF9343_RS08900 | B48: 5.9576645 | C48: 1.5184518 | D48: 2.63E-09 | E48: 4.29E-08
A49: BF9343_RS07190 | B49: 5.829781 | C49: 1.2337837 | D49: 5.69E-09 | E49: 8.79E-08
A50: BF9343_RS08915 | B50: 5.6697116 | C50: 1.3808359 | D50: 1.46E-08 | E50: 2.19E-07
A51: BF9343_RS07145 | B51: 5.667049 | C51: 1.2136594 | D51: 1.49E-08 | E51: 2.21E-07
A52: BF9343_RS18390 | B52: 5.6372666 | C52: 1.1680689 | D52: 1.77E-08 | E52: 2.61E-07
A53: BF9343_RS08890 | B53: 5.570393 | C53: 1.5426894 | D53: 2.60E-08 | E53: 3.76E-07
A54: BF9343_RS07185 | B54: 5.5620275 | C54: 1.0881925 | D54: 2.72E-08 | E54: 3.89E-07
A55: BF9343_RS07195 | B55: 5.5280786 | C55: 1.1447597 | D55: 3.30E-08 | E55: 4.70E-07
A56: rfbC 1 | B56: 5.3743916 | C56: 1.1636455 | D56: 7.82E-08 | E56: 1.06E-06
A57: BF9343_RS08930 | B57: 5.2835145 | C57: 2.00828 | D57: 1.29E-07 | E57: 1.71E-06
A58: BF9343_RS08895 | B58: 5.236116 | C58: 1.7294217 | D58: 1.67E-07 | E58: 2.19E-06
A59: BF9343_RS20610 | B59: 5.09334 | C59: 1.0794218 | D59: 3.57E-07 | E59: 4.44E-06
A60: BF9343_RS07200 | B60: 4.8881993 | C60: 1.1064024 | D60: 1.03E-06 | E60: 1.20E-05
A61: BF9343_RS07205 | B61: 4.7530885 | C61: 1.0987262 | D61: 2.03E-06 | E61: 2.28E-05
A62: BF9343_RS01695 | B62: 4.6117716 | C62: 1.1332296 | D62: 4.03E-06 | E62: 4.32E-05
A63: BF9343_RS07210 | B63: 4.13162 | C63: 1.1255169 | D63: 3.63E-05 | E63: 0.0003415779189
A64: BF9343_RS03795 | B64: 3.894687 | C64: 1.0600159 | D64: 9.88E-05 | E64: 0.0008572047589
A65: ccsA | B65: 3.7889543 | C65: 1.0685465 | D65: 0.0001519809618 | E65: 0.001266286791
A66: BF9343_RS09010 | B66: 2.817044 | C66: 1.1964952 | D66: 0.004854665873 | E66: 0.02635192742
A67: BF9343_RS15870 | B67: 2.7297995 | C67: 1.3011441 | D67: 0.0063463894 | E67: 0.03286000264
A68: BF9343_RS01055 | B68: 2.669153 | C68: 1.784156 | D68: 0.007615369442 | E68: 0.03823717078
A69: BF9343_RS04590 | B69: 2.6247509 | C69: 1.4139006 | D69: 0.008682408283 | E69: 0.04204577412
A70: BF9343_RS17255 | B70: -2.501067 | C70: -1.3312074 | D70: 0.01238752682 | E70: 0.05674766186
A71: BF9343_RS20505 | B71: -2.5435414 | C71: -18.614376 | D71: 0.01097910278 | E71: 0.05109299538
A72: BF9343_RS23725 | B72: -2.5613265 | C72: -18.95795 | D72: 0.01043278328 | E72: 0.04890847788
A73: BF9343_RS19940 | B73: -2.6758595 | C73: -1.0556386 | D73: 0.00745873923 | E73: 0.03764887421
A74: BF9343_RS20375 | B74: -2.7765326 | C74: -19.064556 | D74: 0.005498047331 | E74: 0.02918017888
A75: BF9343_RS01360 | B75: -2.7771072 | C75: -1.5666 | D75: 0.005487490543 | E75: 0.02918017888
A76: BF9343_RS13255 | B76: -2.8103194 | C76: -2.4659622 | D76: 0.004952160306 | E76: 0.0266913047
A77: BF9343_RS08705 | B77: -2.8629286 | C77: -19.23008 | D77: 0.004200723914 | E77: 0.02333327868
A78: BF9343_RS10845 | B78: -2.8759062 | C78: -1.0859315 | D78: 0.004032302555 | E78: 0.02247053259
A79: cas2 | B79: -2.9104636 | C79: -19.248186 | D79: 0.003611917912 | E79: 0.02051053386
A80: BF9343_RS08695 | B80: -3.1858442 | C80: -2.893752 | D80: 0.001444561965 | E80: 0.009343132978
A81: BF9343_RS07485 | B81: -3.2609212 | C81: -1.4849119 | D81: 0.001111845538 | E81: 0.007404542011
A82: BF9343_RS20760 | B82: -3.3437808 | C82: -4.0236053 | D82: 0.0008274896511 | E82: 0.005762227206
A83: rfbC | B83: -3.6142673 | C83: -2.8314533 | D83: 0.0003016300319 | E83: 0.002363491174
A84: BF9343_RS10400 | B84: -3.6728022 | C84: -19.92817 | D84: 0.0002403743193 | E84: 0.001922994555
A85: BF9343_RS10030 | B85: -3.7114477 | C85: -19.902525 | D85: 0.0002064964946 | E85: 0.001681761487
A86: BF9343_RS04835 | B86: -3.7370288 | C86: -2.142565 | D86: 0.0001865025461 | E86: 0.001537135455
A87: BF9343_RS04770 | B87: -4.0545073 | C87: -20.044546 | D87: 5.04E-05 | E87: 0.0004599538361
A88: BF9343_RS12400 | B88: -4.3899183 | C88: -2.511168 | D88: 1.14E-05 | E88: 0.0001138998808
A89: BF9343_RS04795 | B89: -4.4037766 | C89: -2.7871037 | D89: 1.07E-05 | E89: 0.0001077086546
A90: BF9343_RS04775 | B90: -4.5650573 | C90: -2.2181287 | D90: 5.01E-06 | E90: 5.25E-05
A91: BF9343_RS16675 | B91: -4.59902 | C91: -1.4437759 | D91: 4.26E-06 | E91: 4.53E-05
A92: BF9343_RS16680 | B92: -4.651993 | C92: -1.1153634 | D92: 3.31E-06 | E92: 3.59E-05
A93: BF9343_RS16660 | B93: -4.744502 | C93: -1.0871522 | D93: 2.10E-06 | E93: 2.36E-05
A94: uphY | B94: -4.817216 | C94: -1.3181359 | D94: 1.46E-06 | E94: 1.68E-05
A95: BF9343_RS04780 | B95: -5.0299454 | C95: -2.2819862 | D95: 4.93E-07 | E95: 5.97E-06
A96: upcY | B96: -5.0693483 | C96: -2.6307378 | D96: 4.01E-07 | E96: 4.95E-06
A97: BF9343_RS12375 | B97: -5.1141567 | C97: -2.552268 | D97: 3.17E-07 | E97: 3.96E-06
A98: BF9343_RS12405 | B98: -5.1699786 | C98: -3.7597246 | D98: 2.35E-07 | E98: 3.02E-06
A99: BF9343_RS04790 | B99: -5.281766 | C99: -3.4996834 | D99: 1.29E-07 | E99: 1.71E-06
A100: rfbA 2 | B100: -5.343783 | C100: -1.0234272 | D100: 9.19E-08 | E100: 1.23E-06
A101: accC | B101: -5.3806896 | C101: -1.1086287 | D101: 7.48E-08 | E101: 1.02E-06
A102: BF9343_RS16710 | B102: -5.6054106 | C102: -1.4689878 | D102: 2.10E-08 | E102: 3.07E-07
A103: upeY | B103: -5.628636 | C103: -2.034175 | D103: 1.83E-08 | E103: 2.69E-07
A104: BF9343_RS04755 | B104: -5.6314106 | C104: -3.6727502 | D104: 1.80E-08 | E104: 2.66E-07
A105: BF9343_RS04800 | B105: -5.8410907 | C105: -2.3622715 | D105: 5.23E-09 | E105: 8.15E-08
A106: BF9343_RS16690 | B106: -5.8701425 | C106: -1.4889643 | D106: 4.40E-09 | E106: 6.92E-08
A107: BF9343_RS16665 | B107: -5.9027305 | C107: -1.5706768 | D107: 3.62E-09 | E107: 5.70E-08
A108: BF9343_RS16700 | B108: -5.906006 | C108: -1.904163 | D108: 3.54E-09 | E108: 5.63E-08
A109: BF9343_RS12380 | B109: -6.242186 | C109: -3.1789234 | D109: 4.36E-10 | E109: 7.78E-09
A110: BF9343_RS12390 | B110: -6.3760896 | C110: -3.596248 | D110: 1.84E-10 | E110: 3.38E-09
A111: BF9343_RS16645 | B111: -6.469655 | C111: -1.7263682 | D111: 9.97E-11 | E111: 1.86E-09
A112: BF9343_RS16715 | B112: -6.560384 | C112: -2.1228428 | D112: 5.45E-11 | E112: 1.04E-09
A113: BF9343_RS12385 | B113: -6.8267174 | C113: -3.7073755 | D113: 8.83E-12 | E113: 1.76E-10
A114: BF9343_RS04825 | B114: -6.852339 | C114: -4.0160775 | D114: 7.39E-12 | E114: 1.49E-10
A115: BF9343_RS16705 | B115: -6.998337 | C115: -2.3764956 | D115: 2.64E-12 | E115: 5.50E-11
A116: BF9343_RS12445 | B116: -7.58933 | C116: -22.04284 | D116: 3.32E-14 | E116: 7.82E-13
A117: BF9343_RS12395 | B117: -7.663233 | C117: -4.474976 | D117: 1.87E-14 | E117: 4.48E-13
A118: BF9343_RS04810 | B118: -7.785014 | C118: -2.3978908 | D118: 7.17E-15 | E118: 1.79E-13
A119: BF9343_RS04830 | B119: -7.8996434 | C119: -4.436846 | D119: 2.89E-15 | E119: 7.36E-14
A120: BF9343_RS16685 | B120: -7.9938555 | C120: -2.2598991 | D120: 1.35E-15 | E120: 3.45E-14
A121: BF9343_RS04785 | B121: -8.0184965 | C121: -3.145243 | D121: 1.10E-15 | E121: 2.87E-14
A122: BF9343_RS16695 | B122: -8.603098 | C122: -1.8840715 | D122: 8.12E-18 | E122: 2.38E-16
A123: BF9343_RS12410 | B123: -8.713197 | C123: -22.400478 | D123: 3.12E-18 | E123: 9.31E-17
A124: BF9343_RS04815 | B124: -9.563043 | C124: -3.8221698 | D124: 1.22E-21 | E124: 4.48E-20
A125: BF9343_RS12420 | B125: -9.885535 | C125: -4.2551117 | D125: 5.18E-23 | E125: 2.06E-21
A126: BF9343_RS12415 | B126: -10.03153 | C126: -5.950859 | D126: 1.21E-23 | E126: 5.21E-22
A127: BF9343_RS04820 | B127: -10.123664 | C127: -3.7619953 | D127: 4.70E-24 | E127: 2.08E-22
A128: BF9343_RS12425 | B128: -10.554848 | C128: -3.7423785 | D128: 5.29E-26 | E128: 2.71E-24
A129: rfbF | B129: -10.640666 | C129: -3.6166904 | D129: 2.12E-26 | E129: 1.15E-24
A130: rfbA | B130: -10.654223 | C130: -23.002615 | D130: 1.88E-26 | E130: 1.04E-24
A131: upaY | B131: -11.921528 | C131: -3.0220704 | D131: 1.05E-32 | E131: 8.94E-31
A132: BF9343_RS04805 | B132: -12.185528 | C132: -3.4605446 | D132: 4.35E-34 | E132: 4.15E-32
A133: rfbH | B133: -12.970109 | C133: -3.217904 | D133: 2.21E-38 | E133: 2.72E-36
A134: BF9343_RS06315 | B134: -13.403159 | C134: -4.9463954 | D134: 7.56E-41 | E134: 9.62E-39
